Workbook

Sheet Design Regulator
A1: LM70XX0/-Q1 Synchronous Buck Converter Design Tool
N2: http://www.ti.com/product/lm5175
A3: About | C3: xx | F3: = Input Box | N3: TERMS OF USE
A5: Step 1: Operating Specifications
D6: Input Voltage – Min, VIN(min) | E6: 42 | F6: V
D7: Input Voltage – Nom, VIN(nom) | E7: 48 | F7: V
D8: Input Voltage – Max, VIN(max) | E8: 54 | F8: V
D9: Output Voltage, VOUT | E9: 3.3 | F9: V
D10: Full Load Output Current, IOUT | E10: 8 | F10: A
D11: Switching Frequency, FSW | E11: 400 | F11: kHz
D12: Frequency Set Resistor, RT | E12: ='Variable Management'!C445 -> 54.9 | F12: kΩ
D13: Ambient Temperature, TA | E13: 25 | F13: °C
D14: IC Junction Temperature (estimate), TJ | E14: ='Variable Management'!B366 -> 96.66314822 | F14: °C
A16: Step 2: Current Sense Resistor
D17: Required IOCP Setpoint at VIN(nom) | E17: 9 | F17: A
D18: Recommended Sense Resistance | E18: =Rs_ideal*1000 -> 5.193909574 | F18: mΩ
D19: Sense Resistance, RS | E19: 5 | F19: mΩ
D20: Min Inductor Sat Current, ILO(SAT) | E20: ='Variable Management'!B95 -> 11.2 | F20: A
D21: Max power loss in shunt | E21: ='Variable Management'!B105 -> 0.4504777988 | F21: W
D22: VIN(min) | E22: ='Variable Management'!B97 -> 9.437143197 | F22: A
C23: IOUT(typ) at OCP Inception: | D23: VIN(nom) | E23: ='Variable Management'!B98 -> 9.418141132 | F23: A
D24: VIN(max) | E24: ='Variable Management'!B99 -> 9.403358623 | F24: A
A26: Step 3: Buck Inductance
D27: Recommended Starting Inductance | E27: =Lopt*1000000 -> 1.71875 | F27: µH
D28: Inductance, LO | E28: 2.2 | F28: µH
D29: Inductor DCR | E29: 3.8 | F29: mΩ
D30: DIL as a % at VIN(nom) | E30: ='Variable Management'!B68*100 -> 44.54647169 | F30: %
A32: Step 4: Output Capacitors
D33: Output Voltage Ripple Spec | E33: 33 | F33: mVpk-pk
D34: Maximum Load Step | E34: 50 | F34: %
D35: Minimum Output Capacitance | E35: =Total_COUT_with_stead_state_load_step -> 194.5594281 | F35: µF
D36: Output Capacitance (derated), COUT | E36: 325 | F36: µF | K36: =CHOOSE(SCH_MODE, "", "** For Single-Output Operation in 2-Phase Mode, tie MODE to VDDA and use FB1 to set VOUT **", "** For Single-Output Operation in 3-Phase Mode, tie both MODE pins to VDDA. Use FB1 of master IC to set VOUT. Connect FB2 of master IC to AGND. Connect FB2 of slave IC to VDDA to configure it as a slave **", "** For Single-Output Operation in 4-Phase Mode, tie both MODE pins to VDDA. Use FB1 of master IC to set VOUT. Connect FB2 of master IC to AGND. Connect FB2 of slave IC to VDDA to configure it as a slave **") -> 
D37: Maximum Permitted ESR | E37: ='Variable Management'!B128 -> 9.209935259 | F37: mΩ
D38: Output Capacitor ESR | E38: 1 | F38: mΩ | K38: =CHOOSE(SCH_MODE, "", "** Tie VCCX to GND if not used **", "** Slave controller (CNTRL2) not shown **","** Slave controller (CNTRL2) not shown **") ->  | P38: =IF(SCH_MODE=1, "** Tie VCCX to GND if not used **", "") -> ** Tie VCCX to GND if not used **
D39: Resulting Output Voltage Ripple (max) | E39: ='Variable Management'!B130*1000 -> 4.943887717 | F39: mVpk-pk | K39: =IF(OR(SCH_MODE=3, SCH_MODE=4),"** Tie VCCX to GND if not used **", "") -> 
D40: Output Capacitor RMS Current (max) | E40: ='Variable Management'!B114 -> 1.037291383 | F40: A (rms)
A42: Step 5: Input Capacitors
D43: Input Voltage Ripple Spec | E43: 480 | F43: mVpk-pk
D44: Minimum Input Capacitance | E44: ='Variable Management'!B151 -> 3.016581633 | F44: µF
D45: Input Capacitance (derated), CIN | E45: 15 | F45: µF
D46: Maximum Permitted ESR | E46: ='Variable Management'!B157 -> 14.97111725 | F46: mΩ
D47: Input Capacitor ESR | E47: 1 | F47: mΩ
D48: Resulting Input Voltage Ripple (max) | E48: ='Variable Management'!B164*1000 -> 108.0879683 | F48: mVpk-pk
D49: Input Capacitor RMS Current (max) | E49: ='Variable Management'!B141 -> 2.191495793 | F49: A (rms)
A51: Step 6: Enable, CNFG, FPWM/PFM
D54: Input Voltage UVLO Turn-ON | E54: 5.9 | F54: V
D55: Input Voltage UVLO Turn-OFF | E55: =0.9*E54 -> 5.31 | F55: V
D56: Upper Enable Resistor RUV1 | E56: ='Variable Management'!B190 -> 100 | F56: kΩ
D57: Lower Enable Resistor RUV2 | E57: 20.5 | F57: kΩ
D58: Configuration Resistor, RCNFG | E58: =IF(DITHER=1,"41.2","29.4") -> 29.4 | F58: kΩ
E59: =IF(DEMB=1, "* Tie PFM to GND", "* Tie PFM to VDDA") -> * Tie PFM to VDDA
A61: Step 7: Compensation Design
D62: Load Pole Frequency | E62: =Fp_dominant -> 1472.674297 | F62: Hz
D63: ESR Zero Frequency | E63: =Fesr/1000 -> 489.7075178 | F63: kHz
D64: Desired Crossover Frequency | E64: 40 | F64: =" kHz " -> kHz
D65: Error Amp Pole Frequency | E65: =Fp1_u -> 49.42700102 | F65: Hz
D66: =CHOOSE(VOUT_setting, "Upper Feedback Resistor","","","") ->  | E66: 100 | F66: kΩ
D67: =CHOOSE(VOUT_setting, "Lower Feedback Resistor", "PULLUP FB to VDDA with "&'Variable Management'!D421,"TIE FB TO VDDA","PULLUP FB to VDDA with "&'Variable Management'!D421) -> TIE FB TO VDDA | E67: =IF(Vout=Vref,"OPEN",Rfb2_u/1000) -> 792 | F67: =IF(Vout=Vref,"","kΩ") -> kΩ
A69: Compensation Components
B70: Calculated / | C70: Std Values | D70: =C70 -> Std Values | F70: Actual P/Z Frequencies
A71: RC1 | B71: =Rcea1/1000 -> 113.3896883 | C71: ='Standard Value Calculator'!S32 -> 113 | D71: =C71 -> 113 | E71: kΩ | F71: =Fp1_u -> 49.42700102 | G71: Hz (FPEA)
A72: CC1 | B72: =Cc1ea*1000000000 -> 1.754512972 | C72: ='Standard Value Calculator'!S33 -> 1.8 | D72: =C72 -> 1.8 | E72: nF | F72: =Fz1_u/1000 -> 7.957747164 | G72: kHz (FZCOMP)
A73: CC2 | B73: =IF(Cc2ea<0, "N/A", Cc2ea*1000000000000) -> 6.222277173 | C73: ='Standard Value Calculator'!S34 -> 6.8 | D73: =C73 -> 6.8 | E73: pF | F73: =Fp2_u/1000 -> 221.5686381 | G73: kHz (FPCOMP)
M74: ** Specify Inductor Core Loss ** | N74: 0.5 | O74: W
A76: Efficiency / Power Loss Analyzer
A78: Step 8: Efficiency
F79: Power MOSFETs | G79: (Q1, Q2)
E80: Internal NEXFETs
E81: High-side | F81: Low-side
D82: On-State Resistance, RDS(on) | E82: 24 | F82: 18 | G82: mΩ
D83: Total Gate Charge, QG | E83: 3 | F83: 4.1 | G83: nC
D84: Gate-Drain Charge, QGD | E84: 0.7 | F84: 1 | G84: nC
D85: Gate-Source Charge, QGS | E85: 0.7 | F85: 0.9 | G85: nC
D86: Output Charge, QOSS | F86: 3 | G86: nC
D87: Output Capacitance, COSS | E87: 250 | F87: 350 | G87: pF
D88: Gate Resistance, RG | E88: 3.5 | F88: 3 | G88: Ω
D89: Transconductance, gFS | E89: 71 | F89: 90 | G89: S
D90: Gate-Source Threshold Voltage, VTH | E90: 1.8 | F90: 1.8 | G90: V
D91: Body Diode Forward Voltage, VBD | E91: 0.8 | F91: 0.8 | G91: V
D92: Body Diode Rev Recovery Charge, QRR | F92: 30 | G92: nC
D93: Thermal Resistance, θJA | E93: 15 | F93: 15 | G93: °C/W
A95: External Schottky Diode (if applicable)
D96: Schottky Fwd Voltage, VFWDsch | F96: 0 | G96: V
D97: Schottky Rev Recovery Charge, QRRsch | F97: 0 | G97: nC
A101: Step 9: IC Power Loss
F102: Ext. Power Supply Voltage | G102: 12 | H102: V
F103: PCB RθJA | G103: 18.6 | H103: °C/W
F104: IC Power Dissipation | G104: ='Variable Management'!B364 -> 3.852857431 | H104: W
F105: IC Junction Temperature (estimate) | G105: ='Variable Management'!B366 -> 96.66314822 | H105: °C
H106: =CHOOSE(Ext_VCC, "* Tie BIAS to Ext. Power Supply", "* Tie BIAS to VOUT except for Fixed-VOUT = 3.3V", "* Tie BIAS to PGND") -> * Tie BIAS to PGND

Sheet Input Filters (hidden)
A1: LM(2)5149-Q1 Synchronous Buck Controller Design Tool
O2: http://www.ti.com/product/lm5175
A3: About | C3: xx | F3: = Input Box | O3: TERMS OF USE
E7: AEF | M7: Passive
B9: Design tab - LAEF | C9: ='Design Regulator'!E50 & " µH" -> µH | F9: LAEF | G9: 1 | H9: µH | J9: Suggested LIN Inductor | K9: 0.1-10 | L9: µH | N9: Chosen LIN | O9: 0.68 | P9: µH
B10: Design tab - CINJ | C10: ='Design Regulator'!#REF! & " µF" ->  | F10: CINJ | G10: 1 | H10: µF | J10: Suggested CF | K10: 0.1-10 | L10: µF | N10: Chosen CF | O10: 0.47 | P10: µF
B11: Design tab - CDAMP | C11: ='Design Regulator'!#REF! & " µF" ->  | F11: CDAMP | G11: 1 | H11: µF | J11: Suggested CDAMP | K11: 1-10 | L11: µF | N11: Chosen CDAMP | O11: 1 | P11: µF
B12: Design tab - RDAMP | C12: ='Design Regulator'!#REF! & " Ω" ->  | F12: RDAMP | G12: 10 | H12: Ω | J12: Suggested RDAMP | K12: =Rdamp_PassiveStd ->  | L12: Ω | N12: Chosen RDAMP | O12: 0.35 | P12: Ω
C14: VIN Ripple at Fsw | F14: =VinRipple_dBuV -> 100.6755471 | G14: dBµV | H14: VIN Ripple | I14: =VinRipple_dBuV -> 100.6755471 | J14: dBµV
D16: AEF Attenuation at Fsw | E16: =-#REF! ->  | F16: dB | L16: Passive Attenuation at Fsw | M16: =-#REF! ->  | N16: dB
D17: AEF EMI at Fsw | E17: =VinRipple_dBuV-E16 ->  | F17: dB-µV | L17: Passive EMI at Fsw | M17: =VinRipple_dBuV-M16 ->  | N17: dB-µV

Sheet BOM & Schematic (hidden)
A36: ** Tie DEMB to VDDA for FPWM, AGND for DEM **
A37: ** Tie VCCX to GND if not used ** | I37: =IF(OR(SCH_MODE=3, SCH_MODE=4),"** Tie VCCX to GND if not used **", "") -> 
A38: ** Tie DITH to VDDA to disable spread spectrum **
A39: ** Tie OSC to VDDA for 2.2MHz, AGND for 440kHz **
A40: ="VIN = "&VIN_min&" V to "&VIN_max&" V, VOUT = "& Vout &" V, IOUT = " &Iout & " A, Fsw = " & Fsw/1000 &" kHz, Current Limit = "&ROUNDUP(Ilimit_DC,0)&" A" -> VIN = 42 V to 54 V, VOUT = 3.3 V, IOUT = 8 A, Fsw = 400 kHz, Current Limit = 9 A
A41: High Efficiency Synchronous Buck Regulator BOM
A42: Count | B42: Ref Des | C42: Value | D42: Description | H42: Size | I42: Part Number | J42: MFR
A43: 1 | B43: CBOOT | C43: 0.1 | D43: =C43 -> 0.1 | H43: 0603 | I43: Std | J43: Std
A44: 1 | B44: CC1 | C44: ='Design Regulator'!D72 -> 1.8 | D44: 1.8 | H44: 0603 | I44: Std | J44: Std
A45: 1 | B45: CC2 | C45: ='Design Regulator'!D73 -> 6.8 | D45: 6.8 | H45: 0603 | I45: Std | J45: Std
A46: 1 | B46: CRES | C46: =Cres_u*1000000000 -> 82 | D46: =C46 -> 82 | H46: 0603 | I46: Std | J46: Std
A47: 1 | B47: CDITH | C47: =Cdither*1000000000 -> 2.7 | D47: =C47 -> 2.7 | H47: 0603 | I47: Std | J47: Std
A48: =ROUNDUP('Design Regulator'!E45/10,0) -> 2 | B48: CIN | C48: 10 | D48: =C48 -> 10 | H48: 1210 | I48: Std | J48: Std
A49: =ROUNDUP('Design Regulator'!E36/47,0) -> 7 | B49: COUT | C49: 47 | D49: =C49 -> 47 | H49: 1210 | I49: Std | J49: Std
A50: 1 | B50: CSS | C50: ='Design Regulator'!#REF! ->  | D50: =C50 ->  | H50: 0603 | I50: Std | J50: Std
A51: 2 | B51: CVCC, CVCCX | C51: 2.2 | D51: 2.2 | H51: 0603 | I51: Std | J51: Std
A52: 1 | B52: CVDDA | C52: 0.47 | D52: 0.47 | H52: 0603 | I52: Std | J52: Std
A53: 1 | B53: DBOOT | C53: See description | D53: Schottky Diode, 60V, 200mA | H53: - | I53: - | J53: Various
A54: 1 | B54: LO | C54: ='Design Regulator'!E28 -> 2.2 | D54: ="Inductor, "&Lf*1000000&"µH, "&Rdcr*1000&"mΩ, >"&ROUNDUP(Ilimit_DC*1.1,0)&"A" -> Inductor, 2.2µH, 3.8mΩ, >10A | H54: - | I54: - | J54: Various
A55: 2 | B55: Q1, Q2 | C55: See description | D55: ='Design Regulator'!E82 -> 24 | H55: Std | I55: ='Design Regulator'!E80 -> Internal NEXFETs | J55: -
A56: 1 | B56: RC1 | C56: ='Design Regulator'!D71 -> 113 | D56: =C56 -> 113 | H56: 0603 | I56: Std | J56: Std
A57: 1 | B57: RS | C57: =Rs*1000 -> 5 | D57: 5 | H57: 0508 | I57: Std | J57: Std
A58: 1 | B58: RT | C58: ='Design Regulator'!E12 -> 54.9 | D58: 54.9 | H58: 0603 | I58: Std | J58: Std
A59: 1 | B59: RFB1 | C59: ='Design Regulator'!E66 -> 100 | D59: 100 | H59: 0603 | I59: Std | J59: Std
A60: 1 | B60: RFB2 | C60: ='Design Regulator'!E67 -> 792 | D60: 792 | H60: 0603 | I60: Std | J60: Std
A61: 1 | B61: RPGOOD | C61: 100 | D61: 100 | H61: 0603 | I61: Std | J61: Std
A62: 1 | B62: RCS | C62: 100 | D62: 100 | H62: 0603 | I62: Std | J62: Std
A63: 1 | B63: RDEMB | C63: 100 | D63: 100 | H63: 0603 | I63: Std | J63: Std
A64: 1 | B64: RVIN | C64: 2.2 | D64: 2.2 | H64: 0603 | I64: Std | J64: Std
A65: 1 | B65: U1 | C65: LM5141-Q1 | D65: IC, LM5141-Q1, Synchronous Buck PWM Controller, 3.8V–65V Input | H65: VQFN-24 | I65: LM5141QRGEQ1 | J65: TI
A68: NOTES:
A69: ** For information on TI NexFETTM MOSFETs, see ** | D69: http://www.ti.com/nexfet | E69: **
A70: ** Inductor saturation current should be higher than the peak inductor current at the OCP setpoint for all input voltages and operating temperatures **
A71: ** Effective input and output capacitances should be appropriately derated for applied voltage and temperature, particularly with ceramics **

Sheet EVM (hidden)
A1: LM25149-Q1 Quickstart Design Tool
B6: LM25149-Q1EVM-2100 PCB Layout

Sheet Efficiency Calculations (hidden)
A1: BUCK CONTROLLER POWER DESIGN TOOL
H2: =AW19 -> 0.7545608887 | I2: 10% load
H3: =AW59 -> 0.8680098915 | I3: 50% load | AP3: =IF(MODE=1, (Qg_Q1+Qg_Q2)*Fsw*Vin, (Qg_Q1+Qg_Q2+Qg_Q3+Qg_Q4)*Fsw*Vin) -> 0.13632
H4: =AW109 -> 0.8421747594 | I4: 100% load | AO4: I_VCC | AP4: =(Qg_Q1+Qg_Q2)*Fsw*1000 -> 2.84 | AQ4: mA | AR4: =AP4*5/1000 -> 0.0142
A6: Enter the values of your design and MOSFET datasheet specifications below. Note that thermal resistance (θJA) will change when components are placed on the PCB
G7: Operating Point Condtions | R7: Filter Inductor | V7: Cout | Y7: Cin | AB7: High-side BUCK "Control" MOSFET Losses | AH7: Low-side BUCK "Sync" MOSFET Losses | AL7: External Diode | AM7: Diode/FET | AN7: Sense Rs | AO7: Controller IC Losses | AT7: RESULTS | BA7: Consolidated Buck/Boost Efficiency & Losses
A8: Input Parameters | G8: Step | H8: Vin | I8: Mode | J8: Iout | K8: Iout/ phase | L8: Iin | M8: Duty Cycle BUCK Leg | N8: Ripple Current pk-pk | O8: Peak Inductor Current | P8: Valley Inductor Current | Q8: SW node voltage at Q1 turn-on | R8: Irms Lf | S8: DCR Loss | T8: Core Loss | U8: Total Inductor Loss | V8: Irms Cout | W8: Cout ESR Loss | X8: Total Cout Loss | Y8: Irms Cin | Z8: Cin ESR Loss | AA8: Total Cin Loss | AB8: Irms | AC8: RDS(on) Loss | AD8: Transition Loss (not including capacitive loss) | AE8: MOSFET Output Capacitance Loss | AF8: Dead Time Loss | AG8: Total Control MOSFET Loss | AH8: Irms | AI8: RDS(on) Loss | AJ8: Deadtime Loss | AK8: Total Sync MOSFET Loss | AL8: Deadtime Loss | AM8: Reverse Recovery Loss | AN8: Isense Shunt Loss | AO8: IQ Loss | AP8: Switching Current Loss | AQ8: Switching Current Diss | AR8: LDO Loss Saved from Gate Drive Current (ext VCC) | AS8: Total IC Bias Power | AT8: Total Loss | AU8: Total IC Loss | AV8: Pout | AW8: EFF, h | AX8: =IF(Vin>Vout, "High-side MOSFET Temp Rise", "Boost ''CONTROL'' MOSFET Temp Rise") -> High-side MOSFET Temp Rise | AY8: =IF(Vin>Vout, "Low-side MOSFET Temp Rise", "Boost ''SYNC'' MOSFET Temp Rise") -> Low-side MOSFET Temp Rise | BA8: h | BB8: Inductor Cu & Core Loss | BC8: Total MOSFET Loss | BD8: Control MOSFET Loss | BE8: SYNC MOSFET Loss | BF8: Shunt Loss | BG8: FETs+IC Losses | BH8: Temp rise
A9: Design | B9: Input Value | C9: Units | D9: Description | G9: 0 | H9: =Vin -> 48 | I9: =MODE -> 1 | J9: 0 | K9: =Iout*G9/100/Number_of_Phases -> 0 | L9: =Vout*K9/(Vin*Efficiency) -> 0 | M9: =(Vout+(Rdson2+Rs+Rdcr)*K9)/(Vin+(Rs+Rdson2-Rdson1)*K9) -> 0.06875 | N9: =(Vin-(Rdson1+Rdcr)*K9-Vout)*M9/(Fsw*Lf) -> 3.4921875 | O9: =K9+N9/2 -> 1.74609375 | P9: =K9-N9/2 -> -1.74609375 | Q9: =IF(MIN(Vin, -P9/(Coss_Q1+Coss_Q2)*0.00000002)<0, 0, MIN(Vin, -P9/(Coss_Q1+Coss_Q2)*0.00000002)) -> 48 | R9: =SQRT(K9^2+(N9^2)/12) -> 1.008107697 | S9: =R9^2*Rdcr -> 0.003861868286 | T9: =Core_Loss_Ch1 -> 0.5 | U9: =(T9+S9*(1+Ltc*(Ta-25)))/(1-S9*Ltc*ThetaCa) -> 0.5040175842 | V9: =N9/SQRT(12) -> 1.008107697 | W9: =RCoutEsr*V9^2 -> 0.001016281128 | X9: =W9 -> 0.001016281128 | Y9: =SQRT(M9*(1-M9))*SQRT(K9^2+(N9^2)/12) -> 0.2550800096 | Z9: =RCinEsr*Y9^2 -> 6.506581128e-05 | AA9: =Z9 -> 6.506581128e-05 | AB9: =SQRT(M9)*SQRT(K9^2+(N9^2)/12) -> 0.264328068 | AC9: =Rdson1*AB9^2 -> 0.002794773102 | AD9: =(Vin*K9/2)*Fsw*(Tr_buck+Tf_buck) -> 0 | AE9: =(0.5*Coss_Q1*(Vin-Q9)^2-0.5*Coss_Q2*(Vin-Q9)^2+(Qoss_Q2*(Vin-Q9)/Vin)*Vin)*Fsw -> 0 | AF9: =IF(K9>N9/2,0,ABS(K9-N9/2)*Vsd_Q1*Deadtime*Fsw) -> 0.0078225 | AG9: =(AF9+AE9+AD9+AC9*(1+RdsonTopTc*Ta-RdsonTopTc*25))/(1-AC9*RdsonTopTc*ThetaJA_Q1) -> 0.01062038967 | AH9: =SQRT((1-M9))*SQRT(K9^2+(N9^2)/12) -> 0.9728369855 | AI9: =Rdson2*AH9^2 -> 0.02744594221 | AJ9: =IF(K9<N9/2,Deadtime*Fsw*IF(VfdSky_Q2>0,0,Vsd_Q2)*(K9+N9/2),2*Deadtime*Fsw*IF(VfdSky_Q2>0,0,Vsd_Q2)*K9) -> 0.0078225 | AK9: =(AJ9+AI9*(1+RdsonBotTc*Ta-RdsonBotTc*25))/(1-AI9*RdsonBotTc*ThetaJA_Q2) -> 0.0353703734 | AL9: =2*Deadtime*Fsw*IF(VfdSky_Q2>0,VfdSky_Q2,Vsd_Q2)*K9 -> 0 | AM9: =IF(QrrSky_Q2>0,QrrSky_Q2,Qrr_Q2*K9/(Iout/Number_of_Phases))*Fsw*Vin -> 0 | AN9: =Rs*R9^2 -> 0.00508140564 | AO9: =Iq*Vin -> 0.0001056 | AP9: =CHOOSE(Ext_VCC, (Qg_Q1+Qg_Q2)*Fsw*'Design Regulator'!$G$102, (Qg_Q1+Qg_Q2)*Fsw*Vout, (Qg_Q1+Qg_Q2)*Fsw*Vin) -> 0.13632 | AQ9: =(Vin-VCC)*Fsw*(Qg_Q1+Qg_Q2)+(RdsonDRT+RdsonDRT2)*Fsw*Qg_Q1*VCC/(RdsonDRT+2*Rgate1+RdsonDRT2)+(RdsonDRB+RdsonDRB2)*Fsw*Qg_Q2*VCC/(RdsonDRB+2*Rgate2+RdsonDRB2) -> 0.1275818182 | AR9: =(Qg_Q1+Qg_Q2)*Fsw*(Vin-VCC) -> 0.12212 | AS9: =SUM(AO9:AP9) -> 0.1364256 | AT9: =SUM(U9,X9,AA9,AG9,AK9,AL9,AM9,AS9,AN9) -> 0.6925966999 | AU9: =SUM(AG9,AK9,AL9,AM9,AS9) -> 0.1824163631 | AV9: =Vout*K9 -> 0 | AW9: =AV9/(AV9+AT9) -> 0 | AX9: =ThetaJA_Q1*BD9 -> 0.159305845 | AY9: =ThetaJA_Q2*BE9 -> 0.530555601 | BA9: =AW9*100 -> 0 | BB9: =U9 -> 0.5040175842 | BC9: =AG9+AK9+AM9 -> 0.04599076307 | BD9: =AG9+AM9*0.66 -> 0.01062038967 | BE9: =AK9+AM9*0.33 -> 0.0353703734 | BF9: =AN9 -> 0.00508140564 | BG9: =BC9+AS9 -> 0.1824163631 | BH9: =BG9*$B$63 -> 3.575360716
G10: 1 | H10: 48 | I10: 1 | J10: =Iout*G10/100 -> 0.08 | K10: 0.08 | L10: 0.006111111111 | M10: 0.06881368814 | N10: 3.495148564 | O10: =K10+N10/2 -> 1.827574282 | P10: =K10-N10/2 -> -1.667574282 | Q10: 48 | R10: =SQRT(K10^2+(N10^2)/12) -> 1.012129088 | S10: 0.003892740104 | T10: 0.5 | U10: 0.5040497109 | V10: =N10/SQRT(12) -> 1.008962482 | W10: 0.001018005291 | X10: =W10 -> 0.001018005291 | Y10: =SQRT(M10*(1-M10))*SQRT(K10^2+(N10^2)/12) -> 0.2562073683 | Z10: 6.564221556e-05 | AA10: =Z10 -> 6.564221556e-05 | AB10: =SQRT(M10)*SQRT(K10^2+(N10^2)/12) -> 0.2655053788 | AC10: 0.002819724248 | AD10: 0.006144 | AE10: 0 | AF10: 0.007470732784 | AG10: 0.01643932424 | AH10: 0.9766842808 | AI10: 0.02766345335 | AJ10: 0.008187532784 | AK10: 0.03595542451 | AL10: 0.0007168 | AM10: 0.00576 | AN10: 0.005122026453 | AO10: 0.0001056 | AP10: =CHOOSE(Ext_VCC, (Qg_Q1+Qg_Q2)*Fsw*'Design Regulator'!$G$102, (Qg_Q1+Qg_Q2)*Fsw*Vout, (Qg_Q1+Qg_Q2)*Fsw*Vin) -> 0.13632 | AQ10: 0.1275818182 | AR10: 0.12212 | AS10: 0.1364256 | AT10: 0.7055525336 | AU10: 0.1952971487 | AV10: 0.264 | AW10: =AV10/(AV10+AT10) -> 0.2722905576 | AX10: 0.3036138636 | AY10: 0.5678433676 | BA10: =AW10*100 -> 27.22905576 | BB10: 0.5040497109 | BC10: 0.05815474875 | BD10: 0.02024092424 | BE10: 0.03785622451 | BF10: 0.005122026453 | BG10: =BC10+AS10 -> 0.1945803487 | BH10: =BG10*$B$63 -> 3.813774835
A11: Vin | B11: =Vin -> 48 | C11: V | D11: Vin | G11: 2 | H11: 48 | I11: 1 | J11: 0.16 | K11: 0.16 | L11: 0.01222222222 | M11: 0.06887737755 | N11: 3.498109186 | O11: 1.909054593 | P11: -1.589054593 | Q11: 48 | R11: 1.022414132 | S11: 0.003972256495 | T11: 0.5 | U11: 0.50413246 | V11: 1.00981714 | W11: 0.001019730656 | X11: 0.001019730656 | Y11: 0.2589217803 | Z11: 6.704048829e-05 | AA11: 6.704048829e-05 | AB11: 0.2683274758 | AC11: 0.002879985371 | AD11: 0.012288 | AE11: 0 | AF11: 0.007118964577 | AG11: 0.02229369153 | AH11: 0.9865754012 | AI11: 0.02822659964 | AJ11: 0.008552564577 | AK11: 0.03688849408 | AL11: 0.0014336 | AM11: 0.01152 | AN11: 0.005226653282 | AO11: 0.0001056 | AP11: =CHOOSE(Ext_VCC, (Qg_Q1+Qg_Q2)*Fsw*'Design Regulator'!$G$102, (Qg_Q1+Qg_Q2)*Fsw*Vout, (Qg_Q1+Qg_Q2)*Fsw*Vin) -> 0.13632 | AQ11: 0.1275818182 | AR11: 0.12212 | AS11: 0.1364256 | AT11: 0.71900727 | AU11: 0.2085613856 | AV11: 0.528 | AW11: 0.4234137304 | AX11: 0.4484533729 | AY11: 0.6103514112 | BA11: 42.34137304 | BB11: 0.50413246 | BC11: 0.0707021856 | BD11: 0.02989689153 | BE11: 0.04069009408 | BF11: 0.005226653282 | BG11: 0.2071277856 | BH11: =BG11*$B$63 -> 4.059704598
A12: Vout | B12: =Vout -> 3.3 | C12: V | D12: Vout | G12: 3 | H12: 48 | I12: 1 | J12: 0.24 | K12: 0.24 | L12: 0.01833333333 | M12: 0.06894106823 | N12: 3.501069365 | O12: 1.990534683 | P12: -1.510534683 | Q12: 48 | R12: 1.038776793 | S12: 0.004100417455 | T12: 0.5 | U12: 0.5042658335 | V12: 1.01067167 | W12: 0.001021457225 | X12: 0.001021457225 | Y12: 0.263178149 | Z12: 6.926273811e-05 | AA12: 6.926273811e-05 | AB12: 0.2727477915 | AC12: 0.002975654311 | AD12: 0.018432 | AE12: 0 | AF12: 0.006767195378 | AG12: 0.0281836555 | AH12: 1.002330219 | AI12: 0.02913531015 | AJ12: 0.008917595378 | AK12: 0.03816967449 | AL12: 0.0021504 | AM12: 0.01728 | AN12: 0.005395286125 | AO12: 0.0001056 | AP12: =CHOOSE(Ext_VCC, (Qg_Q1+Qg_Q2)*Fsw*'Design Regulator'!$G$102, (Qg_Q1+Qg_Q2)*Fsw*Vout, (Qg_Q1+Qg_Q2)*Fsw*Vin) -> 0.13632 | AQ12: 0.1275818182 | AR12: 0.12212 | AS12: 0.1364256 | AT12: 0.7329611696 | AU12: 0.22220933 | AV12: 0.792 | AW12: 0.5193574865 | AX12: 0.5938268324 | AY12: 0.6580811173 | BA12: 51.93574865 | BB12: 0.5042658335 | BC12: 0.08363332998 | BD12: 0.0395884555 | BE12: 0.04387207449 | BF12: 0.005395286125 | BG12: 0.22005893 | BH12: 4.313155028
A13: Fsw | B13: =Fsw/1000 -> 400 | C13: kHz | D13: Switching Frequency | G13: 4 | H13: 48 | I13: 1 | J13: 0.32 | K13: 0.32 | L13: 0.02444444444 | M13: 0.06900476019 | N13: 3.504029102 | O13: 2.072014551 | P13: -1.432014551 | Q13: 47.73381837 | R13: 1.060935906 | S13: 0.004277222984 | T13: 0.5 | U13: 0.5044498345 | V13: 1.011526073 | W13: 0.001023184996 | X13: 0.001023184996 | Y13: 0.2689071831 | Z13: 7.231107311e-05 | AA13: 7.231107311e-05 | AB13: 0.2786946765 | AC13: 0.003106828908 | AD13: 0.024576 | AE13: 0.000318000906 | AF13: 0.006415425189 | AG13: 0.03442748583 | AH13: 1.02367684 | AI13: 0.03038951392 | AJ13: 0.009282625189 | AK13: 0.03979913412 | AL13: 0.0028672 | AM13: 0.02304 | AN13: 0.005627924978 | AO13: 0.0001056 | AP13: =CHOOSE(Ext_VCC, (Qg_Q1+Qg_Q2)*Fsw*'Design Regulator'!$G$102, (Qg_Q1+Qg_Q2)*Fsw*Vout, (Qg_Q1+Qg_Q2)*Fsw*Vin) -> 0.13632 | AQ13: 0.1275818182 | AR13: 0.12212 | AS13: 0.1364256 | AT13: 0.7477326755 | AU13: 0.23655942 | AV13: 1.056 | AW13: 0.5854526085 | AX13: 0.7445082875 | AY13: 0.7110350118 | BA13: 58.54526085 | BB13: 0.5044498345 | BC13: 0.09726661996 | BD13: 0.04963388583 | BE13: 0.04740233412 | BF13: 0.005627924978 | BG13: 0.23369222 | BH13: 4.580367511
A14: Iout | B14: =Iout -> 8 | C14: A | D14: Max Output Current | G14: 5 | H14: 48 | I14: 1 | J14: 0.4 | K14: 0.4 | L14: 0.03055555556 | M14: 0.06906845342 | N14: 3.506988396 | O14: 2.153494198 | P14: -1.353494198 | Q14: 45.11647327 | R14: 1.088537536 | S14: 0.004502673077 | T14: 0.5 | U14: 0.5046844674 | V14: 1.012380347 | W14: 0.001024913968 | X14: 0.001024913968 | Y14: 0.2760210152 | Z14: 7.618760085e-05 | AA14: 7.618760085e-05 | AB14: 0.2860772189 | AC14: 0.003273607007 | AD14: 0.03072 | AE14: 0.003293937547 | AF14: 0.006063654008 | AG14: 0.04336610474 | AH14: 1.050273199 | AI14: 0.03198913998 | AJ14: 0.009647654008 | AK14: 0.04177711746 | AL14: 0.003584 | AM14: 0.0288 | AN14: 0.005924569838 | AO14: 0.0001056 | AP14: =CHOOSE(Ext_VCC, (Qg_Q1+Qg_Q2)*Fsw*'Design Regulator'!$G$102, (Qg_Q1+Qg_Q2)*Fsw*Vout, (Qg_Q1+Qg_Q2)*Fsw*Vin) -> 0.13632 | AQ14: 0.1275818182 | AR14: 0.12212 | AS14: 0.1364256 | AT14: 0.765662961 | AU14: 0.2539528222 | AV14: 1.32 | AW14: 0.6328922864 | AX14: 0.9356115711 | AY14: 0.769216762 | BA14: 63.28922864 | BB14: 0.5046844674 | BC14: 0.1139432222 | BD14: 0.06237410474 | BE14: 0.05128111746 | BF14: 0.005924569838 | BG14: 0.2503688222 | BH14: 4.907228915
A15: Ta | B15: =Ta -> 25 | C15: °C | D15: Ambient Temperature | G15: 6 | H15: 48 | I15: 1 | J15: 0.48 | K15: 0.48 | L15: 0.03666666667 | M15: 0.06913214793 | N15: 3.509947248 | O15: 2.234973624 | P15: -1.274973624 | Q15: 42.4991208 | R15: 1.121179798 | S15: 0.004776767733 | T15: 0.5 | U15: 0.5049697376 | V15: 1.013234494 | W15: 0.00102664414 | X15: 0.00102664414 | Y15: 0.2844194585 | Z15: 8.089442838e-05 | AA15: 8.089442838e-05 | AB15: 0.2947917256 | AC15: 0.003476086458 | AD15: 0.036864 | AE15: 0.005995861602 | AF15: 0.005711881835 | AG15: 0.05206683372 | AH15: 1.08173101 | AI15: 0.03393411738 | AJ15: 0.01001268184 | AK15: 0.04410394521 | AL15: 0.0043008 | AM15: 0.03456 | AN15: 0.006285220701 | AO15: 0.0001056 | AP15: =CHOOSE(Ext_VCC, (Qg_Q1+Qg_Q2)*Fsw*'Design Regulator'!$G$102, (Qg_Q1+Qg_Q2)*Fsw*Vout, (Qg_Q1+Qg_Q2)*Fsw*Vin) -> 0.13632 | AQ15: 0.1275818182 | AR15: 0.12212 | AS15: 0.1364256 | AT15: 0.7838196758 | AU15: 0.2714571789 | AV15: 1.584 | AW15: 0.6689698613 | AX15: 1.123146506 | AY15: 0.8326311781 | BA15: 66.89698613 | BB15: 0.5049697376 | BC15: 0.1307307789 | BD15: 0.07487643372 | BE15: 0.05550874521 | BF15: 0.006285220701 | BG15: 0.2671563789 | BH15: 5.236265027
A16: Vcc | B16: =VCC -> 5 | C16: V | D16: Subregulated VCC Voltage | G16: 7 | H16: 48 | I16: 1 | J16: 0.56 | K16: 0.56 | L16: 0.04277777778 | M16: 0.06919584371 | N16: 3.512905657 | O16: 2.316452828 | P16: -1.196452828 | Q16: 39.88176095 | R16: 1.158436668 | S16: 0.005099506949 | T16: 0.5 | U16: 0.5053056517 | V16: 1.014088513 | W16: 0.001028375513 | X16: 0.001028375513 | Y16: 0.293996024 | Z16: 8.643366215e-05 | AA16: 8.643366215e-05 | AB16: 0.3047279571 | AC16: 0.003714365114 | AD16: 0.043008 | AE16: 0.008423770755 | AF16: 0.005360108672 | AG16: 0.06052985169 | AH16: 1.117638754 | AI16: 0.03622437517 | AJ16: 0.01037770867 | AK16: 0.0467800144 | AL16: 0.0050176 | AM16: 0.04032 | AN16: 0.006709877565 | AO16: 0.0001056 | AP16: =CHOOSE(Ext_VCC, (Qg_Q1+Qg_Q2)*Fsw*'Design Regulator'!$G$102, (Qg_Q1+Qg_Q2)*Fsw*Vout, (Qg_Q1+Qg_Q2)*Fsw*Vin) -> 0.13632 | AQ16: 0.1275818182 | AR16: 0.12212 | AS16: 0.1364256 | AT16: 0.8022034046 | AU16: 0.2890730661 | AV16: 1.848 | AW16: 0.6973049679 | AX16: 1.307115775 | AY16: 0.901284216 | BA16: 69.73049679 | BB16: 0.5053056517 | BC16: 0.1476298661 | BD16: 0.08714105169 | BE16: 0.0600856144 | BF16: 0.006709877565 | BG16: 0.2840554661 | BH16: 5.567487135
A17: Components | B17: Input Value | C17: Units | D17: Description | G17: 8 | H17: 48 | I17: 1 | J17: 0.64 | K17: 0.64 | L17: 0.04888888889 | M17: 0.06925954076 | N17: 3.515863623 | O17: 2.397931812 | P17: -1.117931812 | Q17: 37.26439372 | R17: 1.199878363 | S17: 0.005470890723 | T17: 0.5 | U17: 0.5056922177 | V17: 1.014942405 | W17: 0.001030108085 | X17: 0.001030108085 | Y17: 0.3046430832 | Z17: 9.280740814e-05 | AA17: 9.280740814e-05 | AB17: 0.3157744777 | AC17: 0.003988540832 | AD17: 0.049152 | AE17: 0.01057766269 | AF17: 0.005008334517 | AG17: 0.06875533255 | AH17: 1.157581342 | AI17: 0.03885984236 | AJ17: 0.01074273452 | AK17: 0.04980579865 | AL17: 0.0057344 | AM17: 0.04608 | AN17: 0.007198540425 | AO17: 0.0001056 | AP17: =CHOOSE(Ext_VCC, (Qg_Q1+Qg_Q2)*Fsw*'Design Regulator'!$G$102, (Qg_Q1+Qg_Q2)*Fsw*Vout, (Qg_Q1+Qg_Q2)*Fsw*Vin) -> 0.13632 | AQ17: 0.1275818182 | AR17: 0.12212 | AS17: 0.1364256 | AT17: 0.8208148048 | AU17: 0.3068011312 | AV17: 2.112 | AW17: 0.7201272977 | AX17: 1.487521988 | AY17: 0.9751829798 | BA17: 72.01272977 | BB17: 0.5056922177 | BC17: 0.1646411312 | BD17: 0.09916813255 | BE17: 0.06501219865 | BF17: 0.007198540425 | BG17: 0.3010667312 | BH17: 5.900907932
A18: L | B18: =Lf*1000000 -> 2.2 | C18: uH | D18: Filter Inductance | G18: 9 | H18: 48 | I18: 1 | J18: 0.72 | K18: 0.72 | L18: 0.055 | M18: 0.06932323909 | N18: 3.518821147 | O18: 2.479410574 | P18: -1.039410574 | Q18: 34.64701912 | R18: 1.245087088 | S18: 0.005890919051 | T18: 0.5 | U18: 0.5061294445 | V18: 1.015796168 | W18: 0.001031841856 | X18: 0.001031841856 | Y18: 0.3162558643 | Z18: 0.0001000177717 | AA18: 0.0001000177717 | AB18: 0.3278227979 | AC18: 0.004298711472 | AD18: 0.055296 | AE18: 0.01245753509 | AF18: 0.00465655937 | AG18: 0.07674344521 | AH18: 1.201155306 | AI18: 0.041840448 | AJ18: 0.01110775937 | AK18: 0.05318184836 | AL18: 0.0064512 | AM18: 0.05184 | AN18: 0.007751209278 | AO18: 0.0001056 | AP18: =CHOOSE(Ext_VCC, (Qg_Q1+Qg_Q2)*Fsw*'Design Regulator'!$G$102, (Qg_Q1+Qg_Q2)*Fsw*Vout, (Qg_Q1+Qg_Q2)*Fsw*Vin) -> 0.13632 | AQ18: 0.1275818182 | AR18: 0.12212 | AS18: 0.1364256 | AT18: 0.8396546069 | AU18: 0.3246420936 | AV18: 2.376 | AW18: 0.7388853252 | AX18: 1.664367678 | AY18: 1.054335725 | BA18: 73.88853252 | BB18: 0.5061294445 | BC18: 0.1817652936 | BD18: 0.1109578452 | BE18: 0.07028904836 | BF18: 0.007751209278 | BG18: 0.3181908936 | BH18: 6.236541514
A19: Rdcr | B19: =Rdcr*1000 -> 3.8 | C19: mW | D19: Inductor DCR at 25°C | G19: 10 | H19: 48 | I19: 1 | J19: 0.8 | K19: 0.8 | L19: 0.06111111111 | M19: 0.06938693869 | N19: 3.521778229 | O19: 2.560889114 | P19: -0.9608891144 | Q19: 32.02963715 | R19: 1.293667973 | S19: 0.006359591933 | T19: 0.5 | U19: 0.5066173423 | V19: 1.016649804 | W19: 0.001033576824 | X19: 0.001033576824 | Y19: 0.3287352397 | Z19: 0.0001080668578 | AA19: 0.0001080668578 | AB19: 0.3407702635 | AC19: 0.0046449749 | AD19: 0.06144 | AE19: 0.01406338563 | AF19: 0.004304783232 | AG19: 0.08449435355 | AH19: 1.247979348 | AI19: 0.0451661211 | AJ19: 0.01147278323 | AK19: 0.05690879102 | AL19: 0.007168 | AM19: 0.0576 | AN19: 0.008367884122 | AO19: 0.0001056 | AP19: =CHOOSE(Ext_VCC, (Qg_Q1+Qg_Q2)*Fsw*'Design Regulator'!$G$102, (Qg_Q1+Qg_Q2)*Fsw*Vout, (Qg_Q1+Qg_Q2)*Fsw*Vin) -> 0.13632 | AQ19: 0.1275818182 | AR19: 0.12212 | AS19: 0.1364256 | AT19: 0.8587236147 | AU19: 0.3425967446 | AV19: 2.64 | AW19: 0.7545608887 | AX19: 1.837655303 | AY19: 1.138751865 | BA19: 75.45608887 | BB19: 0.5066173423 | BC19: 0.1990031446 | BD19: 0.1225103536 | BE19: 0.07591679102 | BF19: 0.008367884122 | BG19: 0.3354287446 | BH19: 6.574403394
A20: LTc | B20: =Ltc*1000000 -> 4000 | C20: ppm | D20: Inductor Series Resistance Temp Co | G20: 11 | H20: 48 | I20: 1 | J20: 0.88 | K20: 0.88 | L20: 0.06722222222 | M20: 0.06945063957 | N20: 3.524734867 | O20: 2.642367434 | P20: -0.8823674337 | Q20: 29.41224779 | R20: 1.345255734 | S20: 0.006876909364 | T20: 0.5 | U20: 0.5071559226 | V20: 1.017503312 | W20: 0.00103531299 | X20: 0.00103531299 | Y20: 0.3419894306 | Z20: 0.0001169567707 | AA20: 0.0001169567707 | AB20: 0.3545218253 | AC20: 0.005027428985 | AD20: 0.067584 | AE20: 0.01539521201 | AF20: 0.003953006103 | AG20: 0.0920082164 | AH20: 1.297700761 | AI20: 0.04883679071 | AJ20: 0.0118378061 | AK20: 0.06098733149 | AL20: 0.0078848 | AM20: 0.06336 | AN20: 0.009048564952 | AO20: 0.0001056 | AP20: =CHOOSE(Ext_VCC, (Qg_Q1+Qg_Q2)*Fsw*'Design Regulator'!$G$102, (Qg_Q1+Qg_Q2)*Fsw*Vout, (Qg_Q1+Qg_Q2)*Fsw*Vin) -> 0.13632 | AQ20: 0.1275818182 | AR20: 0.12212 | AS20: 0.1364256 | AT20: 0.8780227052 | AU20: 0.3606659479 | AV20: 2.904 | AW20: 0.7678430899 | AX20: 2.007387246 | AY20: 1.228441972 | BA20: 76.78430899 | BB20: 0.5071559226 | BC20: 0.2163555479 | BD20: 0.1338258164 | BE20: 0.08189613149 | BF20: 0.009048564952 | BG20: 0.3527811479 | BH20: 6.914510499
A21: ThetaCa | B21: =ThetaCa -> 20 | C21: °C/W | D21: Core to Ambient Thermal Resistance | G21: 12 | H21: 48 | I21: 1 | J21: 0.96 | K21: 0.96 | L21: 0.07333333333 | M21: 0.06951434172 | N21: 3.527691064 | O21: 2.723845532 | P21: -0.8038455318 | Q21: 26.79485106 | R21: 1.3995179 | S21: 0.007442871343 | T21: 0.5 | U21: 0.5077451979 | V21: 1.018356693 | W21: 0.001037050353 | X21: 0.001037050353 | Y21: 0.3559348453 | Z21: 0.0001266896141 | AA21: 0.0001266896141 | AB21: 0.3689909077 | AC21: 0.005446171599 | AD21: 0.073728 | AE21: 0.0164530119 | AF21: 0.003601227982 | AG21: 0.09928518752 | AH21: 1.349998542 | AI21: 0.05285238584 | AJ21: 0.01220282798 | AK21: 0.06541825244 | AL21: 0.0086016 | AM21: 0.06912 | AN21: 0.009793251766 | AO21: 0.0001056 | AP21: =CHOOSE(Ext_VCC, (Qg_Q1+Qg_Q2)*Fsw*'Design Regulator'!$G$102, (Qg_Q1+Qg_Q2)*Fsw*Vout, (Qg_Q1+Qg_Q2)*Fsw*Vin) -> 0.13632 | AQ21: 0.1275818182 | AR21: 0.12212 | AS21: 0.1364256 | AT21: 0.8975528296 | AU21: 0.37885064 | AV21: 3.168 | AW21: 0.7792298201 | AX21: 2.173565813 | AY21: 1.323417787 | BA21: 77.92298201 | BB21: 0.5077451979 | BC21: 0.23382344 | BD21: 0.1449043875 | BE21: 0.08822785244 | BF21: 0.009793251766 | BG21: 0.37024904 | BH21: 7.256881183
A22: Cin | B22: =Cin*1000000 -> 15 | C22: μF | D22: Input Capacitance | G22: 13 | H22: 48 | I22: 1 | J22: 1.04 | K22: 1.04 | L22: 0.07944444444 | M22: 0.06957804515 | N22: 3.530646817 | O22: 2.805323408 | P22: -0.7253234085 | Q22: 24.17744695 | R22: 1.456155525 | S22: 0.008057477866 | T22: 0.5 | U22: 0.5083851821 | V22: 1.019209945 | W22: 0.001038788912 | X22: 0.001038788912 | Y22: 0.3704962772 | Z22: 0.0001372674914 | AA22: 0.0001372674914 | AB22: 0.3840996166 | AC22: 0.005901300618 | AD22: 0.079872 | AE22: 0.01723678298 | AF22: 0.00324944887 | AG22: 0.1063254156 | AH22: 1.404584065 | AI22: 0.0572128355 | AJ22: 0.01256784887 | AK22: 0.07020241469 | AL22: 0.0093184 | AM22: 0.07488 | AN22: 0.01060194456 | AO22: 0.0001056 | AP22: =CHOOSE(Ext_VCC, (Qg_Q1+Qg_Q2)*Fsw*'Design Regulator'!$G$102, (Qg_Q1+Qg_Q2)*Fsw*Vout, (Qg_Q1+Qg_Q2)*Fsw*Vin) -> 0.13632 | AQ22: 0.1275818182 | AR22: 0.12212 | AS22: 0.1364256 | AT22: 0.9173150133 | AU22: 0.3971518303 | AV22: 3.432 | AW22: 0.7890897738 | AX22: 2.336193234 | AY22: 1.42369222 | BA22: 78.90897738 | BB22: 0.5083851821 | BC22: 0.2514078303 | BD22: 0.1557462156 | BE22: 0.09491281469 | BF22: 0.01060194456 | BG22: 0.3878334303 | BH22: 7.601535233
A23: RCinEsr | B23: =RCinEsr*1000 -> 1 | C23: mW | D23: Input Capacitor ESR | G23: 14 | H23: 48 | I23: 1 | J23: 1.12 | K23: 1.12 | L23: 0.08555555556 | M23: 0.06964174984 | N23: 3.533602128 | O23: 2.886801064 | P23: -0.6468010639 | Q23: 21.56003546 | R23: 1.514902197 | S23: 0.008720728932 | T23: 0.5 | U23: 0.50907589 | V23: 1.02006307 | W23: 0.001040528666 | X23: 0.001040528666 | Y23: 0.3856066717 | Z23: 0.0001486925053 | AA23: 0.0001486925053 | AB23: 0.3997784988 | AC23: 0.006392913924 | AD23: 0.086016 | AE23: 0.01774652295 | AF23: 0.002897668766 | AG23: 0.1131290442 | AH23: 1.461200129 | AI23: 0.06191806873 | AJ23: 0.01293286877 | AK23: 0.07534075769 | AL23: 0.0100352 | AM23: 0.08064 | AN23: 0.01147464333 | AO23: 0.0001056 | AP23: =CHOOSE(Ext_VCC, (Qg_Q1+Qg_Q2)*Fsw*'Design Regulator'!$G$102, (Qg_Q1+Qg_Q2)*Fsw*Vout, (Qg_Q1+Qg_Q2)*Fsw*Vin) -> 0.13632 | AQ23: 0.1275818182 | AR23: 0.12212 | AS23: 0.1364256 | AT23: 0.9373103563 | AU23: 0.4155706019 | AV23: 3.696 | AW23: 0.7977017976 | AX23: 2.495271663 | AY23: 1.529279365 | BA23: 79.77017976 | BB23: 0.50907589 | BC23: 0.2691098019 | BD23: 0.1663514442 | BE23: 0.1019519577 | BF23: 0.01147464333 | BG23: 0.4055354019 | BH23: 7.948493877
A24: Cout | B24: =Cout*1000000 -> 325 | C24: μF | D24: Output Capcitance | G24: 15 | H24: 48 | I24: 1 | J24: 1.2 | K24: 1.2 | L24: 0.09166666667 | M24: 0.06970545582 | N24: 3.536556996 | O24: 2.968278498 | P24: -0.5682784979 | Q24: 18.9426166 | R24: 1.575522014 | S24: 0.009432624538 | T24: 0.5 | U24: 0.5098173378 | V24: 1.020916067 | W24: 0.001042269615 | X24: 0.001042269615 | Y24: 0.4012066274 | Z24: 0.0001609667579 | AA24: 0.0001609667579 | AB24: 0.4159660263 | AC24: 0.0069211094 | AD24: 0.09216 | AE24: 0.01798222948 | AF24: 0.002545887671 | AG24: 0.1196962118 | AH24: 1.519618992 | AI24: 0.06696801453 | AJ24: 0.01329788767 | AK24: 0.08083430002 | AL24: 0.010752 | AM24: 0.0864 | AN24: 0.01241134808 | AO24: 0.0001056 | AP24: =CHOOSE(Ext_VCC, (Qg_Q1+Qg_Q2)*Fsw*'Design Regulator'!$G$102, (Qg_Q1+Qg_Q2)*Fsw*Vout, (Qg_Q1+Qg_Q2)*Fsw*Vin) -> 0.13632 | AQ24: 0.1275818182 | AR24: 0.12212 | AS24: 0.1364256 | AT24: 0.957540034 | AU24: 0.4341081118 | AV24: 3.96 | AW24: 0.8052806836 | AX24: 2.650803176 | AY24: 1.6401945 | BA24: 80.52806836 | BB24: 0.5098173378 | BC24: 0.2869305118 | BD24: 0.1767202118 | BE24: 0.1093463 | BF24: 0.01241134808 | BG24: 0.4233561118 | BH24: 8.297779791
A25: RCoutEsr | B25: =Cout_ESR*1000 -> 1 | C25: mW | D25: Output Capacitor ESR | G25: 16 | H25: 48 | I25: 1 | J25: 1.28 | K25: 1.28 | L25: 0.09777777778 | M25: 0.06976916307 | N25: 3.539511421 | O25: 3.049755711 | P25: -0.4897557106 | Q25: 16.32519035 | R25: 1.637806997 | S25: 0.01019316468 | T25: 0.5 | U25: 0.5106095429 | V25: 1.021768936 | W25: 0.001044011758 | X25: 0.001044011758 | Y25: 0.4172437546 | Z25: 0.0001740923508 | AA25: 0.0001740923508 | AB25: 0.4326079326 | AC25: 0.007485984935 | AD25: 0.098304 | AE25: 0.01794390025 | AF25: 0.002194105584 | AG25: 0.1260270516 | AH25: 1.579639875 | AI25: 0.07236260192 | AJ25: 0.01366290558 | AK25: 0.08668413994 | AL25: 0.0114688 | AM25: 0.09216 | AN25: 0.01341205879 | AO25: 0.0001056 | AP25: =CHOOSE(Ext_VCC, (Qg_Q1+Qg_Q2)*Fsw*'Design Regulator'!$G$102, (Qg_Q1+Qg_Q2)*Fsw*Vout, (Qg_Q1+Qg_Q2)*Fsw*Vin) -> 0.13632 | AQ25: 0.1275818182 | AR25: 0.12212 | AS25: 0.1364256 | AT25: 0.9780052973 | AU25: 0.4527655916 | AV25: 4.224 | AW25: 0.8119945595 | AX25: 2.802789774 | AY25: 1.756454099 | BA25: 81.19945595 | BB25: 0.5106095429 | BC25: 0.3048711916 | BD25: 0.1868526516 | BE25: 0.1170969399 | BF25: 0.01341205879 | BG25: 0.4412967916 | BH25: 8.649417115
A26: Top Driver | B26: Input Value | C26: Units | D26: Description | G26: 17 | H26: 48 | I26: 1 | J26: 1.36 | K26: 1.36 | L26: 0.1038888889 | M26: 0.06983287159 | N26: 3.542465404 | O26: 3.131232702 | P26: -0.411232702 | Q26: 13.70775673 | R26: 1.701574299 | S26: 0.01100234936 | T26: 0.5 | U26: 0.5114525237 | V26: 1.022621677 | W26: 0.001045755095 | X26: 0.001045755095 | Y26: 0.4336719788 | Z26: 0.0001880713852 | AA26: 0.0001880713852 | AB26: 0.4496564917 | AC26: 0.008087638422 | AD26: 0.104448 | AE26: 0.01763153295 | AF26: 0.001842322505 | AG26: 0.1321216919 | AH26: 1.641086267 | AI26: 0.0781017599 | AJ26: 0.0140279225 | AK26: 0.09289145595 | AL26: 0.0121856 | AM26: 0.09792 | AN26: 0.01447677547 | AO26: 0.0001056 | AP26: =CHOOSE(Ext_VCC, (Qg_Q1+Qg_Q2)*Fsw*'Design Regulator'!$G$102, (Qg_Q1+Qg_Q2)*Fsw*Vout, (Qg_Q1+Qg_Q2)*Fsw*Vin) -> 0.13632 | AQ26: 0.1275818182 | AR26: 0.12212 | AS26: 0.1364256 | AT26: 0.9987074735 | AU26: 0.4715443478 | AV26: 4.488 | AW26: 0.8179769054 | AX26: 2.951233378 | AY26: 1.878075839 | BA26: 81.79769054 | BB26: 0.5114525237 | BC26: 0.3229331478 | BD26: 0.1967488919 | BE26: 0.125205056 | BF26: 0.01447677547 | BG26: 0.4593587478 | BH26: 9.003431458
A27: RdsonDRT | B27: 0.7 | C27: W | D27: Drain to Source Resistance of pullup Top FET Driver | G27: 18 | H27: 48 | I27: 1 | J27: 1.44 | K27: 1.44 | L27: 0.11 | M27: 0.06989658138 | N27: 3.545418944 | O27: 3.212709472 | P27: -0.332709472 | Q27: 11.09031573 | R27: 1.766663416 | S27: 0.01186017857 | T27: 0.5 | U27: 0.5123463001 | V27: 1.023474291 | W27: 0.001047499624 | X27: 0.001047499624 | Y27: 0.4504508425 | Z27: 0.0002029059615 | AA27: 0.0002029059615 | AB27: 0.4670697955 | AC27: 0.008726167755 | AD27: 0.110592 | AE27: 0.01704512527 | AF27: 0.001490538435 | AG27: 0.1379802555 | AH27: 1.703803225 | AI27: 0.08418541747 | AJ27: 0.01439293843 | AK27: 0.09945750745 | AL27: 0.0129024 | AM27: 0.10368 | AN27: 0.01560549812 | AO27: 0.0001056 | AP27: =CHOOSE(Ext_VCC, (Qg_Q1+Qg_Q2)*Fsw*'Design Regulator'!$G$102, (Qg_Q1+Qg_Q2)*Fsw*Vout, (Qg_Q1+Qg_Q2)*Fsw*Vin) -> 0.13632 | AQ27: 0.1275818182 | AR27: 0.12212 | AS27: 0.1364256 | AT27: 1.019647967 | AU27: 0.490445763 | AV27: 4.752 | AW27: 0.8233350383 | AX27: 3.096135833 | AY27: 2.005078612 | BA27: 82.33350383 | BB27: 0.5123463001 | BC27: 0.341117763 | BD27: 0.2064090555 | BE27: 0.1336719074 | BF27: 0.01560549812 | BG27: 0.477543363 | BH27: 9.359849914
A28: RdsonDRT2 | B28: =RdsonDRT2 -> 1 | C28: W | D28: Drain to Source Resistance of pulldown Top FET Driver | G28: 19 | H28: 48 | I28: 1 | J28: 1.52 | K28: 1.52 | L28: 0.1161111111 | M28: 0.06996029246 | N28: 3.548372041 | O28: 3.294186021 | P28: -0.2541860206 | Q28: 8.472867355 | R28: 1.832933535 | S28: 0.01276665231 | T28: 0.5 | U28: 0.5132908928 | V28: 1.024326777 | W28: 0.001049245345 | X28: 0.001049245345 | Y28: 0.4675448426 | Z28: 0.0002185981799 | AA28: 0.0002185981799 | AB28: 0.4848110672 | AC28: 0.009401670836 | AD28: 0.116736 | AE28: 0.01618467487 | AF28: 0.001138753372 | AG28: 0.1436028603 | AH28: 1.767654823 | AI28: 0.09061350366 | AJ28: 0.01475795337 | AK28: 0.1063836354 | AL28: 0.0136192 | AM28: 0.10944 | AN28: 0.01679822673 | AO28: 0.0001056 | AP28: =CHOOSE(Ext_VCC, (Qg_Q1+Qg_Q2)*Fsw*'Design Regulator'!$G$102, (Qg_Q1+Qg_Q2)*Fsw*Vout, (Qg_Q1+Qg_Q2)*Fsw*Vin) -> 0.13632 | AQ28: 0.1275818182 | AR28: 0.12212 | AS28: 0.1364256 | AT28: 1.040828259 | AU28: 0.5094712957 | AV28: 5.016 | AW28: 0.8281562207 | AX28: 3.237498904 | AY28: 2.137482531 | BA28: 82.81562207 | BB28: 0.5132908928 | BC28: 0.3594264957 | BD28: 0.2158332603 | BE28: 0.1424988354 | BF28: 0.01679822673 | BG28: 0.4958520957 | BH28: 9.718701076
A29: Bottom Driver | B29: Input Value | C29: Units | D29: Description | G29: 20 | H29: 48 | I29: 1 | J29: 1.6 | K29: 1.6 | L29: 0.1222222222 | M29: 0.0700240048 | N29: 3.551324696 | O29: 3.375662348 | P29: -0.1756623479 | Q29: 5.855411597 | R29: 1.900261103 | S29: 0.01372177058 | T29: 0.5 | U29: 0.5142863241 | V29: 1.025179135 | W29: 0.001050992258 | X29: 0.001050992258 | Y29: 0.4849228183 | Z29: 0.0002351501397 | AA29: 0.0002351501397 | AB29: 0.5028480279 | AC29: 0.01011424557 | AD29: 0.12288 | AE29: 0.01505017945 | AF29: 0.0007869673187 | AG29: 0.1489896187 | AH29: 1.832521792 | AI29: 0.09738594744 | AJ29: 0.01512296732 | AK29: 0.113671263 | AL29: 0.014336 | AM29: 0.1152 | AN29: 0.01805496129 | AO29: 0.0001056 | AP29: =CHOOSE(Ext_VCC, (Qg_Q1+Qg_Q2)*Fsw*'Design Regulator'!$G$102, (Qg_Q1+Qg_Q2)*Fsw*Vout, (Qg_Q1+Qg_Q2)*Fsw*Vin) -> 0.13632 | AQ29: 0.1275818182 | AR29: 0.12212 | AS29: 0.1364256 | AT29: 1.06224991 | AU29: 0.5286224817 | AV29: 5.28 | AW29: 0.832512133 | AX29: 3.37532428 | AY29: 2.275308946 | BA29: 83.2512133 | BB29: 0.5142863241 | BC29: 0.3778608817 | BD29: 0.2250216187 | BE29: 0.151687263 | BF29: 0.01805496129 | BG29: 0.5142864817 | BH29: 10.08001504
A30: RdsonDRB | B30: 0.7 | C30: W | D30: Drain to Source Resistance of pullup Bottom FET Driver | G30: 21 | H30: 48 | I30: 1 | J30: 1.68 | K30: 1.68 | L30: 0.1283333333 | M30: 0.07008771842 | N30: 3.554276908 | O30: 3.457138454 | P30: -0.09713845383 | Q30: 3.237948461 | R30: 1.96853762 | S30: 0.01472553337 | T30: 0.5 | U30: 0.5153326172 | V30: 1.026031365 | W30: 0.001052740361 | X30: 0.001052740361 | Y30: 0.5025573996 | Z30: 0.0002525639399 | AA30: 0.0002525639399 | AB30: 0.5211523256 | AC30: 0.01086398986 | AD30: 0.129024 | AE30: 0.01364163669 | AF30: 0.0004351802732 | AG30: 0.154140638 | AH30: 1.898299401 | AI30: 0.1045026778 | AJ30: 0.01548798027 | AK30: 0.1213218967 | AL30: 0.0150528 | AM30: 0.12096 | AN30: 0.01937570181 | AO30: 0.0001056 | AP30: =CHOOSE(Ext_VCC, (Qg_Q1+Qg_Q2)*Fsw*'Design Regulator'!$G$102, (Qg_Q1+Qg_Q2)*Fsw*Vout, (Qg_Q1+Qg_Q2)*Fsw*Vin) -> 0.13632 | AQ30: 0.1275818182 | AR30: 0.12212 | AS30: 0.1364256 | AT30: 1.083914558 | AU30: 0.5479009347 | AV30: 5.544 | AW30: 0.8364622011 | AX30: 3.509613569 | AY30: 2.418580451 | BA30: 83.64622011 | BB30: 0.5153326172 | BC30: 0.3964225347 | BD30: 0.233974238 | BE30: 0.1612386967 | BF30: 0.01937570181 | BG30: 0.5328481347 | BH30: 10.44382344
A31: RdsonDRB2 | B31: 0.5 | C31: W | D31: Drain to Source Resistance of pulldown Bottom FET Driver | G31: 22 | H31: 48 | I31: 1 | J31: 1.76 | K31: 1.76 | L31: 0.1344444444 | M31: 0.07015143332 | N31: 3.557228677 | O31: 3.538614338 | P31: -0.01861433835 | Q31: 0.6204779451 | R31: 2.0376677 | S31: 0.01577794069 | T31: 0.5 | U31: 0.5164297966 | V31: 1.026883467 | W31: 0.001054489655 | X31: 0.001054489655 | Y31: 0.520424518 | Z31: 0.000270841679 | AA31: 0.000270841679 | AB31: 0.5396990277 | AC31: 0.01165100162 | AD31: 0.135168 | AE31: 0.01195904426 | AF31: 8.339223583e-05 | AG31: 0.1590560201 | AH31: 1.964895573 | AI31: 0.1119636238 | AJ31: 0.01585299224 | AK31: 0.1293371267 | AL31: 0.0157696 | AM31: 0.12672 | AN31: 0.02076044827 | AO31: 0.0001056 | AP31: =CHOOSE(Ext_VCC, (Qg_Q1+Qg_Q2)*Fsw*'Design Regulator'!$G$102, (Qg_Q1+Qg_Q2)*Fsw*Vout, (Qg_Q1+Qg_Q2)*Fsw*Vin) -> 0.13632 | AQ31: 0.1275818182 | AR31: 0.12212 | AS31: 0.1364256 | AT31: 1.105823923 | AU31: 0.5673083468 | AV31: 5.808 | AW31: 0.8400561057 | AX31: 3.640368302 | AY31: 2.5673209 | BA31: 84.00561057 | BB31: 0.5164297966 | BC31: 0.4151131468 | BD31: 0.2426912201 | BE31: 0.1711547267 | BF31: 0.02076044827 | BG31: 0.5515387468 | BH31: 10.81015944
A32: Deadtime | B32: Input Value | C32: Units | D32: Description | G32: 23 | H32: 48 | I32: 1 | J32: 1.84 | K32: 1.84 | L32: 0.1405555556 | M32: 0.07021514948 | N32: 3.560180003 | O32: 3.620090001 | P32: 0.05990999851 | Q32: 0 | R32: 2.107567351 | S32: 0.01687899252 | T32: 0.5 | U32: 0.517577888 | V32: 1.027735442 | W32: 0.001056240138 | X32: 0.001056240138 | Y32: 0.5385029755 | Z32: 0.0002899854546 | AA32: 0.0002899854546 | AB32: 0.5584661756 | AC32: 0.01247537877 | AD32: 0.141312 | AE32: 0.01152 | AF32: 0 | AG32: 0.1655242014 | AH32: 2.032229236 | AI32: 0.1197687144 | AJ32: 0.0164864 | AK32: 0.1379904429 | AL32: 0.0164864 | AM32: 0.13248 | AN32: 0.02220920069 | AO32: 0.0001056 | AP32: =CHOOSE(Ext_VCC, (Qg_Q1+Qg_Q2)*Fsw*'Design Regulator'!$G$102, (Qg_Q1+Qg_Q2)*Fsw*Vout, (Qg_Q1+Qg_Q2)*Fsw*Vin) -> 0.13632 | AQ32: 0.1275818182 | AR32: 0.12212 | AS32: 0.1364256 | AT32: 1.130039959 | AU32: 0.5889066442 | AV32: 6.072 | AW32: 0.8430944614 | AX32: 3.794415021 | AY32: 2.725632643 | BA32: 84.30944614 | BB32: 0.517577888 | BC32: 0.4359946442 | BD32: 0.2529610014 | BE32: 0.1817088429 | BF32: 0.02220920069 | BG32: 0.5724202442 | BH32: 11.21943679
A33: Deadtime | B33: =Deadtime*1000000000 -> 14 | C33: ns | D33: Total Deadtime | G33: 24 | H33: 48 | I33: 1 | J33: 1.92 | K33: 1.92 | L33: 0.1466666667 | M33: 0.07027886693 | N33: 3.563130886 | O33: 3.701565443 | P33: 0.1384345568 | Q33: 0 | R33: 2.178162485 | S33: 0.01802868888 | T33: 0.5 | U33: 0.5187769183 | V33: 1.028587288 | W33: 0.00105799181 | X33: 0.00105799181 | Y33: 0.5567740693 | Z33: 0.0003099973643 | AA33: 0.0003099973643 | AB33: 0.5774343951 | AC33: 0.01333721923 | AD33: 0.147456 | AE33: 0.01152 | AF33: 0 | AG33: 0.1725548664 | AH33: 2.100228875 | AI33: 0.1279178785 | AJ33: 0.0172032 | AK33: 0.147096791 | AL33: 0.0172032 | AM33: 0.13824 | AN33: 0.02372195905 | AO33: 0.0001056 | AP33: =CHOOSE(Ext_VCC, (Qg_Q1+Qg_Q2)*Fsw*'Design Regulator'!$G$102, (Qg_Q1+Qg_Q2)*Fsw*Vout, (Qg_Q1+Qg_Q2)*Fsw*Vin) -> 0.13632 | AQ33: 0.1275818182 | AR33: 0.12212 | AS33: 0.1364256 | AT33: 1.155387324 | AU33: 0.6115204575 | AV33: 6.336 | AW33: 0.8457712472 | AX33: 3.956898997 | AY33: 2.890739865 | BA33: 84.57712472 | BB33: 0.5187769183 | BC33: 0.4578916575 | BD33: 0.2637932664 | BE33: 0.192715991 | BF33: 0.02372195905 | BG33: 0.5943172575 | BH33: 11.64861825
A34: IQ | B34: Input Value | C34: Units | D34: Description | G34: 25 | H34: 48 | I34: 1 | J34: 2 | K34: 2 | L34: 0.1527777778 | M34: 0.07034258565 | N34: 3.566081327 | O34: 3.783040664 | P34: 0.2169593364 | Q34: 0 | R34: 2.249387621 | S34: 0.01922702974 | T34: 0.5 | U34: 0.5200269156 | V34: 1.029439007 | W34: 0.001059744669 | X34: 0.001059744669 | Y34: 0.5752212658 | Z34: 0.0003308795046 | AA34: 0.0003308795046 | AB34: 0.5965865593 | AC34: 0.01423662091 | AD34: 0.1536 | AE34: 0.01152 | AF34: 0 | AG34: 0.1796251327 | AH34: 2.168831286 | AI34: 0.1364110453 | AJ34: 0.01792 | AK34: 0.156573675 | AL34: 0.01792 | AM34: 0.144 | AN34: 0.02529872335 | AO34: 0.0001056 | AP34: =CHOOSE(Ext_VCC, (Qg_Q1+Qg_Q2)*Fsw*'Design Regulator'!$G$102, (Qg_Q1+Qg_Q2)*Fsw*Vout, (Qg_Q1+Qg_Q2)*Fsw*Vin) -> 0.13632 | AQ34: 0.1275818182 | AR34: 0.12212 | AS34: 0.1364256 | AT34: 1.181260671 | AU34: 0.6345444077 | AV34: 6.6 | AW34: 0.8481916079 | AX34: 4.11997699 | AY34: 3.061405125 | BA34: 84.81916079 | BB34: 0.5200269156 | BC34: 0.4801988077 | BD34: 0.2746651327 | BE34: 0.204093675 | BF34: 0.02529872335 | BG34: 0.6166244077 | BH34: 12.08583839
A35: IQ | B35: =Iq*1000 -> 0.0022 | C35: mA | D35: Quiescent Current Of Controller (Not Switching!) | G35: 26 | H35: 48 | I35: 1 | J35: 2.08 | K35: 2.08 | L35: 0.1588888889 | M35: 0.07040630564 | N35: 3.569031325 | O35: 3.864515663 | P35: 0.2954843375 | Q35: 0 | R35: 2.321184766 | S35: 0.02047401512 | T35: 0.5 | U35: 0.5213279092 | V35: 1.030290598 | W35: 0.001061498717 | X35: 0.001061498717 | Y35: 0.5938299183 | Z35: 0.0003526339719 | AA35: 0.0003526339719 | AB35: 0.6159074961 | AC35: 0.01517368175 | AD35: 0.159744 | AE35: 0.01152 | AF35: 0 | AG35: 0.1867351951 | AH35: 2.23798049 | AI35: 0.1452481435 | AJ35: 0.0186368 | AK35: 0.1664230709 | AL35: 0.0186368 | AM35: 0.14976 | AN35: 0.02693949358 | AO35: 0.0001056 | AP35: =CHOOSE(Ext_VCC, (Qg_Q1+Qg_Q2)*Fsw*'Design Regulator'!$G$102, (Qg_Q1+Qg_Q2)*Fsw*Vout, (Qg_Q1+Qg_Q2)*Fsw*Vin) -> 0.13632 | AQ35: 0.1275818182 | AR35: 0.12212 | AS35: 0.1364256 | AT35: 1.207662201 | AU35: 0.657980666 | AV35: 6.864 | AW35: 0.8503824651 | AX35: 4.283651926 | AY35: 3.237658064 | BA35: 85.03824651 | BB35: 0.5213279092 | BC35: 0.502918266 | BD35: 0.2855767951 | BE35: 0.2158438709 | BF35: 0.02693949358 | BG35: 0.639343866 | BH35: 12.53113977
A36: High-side FET | B36: Input Value | C36: Units | D36: Description | G36: 27 | H36: 48 | I36: 1 | J36: 2.16 | K36: 2.16 | L36: 0.165 | M36: 0.07047002691 | N36: 3.57198088 | O36: 3.94599044 | P36: 0.37400956 | Q36: 0 | R36: 2.393502444 | S36: 0.02176964501 | T36: 0.5 | U36: 0.5226799295 | V36: 1.031142061 | W36: 0.001063253951 | X36: 0.001063253951 | Y36: 0.6125870239 | Z36: 0.0003752628619 | AA36: 0.0003752628619 | AB36: 0.6353837361 | AC36: 0.01614849968 | AD36: 0.165888 | AE36: 0.01152 | AF36: 0 | AG36: 0.1938852501 | AH36: 2.307626802 | AI36: 0.1544291023 | AJ36: 0.0193536 | AK36: 0.176647044 | AL36: 0.0193536 | AM36: 0.15552 | AN36: 0.02864426975 | AO36: 0.0001056 | AP36: =CHOOSE(Ext_VCC, (Qg_Q1+Qg_Q2)*Fsw*'Design Regulator'!$G$102, (Qg_Q1+Qg_Q2)*Fsw*Vout, (Qg_Q1+Qg_Q2)*Fsw*Vin) -> 0.13632 | AQ36: 0.1275818182 | AR36: 0.12212 | AS36: 0.1364256 | AT36: 1.23459421 | AU36: 0.681831494 | AV36: 7.128 | AW36: 0.852367079 | AX36: 4.447926751 | AY36: 3.419529659 | BA36: 85.2367079 | BB36: 0.5226799295 | BC36: 0.526052294 | BD36: 0.2965284501 | BE36: 0.227968644 | BF36: 0.02864426975 | BG36: 0.662477894 | BH36: 12.98456672
A37: RdsonTop | B37: =Rdson1*1000 -> 40 | C37: mW | D37: Drain-Source Resistance of Top FET | G37: 28 | H37: 48 | I37: 1 | J37: 2.24 | K37: 2.24 | L37: 0.1711111111 | M37: 0.07053374945 | N37: 3.574929992 | O37: 4.027464996 | P37: 0.4525350039 | Q37: 0 | R37: 2.466294867 | S37: 0.02311391941 | T37: 0.5 | U37: 0.5240830084 | V37: 1.031993397 | W37: 0.001065010371 | X37: 0.001065010371 | Y37: 0.6314810129 | Z37: 0.0003987682696 | AA37: 0.0003987682696 | AB37: 0.6550032946 | AC37: 0.01716117264 | AD37: 0.172032 | AE37: 0.01152 | AF37: 0 | AG37: 0.2010754952 | AH37: 2.377726026 | AI37: 0.1639538506 | AJ37: 0.0200704 | AK37: 0.1872477495 | AL37: 0.0200704 | AM37: 0.16128 | AN37: 0.03041305185 | AO37: 0.0001056 | AP37: =CHOOSE(Ext_VCC, (Qg_Q1+Qg_Q2)*Fsw*'Design Regulator'!$G$102, (Qg_Q1+Qg_Q2)*Fsw*Vout, (Qg_Q1+Qg_Q2)*Fsw*Vin) -> 0.13632 | AQ37: 0.1275818182 | AR37: 0.12212 | AS37: 0.1364256 | AT37: 1.262059084 | AU37: 0.7060992447 | AV37: 7.392 | AW37: 0.8541656497 | AX37: 4.612804428 | AY37: 3.607052242 | BA37: 85.41656497 | BB37: 0.5240830084 | BC37: 0.5496032447 | BD37: 0.3075202952 | BE37: 0.2404701495 | BF37: 0.03041305185 | BG37: 0.6860288447 | BH37: 13.44616536
A38: RdsonTopTc | B38: =RdsonTopTc*1000000 -> 7000 | C38: ppm | D38: Drain to Source Resistance Temp Co | G38: 29 | H38: 48 | I38: 1 | J38: 2.32 | K38: 2.32 | L38: 0.1772222222 | M38: 0.07059747327 | N38: 3.577878662 | O38: 4.108939331 | P38: 0.5310606692 | Q38: 0 | R38: 2.53952121 | S38: 0.02450683831 | T38: 0.5 | U38: 0.5255371787 | V38: 1.032844604 | W38: 0.001066767976 | X38: 0.001066767976 | Y38: 0.6505015678 | Z38: 0.0004231522898 | AA38: 0.0004231522898 | AB38: 0.6747554845 | AC38: 0.01821179855 | AD38: 0.178176 | AE38: 0.01152 | AF38: 0 | AG38: 0.2083061296 | AH38: 2.448238757 | AI38: 0.1738223174 | AJ38: 0.0207872 | AK38: 0.1982274343 | AL38: 0.0207872 | AM38: 0.16704 | AN38: 0.03224583988 | AO38: 0.0001056 | AP38: =CHOOSE(Ext_VCC, (Qg_Q1+Qg_Q2)*Fsw*'Design Regulator'!$G$102, (Qg_Q1+Qg_Q2)*Fsw*Vout, (Qg_Q1+Qg_Q2)*Fsw*Vin) -> 0.13632 | AQ38: 0.1275818182 | AR38: 0.12212 | AS38: 0.1364256 | AT38: 1.290059303 | AU38: 0.730786364 | AV38: 7.656 | AW38: 0.8557958025 | AX38: 4.778287944 | AY38: 3.800259515 | BA38: 85.57958025 | BB38: 0.5255371787 | BC38: 0.573573564 | BD38: 0.3185525296 | BE38: 0.2533506343 | BF38: 0.03224583988 | BG38: 0.709999164 | BH38: 13.91598361
A39: QgTop | B39: =Qg_Q1*1000000000 -> 3 | C39: nC | D39: Gate Charge Of Top FET | G39: 30 | H39: 48 | I39: 1 | J39: 2.4 | K39: 2.4 | L39: 0.1833333333 | M39: 0.07066119836 | N39: 3.580826888 | O39: 4.190413444 | P39: 0.609586556 | Q39: 0 | R39: 2.613144995 | S39: 0.02594840171 | T39: 0.5 | U39: 0.5270424745 | V39: 1.033695684 | W39: 0.001068526767 | X39: 0.001068526767 | Y39: 0.6696394675 | Z39: 0.0004484170164 | AA39: 0.0004484170164 | AB39: 0.694630754 | AC39: 0.01930047538 | AD39: 0.18432 | AE39: 0.01152 | AF39: 0 | AG39: 0.2155773536 | AH39: 2.519129787 | AI39: 0.1840344316 | AJ39: 0.021504 | AK39: 0.2095884379 | AL39: 0.021504 | AM39: 0.1728 | AN39: 0.03414263383 | AO39: 0.0001056 | AP39: =CHOOSE(Ext_VCC, (Qg_Q1+Qg_Q2)*Fsw*'Design Regulator'!$G$102, (Qg_Q1+Qg_Q2)*Fsw*Vout, (Qg_Q1+Qg_Q2)*Fsw*Vin) -> 0.13632 | AQ39: 0.1275818182 | AR39: 0.12212 | AS39: 0.1364256 | AT39: 1.318597444 | AU39: 0.7558953916 | AV39: 7.92 | AW39: 0.8572729842 | AX39: 4.944380305 | AY39: 3.999186569 | BA39: 85.72729842 | BB39: 0.5270424745 | BC39: 0.5979657916 | BD39: 0.3296253536 | BE39: 0.2666124379 | BF39: 0.03414263383 | BG39: 0.7343913916 | BH39: 14.39407128
A40: QgdTop | B40: =Qgd_Q1*1000000000 -> 0.7 | C40: nC | D40: Gate to Drain Charge | G40: 31 | H40: 48 | I40: 1 | J40: 2.48 | K40: 2.48 | L40: 0.1894444444 | M40: 0.07072492473 | N40: 3.583774672 | O40: 4.271887336 | P40: 0.6881126642 | Q40: 0 | R40: 2.687133555 | S40: 0.02743860962 | T40: 0.5 | U40: 0.5285989312 | V40: 1.034546636 | W40: 0.001070286741 | X40: 0.001070286741 | Y40: 0.6888864515 | Z40: 0.000474564543 | AA40: 0.000474564543 | AB40: 0.714620547 | AC40: 0.02042730105 | AD40: 0.190464 | AE40: 0.01152 | AF40: 0 | AG40: 0.222889369 | AH40: 2.590367583 | AI40: 0.1945901222 | AJ40: 0.0222208 | AK40: 0.2213331938 | AL40: 0.0222208 | AM40: 0.17856 | AN40: 0.03610343371 | AO40: 0.0001056 | AP40: =CHOOSE(Ext_VCC, (Qg_Q1+Qg_Q2)*Fsw*'Design Regulator'!$G$102, (Qg_Q1+Qg_Q2)*Fsw*Vout, (Qg_Q1+Qg_Q2)*Fsw*Vin) -> 0.13632 | AQ40: 0.1275818182 | AR40: 0.12212 | AS40: 0.1364256 | AT40: 1.347676179 | AU40: 0.7814289628 | AV40: 8.184 | AW40: 0.8586107885 | AX40: 5.111084535 | AY40: 4.203869907 | BA40: 85.86107885 | BB40: 0.5285989312 | BC40: 0.6227825628 | BD40: 0.340738969 | BE40: 0.2802579938 | BF40: 0.03610343371 | BG40: 0.7592081628 | BH40: 14.88047999
A41: QgsTop | B41: =Qgs_Q1*1000000000 -> 0.7 | C41: nC | G41: 32 | H41: =Vin -> 48 | I41: =MODE -> 1 | J41: 2.56 | K41: =Iout*G41/100/Number_of_Phases -> 2.56 | L41: =Vout*K41/(Vin*Efficiency) -> 0.1955555556 | M41: =(Vout+(Rdson2+Rs+Rdcr)*K41)/(Vin+(Rs+Rdson2-Rdson1)*K41) -> 0.07078865237 | N41: =(Vin-(Rdson1+Rdcr)*K41-Vout)*M41/(Fsw*Lf) -> 3.586722012 | O41: 4.353361006 | P41: 0.7666389938 | Q41: =IF(MIN(Vin, -P41/(Coss_Q1+Coss_Q2)*0.00000002)<0, 0, MIN(Vin, -P41/(Coss_Q1+Coss_Q2)*0.00000002)) -> 0 | R41: 2.761457568 | S41: =R41^2*Rdcr -> 0.02897746202 | T41: =Core_Loss_Ch1 -> 0.5 | U41: =(T41+S41*(1+Ltc*(Ta-25)))/(1-S41*Ltc*ThetaCa) -> 0.5302065853 | V41: 1.03539746 | W41: 0.001072047899 | X41: 0.001072047899 | Y41: 0.7082351041 | Z41: 0.0005015969627 | AA41: 0.0005015969627 | AB41: 0.7347171825 | AC41: =Rdson1*AB41^2 -> 0.02159237353 | AD41: =(Vin*K41/2)*Fsw*(Tr_buck+Tf_buck) -> 0.196608 | AE41: =(0.5*Coss_Q1*(Vin-Q41)^2-0.5*Coss_Q2*(Vin-Q41)^2+(Qoss_Q2*(Vin-Q41)/Vin)*Vin)*Fsw -> 0.01152 | AF41: =IF(K41>N41/2,0,ABS(K41-N41/2)*Vsd_Q1*Deadtime*Fsw) -> 0 | AG41: =(AF41+AE41+AD41+AC41*(1+RdsonTopTc*Ta-RdsonTopTc*25))/(1-AC41*RdsonTopTc*ThetaJA_Q1) -> 0.2302423789 | AH41: =SQRT((1-M41))*SQRT(K41^2+(N41^2)/12) -> 2.661923846 | AI41: =Rdson2*AH41^2 -> 0.2054893183 | AJ41: =IF(K41<N41/2,Deadtime*Fsw*IF(VfdSky_Q2>0,0,Vsd_Q2)*(K41+N41/2),2*Deadtime*Fsw*IF(VfdSky_Q2>0,0,Vsd_Q2)*K41) -> 0.0229376 | AK41: =(AJ41+AI41*(1+RdsonBotTc*Ta-RdsonBotTc*25))/(1-AI41*RdsonBotTc*ThetaJA_Q2) -> 0.2334642309 | AL41: =2*Deadtime*Fsw*IF(VfdSky_Q2>0,VfdSky_Q2,Vsd_Q2)*K41 -> 0.0229376 | AM41: =IF(QrrSky_Q2>0,QrrSky_Q2,Qrr_Q2*K41/(Iout/Number_of_Phases))*Fsw*Vin -> 0.18432 | AN41: =Rs*R41^2 -> 0.0381282395 | AO41: =Iq*Vin -> 0.0001056 | AP41: =CHOOSE(Ext_VCC, (Qg_Q1+Qg_Q2)*Fsw*'Design Regulator'!$G$102, (Qg_Q1+Qg_Q2)*Fsw*Vout, (Qg_Q1+Qg_Q2)*Fsw*Vin) -> 0.13632 | AQ41: 0.1275818182 | AR41: =(Qg_Q1+Qg_Q2)*Fsw*(Vin-VCC) -> 0.12212 | AS41: =SUM(AO41:AP41) -> 0.1364256 | AT41: =SUM(U41,X41,AA41,AG41,AK41,AL41,AM41,AS41,AN41) -> 1.377298279 | AU41: =SUM(AG41,AK41,AL41,AM41,AS41) -> 0.8073898097 | AV41: =Vout*K41 -> 8.448 | AW41: 0.8598212247 | AX41: =ThetaJA_Q1*BD41 -> 5.278403683 | AY41: =ThetaJA_Q2*BE41 -> 4.414347463 | BA41: 85.98212247 | BB41: =U41 -> 0.5302065853 | BC41: =AG41+AK41+AM41 -> 0.6480266097 | BD41: =AG41+AM41*0.66 -> 0.3518935789 | BE41: =AK41+AM41*0.33 -> 0.2942898309 | BF41: =AN41 -> 0.0381282395 | BG41: 0.7844522097 | BH41: 15.37526331
A42: RGateTop | B42: =Rgate1 -> 3.5 | C42: W | D42: Gate Resistance | G42: 33 | H42: 48 | I42: 1 | J42: =Iout*G42/100 -> 2.64 | K42: 2.64 | L42: 0.2016666667 | M42: 0.07085238129 | N42: 3.58966891 | O42: 4.434834455 | P42: 0.8451655449 | Q42: 0 | R42: 2.836090662 | S42: 0.03056495891 | T42: 0.5 | U42: 0.5318654746 | V42: 1.036248156 | W42: 0.00107381024 | X42: 0.00107381024 | Y42: 0.7276787531 | Z42: 0.0005295163677 | AA42: 0.0005295163677 | AB42: 0.7549137495 | AC42: 0.02279579077 | AD42: 0.202752 | AE42: 0.01152 | AF42: 0 | AG42: 0.2376365877 | AH42: 2.73377312 | AI42: 0.2167319487 | AJ42: 0.0236544 | AK42: 0.2459841748 | AL42: 0.0236544 | AM42: =IF(QrrSky_Q2>0,QrrSky_Q2,Qrr_Q2*K42/(Iout/Number_of_Phases))*Fsw*Vin -> 0.19008 | AN42: 0.0402170512 | AO42: 0.0001056 | AP42: =CHOOSE(Ext_VCC, (Qg_Q1+Qg_Q2)*Fsw*'Design Regulator'!$G$102, (Qg_Q1+Qg_Q2)*Fsw*Vout, (Qg_Q1+Qg_Q2)*Fsw*Vin) -> 0.13632 | AQ42: 0.1275818182 | AR42: 0.12212 | AS42: 0.1364256 | AT42: 1.407466615 | AU42: 0.8337807625 | AV42: 8.712 | AW42: 0.8609149406 | AX42: 5.446340816 | AY42: 4.630658621 | BA42: 86.09149406 | BB42: 0.5318654746 | BC42: 0.6737007625 | BD42: 0.3630893877 | BE42: 0.3087105748 | BF42: 0.0402170512 | BG42: 0.8101263625 | BH42: 15.8784767
A43: GfsTop | B43: =Gfs_Q1 -> 71 | C43: S | D43: Transconductance of Top FET | G43: 34 | H43: 48 | I43: 1 | J43: 2.72 | K43: 2.72 | L43: 0.2077777778 | M43: 0.07091611148 | N43: 3.592615365 | O43: 4.516307683 | P43: 0.9236923175 | Q43: 0 | R43: 2.911009063 | S43: 0.0322011003 | T43: 0.5 | U43: 0.5335756381 | V43: 1.037098724 | W43: 0.001075573763 | X43: 0.001075573763 | Y43: 0.7472113825 | Z43: 0.0005583248501 | AA43: 0.0005583248501 | AB43: 0.7752040171 | AC43: 0.02403765072 | AD43: 0.208896 | AE43: 0.01152 | AF43: 0 | AG43: 0.2450722015 | AH43: 2.80589246 | AI43: 0.2283179424 | AJ43: 0.0243712 | AK43: 0.2588957496 | AL43: 0.0243712 | AM43: 0.19584 | AN43: 0.04236986882 | AO43: 0.0001056 | AP43: =CHOOSE(Ext_VCC, (Qg_Q1+Qg_Q2)*Fsw*'Design Regulator'!$G$102, (Qg_Q1+Qg_Q2)*Fsw*Vout, (Qg_Q1+Qg_Q2)*Fsw*Vin) -> 0.13632 | AQ43: 0.1275818182 | AR43: 0.12212 | AS43: 0.1364256 | AT43: 1.438184157 | AU43: 0.8606047511 | AV43: 8.976 | AW43: 0.8619014092 | AX43: 5.614899023 | AY43: 4.852844244 | BA43: 86.19014092 | BB43: 0.5335756381 | BC43: 0.6998079511 | BD43: 0.3743266015 | BE43: 0.3235229496 | BF43: 0.04236986882 | BG43: 0.8362335511 | BH43: 16.3901776
A44: VthTop | B44: =Vth_Q1 -> 1.8 | C44: V | D44: Threshold Voltage of Top FET | G44: 35 | H44: 48 | I44: 1 | J44: 2.8 | K44: 2.8 | L44: 0.2138888889 | M44: 0.07097984295 | N44: 3.595561377 | O44: 4.597780688 | P44: 1.002219312 | Q44: 0 | R44: 2.986191298 | S44: 0.03388588618 | T44: 0.5 | U44: 0.535337116 | V44: 1.037949164 | W44: 0.001077338468 | X44: 0.001077338468 | Y44: 0.7668275564 | Z44: 0.0005880245012 | AA44: 0.0005880245012 | AB44: 0.7955823552 | AC44: 0.02531805136 | AD44: 0.21504 | AE44: 0.01152 | AF44: 0 | AG44: 0.2525494276 | AH44: 2.878261139 | AI44: 0.2402472283 | AJ44: 0.025088 | AK44: 0.2722017793 | AL44: 0.025088 | AM44: 0.2016 | AN44: 0.04458669234 | AO44: 0.0001056 | AP44: =CHOOSE(Ext_VCC, (Qg_Q1+Qg_Q2)*Fsw*'Design Regulator'!$G$102, (Qg_Q1+Qg_Q2)*Fsw*Vout, (Qg_Q1+Qg_Q2)*Fsw*Vin) -> 0.13632 | AQ44: 0.1275818182 | AR44: 0.12212 | AS44: 0.1364256 | AT44: 1.469453978 | AU44: 0.8878648068 | AV44: 9.24 | AW44: 0.8627890851 | AX44: 5.784081414 | AY44: 5.080946689 | BA44: 86.27890851 | BB44: 0.535337116 | BC44: 0.7263512068 | BD44: 0.3856054276 | BE44: 0.3387297793 | BF44: 0.04458669234 | BG44: 0.8627768068 | BH44: 16.91042541
A45: VspTop | B45: =Vsp_Q1 -> 1.912676056 | C45: V | G45: 36 | H45: 48 | I45: 1 | J45: 2.88 | K45: 2.88 | L45: 0.22 | M45: 0.07104357569 | N45: 3.598506946 | O45: 4.679253473 | P45: 1.080746527 | Q45: 0 | R45: 3.061617931 | S45: 0.03561931654 | T45: 0.5 | U45: 0.5371499497 | V45: 1.038799477 | W45: 0.001079104353 | X45: 0.001079104353 | Y45: 0.7865223531 | Z45: 0.0006186174119 | AA45: 0.0006186174119 | AB45: 0.8160436667 | AC45: 0.02663709064 | AD45: 0.221184 | AE45: 0.01152 | AF45: 0 | AG45: 0.2600684747 | AH45: 2.950860398 | AI45: 0.2525197355 | AJ45: 0.0258048 | AK45: 0.2859051893 | AL45: 0.0258048 | AM45: 0.20736 | AN45: 0.04686752177 | AO45: 0.0001056 | AP45: =CHOOSE(Ext_VCC, (Qg_Q1+Qg_Q2)*Fsw*'Design Regulator'!$G$102, (Qg_Q1+Qg_Q2)*Fsw*Vout, (Qg_Q1+Qg_Q2)*Fsw*Vin) -> 0.13632 | AQ45: 0.1275818182 | AR45: 0.12212 | AS45: 0.1364256 | AT45: 1.501279257 | AU45: 0.9155640641 | AV45: 9.504 | AW45: 0.8635855373 | AX45: 5.953891121 | AY45: 5.31500984 | BA45: 86.35855373 | BB45: 0.5371499497 | BC45: 0.7533336641 | BD45: 0.3969260747 | BE45: 0.3543339893 | BF45: 0.04686752177 | BG45: 0.8897592641 | BH45: 17.43928158
A46: VsdTop | B46: =Vsd_Q1 -> 0.8 | C46: V | G46: 37 | H46: 48 | I46: 1 | J46: 2.96 | K46: 2.96 | L46: 0.2261111111 | M46: 0.0711073097 | N46: 3.601452072 | O46: 4.760726036 | P46: 1.159273964 | Q46: 0 | R46: 3.137271333 | S46: 0.03740139139 | T46: 0.5 | U46: 0.5390141818 | V46: 1.039649662 | W46: 0.001080871419 | X46: 0.001080871419 | Y46: 0.8062913074 | Z46: 0.0006501056723 | AA46: 0.0006501056723 | AB46: 0.8365833273 | AC46: 0.02799486654 | AD46: 0.227328 | AE46: 0.01152 | AF46: 0 | AG46: 0.2676295532 | AH46: 3.023673222 | AI46: 0.2651353929 | AJ46: 0.0265216 | AK46: 0.3000090086 | AL46: 0.0265216 | AM46: 0.21312 | AN46: 0.04921235709 | AO46: 0.0001056 | AP46: =CHOOSE(Ext_VCC, (Qg_Q1+Qg_Q2)*Fsw*'Design Regulator'!$G$102, (Qg_Q1+Qg_Q2)*Fsw*Vout, (Qg_Q1+Qg_Q2)*Fsw*Vin) -> 0.13632 | AQ46: 0.1275818182 | AR46: 0.12212 | AS46: 0.1364256 | AT46: 1.533663278 | AU46: 0.9437057617 | AV46: 9.768 | AW46: 0.8642975605 | AX46: 6.124331298 | AY46: 5.555079129 | BA46: 86.42975605 | BB46: 0.5390141818 | BC46: 0.7807585617 | BD46: 0.4082887532 | BE46: 0.3703386086 | BF46: 0.04921235709 | BG46: 0.9171841617 | BH46: 17.97680957
A47: θJATop | B47: =ThetaJA_Q1 -> 15 | C47: °C/W | D47: Junction to Ambient Resistance | G47: 38 | H47: 48 | I47: 1 | J47: 3.04 | K47: 3.04 | L47: 0.2322222222 | M47: 0.071171045 | N47: 3.604396755 | O47: 4.842198377 | P47: 1.237801623 | Q47: 0 | R47: 3.213135488 | S47: 0.03923211072 | T47: 0.5 | U47: 0.5409298563 | V47: 1.040499718 | W47: 0.001082639664 | X47: 0.001082639664 | Y47: 0.8261303604 | Z47: 0.0006824913723 | AA47: 0.0006824913723 | AB47: 0.8571971335 | AC47: 0.02939147703 | AD47: 0.233472 | AE47: 0.01152 | AF47: 0 | AG47: 0.2752328746 | AH47: 3.096684152 | AI47: 0.2780941294 | AJ47: 0.0272384 | AK47: 0.3145163708 | AL47: 0.0272384 | AM47: 0.21888 | AN47: 0.05162119832 | AO47: 0.0001056 | AP47: =CHOOSE(Ext_VCC, (Qg_Q1+Qg_Q2)*Fsw*'Design Regulator'!$G$102, (Qg_Q1+Qg_Q2)*Fsw*Vout, (Qg_Q1+Qg_Q2)*Fsw*Vin) -> 0.13632 | AQ47: 0.1275818182 | AR47: 0.12212 | AS47: 0.1364256 | AT47: 1.566609431 | AU47: 0.9722932454 | AV47: 10.032 | AW47: 0.8649312713 | AX47: 6.295405119 | AY47: 5.801201562 | BA47: 86.49312713 | BB47: 0.5409298563 | BC47: 0.8086292454 | BD47: 0.4196936746 | BE47: 0.3867467708 | BF47: 0.05162119832 | BG47: 0.9450548454 | BH47: 18.52307497
A48: Low-side FET | B48: Input Value | C48: Units | D48: Description | G48: 39 | H48: 48 | I48: 1 | J48: 3.12 | K48: 3.12 | L48: 0.2383333333 | M48: 0.07123478156 | N48: 3.607340995 | O48: 4.923670498 | P48: 1.316329502 | Q48: 0 | R48: 3.289195812 | S48: 0.04111147453 | T48: 0.5 | U48: 0.5428970183 | V48: 1.041349647 | W48: 0.001084409088 | X48: 0.001084409088 | Y48: 0.8460358155 | Z48: 0.0007157766011 | AA48: 0.0007157766011 | AB48: 0.8778812574 | AC48: 0.03082702009 | AD48: 0.239616 | AE48: 0.01152 | AF48: 0 | AG48: 0.2828786522 | AH48: 3.169879112 | AI48: 0.291395874 | AJ48: 0.0279552 | AK48: 0.3294305168 | AL48: 0.0279552 | AM48: 0.22464 | AN48: 0.05409404544 | AO48: 0.0001056 | AP48: =CHOOSE(Ext_VCC, (Qg_Q1+Qg_Q2)*Fsw*'Design Regulator'!$G$102, (Qg_Q1+Qg_Q2)*Fsw*Vout, (Qg_Q1+Qg_Q2)*Fsw*Vin) -> 0.13632 | AQ48: 0.1275818182 | AR48: 0.12212 | AS48: 0.1364256 | AT48: 1.600121218 | AU48: 1.001329969 | AV48: 10.296 | AW48: 0.8654921895 | AX48: 6.467115783 | AY48: 6.053425752 | BA48: 86.54921895 | BB48: 0.5428970183 | BC48: 0.836949169 | BD48: 0.4311410522 | BE48: 0.4035617168 | BF48: 0.05409404544 | BG48: 0.973374769 | BH48: 19.07814547
A49: RdsonBot | B49: =Rdson2*1000 -> 29 | C49: mW | D49: Drain-Source Resistance of Low-side FET | G49: 40 | H49: 48 | I49: 1 | J49: 3.2 | K49: 3.2 | L49: 0.2444444444 | M49: 0.07129851941 | N49: 3.610284792 | O49: 5.005142396 | P49: 1.394857604 | Q49: 0 | R49: 3.365439004 | S49: 0.04303948282 | T49: 0.5 | U49: 0.5449157141 | V49: 1.042199448 | W49: 0.00108617969 | X49: 0.00108617969 | Y49: 0.8660042998 | Z49: 0.0007499634473 | AA49: 0.0007499634473 | AB49: 0.8986322064 | AC49: 0.0323015937 | AD49: 0.24576 | AE49: 0.01152 | AF49: 0 | AG49: 0.2905671006 | AH49: 3.243245265 | AI49: 0.3050405556 | AJ49: 0.028672 | AK49: 0.344754796 | AL49: 0.028672 | AM49: 0.2304 | AN49: 0.05663089845 | AO49: 0.0001056 | AP49: =CHOOSE(Ext_VCC, (Qg_Q1+Qg_Q2)*Fsw*'Design Regulator'!$G$102, (Qg_Q1+Qg_Q2)*Fsw*Vout, (Qg_Q1+Qg_Q2)*Fsw*Vin) -> 0.13632 | AQ49: 0.1275818182 | AR49: 0.12212 | AS49: 0.1364256 | AT49: 1.634202252 | AU49: 1.030819497 | AV49: 10.56 | AW49: 0.8659853086 | AX49: 6.63946651 | AY49: 6.31180194 | BA49: 86.59853086 | BB49: 0.5449157141 | BC49: 0.8657218966 | BD49: 0.4426311006 | BE49: 0.420786796 | BF49: 0.05663089845 | BG49: 1.002147497 | BH49: 19.64209093
A50: RdsonBotTc | B50: =RdsonBotTc*1000000 -> 7000 | C50: ppm | D50: Drain To Source Resitance Temp Co | G50: 41 | H50: 48 | I50: 1 | J50: 3.28 | K50: 3.28 | L50: 0.2505555556 | M50: 0.07136225853 | N50: 3.613228146 | O50: 5.086614073 | P50: 1.473385927 | Q50: 0 | R50: 3.441852912 | S50: 0.04501613558 | T50: 0.5 | U50: 0.5469859912 | V50: 1.043049121 | W50: 0.00108795147 | X50: 0.00108795147 | Y50: 0.8860327302 | Z50: 0.0007850539991 | AA50: 0.0007850539991 | AB50: 0.9194467881 | AC50: 0.03381529585 | AD50: 0.251904 | AE50: 0.01152 | AF50: 0 | AG50: 0.2982984361 | AH50: 3.31677088 | AI50: 0.3190281031 | AJ50: 0.0293888 | AK50: 0.3604926688 | AL50: 0.0293888 | AM50: 0.23616 | AN50: 0.05923175735 | AO50: 0.0001056 | AP50: =CHOOSE(Ext_VCC, (Qg_Q1+Qg_Q2)*Fsw*'Design Regulator'!$G$102, (Qg_Q1+Qg_Q2)*Fsw*Vout, (Qg_Q1+Qg_Q2)*Fsw*Vin) -> 0.13632 | AQ50: 0.1275818182 | AR50: 0.12212 | AS50: 0.1364256 | AT50: 1.668856259 | AU50: 1.060765505 | AV50: 10.824 | AW50: 0.8664151556 | AX50: 6.812460541 | AY50: 6.576382032 | BA50: 86.64151556 | BB50: 0.5469859912 | BC50: 0.8949511049 | BD50: 0.4541640361 | BE50: 0.4384254688 | BF50: 0.05923175735 | BG50: 1.031376705 | BH50: 20.21498342
A51: QgBot | B51: =Qg_Q2*1000000000 -> 4.1 | C51: nC | D51: Gate Charge Of Top FET | G51: 42 | H51: 48 | I51: 1 | J51: 3.36 | K51: 3.36 | L51: 0.2566666667 | M51: 0.07142599892 | N51: 3.616171057 | O51: 5.168085529 | P51: 1.551914471 | Q51: 0 | R51: 3.518426413 | S51: 0.04704143282 | T51: 0.5 | U51: 0.5491078986 | V51: 1.043898667 | W51: 0.001089724426 | X51: 0.001089724426 | Y51: 0.9061182836 | Z51: 0.0008210503439 | AA51: 0.0008210503439 | AB51: 0.9403220794 | AC51: 0.03536822452 | AD51: 0.258048 | AE51: 0.01152 | AF51: 0 | AG51: 0.3060728762 | AH51: 3.390445223 | AI51: 0.3333584456 | AJ51: 0.0301056 | AK51: 0.3766477085 | AL51: 0.0301056 | AM51: 0.24192 | AN51: 0.06189662213 | AO51: 0.0001056 | AP51: =CHOOSE(Ext_VCC, (Qg_Q1+Qg_Q2)*Fsw*'Design Regulator'!$G$102, (Qg_Q1+Qg_Q2)*Fsw*Vout, (Qg_Q1+Qg_Q2)*Fsw*Vin) -> 0.13632 | AQ51: 0.1275818182 | AR51: 0.12212 | AS51: 0.1364256 | AT51: 1.70408708 | AU51: 1.091171785 | AV51: 11.088 | AW51: 0.8667858443 | AX51: 6.986101143 | AY51: 6.847219628 | BA51: 86.67858443 | BB51: 0.5491078986 | BC51: 0.9246405847 | BD51: 0.4657400762 | BE51: 0.4564813085 | BF51: 0.06189662213 | BG51: 1.061066185 | BH51: 20.79689722
A52: RGateBot | B52: =Rgate2 -> 3 | C52: W | D52: Gate Resistance | G52: 43 | H52: 48 | I52: 1 | J52: 3.44 | K52: 3.44 | L52: 0.2627777778 | M52: 0.07148974059 | N52: 3.619113525 | O52: 5.249556763 | P52: 1.630443237 | Q52: 0 | R52: 3.59514931 | S52: 0.04911537452 | T52: 0.5 | U52: 0.5512814863 | V52: 1.044748084 | W52: 0.001091498559 | X52: 0.001091498559 | Y52: 0.9262583705 | Z52: 0.000857954569 | AA52: 0.000857954569 | AB52: 0.9612553995 | AC52: 0.03696047772 | AD52: 0.264192 | AE52: 0.01152 | AF52: 0 | AG52: 0.3138906403 | AH52: 3.464258451 | AI52: 0.3480315119 | AJ52: 0.0308224 | AK52: 0.3932236034 | AL52: 0.0308224 | AM52: 0.24768 | AN52: 0.06462549279 | AO52: 0.0001056 | AP52: =CHOOSE(Ext_VCC, (Qg_Q1+Qg_Q2)*Fsw*'Design Regulator'!$G$102, (Qg_Q1+Qg_Q2)*Fsw*Vout, (Qg_Q1+Qg_Q2)*Fsw*Vin) -> 0.13632 | AQ52: 0.1275818182 | AR52: 0.12212 | AS52: 0.1364256 | AT52: 1.739898676 | AU52: 1.122042244 | AV52: 11.352 | AW52: 0.8671011196 | AX52: 7.160391604 | AY52: 7.124370051 | BA52: 86.71011196 | BB52: 0.5512814863 | BC52: 0.9547942437 | BD52: 0.4773594403 | BE52: 0.4749580034 | BF52: 0.06462549279 | BG52: 1.091219844 | BH52: 21.38790894
A53: VsdBot | B53: =Vsd_Q2 -> 0.8 | C53: V | D53: Diode Forward Voltage of Bottom FET Body Diode | G53: 44 | H53: 48 | I53: 1 | J53: 3.52 | K53: 3.52 | L53: 0.2688888889 | M53: 0.07155348353 | N53: 3.62205555 | O53: 5.331027775 | P53: 1.708972225 | Q53: 0 | R53: 3.672012237 | S53: 0.0512379607 | T53: 0.5 | U53: 0.5535068055 | V53: 1.045597373 | W53: 0.001093273867 | X53: 0.001093273867 | Y53: 0.9464506118 | Z53: 0.0008957687606 | AA53: 0.0008957687606 | AB53: 0.9822442853 | AC53: 0.03859215344 | AD53: 0.270336 | AE53: 0.01152 | AF53: 0 | AG53: 0.321751949 | AH53: 3.538201525 | AI53: 0.3630472309 | AJ53: 0.0315392 | AK53: 0.4102241591 | AL53: 0.0315392 | AM53: 0.25344 | AN53: 0.06741836934 | AO53: 0.0001056 | AP53: =CHOOSE(Ext_VCC, (Qg_Q1+Qg_Q2)*Fsw*'Design Regulator'!$G$102, (Qg_Q1+Qg_Q2)*Fsw*Vout, (Qg_Q1+Qg_Q2)*Fsw*Vin) -> 0.13632 | AQ53: 0.1275818182 | AR53: 0.12212 | AS53: 0.1364256 | AT53: 1.776295126 | AU53: 1.153380908 | AV53: 11.616 | AW53: 0.867364398 | AX53: 7.335335235 | AY53: 7.407890387 | BA53: 86.7364398 | BB53: 0.5535068055 | BC53: 0.9854161081 | BD53: 0.489022349 | BE53: 0.4938593591 | BF53: 0.06741836934 | BG53: 1.121841708 | BH53: 21.98809748
A54: QrrBot | B54: =Qrr_Q2*1000000000 -> 30 | C54: nC | D54: Reverse Recovery Charge of Body Diode | G54: 45 | H54: 48 | I54: 1 | J54: 3.6 | K54: 3.6 | L54: 0.275 | M54: 0.07161722775 | N54: 3.624997132 | O54: 5.412498566 | P54: 1.787501434 | Q54: 0 | R54: 3.749006582 | S54: 0.05340919133 | T54: 0.5 | U54: 0.5557839089 | V54: 1.046446535 | W54: 0.001095050351 | X54: 0.001095050351 | Y54: 0.9666928183 | Z54: 0.0009344950049 | AA54: 0.0009344950049 | AB54: 1.003286471 | AC54: 0.04026334968 | AD54: 0.27648 | AE54: 0.01152 | AF54: 0 | AG54: 0.3296570248 | AH54: 3.612266132 | AI54: 0.3784055316 | AJ54: 0.032256 | AK54: 0.427653301 | AL54: 0.032256 | AM54: 0.2592 | AN54: 0.07027525175 | AO54: 0.0001056 | AP54: =CHOOSE(Ext_VCC, (Qg_Q1+Qg_Q2)*Fsw*'Design Regulator'!$G$102, (Qg_Q1+Qg_Q2)*Fsw*Vout, (Qg_Q1+Qg_Q2)*Fsw*Vin) -> 0.13632 | AQ54: 0.1275818182 | AR54: 0.12212 | AS54: 0.1364256 | AT54: 1.813280632 | AU54: 1.185191926 | AV54: 11.88 | AW54: 0.8675788016 | AX54: 7.510935372 | AY54: 7.697839515 | BA54: 86.75788016 | BB54: 0.5557839089 | BC54: 1.016510326 | BD54: 0.5007290248 | BE54: 0.513189301 | BF54: 0.07027525175 | BG54: 1.152935926 | BH54: 22.59754414
A55: TrrBot | B55: =Trr_Q2*1000000000 -> 40 | C55: ns | D55: Reverse Recovery Time of Body Diode | G55: 46 | H55: 48 | I55: 1 | J55: 3.68 | K55: 3.68 | L55: 0.2811111111 | M55: 0.07168097325 | N55: 3.627938271 | O55: 5.493969135 | P55: 1.866030865 | Q55: 0 | R55: 3.826124411 | S55: 0.05562906643 | T55: 0.5 | U55: 0.5581128502 | V55: 1.047295569 | W55: 0.001096828008 | X55: 0.001096828008 | Y55: 0.9869829721 | Z55: 0.0009741353872 | AA55: 0.0009741353872 | AB55: 1.024379867 | AC55: 0.04197416445 | AD55: 0.282624 | AE55: 0.01152 | AF55: 0 | AG55: 0.3376060915 | AH55: 3.686444615 | AI55: 0.394106343 | AJ55: 0.0329728 | AK55: 0.4455150763 | AL55: 0.0329728 | AM55: 0.26496 | AN55: 0.07319614004 | AO55: 0.0001056 | AP55: =CHOOSE(Ext_VCC, (Qg_Q1+Qg_Q2)*Fsw*'Design Regulator'!$G$102, (Qg_Q1+Qg_Q2)*Fsw*Vout, (Qg_Q1+Qg_Q2)*Fsw*Vin) -> 0.13632 | AQ55: 0.1275818182 | AR55: 0.12212 | AS55: 0.1364256 | AT55: 1.850859521 | AU55: 1.217479568 | AV55: 12.144 | AW55: 0.8677471883 | AX55: 7.687195372 | AY55: 7.994278145 | BA55: 86.77471883 | BB55: 0.5581128502 | BC55: 1.048081168 | BD55: 0.5124796915 | BE55: 0.5329518763 | BF55: 0.07319614004 | BG55: 1.184506768 | BH55: 23.21633265
A56: θJABot | B56: =ThetaJA_Q2 -> 15 | C56: °C/W | D56: Junction to Ambient Resistance | G56: 47 | H56: 48 | I56: 1 | J56: 3.76 | K56: 3.76 | L56: 0.2872222222 | M56: 0.07174472002 | N56: 3.630878966 | O56: 5.575439483 | P56: 1.944560517 | Q56: 0 | R56: 3.903358405 | S56: 0.05789758599 | T56: 0.5 | U56: 0.5604936845 | V56: 1.048144474 | W56: 0.001098606839 | X56: 0.001098606839 | Y56: 1.007319211 | Z56: 0.001014691992 | AA56: 0.001014691992 | AB56: 1.045522546 | AC56: 0.04372469575 | AD56: 0.288768 | AE56: 0.01152 | AF56: 0 | AG56: 0.3455993746 | AH56: 3.760729909 | AI56: 0.4101495939 | AJ56: 0.0336896 | AK56: 0.4638136571 | AL56: 0.0336896 | AM56: 0.27072 | AN56: 0.0761810342 | AO56: 0.0001056 | AP56: =CHOOSE(Ext_VCC, (Qg_Q1+Qg_Q2)*Fsw*'Design Regulator'!$G$102, (Qg_Q1+Qg_Q2)*Fsw*Vout, (Qg_Q1+Qg_Q2)*Fsw*Vin) -> 0.13632 | AQ56: 0.1275818182 | AR56: 0.12212 | AS56: 0.1364256 | AT56: 1.889036249 | AU56: 1.250248232 | AV56: 12.408 | AW56: 0.8678721788 | AX56: 7.86411862 | AY56: 8.297268857 | BA56: 86.78721788 | BB56: 0.5604936845 | BC56: 1.080133032 | BD56: 0.5242745746 | BE56: 0.5531512571 | BF56: 0.0761810342 | BG56: 1.216558632 | BH56: 23.84454918
A57: Bottom Schottky | B57: Input Value | C57: Units | D57: Std Units | G57: 48 | H57: 48 | I57: 1 | J57: 3.84 | K57: 3.84 | L57: 0.2933333333 | M57: 0.07180846806 | N57: 3.633819219 | O57: 5.656909609 | P57: 2.023090391 | Q57: 0 | R57: 3.980701803 | S57: 0.06021475 | T57: 0.5 | U57: 0.5629264681 | V57: 1.048993252 | W57: 0.001100386843 | X57: 0.001100386843 | Y57: 1.027699813 | Z57: 0.001056166905 | AA57: 0.001056166905 | AB57: 1.066712726 | AC57: 0.04551504161 | AD57: 0.294912 | AE57: 0.01152 | AF57: 0 | AG57: 0.3536371014 | AH57: 3.835115488 | AI57: 0.4265352133 | AJ57: 0.0344064 | AK57: 0.4825533425 | AL57: 0.0344064 | AM57: 0.27648 | AN57: 0.07922993421 | AO57: 0.0001056 | AP57: =CHOOSE(Ext_VCC, (Qg_Q1+Qg_Q2)*Fsw*'Design Regulator'!$G$102, (Qg_Q1+Qg_Q2)*Fsw*Vout, (Qg_Q1+Qg_Q2)*Fsw*Vin) -> 0.13632 | AQ57: 0.1275818182 | AR57: 0.12212 | AS57: 0.1364256 | AT57: 1.9278154 | AU57: 1.283502444 | AV57: 12.672 | AW57: 0.8679561798 | AX57: 8.041708521 | AY57: 8.606876138 | BA57: 86.79561798 | BB57: 0.5629264681 | BC57: 1.112670444 | BD57: 0.5361139014 | BE57: 0.5737917425 | BF57: 0.07922993421 | BG57: 1.249096044 | BH57: 24.48228246
A58: VfdSky | B58: =VfdSky_Q2 -> 0 | C58: V | D58: Diode Forward Voltage | G58: 49 | H58: 48 | I58: 1 | J58: 3.92 | K58: 3.92 | L58: 0.2994444444 | M58: 0.07187221739 | N58: 3.636759028 | O58: 5.738379514 | P58: 2.101620486 | Q58: 0 | R58: 4.058148349 | S58: 0.06258055847 | T58: 0.5 | U58: 0.5654112587 | V58: 1.049841902 | W58: 0.001102168019 | X58: 0.001102168019 | Y58: 1.048123184 | Z58: 0.001098562208 | AA58: 0.001098562208 | AB58: 1.087948758 | AC58: 0.04734530003 | AD58: 0.301056 | AE58: 0.01152 | AF58: 0 | AG58: 0.3617195004 | AH58: 3.909595314 | AI58: 0.44326313 | AJ58: 0.0351232 | AK58: 0.5017385616 | AL58: 0.0351232 | AM58: 0.28224 | AN58: 0.0823428401 | AO58: 0.0001056 | AP58: =CHOOSE(Ext_VCC, (Qg_Q1+Qg_Q2)*Fsw*'Design Regulator'!$G$102, (Qg_Q1+Qg_Q2)*Fsw*Vout, (Qg_Q1+Qg_Q2)*Fsw*Vin) -> 0.13632 | AQ58: 0.1275818182 | AR58: 0.12212 | AS58: 0.1364256 | AT58: 1.967201691 | AU58: 1.317246862 | AV58: 12.936 | AW58: 0.8680014045 | AX58: 8.219968507 | AY58: 8.923166424 | BA58: 86.80014045 | BB58: 0.5654112587 | BC58: 1.145698062 | BD58: 0.5479979004 | BE58: 0.5948777616 | BF58: 0.0823428401 | BG58: 1.282123662 | BH58: 25.12962378
A59: QrrSky | B59: =QrrSky_Q2*1000000000 -> 0 | C59: nC | D59: Diode Reverse Recovery Charge | G59: 50 | H59: 48 | I59: 1 | J59: 4 | K59: 4 | L59: 0.3055555556 | M59: 0.07193596798 | N59: 3.639698395 | O59: 5.819849197 | P59: 2.180150803 | Q59: 0 | R59: 4.135692248 | S59: 0.06499501139 | T59: 0.5 | U59: 0.5679481149 | V59: 1.050690424 | W59: 0.001103950367 | X59: 0.001103950367 | Y59: 1.068587847 | Z59: 0.001141879986 | AA59: 0.001141879986 | AB59: 1.109229113 | AC59: 0.04921556904 | AD59: 0.3072 | AE59: 0.01152 | AF59: 0 | AG59: 0.3698468022 | AH59: 3.984163794 | AI59: 0.4603332731 | AJ59: 0.03584 | AK59: 0.5213738761 | AL59: 0.03584 | AM59: 0.288 | AN59: 0.08551975184 | AO59: 0.0001056 | AP59: =CHOOSE(Ext_VCC, (Qg_Q1+Qg_Q2)*Fsw*'Design Regulator'!$G$102, (Qg_Q1+Qg_Q2)*Fsw*Vout, (Qg_Q1+Qg_Q2)*Fsw*Vin) -> 0.13632 | AQ59: 0.1275818182 | AR59: 0.12212 | AS59: 0.1364256 | AT59: 2.007199975 | AU59: 1.351486278 | AV59: 13.2 | AW59: 0.8680098915 | AX59: 8.398902033 | AY59: 9.246208141 | BA59: 86.80098915 | BB59: 0.5679481149 | BC59: 1.179220678 | BD59: 0.5599268022 | BE59: 0.6164138761 | BF59: 0.08551975184 | BG59: 1.315646278 | BH59: 25.78666706
A60: Ireverse | B60: =Ireverse -> 0 | C60: mA | D60: Reverse Leakage Current | G60: 51 | H60: 48 | I60: 1 | J60: 4.08 | K60: 4.08 | L60: 0.3116666667 | M60: 0.07199971986 | N60: 3.642637318 | O60: 5.901318659 | P60: 2.258681341 | Q60: 0 | R60: 4.213328125 | S60: 0.06745810877 | T60: 0.5 | U60: 0.570537097 | V60: 1.051538818 | W60: 0.001105733886 | X60: 0.001105733886 | Y60: 1.08909243 | Z60: 0.001186122321 | AA60: 0.001186122321 | AB60: 1.130552372 | AC60: 0.05112594667 | AD60: 0.313344 | AE60: 0.01152 | AF60: 0 | AG60: 0.3780192388 | AH60: 4.058815741 | AI60: 0.4777455714 | AJ60: 0.0365568 | AK60: 0.5414639835 | AL60: 0.0365568 | AM60: 0.29376 | AN60: 0.08876066943 | AO60: 0.0001056 | AP60: =CHOOSE(Ext_VCC, (Qg_Q1+Qg_Q2)*Fsw*'Design Regulator'!$G$102, (Qg_Q1+Qg_Q2)*Fsw*Vout, (Qg_Q1+Qg_Q2)*Fsw*Vin) -> 0.13632 | AQ60: 0.1275818182 | AR60: 0.12212 | AS60: 0.1364256 | AT60: 2.047815245 | AU60: 1.386225622 | AV60: 13.464 | AW60: 0.8679835201 | AX60: 8.578512582 | AY60: 9.576071752 | BA60: 86.79835201 | BB60: 0.570537097 | BC60: 1.213243222 | BD60: 0.5719008388 | BE60: 0.6384047835 | BF60: 0.08876066943 | BG60: 1.349668822 | BH60: 26.45350892
A61: Controller | B61: Input Value | C61: Units | D61: Std Units | G61: 52 | H61: 48 | I61: 1 | J61: 4.16 | K61: 4.16 | L61: 0.3177777778 | M61: 0.07206347301 | N61: 3.645575798 | O61: 5.982787899 | P61: 2.337212101 | Q61: 0 | R61: 4.291050987 | S61: 0.06996985058 | T61: 0.5 | U61: 0.5731782664 | V61: 1.052387084 | W61: 0.001107518575 | X61: 0.001107518575 | Y61: 1.109635658 | Z61: 0.001231291295 | AA61: 0.001231291295 | AB61: 1.151917216 | AC61: 0.05307653093 | AD61: 0.319488 | AE61: 0.01152 | AF61: 0 | AG61: 0.3862370438 | AH61: 4.133546335 | AI61: 0.4954999537 | AJ61: 0.0372736 | AK61: 0.5620137198 | AL61: 0.0372736 | AM61: 0.29952 | AN61: 0.09206559287 | AO61: 0.0001056 | AP61: =CHOOSE(Ext_VCC, (Qg_Q1+Qg_Q2)*Fsw*'Design Regulator'!$G$102, (Qg_Q1+Qg_Q2)*Fsw*Vout, (Qg_Q1+Qg_Q2)*Fsw*Vin) -> 0.13632 | AQ61: 0.1275818182 | AR61: 0.12212 | AS61: 0.1364256 | AT61: 2.089052633 | AU61: 1.421469964 | AV61: 13.728 | AW61: 0.867924026 | AX61: 8.758803657 | AY61: 9.912829797 | BA61: 86.7924026 | BB61: 0.5731782664 | BC61: 1.247770764 | BD61: 0.5839202438 | BE61: 0.6608553198 | BF61: 0.09206559287 | BG61: 1.384196364 | BH61: 27.13024873
A62: θJA | B62: 30 | C62: °C/W | D62: Junction to Ambient Resistance | G62: 53 | H62: 48 | I62: 1 | J62: 4.24 | K62: 4.24 | L62: 0.3238888889 | M62: 0.07212722743 | N62: 3.648513835 | O62: 6.064256917 | P62: 2.415743083 | Q62: 0 | R62: 4.368856193 | S62: 0.07253023685 | T62: 0.5 | U62: 0.5758716856 | V62: 1.053235222 | W62: 0.001109304433 | X62: 0.001109304433 | Y62: 1.130216346 | Z62: 0.001277388989 | AA62: 0.001277388989 | AB62: 1.173322418 | AC62: 0.05506741988 | AD62: 0.325632 | AE62: 0.01152 | AF62: 0 | AG62: 0.3945004527 | AH62: 4.208351095 | AI62: 0.5135963492 | AJ62: 0.0379904 | AK62: 0.583028063 | AL62: 0.0379904 | AM62: 0.30528 | AN62: 0.09543452217 | AO62: 0.0001056 | AP62: =CHOOSE(Ext_VCC, (Qg_Q1+Qg_Q2)*Fsw*'Design Regulator'!$G$102, (Qg_Q1+Qg_Q2)*Fsw*Vout, (Qg_Q1+Qg_Q2)*Fsw*Vin) -> 0.13632 | AQ62: 0.1275818182 | AR62: 0.12212 | AS62: 0.1364256 | AT62: 2.130917417 | AU62: 1.457224516 | AV62: 13.992 | AW62: 0.867833013 | AX62: 8.93977879 | AY62: 10.25655695 | BA62: 86.7833013 | BB62: 0.5758716856 | BC62: 1.282808516 | BD62: 0.5959852527 | BE62: 0.683770463 | BF62: 0.09543452217 | BG62: 1.419234116 | BH62: 27.81698867
A63: Theta Ja | B63: 19.6 | C63: °C/W | D63: Junction to Ambient Resistance | G63: 54 | H63: 48 | I63: 1 | J63: 4.32 | K63: 4.32 | L63: 0.33 | M63: 0.07219098313 | N63: 3.651451428 | O63: 6.145725714 | P63: 2.494274286 | Q63: 0 | R63: 4.446739419 | S63: 0.07513926755 | T63: 0.5 | U63: 0.5786174187 | V63: 1.054083233 | W63: 0.001111091461 | X63: 0.001111091461 | Y63: 1.150833387 | Z63: 0.001324417485 | AA63: 0.001324417485 | AB63: 1.194766834 | AC63: 0.05709871154 | AD63: 0.331776 | AE63: 0.01152 | AF63: 0 | AG63: 0.4028097026 | AH63: 4.283225849 | AI63: 0.5320346865 | AJ63: 0.0387072 | AK63: 0.6045121361 | AL63: 0.0387072 | AM63: 0.31104 | AN63: 0.09886745731 | AO63: 0.0001056 | AP63: =CHOOSE(Ext_VCC, (Qg_Q1+Qg_Q2)*Fsw*'Design Regulator'!$G$102, (Qg_Q1+Qg_Q2)*Fsw*Vout, (Qg_Q1+Qg_Q2)*Fsw*Vin) -> 0.13632 | AQ63: 0.1275818182 | AR63: 0.12212 | AS63: 0.1364256 | AT63: 2.173415024 | AU63: 1.493494639 | AV63: 14.256 | AW63: 0.8677119654 | AX63: 9.121441539 | AY63: 10.60733004 | BA63: 86.77119654 | BB63: 0.5786174187 | BC63: 1.318361839 | BD63: 0.6080961026 | BE63: 0.7071553361 | BF63: 0.09886745731 | BG63: 1.454787439 | BH63: 28.5138338
G64: 55 | H64: 48 | I64: 1 | J64: 4.4 | K64: 4.4 | L64: 0.3361111111 | M64: 0.07225474011 | N64: 3.654388579 | O64: 6.227194289 | P64: 2.572805711 | Q64: 0 | R64: 4.524696637 | S64: 0.0777969427 | T64: 0.5 | U64: 0.5814155308 | V64: 1.054931115 | W64: 0.001112879657 | X64: 0.001112879657 | Y64: 1.171485751 | Z64: 0.001372378864 | AA64: 0.001372378864 | AB64: 1.216249398 | AC64: 0.05917050395 | AD64: 0.33792 | AE64: 0.01152 | AF64: 0 | AG64: 0.4111650324 | AH64: 4.358166708 | AI64: 0.5508148947 | AJ64: 0.039424 | AK64: 0.6264712104 | AL64: 0.039424 | AM64: 0.3168 | AN64: 0.1023643983 | AO64: 0.0001056 | AP64: =CHOOSE(Ext_VCC, (Qg_Q1+Qg_Q2)*Fsw*'Design Regulator'!$G$102, (Qg_Q1+Qg_Q2)*Fsw*Vout, (Qg_Q1+Qg_Q2)*Fsw*Vin) -> 0.13632 | AQ64: 0.1275818182 | AR64: 0.12212 | AS64: 0.1364256 | AT64: 2.21655103 | AU64: 1.530285843 | AV64: 14.52 | AW64: 0.8675622578 | AX64: 9.303795486 | AY64: 10.96522816 | BA64: 86.75622578 | BB64: 0.5814155308 | BC64: 1.354436243 | BD64: 0.6202530324 | BE64: 0.7310152104 | BF64: 0.1023643983 | BG64: 1.490861843 | BH64: 29.22089212
G65: 56 | H65: 48 | I65: 1 | J65: 4.48 | K65: 4.48 | L65: 0.3422222222 | M65: 0.07231849836 | N65: 3.657325286 | O65: 6.308662643 | P65: 2.651337357 | Q65: 0 | R65: 4.602724087 | S65: 0.08050326228 | T65: 0.5 | U65: 0.5842660884 | V65: 1.055778869 | W65: 0.001114669021 | X65: 0.001114669021 | Y65: 1.192172473 | Z65: 0.001421275205 | AA65: 0.001421275205 | AB65: 1.237769114 | AC65: 0.06128289517 | AD65: 0.344064 | AE65: 0.01152 | AF65: 0 | AG65: 0.4195666826 | AH65: 4.433170044 | AI65: 0.5699369026 | AJ65: 0.0401408 | AK65: 0.6489107094 | AL65: 0.0401408 | AM65: 0.32256 | AN65: 0.1059253451 | AO65: 0.0001056 | AP65: =CHOOSE(Ext_VCC, (Qg_Q1+Qg_Q2)*Fsw*'Design Regulator'!$G$102, (Qg_Q1+Qg_Q2)*Fsw*Vout, (Qg_Q1+Qg_Q2)*Fsw*Vin) -> 0.13632 | AQ65: 0.1275818182 | AR65: 0.12212 | AS65: 0.1364256 | AT65: 2.26033117 | AU65: 1.567603792 | AV65: 14.784 | AW65: 0.8673851648 | AX65: 9.486844239 | AY65: 11.33033264 | BA65: 86.73851648 | BB65: 0.5842660884 | BC65: 1.391037392 | BD65: 0.6324562826 | BE65: 0.7553555094 | BF65: 0.1059253451 | BG65: 1.527462992 | BH65: 29.93827464
A66: Outputs | G66: 57 | H66: 48 | I66: 1 | J66: 4.56 | K66: 4.56 | L66: 0.3483333333 | M66: 0.07238225789 | N66: 3.66026155 | O66: 6.390130775 | P66: 2.729869225 | Q66: 0 | R66: 4.680818257 | S66: 0.08325822629 | T66: 0.5 | U66: 0.5871691593 | V66: 1.056626496 | W66: 0.001116459551 | X66: 0.001116459551 | Y66: 1.212892653 | Z66: 0.001471108588 | AA66: 0.001471108588 | AB66: 1.25932505 | AC66: 0.06343598323 | AD66: 0.350208 | AE66: 0.01152 | AF66: 0 | AG66: 0.4280148955 | AH66: 4.508232466 | AI66: 0.5894006391 | AJ66: 0.0408576 | AK66: 0.6718362119 | AL66: 0.0408576 | AM66: 0.32832 | AN66: 0.1095502978 | AO66: 0.0001056 | AP66: =CHOOSE(Ext_VCC, (Qg_Q1+Qg_Q2)*Fsw*'Design Regulator'!$G$102, (Qg_Q1+Qg_Q2)*Fsw*Vout, (Qg_Q1+Qg_Q2)*Fsw*Vin) -> 0.13632 | AQ66: 0.1275818182 | AR66: 0.12212 | AS66: 0.1364256 | AT66: 2.304761333 | AU66: 1.605454307 | AV66: 15.048 | AW66: 0.8671818687 | AX66: 9.670591433 | AY66: 11.70272718 | BA66: 86.71818687 | BB66: 0.5871691593 | BC66: 1.428171107 | BD66: 0.6447060955 | BE66: 0.7801818119 | BF66: 0.1095502978 | BG66: 1.564596707 | BH66: 30.66609547
A67: Design | B67: Value | C67: Units | G67: 58 | H67: 48 | I67: 1 | J67: 4.64 | K67: 4.64 | L67: 0.3544444444 | M67: 0.07244601869 | N67: 3.663197371 | O67: 6.471598685 | P67: 2.808401315 | Q67: 0 | R67: 4.758975861 | S67: 0.08606183474 | T67: 0.5 | U67: 0.5901248127 | V67: 1.057473994 | W67: 0.001118251248 | X67: 0.001118251248 | Y67: 1.233645448 | Z67: 0.001521881092 | AA67: 0.001521881092 | AB67: 1.280916334 | AC67: 0.06562986619 | AD67: 0.356352 | AE67: 0.01152 | AF67: 0 | AG67: 0.4365099154 | AH67: 4.583350804 | AI67: 0.6092060332 | AJ67: 0.0415744 | AK67: 0.6952534562 | AL67: 0.0415744 | AM67: 0.33408 | AN67: 0.1132392562 | AO67: 0.0001056 | AP67: =CHOOSE(Ext_VCC, (Qg_Q1+Qg_Q2)*Fsw*'Design Regulator'!$G$102, (Qg_Q1+Qg_Q2)*Fsw*Vout, (Qg_Q1+Qg_Q2)*Fsw*Vin) -> 0.13632 | AQ67: 0.1275818182 | AR67: 0.12212 | AS67: 0.1364256 | AT67: 2.349847573 | AU67: 1.643843372 | AV67: 15.312 | AW67: 0.8669534677 | AX67: 9.85504073 | AY67: 12.08249784 | BA67: 86.69534677 | BB67: 0.5901248127 | BC67: 1.465843372 | BD67: 0.6570027154 | BE67: 0.8054998562 | BF67: 0.1132392562 | BG67: 1.602268972 | BH67: 31.40447184
A68: Dmax | B68: =D1_Vinmin -> 0.07857142857 | C68: index | G68: 59 | H68: 48 | I68: 1 | J68: 4.72 | K68: 4.72 | L68: 0.3605555556 | M68: 0.07250978077 | N68: 3.666132748 | O68: 6.553066374 | P68: 2.886933626 | Q68: 0 | R68: 4.837193826 | S68: 0.08891408762 | T68: 0.5 | U68: 0.5931331188 | V68: 1.058321365 | W68: 0.001120044111 | X68: 0.001120044111 | Y68: 1.254430068 | Z68: 0.001573594795 | AA68: 0.001573594795 | AB68: 1.30254215 | AC68: 0.06786464211 | AD68: 0.362496 | AE68: 0.01152 | AF68: 0 | AG68: 0.445051988 | AH68: 4.658522089 | AI68: 0.6293530137 | AJ68: 0.0422912 | AK68: 0.719168344 | AL68: 0.0422912 | AM68: 0.33984 | AN68: 0.1169922206 | AO68: 0.0001056 | AP68: =CHOOSE(Ext_VCC, (Qg_Q1+Qg_Q2)*Fsw*'Design Regulator'!$G$102, (Qg_Q1+Qg_Q2)*Fsw*Vout, (Qg_Q1+Qg_Q2)*Fsw*Vin) -> 0.13632 | AQ68: 0.1275818182 | AR68: 0.12212 | AS68: 0.1364256 | AT68: 2.39559611 | AU68: 1.682777132 | AV68: 15.576 | AW68: 0.8667009822 | AX68: 10.04019582 | AY68: 12.46973316 | BA68: 86.67009822 | BB68: 0.5931331188 | BC68: 1.504060332 | BD68: 0.669346388 | BE68: 0.831315544 | BF68: 0.1169922206 | BG68: 1.640485932 | BH68: 32.15352427
A69: Dprime | B69: =1-B68 -> 0.9214285714 | C69: index | G69: 60 | H69: 48 | I69: 1 | J69: 4.8 | K69: 4.8 | L69: 0.3666666667 | M69: 0.07257354413 | N69: 3.669067682 | O69: 6.634533841 | P69: 2.965466159 | Q69: 0 | R69: 4.915469269 | S69: 0.09181498493 | T69: 0.5 | U69: 0.5961941495 | V69: 1.059168607 | W69: 0.001121838138 | X69: 0.001121838138 | Y69: 1.27524577 | Z69: 0.001626251775 | AA69: 0.001626251775 | AB69: 1.324201732 | AC69: 0.07014040905 | AD69: 0.36864 | AE69: 0.01152 | AF69: 0 | AG69: 0.4536413611 | AH69: 4.733743541 | AI69: 0.6498415094 | AJ69: 0.043008 | AK69: 0.743586944 | AL69: 0.043008 | AM69: 0.3456 | AN69: 0.1208091907 | AO69: 0.0001056 | AP69: =CHOOSE(Ext_VCC, (Qg_Q1+Qg_Q2)*Fsw*'Design Regulator'!$G$102, (Qg_Q1+Qg_Q2)*Fsw*Vout, (Qg_Q1+Qg_Q2)*Fsw*Vin) -> 0.13632 | AQ69: 0.1275818182 | AR69: 0.12212 | AS69: 0.1364256 | AT69: 2.442013335 | AU69: 1.722261905 | AV69: 15.84 | AW69: 0.8664253608 | AX69: 10.22606042 | AY69: 12.86452416 | BA69: 86.64253608 | BB69: 0.5961941495 | BC69: 1.542828305 | BD69: 0.6817373611 | BE69: 0.857634944 | BF69: 0.1208091907 | BG69: 1.679253905 | BH69: 32.91337654
A70: Ipp | B70: =Iripple_Vinnom -> 3.563717735 | C70: A | G70: 61 | H70: 48 | I70: 1 | J70: 4.88 | K70: 4.88 | L70: 0.3727777778 | M70: 0.07263730876 | N70: 3.672002173 | O70: 6.716001087 | P70: 3.043998913 | Q70: 0 | R70: 4.993799488 | S70: 0.09476452665 | T70: 0.5 | U70: 0.5993079776 | V70: 1.060015722 | W70: 0.00112363333 | X70: 0.00112363333 | Y70: 1.29609186 | Z70: 0.001679854108 | AA70: 0.001679854108 | AB70: 1.345894359 | AC70: 0.07245726507 | AD70: 0.374784 | AE70: 0.01152 | AF70: 0 | AG70: 0.4622782842 | AH70: 4.80901255 | AI70: 0.6706714494 | AJ70: 0.0437248 | AK70: 0.7685154966 | AL70: 0.0437248 | AM70: 0.35136 | AN70: 0.1246901667 | AO70: 0.0001056 | AP70: =CHOOSE(Ext_VCC, (Qg_Q1+Qg_Q2)*Fsw*'Design Regulator'!$G$102, (Qg_Q1+Qg_Q2)*Fsw*Vout, (Qg_Q1+Qg_Q2)*Fsw*Vin) -> 0.13632 | AQ70: 0.1275818182 | AR70: 0.12212 | AS70: 0.1364256 | AT70: 2.489105812 | AU70: 1.762304181 | AV70: 16.104 | AW70: 0.8661274863 | AX70: 10.41263826 | AY70: 13.26696445 | BA70: 86.61274863 | BB70: 0.5993079776 | BC70: 1.582153781 | BD70: 0.6941758842 | BE70: 0.8844642966 | BF70: 0.1246901667 | BG70: 1.718579381 | BH70: 33.68415586
A71: Top FET | B71: Value | C71: Units | G71: 62 | H71: 48 | I71: 1 | J71: 4.96 | K71: 4.96 | L71: 0.3788888889 | M71: 0.07270107467 | N71: 3.674936221 | O71: 6.797468111 | P71: 3.122531889 | Q71: 0 | R71: 5.072181945 | S71: 0.09776271281 | T71: 0.5 | U71: 0.6024746775 | V71: 1.060862708 | W71: 0.001125429686 | X71: 0.001125429686 | Y71: 1.316967681 | Z71: 0.001734403873 | AA71: 0.001734403873 | AB71: 1.367619357 | AC71: 0.07481530824 | AD71: 0.380928 | AE71: 0.01152 | AF71: 0 | AG71: 0.4709630087 | AH71: 4.884326666 | AI71: 0.6918427624 | AJ71: 0.0444416 | AK71: 0.7939604181 | AL71: 0.0444416 | AM71: 0.35712 | AN71: 0.1286351484 | AO71: 0.0001056 | AP71: =CHOOSE(Ext_VCC, (Qg_Q1+Qg_Q2)*Fsw*'Design Regulator'!$G$102, (Qg_Q1+Qg_Q2)*Fsw*Vout, (Qg_Q1+Qg_Q2)*Fsw*Vin) -> 0.13632 | AQ71: 0.1275818182 | AR71: 0.12212 | AS71: 0.1364256 | AT71: 2.536880286 | AU71: 1.802910627 | AV71: 16.368 | AW71: 0.8658081803 | AX71: 10.59993313 | AY71: 13.67715027 | BA71: 86.58081803 | BB71: 0.6024746775 | BC71: 1.622043427 | BD71: 0.7066622087 | BE71: 0.9118100181 | BF71: 0.1286351484 | BG71: 1.758469027 | BH71: 34.46599293
A72: Tr | B72: =(Qgd_Q1+Qgs_Q1/2)*(RdsonDRT+Rgate1)/(VCC-Vsp_Q1)*1000000000 -> 2.210652372 | C72: ns | D72: Turn on of MOSFET -> Rise time of current | G72: 63 | H72: 48 | I72: 1 | J72: 5.04 | K72: 5.04 | L72: 0.385 | M72: 0.07276484185 | N72: 3.677869825 | O72: 6.878934913 | P72: 3.201065087 | Q72: 0 | R72: 5.150614255 | S72: 0.1008095434 | T72: 0.5 | U72: 0.6056943248 | V72: 1.061709567 | W72: 0.001127227204 | X72: 0.001127227204 | Y72: 1.337872619 | Z72: 0.001789903145 | AA72: 0.001789903145 | AB72: 1.389376089 | AC72: 0.07721463664 | AD72: 0.387072 | AE72: 0.01152 | AF72: 0 | AG72: 0.4796957879 | AH72: 4.959683588 | AI72: 0.7133553774 | AJ72: 0.0451584 | AK72: 0.8199283053 | AL72: 0.0451584 | AM72: 0.36288 | AN72: 0.132644136 | AO72: 0.0001056 | AP72: =CHOOSE(Ext_VCC, (Qg_Q1+Qg_Q2)*Fsw*'Design Regulator'!$G$102, (Qg_Q1+Qg_Q2)*Fsw*Vout, (Qg_Q1+Qg_Q2)*Fsw*Vin) -> 0.13632 | AQ72: 0.1275818182 | AR72: 0.12212 | AS72: 0.1364256 | AT72: 2.585343684 | AU72: 1.844088093 | AV72: 16.632 | AW72: 0.8654682079 | AX72: 10.78794882 | AY72: 14.09518058 | BA72: 86.54682079 | BB72: 0.6056943248 | BC72: 1.662504093 | BD72: 0.7191965879 | BE72: 0.9396787053 | BF72: 0.132644136 | BG72: 1.798929693 | BH72: 35.25902199
A73: Tf | B73: =(Qgd_Q1+Qgs_Q1/2)*(RdsonDRT2+Rgate1)/(Vsp_Q1)*1000000000 -> 2.470360825 | C73: ns | D73: Turn off of MOSFET -> Fall time of current | G73: 64 | H73: =Vin -> 48 | I73: =MODE -> 1 | J73: 5.12 | K73: =Iout*G73/100/Number_of_Phases -> 5.12 | L73: =Vout*K73/(Vin*Efficiency) -> 0.3911111111 | M73: =(Vout+(Rdson2+Rs+Rdcr)*K73)/(Vin+(Rs+Rdson2-Rdson1)*K73) -> 0.07282861031 | N73: =(Vin-(Rdson1+Rdcr)*K73-Vout)*M73/(Fsw*Lf) -> 3.680802986 | O73: 6.960401493 | P73: 3.279598507 | Q73: =IF(MIN(Vin, -P73/(Coss_Q1+Coss_Q2)*0.00000002)<0, 0, MIN(Vin, -P73/(Coss_Q1+Coss_Q2)*0.00000002)) -> 0 | R73: 5.229094174 | S73: =R73^2*Rdcr -> 0.1039050184 | T73: =Core_Loss_Ch1 -> 0.5 | U73: =(T73+S73*(1+Ltc*(Ta-25)))/(1-S73*Ltc*ThetaCa) -> 0.6089669965 | V73: 1.062556298 | W73: 0.001129025885 | X73: 0.001129025885 | Y73: 1.358806094 | Z73: 0.001846354 | AA73: 0.001846354 | AB73: 1.411163955 | AC73: =Rdson1*AB73^2 -> 0.07965534833 | AD73: =(Vin*K73/2)*Fsw*(Tr_buck+Tf_buck) -> 0.393216 | AE73: =(0.5*Coss_Q1*(Vin-Q73)^2-0.5*Coss_Q2*(Vin-Q73)^2+(Qoss_Q2*(Vin-Q73)/Vin)*Vin)*Fsw -> 0.01152 | AF73: =IF(K73>N73/2,0,ABS(K73-N73/2)*Vsd_Q1*Deadtime*Fsw) -> 0 | AG73: =(AF73+AE73+AD73+AC73*(1+RdsonTopTc*Ta-RdsonTopTc*25))/(1-AC73*RdsonTopTc*ThetaJA_Q1) -> 0.4884768769 | AH73: =SQRT((1-M73))*SQRT(K73^2+(N73^2)/12) -> 5.035081149 | AI73: =Rdson2*AH73^2 -> 0.7352092231 | AJ73: =IF(K73<N73/2,Deadtime*Fsw*IF(VfdSky_Q2>0,0,Vsd_Q2)*(K73+N73/2),2*Deadtime*Fsw*IF(VfdSky_Q2>0,0,Vsd_Q2)*K73) -> 0.0458752 | AK73: =(AJ73+AI73*(1+RdsonBotTc*Ta-RdsonBotTc*25))/(1-AI73*RdsonBotTc*ThetaJA_Q2) -> 0.8464259397 | AL73: =2*Deadtime*Fsw*IF(VfdSky_Q2>0,VfdSky_Q2,Vsd_Q2)*K73 -> 0.0458752 | AM73: =IF(QrrSky_Q2>0,QrrSky_Q2,Qrr_Q2*K73/(Iout/Number_of_Phases))*Fsw*Vin -> 0.36864 | AN73: =Rs*R73^2 -> 0.1367171294 | AO73: =Iq*Vin -> 0.0001056 | AP73: =CHOOSE(Ext_VCC, (Qg_Q1+Qg_Q2)*Fsw*'Design Regulator'!$G$102, (Qg_Q1+Qg_Q2)*Fsw*Vout, (Qg_Q1+Qg_Q2)*Fsw*Vin) -> 0.13632 | AQ73: =(Vin-VCC)*Fsw*(Qg_Q1+Qg_Q2)+(RdsonDRT+RdsonDRT2)*Fsw*Qg_Q1*VCC/(RdsonDRT+2*Rgate1+RdsonDRT2)+(RdsonDRB+RdsonDRB2)*Fsw*Qg_Q2*VCC/(RdsonDRB+2*Rgate2+RdsonDRB2) -> 0.1275818182 | AR73: =(Qg_Q1+Qg_Q2)*Fsw*(Vin-VCC) -> 0.12212 | AS73: =SUM(AO73:AP73) -> 0.1364256 | AT73: =SUM(U73,X73,AA73,AG73,AK73,AL73,AM73,AS73,AN73) -> 2.634503122 | AU73: =SUM(AG73,AK73,AL73,AM73,AS73) -> 1.885843617 | AV73: =Vout*K73 -> 16.896 | AW73: 0.8651082819 | AX73: =ThetaJA_Q1*BD73 -> 10.97668915 | AY73: =ThetaJA_Q2*BE73 -> 14.5211571 | BA73: 86.51082819 | BB73: =U73 -> 0.6089669965 | BC73: =AG73+AK73+AM73 -> 1.703542817 | BD73: =AG73+AM73*0.66 -> 0.7317792769 | BE73: =AK73+AM73*0.33 -> 0.9680771397 | BF73: =AN73 -> 0.1367171294 | BG73: 1.839968417 | BH73: 36.06338096
A74: Part Power | B74: Value | C74: Units | G74: 65 | H74: 48 | I74: 1 | J74: =Iout*G74/100 -> 5.2 | K74: 5.2 | L74: 0.3972222222 | M74: 0.07289238005 | N74: 3.683735704 | O74: =K74+N74/2 -> 7.041867852 | P74: =K74-N74/2 -> 3.358132148 | Q74: 0 | R74: =SQRT(K74^2+(N74^2)/12) -> 5.307619592 | S74: 0.1070491378 | T74: 0.5 | U74: 0.6122927708 | V74: =N74/SQRT(12) -> 1.0634029 | W74: =RCoutEsr*V74^2 -> 0.001130825728 | X74: =W74 -> 0.001130825728 | Y74: =SQRT(M74*(1-M74))*SQRT(K74^2+(N74^2)/12) -> 1.379767558 | Z74: =RCinEsr*Y74^2 -> 0.001903758513 | AA74: =Z74 -> 0.001903758513 | AB74: =SQRT(M74)*SQRT(K74^2+(N74^2)/12) -> 1.432982392 | AC74: 0.08213754141 | AD74: 0.39936 | AE74: 0.01152 | AF74: 0 | AG74: 0.4973065327 | AH74: 5.110517312 | AI74: 0.7574042286 | AJ74: 0.046592 | AK74: 0.8734602931 | AL74: 0.046592 | AM74: 0.3744 | AN74: 0.1408541286 | AO74: 0.0001056 | AP74: =CHOOSE(Ext_VCC, (Qg_Q1+Qg_Q2)*Fsw*'Design Regulator'!$G$102, (Qg_Q1+Qg_Q2)*Fsw*Vout, (Qg_Q1+Qg_Q2)*Fsw*Vin) -> 0.13632 | AQ74: 0.1275818182 | AR74: 0.12212 | AS74: 0.1364256 | AT74: 2.68436591 | AU74: 1.928184426 | AV74: 17.16 | AW74: =AV74/(AV74+AT74) -> 0.8647290661 | AX74: 11.16615799 | AY74: 14.9551844 | BA74: =AW74*100 -> 86.47290661 | BB74: 0.6122927708 | BC74: 1.745166826 | BD74: 0.7444105327 | BE74: 0.9970122931 | BF74: 0.1408541286 | BG74: =BC74+AS74 -> 1.881592426 | BH74: 36.87921155
A75: Power Dis | B75: =AS9 -> 0.1364256 | C75: W | G75: 66 | H75: 48 | I75: 1 | J75: 5.28 | K75: 5.28 | L75: 0.4033333333 | M75: 0.07295615106 | N75: 3.686667978 | O75: 7.123333989 | P75: 3.436666011 | Q75: 0 | R75: 5.386188516 | S75: 0.1102419016 | T75: 0.5 | U75: 0.6156717273 | V75: 1.064249375 | W75: 0.001132626732 | X75: 0.001132626732 | Y75: 1.400756495 | Z75: 0.001962118758 | AA75: 0.001962118758 | AB75: 1.454830866 | AC75: 0.08466131395 | AD75: 0.405504 | AE75: 0.01152 | AF75: 0 | AG75: 0.5061850142 | AH75: 5.185990155 | AI75: 0.7799403226 | AJ75: 0.0473088 | AK75: 0.9010385324 | AL75: 0.0473088 | AM75: 0.38016 | AN75: 0.1450551337 | AO75: 0.0001056 | AP75: =CHOOSE(Ext_VCC, (Qg_Q1+Qg_Q2)*Fsw*'Design Regulator'!$G$102, (Qg_Q1+Qg_Q2)*Fsw*Vout, (Qg_Q1+Qg_Q2)*Fsw*Vin) -> 0.13632 | AQ75: 0.1275818182 | AR75: 0.12212 | AS75: 0.1364256 | AT75: 2.734939553 | AU75: 1.971117947 | AV75: 17.424 | AW75: 0.8643311794 | AX75: 11.35635921 | AY75: 15.39736999 | BA75: 86.43311794 | BB75: 0.6156717273 | BC75: 1.787383547 | BD75: 0.7570906142 | BE75: 1.026491332 | BF75: 0.1450551337 | BG75: 1.923809147 | BH75: =BG75*$B$63 -> 37.70665927
A76: Temp rise | B76: =B75*B62 -> 4.092768 | C76: °C | G76: 67 | H76: 48 | I76: 1 | J76: 5.36 | K76: 5.36 | L76: 0.4094444444 | M76: 0.07301992335 | N76: 3.689599809 | O76: 7.204799905 | P76: 3.515200095 | Q76: 0 | R76: 5.464799072 | S76: 0.1134833098 | T76: 0.5 | U76: 0.619103947 | V76: 1.065095722 | W76: 0.001134428896 | X76: 0.001134428896 | Y76: 1.421772419 | Z76: 0.00202143681 | AA76: 0.00202143681 | AB76: 1.476708875 | AC76: 0.08722676404 | AD76: 0.411648 | AE76: 0.01152 | AF76: 0 | AG76: 0.5151125824 | AH76: 5.261497866 | AI76: 0.8028174341 | AJ76: 0.0480256 | AK76: 0.9291680244 | AL76: 0.0480256 | AM76: 0.38592 | AN76: 0.1493201445 | AO76: 0.0001056 | AP76: =CHOOSE(Ext_VCC, (Qg_Q1+Qg_Q2)*Fsw*'Design Regulator'!$G$102, (Qg_Q1+Qg_Q2)*Fsw*Vout, (Qg_Q1+Qg_Q2)*Fsw*Vin) -> 0.13632 | AQ76: 0.1275818182 | AR76: 0.12212 | AS76: 0.1364256 | AT76: 2.786231764 | AU76: 2.014651807 | AV76: 17.688 | AW76: 0.8639151986 | AX76: 11.54729674 | AY76: 15.84782437 | BA76: 86.39151986 | BB76: 0.619103947 | BC76: 1.830200607 | BD76: 0.7698197824 | BE76: 1.056521624 | BF76: 0.1493201445 | BG76: 1.966626207 | BH76: 38.54587365
A77: Current (switching) | B77: =(Qg_Q1+Qg_Q2)*Fsw+Iq -> 0.0028422 | C77: A | G77: 68 | H77: 48 | I77: 1 | J77: 5.44 | K77: 5.44 | L77: 0.4155555556 | M77: 0.07308369691 | N77: 3.692531197 | O77: 7.286265599 | P77: 3.593734401 | Q77: 0 | R77: 5.543449487 | S77: 0.1167733624 | T77: 0.5 | U77: 0.6225895121 | V77: 1.06594194 | W77: 0.00113623222 | X77: 0.00113623222 | Y77: 1.442814868 | Z77: 0.002081714742 | AA77: 0.002081714742 | AB77: 1.498615943 | AC77: 0.08983398977 | AD77: 0.417792 | AE77: 0.01152 | AF77: 0 | AG77: 0.5240895001 | AH77: 5.337038737 | AI77: 0.8260354918 | AJ77: 0.0487424 | AK77: 0.9578563419 | AL77: 0.0487424 | AM77: 0.39168 | AN77: 0.1536491611 | AO77: 0.0001056 | AP77: =CHOOSE(Ext_VCC, (Qg_Q1+Qg_Q2)*Fsw*'Design Regulator'!$G$102, (Qg_Q1+Qg_Q2)*Fsw*Vout, (Qg_Q1+Qg_Q2)*Fsw*Vin) -> 0.13632 | AQ77: 0.1275818182 | AR77: 0.12212 | AS77: 0.1364256 | AT77: 2.838250462 | AU77: 2.058793842 | AV77: 17.952 | AW77: 0.8634816609 | AX77: 11.7389745 | AY77: 16.30666113 | BA77: 86.34816609 | BB77: 0.6225895121 | BC77: 1.873625842 | BD77: 0.7825983001 | BE77: 1.087110742 | BF77: 0.1536491611 | BG77: 2.010051442 | BH77: 39.39700826
A78: Qrr Current | B78: =Qrr_Q2*Fsw -> 0.012 | C78: A | G78: 69 | H78: 48 | I78: 1 | J78: 5.52 | K78: 5.52 | L78: 0.4216666667 | M78: 0.07314747176 | N78: 3.695462141 | O78: 7.367731071 | P78: 3.672268929 | Q78: 0 | R78: 5.62213809 | S78: 0.1201120595 | T78: 0.5 | U78: 0.6261285062 | V78: 1.066788031 | W78: 0.001138036703 | X78: 0.001138036703 | Y78: 1.463883406 | Z78: 0.002142954627 | AA78: 0.002142954627 | AB78: 1.520551621 | AC78: 0.09248308924 | AD78: 0.423936 | AE78: 0.01152 | AF78: 0 | AG78: 0.5331160321 | AH78: 5.412611151 | AI78: 0.8495944247 | AJ78: 0.0494592 | AK78: 0.9871112689 | AL78: 0.0494592 | AM78: 0.39744 | AN78: 0.1580421835 | AO78: 0.0001056 | AP78: =CHOOSE(Ext_VCC, (Qg_Q1+Qg_Q2)*Fsw*'Design Regulator'!$G$102, (Qg_Q1+Qg_Q2)*Fsw*Vout, (Qg_Q1+Qg_Q2)*Fsw*Vin) -> 0.13632 | AQ78: 0.1275818182 | AR78: 0.12212 | AS78: 0.1364256 | AT78: 2.891003782 | AU78: 2.103552101 | AV78: 18.216 | AW78: 0.8630310672 | AX78: 11.93139648 | AY78: 16.77399703 | BA78: 86.30310672 | BB78: 0.6261285062 | BC78: 1.917667301 | BD78: 0.7954264321 | BE78: 1.118266469 | BF78: 0.1580421835 | BG78: 2.054092901 | BH78: 40.26022086
A79: Diode Current | B79: =Deadtime*Fsw*(Iripple_Vinnom/2)*(Vsd_Q2)/Vin -> 0.0001663068276 | G79: 70 | H79: 48 | I79: 1 | J79: 5.6 | K79: 5.6 | L79: 0.4277777778 | M79: 0.07321124787 | N79: 3.698392642 | O79: 7.449196321 | P79: 3.750803679 | Q79: 0 | R79: 5.700863298 | S79: 0.1234994009 | T79: 0.5 | U79: 0.6297210144 | V79: 1.067633994 | W79: 0.001139842345 | X79: 0.001139842345 | Y79: 1.484977622 | Z79: 0.002205158537 | AA79: 0.002205158537 | AB79: 1.542515482 | AC79: 0.09517416055 | AD79: 0.43008 | AE79: 0.01152 | AF79: 0 | AG79: 0.5421924452 | AH79: 5.488213583 | AI79: 0.8734941616 | AJ79: 0.050176 | AK79: 1.016940807 | AL79: 0.050176 | AM79: 0.4032 | AN79: 0.1624992117 | AO79: 0.0001056 | AP79: =CHOOSE(Ext_VCC, (Qg_Q1+Qg_Q2)*Fsw*'Design Regulator'!$G$102, (Qg_Q1+Qg_Q2)*Fsw*Vout, (Qg_Q1+Qg_Q2)*Fsw*Vin) -> 0.13632 | AQ79: 0.1275818182 | AR79: 0.12212 | AS79: 0.1364256 | AT79: 2.944500079 | AU79: 2.148934852 | AV79: 18.48 | AW79: 0.862563884 | AX79: 12.12456668 | AY79: 17.2499521 | BA79: 86.2563884 | BB79: 0.6297210144 | BC79: 1.962333252 | BD79: 0.8083044452 | BE79: 1.149996807 | BF79: 0.1624992117 | BG79: 2.098758852 | BH79: 41.1356735
A80: Total | B80: =SUM(B77:B79) -> 0.01500850683 | C80: A | G80: 71 | H80: 48 | I80: 1 | J80: 5.68 | K80: 5.68 | L80: 0.4338888889 | M80: 0.07327502527 | N80: 3.7013227 | O80: 7.53066135 | P80: 3.82933865 | Q80: 0 | R80: 5.779623616 | S80: 0.1269353867 | T80: 0.5 | U80: 0.6333671228 | V80: 1.068479828 | W80: 0.001141649144 | X80: 0.001141649144 | Y80: 1.506097123 | Z80: 0.002268328545 | AA80: 0.002268328545 | AB80: 1.564507125 | AC80: 0.0979073018 | AD80: 0.436224 | AE80: 0.01152 | AF80: 0 | AG80: 0.5513190082 | AH80: 5.563844588 | AI80: 0.8977346314 | AJ80: 0.0508928 | AK80: 1.04735318 | AL80: 0.0508928 | AM80: 0.40896 | AN80: 0.1670202457 | AO80: 0.0001056 | AP80: =CHOOSE(Ext_VCC, (Qg_Q1+Qg_Q2)*Fsw*'Design Regulator'!$G$102, (Qg_Q1+Qg_Q2)*Fsw*Vout, (Qg_Q1+Qg_Q2)*Fsw*Vin) -> 0.13632 | AQ80: 0.1275818182 | AR80: 0.12212 | AS80: 0.1364256 | AT80: 2.998747934 | AU80: 2.194950588 | AV80: 18.744 | AW80: 0.8620805455 | AX80: 12.31848912 | AY80: 17.73464969 | BA80: 86.20805455 | BB80: 0.6333671228 | BC80: 2.007632188 | BD80: 0.8212326082 | BE80: 1.18230998 | BF80: 0.1670202457 | BG80: 2.144057788 | BH80: 42.02353264
G81: 72 | H81: 48 | I81: 1 | J81: 5.76 | K81: 5.76 | L81: 0.44 | M81: 0.07333880394 | N81: 3.704252314 | O81: 7.612126157 | P81: 3.907873843 | Q81: 0 | R81: 5.858417628 | S81: 0.130420017 | T81: 0.5 | U81: 0.6370669193 | V81: 1.069325535 | W81: 0.0011434571 | X81: 0.0011434571 | Y81: 1.52724154 | Z81: 0.002332466721 | AA81: 0.002332466721 | AB81: 1.586526167 | AC81: 0.1006826111 | AD81: 0.442368 | AE81: 0.01152 | AF81: 0 | AG81: 0.5604959921 | AH81: 5.639502799 | AI81: 0.9223157629 | AJ81: 0.0516096 | AK81: 1.078356842 | AL81: 0.0516096 | AM81: 0.41472 | AN81: 0.1716052855 | AO81: 0.0001056 | AP81: =CHOOSE(Ext_VCC, (Qg_Q1+Qg_Q2)*Fsw*'Design Regulator'!$G$102, (Qg_Q1+Qg_Q2)*Fsw*Vout, (Qg_Q1+Qg_Q2)*Fsw*Vin) -> 0.13632 | AQ81: 0.1275818182 | AR81: 0.12212 | AS81: 0.1364256 | AT81: 3.053756162 | AU81: 2.241608034 | AV81: 19.008 | AW81: 0.8615814562 | AX81: 12.51316788 | AY81: 18.22821663 | BA81: 86.15814562 | BB81: 0.6370669193 | BC81: 2.053572834 | BD81: 0.8342111921 | BE81: 1.215214442 | BF81: 0.1716052855 | BG81: 2.189998434 | BH81: 42.9239693
G82: 73 | H82: 48 | I82: 1 | J82: 5.84 | K82: 5.84 | L82: 0.4461111111 | M82: 0.07340258389 | N82: 3.707181484 | O82: 7.693590742 | P82: 3.986409258 | Q82: 0 | R82: 5.937243991 | S82: 0.1339532916 | T82: 0.5 | U82: 0.6408204928 | V82: 1.070171114 | W82: 0.001145266213 | X82: 0.001145266213 | Y82: 1.548410519 | Z82: 0.002397575136 | AA82: 0.002397575136 | AB82: 1.608572244 | AC82: 0.1035001866 | AD82: 0.448512 | AE82: 0.01152 | AF82: 0 | AG82: 0.5697236697 | AH82: 5.715186922 | AI82: 0.9472374849 | AJ82: 0.0523264 | AK82: 1.109960483 | AL82: 0.0523264 | AM82: 0.42048 | AN82: 0.1762543311 | AO82: 0.0001056 | AP82: =CHOOSE(Ext_VCC, (Qg_Q1+Qg_Q2)*Fsw*'Design Regulator'!$G$102, (Qg_Q1+Qg_Q2)*Fsw*Vout, (Qg_Q1+Qg_Q2)*Fsw*Vin) -> 0.13632 | AQ82: 0.1275818182 | AR82: 0.12212 | AS82: 0.1364256 | AT82: 3.109533818 | AU82: 2.288916153 | AV82: 19.272 | AW82: 0.8610669919 | AX82: 12.70860705 | AY82: 18.73078325 | BA82: 86.10669919 | BB82: 0.6408204928 | BC82: 2.100164153 | BD82: 0.8472404697 | BE82: 1.248718883 | BF82: 0.1762543311 | BG82: 2.236589753 | BH82: 43.83715916
G83: 74 | H83: 48 | I83: 1 | J83: 5.92 | K83: 5.92 | L83: 0.4522222222 | M83: 0.07346636511 | N83: 3.710110211 | O83: 7.775055106 | P83: 4.064944894 | Q83: 0 | R83: 6.016101435 | S83: 0.1375352106 | T83: 0.5 | U83: 0.6446279337 | V83: 1.071016565 | W83: 0.001147076482 | X83: 0.001147076482 | Y83: 1.569603727 | Z83: 0.002463655861 | AA83: 0.002463655861 | AB83: 1.630645013 | AC83: 0.1063601263 | AD83: 0.454656 | AE83: 0.01152 | AF83: 0 | AG83: 0.5790023161 | AH83: 5.790895727 | AI83: 0.9724997264 | AJ83: 0.0530432 | AK83: 1.142173038 | AL83: 0.0530432 | AM83: 0.42624 | AN83: 0.1809673824 | AO83: 0.0001056 | AP83: =CHOOSE(Ext_VCC, (Qg_Q1+Qg_Q2)*Fsw*'Design Regulator'!$G$102, (Qg_Q1+Qg_Q2)*Fsw*Vout, (Qg_Q1+Qg_Q2)*Fsw*Vin) -> 0.13632 | AQ83: 0.1275818182 | AR83: 0.12212 | AS83: 0.1364256 | AT83: 3.166090202 | AU83: 2.336884154 | AV83: 19.536 | AW83: 0.8605375023 | AX83: 12.90481074 | AY83: 19.24248357 | BA83: 86.05375023 | BB83: 0.6446279337 | BC83: 2.147415354 | BD83: 0.8603207161 | BE83: 1.282832238 | BF83: 0.1809673824 | BG83: 2.283840954 | BH83: 44.7632827
G84: 75 | H84: 48 | I84: 1 | J84: 6 | K84: 6 | L84: 0.4583333333 | M84: 0.07353014761 | N84: 3.713038495 | O84: 7.856519247 | P84: 4.143480753 | Q84: 0 | R84: 6.094988754 | S84: 0.141165774 | T84: 0.5 | U84: 0.6484893339 | V84: 1.071861887 | W84: 0.001148887905 | X84: 0.001148887905 | Y84: 1.590820846 | Z84: 0.002530710965 | AA84: 0.002530710965 | AB84: 1.652744146 | AC84: 0.1092625285 | AD84: 0.4608 | AE84: 0.01152 | AF84: 0 | AG84: 0.5883322082 | AH84: 5.866628051 | AI84: 0.9981024161 | AJ84: 0.05376 | AK84: 1.175003688 | AL84: 0.05376 | AM84: 0.432 | AN84: 0.1857444395 | AO84: 0.0001056 | AP84: =CHOOSE(Ext_VCC, (Qg_Q1+Qg_Q2)*Fsw*'Design Regulator'!$G$102, (Qg_Q1+Qg_Q2)*Fsw*Vout, (Qg_Q1+Qg_Q2)*Fsw*Vin) -> 0.13632 | AQ84: 0.1275818182 | AR84: 0.12212 | AS84: 0.1364256 | AT84: 3.223434869 | AU84: 2.385521496 | AV84: 19.8 | AW84: 0.8599933117 | AX84: 13.10178312 | AY84: 19.76345532 | BA84: 85.99933117 | BB84: 0.6484893339 | BC84: 2.195335896 | BD84: 0.8734522082 | BE84: 1.317563688 | BF84: 0.1857444395 | BG84: 2.331761496 | BH84: 45.70252533
G85: 76 | H85: 48 | I85: 1 | J85: 6.08 | K85: 6.08 | L85: 0.4644444444 | M85: 0.07359393139 | N85: 3.715966335 | O85: 7.937983167 | P85: 4.222016833 | Q85: 0 | R85: 6.1739048 | S85: 0.1448449818 | T85: 0.5 | U85: 0.6524047866 | V85: 1.072707082 | W85: 0.001150700484 | X85: 0.001150700484 | Y85: 1.612061574 | Z85: 0.002598742518 | AA85: 0.002598742518 | AB85: 1.674869332 | AC85: 0.1122074911 | AD85: 0.466944 | AE85: 0.01152 | AF85: 0 | AG85: 0.5977136255 | AH85: 5.942382789 | AI85: 1.024045483 | AJ85: 0.0544768 | AK85: 1.208461875 | AL85: 0.0544768 | AM85: 0.43776 | AN85: 0.1905855024 | AO85: 0.0001056 | AP85: =CHOOSE(Ext_VCC, (Qg_Q1+Qg_Q2)*Fsw*'Design Regulator'!$G$102, (Qg_Q1+Qg_Q2)*Fsw*Vout, (Qg_Q1+Qg_Q2)*Fsw*Vin) -> 0.13632 | AQ85: 0.1275818182 | AR85: 0.12212 | AS85: 0.1364256 | AT85: 3.281577633 | AU85: 2.434837901 | AV85: 20.064 | AW85: 0.859434721 | AX85: 13.29952838 | AY85: 20.29384013 | BA85: 85.9434721 | BB85: 0.6524047866 | BC85: 2.243935501 | BD85: 0.8866352255 | BE85: 1.352922675 | BF85: 0.1905855024 | BG85: 2.380361101 | BH85: 46.65507757
G86: 77 | H86: 48 | I86: 1 | J86: 6.16 | K86: 6.16 | L86: 0.4705555556 | M86: 0.07365771644 | N86: 3.718893732 | O86: 8.019446866 | P86: 4.300553134 | Q86: 0 | R86: 6.252848488 | S86: 0.148572834 | T86: 0.5 | U86: 0.6563743862 | V86: 1.073552149 | W86: 0.001152514216 | X86: 0.001152514216 | Y86: 1.633325622 | Z86: 0.002667752587 | AA86: 0.002667752587 | AB86: 1.697020274 | AC86: 0.1151951124 | AD86: 0.473088 | AE86: 0.01152 | AF86: 0 | AG86: 0.6071468491 | AH86: 6.018158888 | AI86: 1.050328856 | AJ86: 0.0551936 | AK86: 1.242557304 | AL86: 0.0551936 | AM86: 0.44352 | AN86: 0.1954905711 | AO86: 0.0001056 | AP86: =CHOOSE(Ext_VCC, (Qg_Q1+Qg_Q2)*Fsw*'Design Regulator'!$G$102, (Qg_Q1+Qg_Q2)*Fsw*Vout, (Qg_Q1+Qg_Q2)*Fsw*Vin) -> 0.13632 | AQ86: 0.1275818182 | AR86: 0.12212 | AS86: 0.1364256 | AT86: 3.340528577 | AU86: 2.484843353 | AV86: 20.328 | AW86: 0.8588620088 | AX86: 13.49805074 | AY86: 20.83378356 | BA86: 85.88620088 | BB86: 0.6563743862 | BC86: 2.293224153 | BD86: 0.8998700491 | BE86: 1.388918904 | BF86: 0.1954905711 | BG86: 2.429649753 | BH86: 47.62113516
G87: 78 | H87: 48 | I87: 1 | J87: 6.24 | K87: 6.24 | L87: 0.4766666667 | M87: 0.07372150277 | N87: 3.721820685 | O87: 8.100910342 | P87: 4.379089658 | Q87: 0 | R87: 6.331818783 | S87: 0.1523493306 | T87: 0.5 | U87: 0.6603982288 | V87: 1.074397087 | W87: 0.001154329101 | X87: 0.001154329101 | Y87: 1.654612717 | Z87: 0.002737743242 | AA87: 0.002737743242 | AB87: 1.719196691 | AC87: 0.1182254905 | AD87: 0.479232 | AE87: 0.01152 | AF87: 0 | AG87: 0.6166321627 | AH87: 6.093955353 | AI87: 1.076952463 | AJ87: 0.0559104 | AK87: 1.277299953 | AL87: 0.0559104 | AM87: 0.44928 | AN87: 0.2004596455 | AO87: 0.0001056 | AP87: =CHOOSE(Ext_VCC, (Qg_Q1+Qg_Q2)*Fsw*'Design Regulator'!$G$102, (Qg_Q1+Qg_Q2)*Fsw*Vout, (Qg_Q1+Qg_Q2)*Fsw*Vin) -> 0.13632 | AQ87: 0.1275818182 | AR87: 0.12212 | AS87: 0.1364256 | AT87: 3.400298062 | AU87: 2.535548116 | AV87: 20.592 | AW87: 0.8582754327 | AX87: 13.69735444 | AY87: 21.3834353 | BA87: 85.82754327 | BB87: 0.6603982288 | BC87: 2.343212116 | BD87: 0.9131569627 | BE87: 1.425562353 | BF87: 0.2004596455 | BG87: 2.479637716 | BH87: 48.60089923
G88: 79 | H88: 48 | I88: 1 | J88: 6.32 | K88: 6.32 | L88: 0.4827777778 | M88: 0.07378529038 | N88: 3.724747194 | O88: 8.182373597 | P88: 4.457626403 | Q88: 0 | R88: 6.410814702 | S88: 0.1561744715 | T88: 0.5 | U88: 0.6644764117 | V88: 1.075241898 | W88: 0.001156145138 | X88: 0.001156145138 | Y88: 1.675922596 | Z88: 0.002808716549 | AA88: 0.002808716549 | AB88: 1.741398314 | AC88: 0.1212987235 | AD88: 0.485376 | AE88: 0.01152 | AF88: 0 | AG88: 0.6261698519 | AH88: 6.169771232 | AI88: 1.103916234 | AJ88: 0.0566272 | AK88: 1.312700082 | AL88: 0.0566272 | AM88: 0.45504 | AN88: 0.2054927257 | AO88: 0.0001056 | AP88: =CHOOSE(Ext_VCC, (Qg_Q1+Qg_Q2)*Fsw*'Design Regulator'!$G$102, (Qg_Q1+Qg_Q2)*Fsw*Vout, (Qg_Q1+Qg_Q2)*Fsw*Vin) -> 0.13632 | AQ88: 0.1275818182 | AR88: 0.12212 | AS88: 0.1364256 | AT88: 3.460896733 | AU88: 2.586962734 | AV88: 20.856 | AW88: 0.8576752301 | AX88: 13.89744378 | AY88: 21.94294924 | BA88: 85.76752301 | BB88: 0.6644764117 | BC88: 2.393909934 | BD88: 0.9264962519 | BE88: 1.462863282 | BF88: 0.2054927257 | BG88: 2.530335534 | BH88: 49.59457647
G89: 80 | H89: 48 | I89: 1 | J89: 6.4 | K89: 6.4 | L89: 0.4888888889 | M89: 0.07384907926 | N89: 3.72767326 | O89: 8.26383663 | P89: 4.53616337 | Q89: 0 | R89: 6.489835308 | S89: 0.1600482568 | T89: 0.5 | U89: 0.6686090337 | V89: 1.07608658 | W89: 0.001157962328 | X89: 0.001157962328 | Y89: 1.697255012 | Z89: 0.002880674575 | AA89: 0.002880674575 | AB89: 1.763624886 | AC89: 0.1244149095 | AD89: 0.49152 | AE89: 0.01152 | AF89: 0 | AG89: 0.6357602046 | AH89: 6.245605622 | AI89: 1.131220098 | AJ89: 0.057344 | AK89: 1.348768241 | AL89: 0.057344 | AM89: 0.4608 | AN89: 0.2105898116 | AO89: 0.0001056 | AP89: =CHOOSE(Ext_VCC, (Qg_Q1+Qg_Q2)*Fsw*'Design Regulator'!$G$102, (Qg_Q1+Qg_Q2)*Fsw*Vout, (Qg_Q1+Qg_Q2)*Fsw*Vin) -> 0.13632 | AQ89: 0.1275818182 | AR89: 0.12212 | AS89: 0.1364256 | AT89: 3.522335528 | AU89: 2.639098046 | AV89: 21.12 | AW89: 0.8570616197 | AX89: 14.09832307 | AY89: 22.51248361 | BA89: 85.70616197 | BB89: 0.6686090337 | BC89: 2.445328446 | BD89: 0.9398882046 | BE89: 1.500832241 | BF89: 0.2105898116 | BG89: 2.581754046 | BH89: 50.60237929
G90: 81 | H90: 48 | I90: 1 | J90: 6.48 | K90: 6.48 | L90: 0.495 | M90: 0.07391286942 | N90: 3.730598883 | O90: 8.345299441 | P90: 4.614700559 | Q90: 0 | R90: 6.568879712 | S90: 0.1639706865 | T90: 0.5 | U90: 0.6727961949 | V90: 1.076931135 | W90: 0.001159780669 | X90: 0.001159780669 | Y90: 1.718609725 | Z90: 0.002953619388 | AA90: 0.002953619388 | AB90: 1.785876163 | AC90: 0.1275741468 | AD90: 0.497664 | AE90: 0.01152 | AF90: 0 | AG90: 0.645403511 | AH90: 6.321457664 | AI90: 1.158863983 | AJ90: 0.0580608 | AK90: 1.385515277 | AL90: 0.0580608 | AM90: 0.46656 | AN90: 0.2157509033 | AO90: 0.0001056 | AP90: =CHOOSE(Ext_VCC, (Qg_Q1+Qg_Q2)*Fsw*'Design Regulator'!$G$102, (Qg_Q1+Qg_Q2)*Fsw*Vout, (Qg_Q1+Qg_Q2)*Fsw*Vin) -> 0.13632 | AQ90: 0.1275818182 | AR90: 0.12212 | AS90: 0.1364256 | AT90: 3.584625686 | AU90: 2.691965188 | AV90: 21.384 | AW90: 0.8564348022 | AX90: 14.29999667 | AY90: 23.09220115 | BA90: 85.64348022 | BB90: 0.6727961949 | BC90: 2.497478788 | BD90: 0.953333111 | BE90: 1.539480077 | BF90: 0.2157509033 | BG90: 2.633904388 | BH90: 51.624526
G91: 82 | H91: 48 | I91: 1 | J91: 6.56 | K91: 6.56 | L91: 0.5011111111 | M91: 0.07397666086 | N91: 3.733524062 | O91: 8.426762031 | P91: 4.693237969 | Q91: 0 | R91: 6.647947064 | S91: 0.1679417606 | T91: 0.5 | U91: 0.6770379969 | V91: 1.077775561 | W91: 0.00116160016 | X91: 0.00116160016 | Y91: 1.739986509 | Z91: 0.003027553053 | AA91: 0.003027553053 | AB91: 1.808151911 | AC91: 0.1307765334 | AD91: 0.503808 | AE91: 0.01152 | AF91: 0 | AG91: 0.6551000635 | AH91: 6.397326537 | AI91: 1.186847818 | AJ91: 0.0587776 | AK91: 1.422952346 | AL91: 0.0587776 | AM91: 0.47232 | AN91: 0.2209760008 | AO91: 0.0001056 | AP91: =CHOOSE(Ext_VCC, (Qg_Q1+Qg_Q2)*Fsw*'Design Regulator'!$G$102, (Qg_Q1+Qg_Q2)*Fsw*Vout, (Qg_Q1+Qg_Q2)*Fsw*Vin) -> 0.13632 | AQ91: 0.1275818182 | AR91: 0.12212 | AS91: 0.1364256 | AT91: 3.64777876 | AU91: 2.74557561 | AV91: 21.648 | AW91: 0.8557949611 | AX91: 14.50246895 | AY91: 23.68226919 | BA91: 85.57949611 | BB91: 0.6770379969 | BC91: 2.55037241 | BD91: 0.9668312635 | BE91: 1.578817946 | BF91: 0.2209760008 | BG91: 2.68679801 | BH91: 52.66124099
G92: 83 | H92: 48 | I92: 1 | J92: 6.64 | K92: 6.64 | L92: 0.5072222222 | M92: 0.07404045358 | N92: 3.736448797 | O92: 8.508224399 | P92: 4.771775601 | Q92: 0 | R92: 6.727036554 | S92: 0.171961479 | T92: 0.5 | U92: 0.6813345427 | V92: 1.078619859 | W92: 0.001163420801 | X92: 0.001163420801 | Y92: 1.761385146 | Z92: 0.003102477634 | AA92: 0.003102477634 | AB92: 1.830451908 | AC92: 0.1340221674 | AD92: 0.509952 | AE92: 0.01152 | AF92: 0 | AG92: 0.6648501566 | AH92: 6.473211461 | AI92: 1.215171532 | AJ92: 0.0594944 | AK92: 1.461090922 | AL92: 0.0594944 | AM92: 0.47808 | AN92: 0.226265104 | AO92: 0.0001056 | AP92: =CHOOSE(Ext_VCC, (Qg_Q1+Qg_Q2)*Fsw*'Design Regulator'!$G$102, (Qg_Q1+Qg_Q2)*Fsw*Vout, (Qg_Q1+Qg_Q2)*Fsw*Vin) -> 0.13632 | AQ92: 0.1275818182 | AR92: 0.12212 | AS92: 0.1364256 | AT92: 3.711806623 | AU92: 2.799941078 | AV92: 21.912 | AW92: 0.8551422637 | AX92: 14.70574435 | AY92: 24.28285982 | BA92: 85.51422637 | BB92: 0.6813345427 | BC92: 2.604021078 | BD92: 0.9803829566 | BE92: 1.618857322 | BF92: 0.226265104 | BG92: 2.740446678 | BH92: 53.71275489
G93: 84 | H93: 48 | I93: 1 | J93: 6.72 | K93: 6.72 | L93: 0.5133333333 | M93: 0.07410424757 | N93: 3.739373089 | O93: 8.589686545 | P93: 4.850313455 | Q93: 0 | R93: 6.806147412 | S93: 0.1760298418 | T93: 0.5 | U93: 0.6856859368 | V93: 1.07946403 | W93: 0.001165242592 | X93: 0.001165242592 | Y93: 1.782805429 | Z93: 0.003178395198 | AA93: 0.003178395198 | AB93: 1.852775939 | AC93: 0.1373111472 | AD93: 0.516096 | AE93: 0.01152 | AF93: 0 | AG93: 0.6746540875 | AH93: 6.549111689 | AI93: 1.243835053 | AJ93: 0.0602112 | AK93: 1.499942805 | AL93: 0.0602112 | AM93: 0.48384 | AN93: 0.231618213 | AO93: 0.0001056 | AP93: =CHOOSE(Ext_VCC, (Qg_Q1+Qg_Q2)*Fsw*'Design Regulator'!$G$102, (Qg_Q1+Qg_Q2)*Fsw*Vout, (Qg_Q1+Qg_Q2)*Fsw*Vin) -> 0.13632 | AQ93: 0.1275818182 | AR93: 0.12212 | AS93: 0.1364256 | AT93: 3.77672148 | AU93: 2.855073692 | AV93: 22.176 | AW93: 0.8544768616 | AX93: 14.90982731 | AY93: 24.89415007 | BA93: 85.44768616 | BB93: 0.6856859368 | BC93: 2.658436892 | BD93: 0.9939884875 | BE93: 1.659610005 | BF93: 0.231618213 | BG93: 2.794862492 | BH93: 54.77930484
G94: 85 | H94: 48 | I94: 1 | J94: 6.8 | K94: 6.8 | L94: 0.5194444444 | M94: 0.07416804284 | N94: 3.742296937 | O94: 8.671148469 | P94: 4.928851531 | Q94: 0 | R94: 6.8852789 | S94: 0.180146849 | T94: 0.5 | U94: 0.6900922851 | V94: 1.080308072 | W94: 0.001167065531 | X94: 0.001167065531 | Y94: 1.804247158 | Z94: 0.003255307808 | AA94: 0.003255307808 | AB94: 1.8751238 | AC94: 0.1406435707 | AD94: 0.52224 | AE94: 0.01152 | AF94: 0 | AG94: 0.6845121552 | AH94: 6.62502651 | AI94: 1.272838312 | AJ94: 0.060928 | AK94: 1.539520133 | AL94: 0.060928 | AM94: 0.4896 | AN94: 0.2370353277 | AO94: 0.0001056 | AP94: =CHOOSE(Ext_VCC, (Qg_Q1+Qg_Q2)*Fsw*'Design Regulator'!$G$102, (Qg_Q1+Qg_Q2)*Fsw*Vout, (Qg_Q1+Qg_Q2)*Fsw*Vin) -> 0.13632 | AQ94: 0.1275818182 | AR94: 0.12212 | AS94: 0.1364256 | AT94: 3.842535875 | AU94: 2.910985889 | AV94: 22.44 | AW94: 0.8537988917 | AX94: 15.11472233 | AY94: 25.516322 | BA94: 85.37988917 | BB94: 0.6900922851 | BC94: 2.713632289 | BD94: 1.007648155 | BE94: 1.701088133 | BF94: 0.2370353277 | BG94: 2.850057889 | BH94: 55.86113462
G95: 86 | H95: 48 | I95: 1 | J95: 6.88 | K95: 6.88 | L95: 0.5255555556 | M95: 0.07423183938 | N95: 3.745220342 | O95: 8.752610171 | P95: 5.007389829 | Q95: 0 | R95: 6.964430315 | S95: 0.1843125005 | T95: 0.5 | U95: 0.6945536948 | V95: 1.081151986 | W95: 0.001168889618 | X95: 0.001168889618 | Y95: 1.825710143 | Z95: 0.003333217527 | AA95: 0.003333217527 | AB95: 1.897495298 | AC95: 0.1440195362 | AD95: 0.528384 | AE95: 0.01152 | AF95: 0 | AG95: 0.6944246615 | AH95: 6.700955246 | AI95: 1.302181235 | AJ95: 0.0616448 | AK95: 1.579835396 | AL95: 0.0616448 | AM95: 0.49536 | AN95: 0.2425164481 | AO95: 0.0001056 | AP95: =CHOOSE(Ext_VCC, (Qg_Q1+Qg_Q2)*Fsw*'Design Regulator'!$G$102, (Qg_Q1+Qg_Q2)*Fsw*Vout, (Qg_Q1+Qg_Q2)*Fsw*Vin) -> 0.13632 | AQ95: 0.1275818182 | AR95: 0.12212 | AS95: 0.1364256 | AT95: 3.909262708 | AU95: 2.967690457 | AV95: 22.704 | AW95: 0.8531084764 | AX95: 15.32043392 | AY95: 26.14956294 | BA95: 85.31084764 | BB95: 0.6945536948 | BC95: 2.769620057 | BD95: 1.021362262 | BE95: 1.743304196 | BF95: 0.2425164481 | BG95: 2.906045657 | BH95: 56.95849489
G96: 87 | H96: 48 | I96: 1 | J96: 6.96 | K96: 6.96 | L96: 0.5316666667 | M96: 0.0742956372 | N96: 3.748143303 | O96: 8.834071651 | P96: 5.085928349 | Q96: 0 | R96: 7.043600986 | S96: 0.1885267964 | T96: 0.5 | U96: 0.6990702748 | V96: 1.081995772 | W96: 0.001170714852 | X96: 0.001170714852 | Y96: 1.847194202 | Z96: 0.00341212642 | AA96: 0.00341212642 | AB96: 1.919890243 | AC96: 0.1474391418 | AD96: 0.534528 | AE96: 0.01152 | AF96: 0 | AG96: 0.7043919104 | AH96: 6.776897248 | AI96: 1.331863753 | AJ96: 0.0623616 | AK96: 1.62090144 | AL96: 0.0623616 | AM96: 0.50112 | AN96: 0.2480615743 | AO96: 0.0001056 | AP96: =CHOOSE(Ext_VCC, (Qg_Q1+Qg_Q2)*Fsw*'Design Regulator'!$G$102, (Qg_Q1+Qg_Q2)*Fsw*Vout, (Qg_Q1+Qg_Q2)*Fsw*Vin) -> 0.13632 | AQ96: 0.1275818182 | AR96: 0.12212 | AS96: 0.1364256 | AT96: 3.97691524 | AU96: 3.02520055 | AV96: 22.968 | AW96: 0.8524057246 | AX96: 15.52696666 | AY96: 26.7940656 | BA96: 85.24057246 | BB96: 0.6990702748 | BC96: 2.82641335 | BD96: 1.03513111 | BE96: 1.78627104 | BF96: 0.2480615743 | BG96: 2.96283895 | BH96: 58.07164342
G97: 88 | H97: 48 | I97: 1 | J97: 7.04 | K97: 7.04 | L97: 0.5377777778 | M97: 0.0743594363 | N97: 3.75106582 | O97: 8.91553291 | P97: 5.16446709 | Q97: 0 | R97: 7.12279027 | S97: 0.1927897367 | T97: 0.5 | U97: 0.7036421352 | V97: 1.082839431 | W97: 0.001172541232 | X97: 0.001172541232 | Y97: 1.86869916 | Z97: 0.003492036549 | AA97: 0.003492036549 | AB97: 1.942308457 | AC97: 0.1509024857 | AD97: 0.540672 | AE97: 0.01152 | AF97: 0 | AG97: 0.7144142081 | AH97: 6.852851895 | AI97: 1.361885794 | AJ97: 0.0630784 | AK97: 1.662731484 | AL97: 0.0630784 | AM97: 0.50688 | AN97: 0.2536707062 | AO97: 0.0001056 | AP97: =CHOOSE(Ext_VCC, (Qg_Q1+Qg_Q2)*Fsw*'Design Regulator'!$G$102, (Qg_Q1+Qg_Q2)*Fsw*Vout, (Qg_Q1+Qg_Q2)*Fsw*Vin) -> 0.13632 | AQ97: 0.1275818182 | AR97: 0.12212 | AS97: 0.1364256 | AT97: 4.045507112 | AU97: 3.083529692 | AV97: 23.232 | AW97: 0.851690732 | AX97: 15.73432512 | AY97: 27.45002826 | BA97: 85.1690732 | BB97: 0.7036421352 | BC97: 2.884025692 | BD97: 1.048955008 | BE97: 1.830001884 | BF97: 0.2536707062 | BG97: 3.020451292 | BH97: 59.20084533
G98: 89 | H98: 48 | I98: 1 | J98: 7.12 | K98: 7.12 | L98: 0.5438888889 | M98: 0.07442323668 | N98: 3.753987894 | O98: 8.996993947 | P98: 5.243006053 | Q98: 0 | R98: 7.201997553 | S98: 0.1971013213 | T98: 0.5 | U98: 0.7082693879 | V98: 1.083682961 | W98: 0.001174368759 | X98: 0.001174368759 | Y98: 1.890224848 | Z98: 0.003572949975 | AA98: 0.003572949975 | AB98: 1.964749769 | AC98: 0.1544096661 | AD98: 0.546816 | AE98: 0.01152 | AF98: 0 | AG98: 0.7244918636 | AH98: 6.928818594 | AI98: 1.392247286 | AJ98: 0.0637952 | AK98: 1.705339133 | AL98: 0.0637952 | AM98: 0.51264 | AN98: 0.2593438438 | AO98: 0.0001056 | AP98: =CHOOSE(Ext_VCC, (Qg_Q1+Qg_Q2)*Fsw*'Design Regulator'!$G$102, (Qg_Q1+Qg_Q2)*Fsw*Vout, (Qg_Q1+Qg_Q2)*Fsw*Vin) -> 0.13632 | AQ98: 0.1275818182 | AR98: 0.12212 | AS98: 0.1364256 | AT98: 4.115052347 | AU98: 3.142691796 | AV98: 23.496 | AW98: 0.8509635817 | AX98: 15.94251395 | AY98: 28.11765499 | BA98: 85.09635817 | BB98: 0.7082693879 | BC98: 2.942470996 | BD98: 1.062834264 | BE98: 1.874510333 | BF98: 0.2593438438 | BG98: 3.078896596 | BH98: 60.34637329
G99: 90 | H99: 48 | I99: 1 | J99: 7.2 | K99: 7.2 | L99: 0.55 | M99: 0.07448703833 | N99: 3.756909524 | O99: 9.078454762 | P99: 5.321545238 | Q99: 0 | R99: 7.281222248 | S99: 0.2014615502 | T99: 0.5 | U99: 0.7129521458 | V99: 1.084526363 | W99: 0.001176197431 | X99: 0.001176197431 | Y99: 1.911771106 | Z99: 0.003654868761 | AA99: 0.003654868761 | AB99: 1.987214012 | AC99: 0.1579607812 | AD99: 0.55296 | AE99: 0.01152 | AF99: 0 | AG99: 0.7346251879 | AH99: 7.004796778 | AI99: 1.422948159 | AJ99: 0.064512 | AK99: 1.748738386 | AL99: 0.064512 | AM99: 0.5184 | AN99: 0.2650809872 | AO99: 0.0001056 | AP99: =CHOOSE(Ext_VCC, (Qg_Q1+Qg_Q2)*Fsw*'Design Regulator'!$G$102, (Qg_Q1+Qg_Q2)*Fsw*Vout, (Qg_Q1+Qg_Q2)*Fsw*Vin) -> 0.13632 | AQ99: 0.1275818182 | AR99: 0.12212 | AS99: 0.1364256 | AT99: 4.185565373 | AU99: 3.202701174 | AV99: 23.76 | AW99: 0.8502243445 | AX99: 16.15153782 | AY99: 28.79715579 | BA99: 85.02243445 | BB99: 0.7129521458 | BC99: 3.001763574 | BD99: 1.076769188 | BE99: 1.919810386 | BF99: 0.2650809872 | BG99: 3.138189174 | BH99: 61.50850781
G100: 91 | H100: 48 | I100: 1 | J100: 7.28 | K100: 7.28 | L100: 0.5561111111 | M100: 0.07455084127 | N100: 3.75983071 | O100: 9.159915355 | P100: 5.400084645 | Q100: 0 | R100: 7.360463793 | S100: 0.2058704235 | T100: 0.5 | U100: 0.7176905237 | V100: 1.085369636 | W100: 0.001178027248 | X100: 0.001178027248 | Y100: 1.933337779 | Z100: 0.003737794967 | AA100: 0.003737794967 | AB100: 2.00970103 | AC100: 0.1615559291 | AD100: 0.559104 | AE100: 0.01152 | AF100: 0 | AG100: 0.7448144949 | AH100: 7.080785904 | AI100: 1.453988342 | AJ100: 0.0652288 | AK100: 1.792943654 | AL100: 0.0652288 | AM100: 0.52416 | AN100: 0.2708821362 | AO100: 0.0001056 | AP100: =CHOOSE(Ext_VCC, (Qg_Q1+Qg_Q2)*Fsw*'Design Regulator'!$G$102, (Qg_Q1+Qg_Q2)*Fsw*Vout, (Qg_Q1+Qg_Q2)*Fsw*Vin) -> 0.13632 | AQ100: 0.1275818182 | AR100: 0.12212 | AS100: 0.1364256 | AT100: 4.257061032 | AU100: 3.263572549 | AV100: 24.024 | AW100: 0.8494730793 | AX100: 16.36140142 | AY100: 29.48874682 | BA100: 84.94730793 | BB100: 0.7176905237 | BC100: 3.061918149 | BD100: 1.090760095 | BE100: 1.965916454 | BF100: 0.2708821362 | BG100: 3.198343749 | BH100: 62.68753749
G101: 92 | H101: 48 | I101: 1 | J101: 7.36 | K101: 7.36 | L101: 0.5622222222 | M101: 0.07461464547 | N101: 3.762751453 | O101: 9.241375727 | P101: 5.478624273 | Q101: 0 | R101: 7.439721649 | S101: 0.2103279412 | T101: 0.5 | U101: 0.7224846377 | V101: 1.086212782 | W101: 0.001179858208 | X101: 0.001179858208 | Y101: 1.954924718 | Z101: 0.003821730654 | AA101: 0.003821730654 | AB101: 2.032210669 | AC101: 0.1651952081 | AD101: 0.565248 | AE101: 0.01152 | AF101: 0 | AG101: 0.7550601006 | AH101: 7.156785452 | AI101: 1.485367762 | AJ101: 0.0659456 | AK101: 1.837969772 | AL101: 0.0659456 | AM101: 0.52992 | AN101: 0.276747291 | AO101: 0.0001056 | AP101: =CHOOSE(Ext_VCC, (Qg_Q1+Qg_Q2)*Fsw*'Design Regulator'!$G$102, (Qg_Q1+Qg_Q2)*Fsw*Vout, (Qg_Q1+Qg_Q2)*Fsw*Vin) -> 0.13632 | AQ101: 0.1275818182 | AR101: 0.12212 | AS101: 0.1364256 | AT101: 4.32955459 | AU101: 3.325321073 | AV101: 24.288 | AW101: 0.8487098338 | AX101: 16.57210951 | AY101: 30.19265058 | BA101: 84.87098338 | BB101: 0.7224846377 | BC101: 3.122949873 | BD101: 1.104807301 | BE101: 2.012843372 | BF101: 0.276747291 | BG101: 3.259375473 | BH101: 63.88375927
G102: 93 | H102: 48 | I102: 1 | J102: 7.44 | K102: 7.44 | L102: 0.5683333333 | M102: 0.07467845096 | N102: 3.765671752 | O102: 9.322835876 | P102: 5.557164124 | Q102: 0 | R102: 7.518995299 | S102: 0.2148341032 | T102: 0.5 | U102: 0.7273346054 | V102: 1.0870558 | W102: 0.001181690312 | X102: 0.001181690312 | Y102: 1.976531781 | Z102: 0.003906677882 | AA102: 0.003906677882 | AB102: 2.054742783 | AC102: 0.1688787162 | AD102: 0.571392 | AE102: 0.01152 | AF102: 0 | AG102: 0.7653623239 | AH102: 7.232794924 | AI102: 1.51708635 | AJ102: 0.0666624 | AK102: 1.883832012 | AL102: 0.0666624 | AM102: 0.53568 | AN102: 0.2826764516 | AO102: 0.0001056 | AP102: =CHOOSE(Ext_VCC, (Qg_Q1+Qg_Q2)*Fsw*'Design Regulator'!$G$102, (Qg_Q1+Qg_Q2)*Fsw*Vout, (Qg_Q1+Qg_Q2)*Fsw*Vin) -> 0.13632 | AQ102: 0.1275818182 | AR102: 0.12212 | AS102: 0.1364256 | AT102: 4.403061761 | AU102: 3.387962336 | AV102: 24.552 | AW102: 0.8479346445 | AX102: 16.78366686 | AY102: 30.90909618 | BA102: 84.79346445 | BB102: 0.7273346054 | BC102: 3.184874336 | BD102: 1.118911124 | BE102: 2.060606412 | BF102: 0.2826764516 | BG102: 3.321299936 | BH102: 65.09747874
G103: 94 | H103: 48 | I103: 1 | J103: 7.52 | K103: 7.52 | L103: 0.5744444444 | M103: 0.07474225772 | N103: 3.768591607 | O103: 9.404295804 | P103: 5.635704196 | Q103: 0 | R103: 7.598284251 | S103: 0.2193889095 | T103: 0.5 | U103: 0.7322405459 | V103: 1.087898689 | W103: 0.001183523558 | X103: 0.001183523558 | Y103: 1.99815883 | Z103: 0.00399263871 | AA103: 0.00399263871 | AB103: 2.077297233 | AC103: 0.1726065518 | AD103: 0.577536 | AE103: 0.01152 | AF103: 0 | AG103: 0.7757214859 | AH103: 7.308813841 | AI103: 1.549144033 | AJ103: 0.0673792 | AK103: 1.9305461 | AL103: 0.0673792 | AM103: 0.54144 | AN103: 0.2886696178 | AO103: 0.0001056 | AP103: =CHOOSE(Ext_VCC, (Qg_Q1+Qg_Q2)*Fsw*'Design Regulator'!$G$102, (Qg_Q1+Qg_Q2)*Fsw*Vout, (Qg_Q1+Qg_Q2)*Fsw*Vin) -> 0.13632 | AQ103: 0.1275818182 | AR103: 0.12212 | AS103: 0.1364256 | AT103: 4.477598712 | AU103: 3.451512386 | AV103: 24.816 | AW103: 0.847147537 | AX103: 16.99607829 | AY103: 31.6383195 | BA103: 84.7147537 | BB103: 0.7322405459 | BC103: 3.247707586 | BD103: 1.133071886 | BE103: 2.1092213 | BF103: 0.2886696178 | BG103: 3.384133186 | BH103: 66.32901045
G104: 95 | H104: 48 | I104: 1 | J104: 7.6 | K104: 7.6 | L104: 0.5805555556 | M104: 0.07480606576 | N104: 3.771511019 | O104: 9.485755509 | P104: 5.714244491 | Q104: 0 | R104: 7.677588029 | S104: 0.2239923602 | T104: 0.5 | U104: 0.7372025799 | V104: 1.088741451 | W104: 0.001185357947 | X104: 0.001185357947 | Y104: 2.019805732 | Z104: 0.004079615196 | AA104: 0.004079615196 | AB104: 2.099873883 | AC104: 0.1763788129 | AD104: 0.58368 | AE104: 0.01152 | AF104: 0 | AG104: 0.7861379104 | AH104: 7.384841747 | AI104: 1.581540741 | AJ104: 0.068096 | AK104: 1.978128232 | AL104: 0.068096 | AM104: 0.5472 | AN104: 0.2947267897 | AO104: 0.0001056 | AP104: =CHOOSE(Ext_VCC, (Qg_Q1+Qg_Q2)*Fsw*'Design Regulator'!$G$102, (Qg_Q1+Qg_Q2)*Fsw*Vout, (Qg_Q1+Qg_Q2)*Fsw*Vin) -> 0.13632 | AQ104: 0.1275818182 | AR104: 0.12212 | AS104: 0.1364256 | AT104: 4.553182085 | AU104: 3.515987742 | AV104: 25.08 | AW104: 0.8463485267 | AX104: 17.20934866 | AY104: 32.38056348 | BA104: 84.63485267 | BB104: 0.7372025799 | BC104: 3.311466142 | BD104: 1.14728991 | BE104: 2.158704232 | BF104: 0.2947267897 | BG104: 3.447891742 | BH104: 67.57867815
G105: 96 | H105: 48 | I105: 1 | J105: 7.68 | K105: 7.68 | L105: =Vout*K105/(Vin*Efficiency) -> 0.5866666667 | M105: 0.07486987508 | N105: =(Vin-(Rdson1+Rdcr)*K105-Vout)*M105/(Fsw*Lf) -> 3.774429986 | O105: 9.567214993 | P105: 5.792785007 | Q105: =IF(MIN(Vin, -P105/(Coss_Q1+Coss_Q2)*0.00000002)<0, 0, MIN(Vin, -P105/(Coss_Q1+Coss_Q2)*0.00000002)) -> 0 | R105: 7.756906179 | S105: =R105^2*Rdcr -> 0.2286444552 | T105: 0.5 | U105: =(T105+S105*(1+Ltc*(Ta-25)))/(1-S105*Ltc*ThetaCa) -> 0.7422208294 | V105: 1.089584084 | W105: 0.001187193477 | X105: 0.001187193477 | Y105: 2.041472361 | Z105: 0.0041676094 | AA105: 0.0041676094 | AB105: 2.122472602 | AC105: =Rdson1*AB105^2 -> 0.1801955979 | AD105: 0.589824 | AE105: 0.01152 | AF105: 0 | AG105: =(AF105+AE105+AD105+AC105*(1+RdsonTopTc*Ta-RdsonTopTc*25))/(1-AC105*RdsonTopTc*ThetaJA_Q1) -> 0.7966119239 | AH105: 7.460878201 | AI105: =Rdson2*AH105^2 -> 1.614276402 | AJ105: 0.0688128 | AK105: =(AJ105+AI105*(1+RdsonBotTc*Ta-RdsonBotTc*25))/(1-AI105*RdsonBotTc*ThetaJA_Q2) -> 2.026595088 | AL105: 0.0688128 | AM105: 0.55296 | AN105: 0.3008479674 | AO105: 0.0001056 | AP105: =CHOOSE(Ext_VCC, (Qg_Q1+Qg_Q2)*Fsw*'Design Regulator'!$G$102, (Qg_Q1+Qg_Q2)*Fsw*Vout, (Qg_Q1+Qg_Q2)*Fsw*Vin) -> 0.13632 | AQ105: 0.1275818182 | AR105: 0.12212 | AS105: 0.1364256 | AT105: =SUM(U105,X105,AA105,AG105,AK105,AL105,AM105,AS105,AN105) -> 4.629829012 | AU105: 3.581405412 | AV105: 25.344 | AW105: 0.8455376185 | AX105: 17.42348286 | AY105: 33.13607832 | BA105: 84.55376185 | BB105: 0.7422208294 | BC105: 3.376167012 | BD105: 1.161565524 | BE105: 2.209071888 | BF105: 0.3008479674 | BG105: 3.512592612 | BH105: 68.8468152
G106: 97 | H106: 48 | I106: 1 | J106: 7.76 | K106: 7.76 | L106: =Vout*K106/(Vin*Efficiency) -> 0.5927777778 | M106: 0.07493368568 | N106: =(Vin-(Rdson1+Rdcr)*K106-Vout)*M106/(Fsw*Lf) -> 3.77734851 | O106: 9.648674255 | P106: 5.871325745 | Q106: =IF(MIN(Vin, -P106/(Coss_Q1+Coss_Q2)*0.00000002)<0, 0, MIN(Vin, -P106/(Coss_Q1+Coss_Q2)*0.00000002)) -> 0 | R106: 7.836238265 | S106: =R106^2*Rdcr -> 0.2333451946 | T106: 0.5 | U106: =(T106+S106*(1+Ltc*(Ta-25)))/(1-S106*Ltc*ThetaCa) -> 0.7472954181 | V106: 1.09042659 | W106: 0.001189030147 | X106: 0.001189030147 | Y106: 2.063158593 | Z106: 0.004256623378 | AA106: 0.004256623378 | AB106: 2.145093266 | AC106: =Rdson1*AB106^2 -> 0.1840570049 | AD106: 0.595968 | AE106: 0.01152 | AF106: 0 | AG106: =(AF106+AE106+AD106+AC106*(1+RdsonTopTc*Ta-RdsonTopTc*25))/(1-AC106*RdsonTopTc*ThetaJA_Q1) -> 0.8071438553 | AH106: 7.536922782 | AI106: =Rdson2*AH106^2 -> 1.647350946 | AJ106: 0.0695296 | AK106: =(AJ106+AI106*(1+RdsonBotTc*Ta-RdsonBotTc*25))/(1-AI106*RdsonBotTc*ThetaJA_Q2) -> 2.075963852 | AL106: 0.0695296 | AM106: 0.55872 | AN106: 0.3070331507 | AO106: 0.0001056 | AP106: =CHOOSE(Ext_VCC, (Qg_Q1+Qg_Q2)*Fsw*'Design Regulator'!$G$102, (Qg_Q1+Qg_Q2)*Fsw*Vout, (Qg_Q1+Qg_Q2)*Fsw*Vin) -> 0.13632 | AQ106: 0.1275818182 | AR106: 0.12212 | AS106: 0.1364256 | AT106: 4.70755713 | AU106: 3.647782908 | AV106: 25.608 | AW106: 0.8447148073 | AX106: 17.63848583 | AY106: 33.90512179 | BA106: 84.47148073 | BB106: 0.7472954181 | BC106: 3.441827708 | BD106: 1.175899055 | BE106: 2.260341452 | BF106: 0.3070331507 | BG106: 3.578253308 | BH106: 70.13376483
G107: 98 | H107: 48 | I107: 1 | J107: 7.84 | K107: 7.84 | L107: =Vout*K107/(Vin*Efficiency) -> 0.5988888889 | M107: 0.07499749755 | N107: =(Vin-(Rdson1+Rdcr)*K107-Vout)*M107/(Fsw*Lf) -> 3.780266591 | O107: 9.730133295 | P107: 5.949866705 | Q107: =IF(MIN(Vin, -P107/(Coss_Q1+Coss_Q2)*0.00000002)<0, 0, MIN(Vin, -P107/(Coss_Q1+Coss_Q2)*0.00000002)) -> 0 | R107: 7.915583867 | S107: =R107^2*Rdcr -> 0.2380945782 | T107: 0.5 | U107: =(T107+S107*(1+Ltc*(Ta-25)))/(1-S107*Ltc*ThetaCa) -> 0.7524264713 | V107: 1.091268967 | W107: 0.001190867958 | X107: 0.001190867958 | Y107: 2.084864309 | Z107: 0.004346659189 | AA107: 0.004346659189 | AB107: 2.167735755 | AC107: =Rdson1*AB107^2 -> 0.1879631321 | AD107: 0.602112 | AE107: 0.01152 | AF107: 0 | AG107: =(AF107+AE107+AD107+AC107*(1+RdsonTopTc*Ta-RdsonTopTc*25))/(1-AC107*RdsonTopTc*ThetaJA_Q1) -> 0.8177340364 | AH107: 7.612975086 | AI107: =Rdson2*AH107^2 -> 1.6807643 | AJ107: 0.0702464 | AK107: =(AJ107+AI107*(1+RdsonBotTc*Ta-RdsonBotTc*25))/(1-AI107*RdsonBotTc*ThetaJA_Q2) -> 2.126252228 | AL107: 0.0702464 | AM107: 0.56448 | AN107: 0.3132823398 | AO107: 0.0001056 | AP107: =CHOOSE(Ext_VCC, (Qg_Q1+Qg_Q2)*Fsw*'Design Regulator'!$G$102, (Qg_Q1+Qg_Q2)*Fsw*Vout, (Qg_Q1+Qg_Q2)*Fsw*Vin) -> 0.13632 | AQ107: 0.1275818182 | AR107: 0.12212 | AS107: 0.1364256 | AT107: 4.786384603 | AU107: 3.715138264 | AV107: 25.872 | AW107: 0.8438800783 | AX107: 17.85436255 | AY107: 34.68795942 | BA107: 84.38800783 | BB107: 0.7524264713 | BC107: 3.508466264 | BD107: 1.190290836 | BE107: 2.312530628 | BF107: 0.3132823398 | BG107: 3.644891864 | BH107: 71.43988054
G108: 99 | H108: 48 | I108: 1 | J108: 7.92 | K108: 7.92 | L108: =Vout*K108/(Vin*Efficiency) -> 0.605 | M108: 0.0750613107 | N108: =(Vin-(Rdson1+Rdcr)*K108-Vout)*M108/(Fsw*Lf) -> 3.783184227 | O108: 9.811592113 | P108: 6.028407887 | Q108: =IF(MIN(Vin, -P108/(Coss_Q1+Coss_Q2)*0.00000002)<0, 0, MIN(Vin, -P108/(Coss_Q1+Coss_Q2)*0.00000002)) -> 0 | R108: 7.994942583 | S108: =R108^2*Rdcr -> 0.2428926063 | T108: 0.5 | U108: =(T108+S108*(1+Ltc*(Ta-25)))/(1-S108*Ltc*ThetaCa) -> 0.7576141156 | V108: 1.092111216 | W108: 0.001192706908 | X108: 0.001192706908 | Y108: 2.106589397 | Z108: 0.004437718888 | AA108: 0.004437718888 | AB108: 2.19039995 | AC108: =Rdson1*AB108^2 -> 0.1919140777 | AD108: 0.608256 | AE108: 0.01152 | AF108: 0 | AG108: =(AF108+AE108+AD108+AC108*(1+RdsonTopTc*Ta-RdsonTopTc*25))/(1-AC108*RdsonTopTc*ThetaJA_Q1) -> 0.8283828015 | AH108: 7.689034723 | AI108: =Rdson2*AH108^2 -> 1.714516394 | AJ108: 0.0709632 | AK108: =(AJ108+AI108*(1+RdsonBotTc*Ta-RdsonBotTc*25))/(1-AI108*RdsonBotTc*ThetaJA_Q2) -> 2.177478458 | AL108: 0.0709632 | AM108: 0.57024 | AN108: 0.3195955345 | AO108: 0.0001056 | AP108: =CHOOSE(Ext_VCC, (Qg_Q1+Qg_Q2)*Fsw*'Design Regulator'!$G$102, (Qg_Q1+Qg_Q2)*Fsw*Vout, (Qg_Q1+Qg_Q2)*Fsw*Vin) -> 0.13632 | AQ108: 0.1275818182 | AR108: 0.12212 | AS108: 0.1364256 | AT108: 4.866330135 | AU108: 3.783490059 | AV108: 26.136 | AW108: 0.843033407 | AX108: 18.07111802 | AY108: 35.48486487 | BA108: 84.3033407 | BB108: 0.7576141156 | BC108: 3.576101259 | BD108: 1.204741201 | BE108: 2.365657658 | BF108: 0.3195955345 | BG108: 3.712526859 | BH108: 72.76552644
G109: 100 | H109: 48 | I109: 1 | J109: 8 | K109: 8 | L109: =Vout*K109/(Vin*Efficiency) -> 0.6111111111 | M109: 0.07512512513 | N109: =(Vin-(Rdson1+Rdcr)*K109-Vout)*M109/(Fsw*Lf) -> 3.78610142 | O109: 9.89305071 | P109: 6.10694929 | Q109: =IF(MIN(Vin, -P109/(Coss_Q1+Coss_Q2)*0.00000002)<0, 0, MIN(Vin, -P109/(Coss_Q1+Coss_Q2)*0.00000002)) -> 0 | R109: 8.074314026 | S109: =R109^2*Rdcr -> 0.2477392786 | T109: 0.5 | U109: =(T109+S109*(1+Ltc*(Ta-25)))/(1-S109*Ltc*ThetaCa) -> 0.7628584793 | V109: 1.092953337 | W109: 0.001194546997 | X109: 0.001194546997 | Y109: 2.128333745 | Z109: 0.004529804532 | AA109: 0.004529804532 | AB109: 2.213085742 | AC109: =Rdson1*AB109^2 -> 0.19590994 | AD109: 0.6144 | AE109: 0.01152 | AF109: 0 | AG109: =(AF109+AE109+AD109+AC109*(1+RdsonTopTc*Ta-RdsonTopTc*25))/(1-AC109*RdsonTopTc*ThetaJA_Q1) -> 0.8390904876 | AH109: 7.765101319 | AI109: =Rdson2*AH109^2 -> 1.748607156 | AJ109: 0.07168 | AK109: =(AJ109+AI109*(1+RdsonBotTc*Ta-RdsonBotTc*25))/(1-AI109*RdsonBotTc*ThetaJA_Q2) -> 2.229661343 | AL109: 0.07168 | AM109: 0.576 | AN109: 0.325972735 | AO109: 0.0001056 | AP109: =CHOOSE(Ext_VCC, (Qg_Q1+Qg_Q2)*Fsw*'Design Regulator'!$G$102, (Qg_Q1+Qg_Q2)*Fsw*Vout, (Qg_Q1+Qg_Q2)*Fsw*Vin) -> 0.13632 | AQ109: 0.1275818182 | AR109: 0.12212 | AS109: 0.1364256 | AT109: 4.947412997 | AU109: 3.852857431 | AV109: 26.4 | AW109: 0.8421747594 | AX109: 18.28875731 | AY109: 36.29612015 | BA109: 84.21747594 | BB109: 0.7628584793 | BC109: 3.644751831 | BD109: 1.219250488 | BE109: 2.419741343 | BF109: 0.325972735 | BG109: 3.781177431 | BH109: 74.11107765

Sheet Bode Plot Management (hidden)
J1: Single or dual output (MODE) | N1: 3.3V or 5V fixed (FB1/2)
A2: =CHOOSE(BODE_PLOT_TYPE, "BODE_PLOT_Ch1", "BODE_PLOT_Ch2") -> BODE_PLOT_Ch1 | J2: With/without dither (DITH) | N2: With/without VOUT connected to VCCX
J3: FPWM or DEM (DEMB)
J4: Shunt or inductor DCR current sensing
F6: =INDIRECT(A2) -> 0

Sheet Stability Calculations (hidden)
A2: Divider Network & EA Poles/Zeros | E2: Modulator | J2: Power Stage Poles/Zeros | M2: Complex Pole Pair | P2: Feedback natural frequencies | T2: Total System
B3: Afb1 | C3: =Afb -> 0.2401200383 | D3: V/V | E3: Acs | F3: =Acs -> 20 | G3: A/V | H3: gm | I3: =gm -> 3e-05 | J3: z_ESR | K3: =Fesr -> 489707.5178 | L3: Hz | M3: p3 | N3: =Fsw/2 -> 200000 | O3: Hz | P3: zterm1 | Q3: =((1/wffHz)+(1/wfftHz)) -> 5.810941093e-06 | T3: Adc | U3: =IF(VOUT_setting=1,Am*Afb*AEA,Am*AEA) -> 12769.12941 | V3: V/V
B4: EA zero, z1 | C4: =Fz1_u -> 7957.747164 | D4: Hz | E4: Am | F4: =Am -> 6.650588236 | G4: V/V | J4: p_dom | K4: =Fp_dominant -> 1472.674297 | L4: Hz | M4: pterm1 | N4: =Q*pole3 -> 124085.5408 | P4: pterm3 | Q4: =((1/wfbtHz)+(1/wffHz)+(1/wfftHz)+(Afbr/wffHz)) -> 4.051403657e-05 | T4: Crossover | U4: =AI7 -> 28.0235 | V4: kHz
B5: EA pole, p1 | C5: =Fp1_u -> 49.42700102 | D5: Hz | E5: Q | F5: =Q -> 0.6204277041 | M5: pterm2 | N5: =pole3^2 -> 40000000000 | P5: pterm4 | Q5: =1/(wffHz*wfbtHz) -> 1.593743715e-12 | T5: Phase Margin | U5: =AI9 -> 54.31801907 | V5: ° | AH5: Gain | AK5: Phase
B6: Aea | C6: =AEA -> 1920 | D6: V/V | E6: mc | F6: =mc -> 1.089485459 | P6: Afbr | Q6: =Rfb1_/Rfb2_u -> 3.156565657 | T6: radconv | U6: =180/Pi -> 57.29577958 | AH6: XOVER SEARCH | AK6: XOVER SEARCH
B7: EA pole, p2 | C7: =Fp2_u -> 221568.6381 | D7: Hz | E7: k | F7: =k -> 1.013049118 | T7: Gain Margin | U7: =AL9 -> -17.51257853 | AH7: xover | AI7: =SUM(AH12:AH613)/1000 -> 28.0235 | AK7: Phase xover | AL7: =SUM(AK12:AK613)/1000 -> 126.03
AH9: phase margin | AI9: =SUM(AI13:AI613) -> 54.31801907 | AK9: gain margin | AL9: =SUM(AL13:AL613) -> -17.51257853
A10: Freq (Hz) | C10: Power Stage | I10: Error Amplifier | O10: Feedback Gain | S10: Sampling Double Pole | U10: System Response | AB10: ERROR AMP Response | AE10: PLANT Response
C11: p_dom | E11: z_ESR | G11: z_RHP | I11: p1 | K11: z1 | M11: p2 | O11: z1 | Q11: p1p2 | S11: p3
C12: Gain(V/V) | D12: Phase(rad) | E12: Gain(V/V) | F12: Phase(rad) | G12: Gain(V/V) | H12: Phase(rad) | I12: Gain(V/V) | J12: Phase(rad) | K12: Gain(V/V) | L12: Phase(rad) | M12: Gain(V/V) | N12: Phase(rad) | O12: Gain(V/V) | P12: Phase(rad) | Q12: Gain(V/V) | R12: Phase(rad) | S12: Gain(V/V) | T12: Phase(rad) | U12: Gain (dB) | V12: Phase (°) | W12: Phase Margin (°) | Z12: Fsquare | AB12: Gain(dB) | AC12: Phase(Deg) | AE12: Gain(dB) | AF12: Phase(Deg)
A13: 1 | B13: =A13/1000 -> 0.001 | C13: =SQRT(1+(A13/pole1)^2) -> 1.000000231 | D13: =ATAN(A13/pole1) -> 0.000679036667 | E13: =SQRT(1+(A13/Zero1)^2) -> 1 | F13: =ATAN(A13/Zero1) -> 2.042035222e-06 | G13: =IF(VIN_nom>Vout, 1, SQRT(1+(A13/z_RHP)^2)) -> 1 | H13: =IF(VIN_nom>Vout, 0, -ATAN(A13/z_RHP)) -> 0 | I13: =SQRT(1+(A13/Pole2)^2) -> 1.000204643 | J13: =ATAN(A13/Pole2) -> 0.02022909686 | K13: =SQRT(1+(A13/Zero2)^2) -> 1.000000008 | L13: =ATAN(A13/Zero2) -> 0.0001256637053 | M13: =SQRT(1+(A13/pole4)^2) -> 1 | N13: =ATAN(A13/pole4) -> 4.51327412e-06 | O13: =IF(VOUT_setting=1,1,SQRT(1+(A13*zterm1)^2)) -> 1 | P13: =IF(VOUT_setting=1,0,ATAN(((A13*zterm1)))) -> 5.810941093e-06 | Q13: =IF(VOUT_setting=1,1,SQRT((1+Afbr-pterm4*(A13)^2)^2+(A13*$Q$4)^2)) -> 4.156565657 | R13: =IF(VOUT_setting=1,0,ATAN(A13*$Q$4/(1+Afbr-$Q$5*(A13)^2))) -> 9.746997862e-06 | S13: =SQRT((1-(Z13/pterm2))^2+(A13/pterm1)^2) -> 1 | T13: =IF((ATAN((A13/pterm1)/(1-A13^2/pterm2))>0),ATAN((A13/pterm1)/(1-A13^2/pterm2)),PI()+ATAN((A13/pterm1)/(1-A13^2/pterm2))) -> 8.058956695e-06 | U13: =20*LOG10(((E13*K13*G13*O13)/(C13*I13*S13*M13*Q13))*Adc) -> 69.74675361 | V13: =((F13+L13+H13+P13)-(D13+J13+T13+N13+R13))*radconv -> -1.191576665 | W13: =IF(V13>0,V13,V13+180) -> 178.8084233 | Y13: =IF(U13<0,A13,1000000000) -> 1000000000 | Z13: =A13^2 -> 1 | AB13: =20*LOG10((K13/(I13*M13))*AEA) -> 65.66424732 | AC13: =(L13-(J13+N13))*radconv -> -1.152100466 | AE13: =20*LOG10((E13*G13/(C13*S13))*Acs*Am) -> 42.47779911 | AF13: =(F13+H13-(D13+T13))*radconv -> -0.03925067941 | AH13: =SUM((U14<0)*(U13>0))*A13 -> 0 | AI13: =IF(AH13>0,W11,0) -> 0 | AK13: =SUM((V14<-182)*(V13>-182))*A13 -> 0 | AL13: =IF(AK13>0,U13,0) -> 0
A14: 1.0965 | B14: =A14/1000 -> 0.0010965 | C14: 1.000000277 | D14: 0.0007445636822 | E14: 1 | F14: 2.239091621e-06 | G14: 1 | H14: 0 | I14: 1.00024604 | J14: 0.02218059266 | K14: 1.000000009 | L14: 0.0001377902528 | M14: 1 | N14: 4.948805073e-06 | O14: 1 | P14: 6.371696908e-06 | Q14: =IF(VOUT_setting=1,1,SQRT((1+Afbr-pterm4*(A14)^2)^2+(A14*$Q$4)^2)) -> 4.156565657 | R14: 1.068758316e-05 | S14: 1 | T14: 8.836646016e-06 | U14: 69.74639373 | V14: -1.306528744 | W14: 178.6934713 | Y14: 1000000000 | Z14: 1.20231225 | AB14: 65.66388784 | AC14: -1.263243094 | AE14: 42.4777987 | AF14: -0.04303836864 | AH14: 0 | AI14: 0 | AK14: =SUM((V15<-183)*(V14>-183))*A14 -> 0 | AL14: =IF(AK14>0,U14,0) -> 0
A15: 1.2023 | B15: 0.0012023 | C15: 1.000000333 | D15: 0.0008164057289 | E15: 1 | F15: 2.455138948e-06 | G15: 1 | H15: 0 | I15: 1.000295803 | J15: 0.02431996537 | K15: 1.000000011 | L15: 0.0001510854726 | M15: 1 | N15: 5.426309474e-06 | O15: 1 | P15: 6.986494476e-06 | Q15: =IF(VOUT_setting=1,1,SQRT((1+Afbr-$Q$5*(A15)^2)^2+(A15*$Q$4)^2)) -> 4.156565657 | R15: 1.171881553e-05 | S15: 1 | T15: 9.689283635e-06 | U15: 69.74596114 | V15: -1.43254795 | W15: 178.567452 | Y15: 1000000000 | Z15: 1.44552529 | AB15: 65.66345574 | AC15: -1.38508572 | AE15: 42.47779821 | AF15: -0.04719108865 | AH15: 0 | AI15: 0 | AK15: 0 | AL15: 0
A16: 1.3183 | B16: 0.0013183 | C16: 1.000000401 | D16: 0.0008951739366 | E16: 1 | F16: 2.692015034e-06 | G16: 1 | H16: 0 | I16: 1.000355625 | J16: 0.0266653348 | K16: 1.000000014 | L16: 0.0001656624621 | M16: 1 | N16: 5.949849272e-06 | O16: 1 | P16: 7.660563643e-06 | Q16: 4.156565657 | R16: 1.284946728e-05 | S16: 1 | T16: 1.062412261e-05 | U16: 69.74544114 | V16: -1.570701754 | W16: 178.4292982 | Y16: 1000000000 | Z16: 1.73791489 | AB16: 65.66293632 | AC16: -1.518660287 | AE16: 42.47779763 | AF16: -0.05174416484 | AH16: 0 | AI16: 0 | AK16: 0 | AL16: 0
A17: 1.4454 | B17: 0.0014454 | C17: 1.000000482 | D17: 0.0009814794342 | E17: 1 | F17: 2.951557711e-06 | G17: 1 | H17: 0 | I17: 1.000427489 | J17: 0.02923479405 | K17: 1.000000016 | L17: 0.0001816343187 | M17: 1 | N17: 6.523486413e-06 | O17: 1 | P17: 8.399134255e-06 | Q17: 4.156565657 | R17: 1.408831071e-05 | S17: 1 | T17: 1.164841601e-05 | U17: 69.7448165 | V17: -1.722056092 | W17: 178.2779439 | Y17: 1000000000 | Z17: 2.08918116 | AB17: 65.66231239 | AC17: -1.664997204 | AE17: 42.47779693 | AF17: -0.0567329226 | AH17: 0 | AI17: 0 | AK17: 0 | AL17: 0
A18: 1.5849 | B18: 0.0015849 | C18: 1.000000579 | D18: 0.001076204963 | E18: 1 | F18: 3.236421624e-06 | G18: 1 | H18: 0 | I18: 1.000513965 | J18: 0.03205448656 | K18: 1.00000002 | L18: 0.000199164405 | M18: 1 | N18: 7.153088153e-06 | O18: 1 | P18: 9.209760538e-06 | Q18: 4.156565657 | R18: 1.544801691e-05 | S18: 1 | T18: 1.277264047e-05 | U18: 69.74406491 | V18: -1.888151172 | W18: 178.1118488 | Y18: 1000000000 | Z18: 2.51190801 | AB18: 65.66156165 | AC18: -1.825585358 | AE18: 42.47779608 | AF18: -0.06220838746 | AH18: 0 | AI18: 0 | AK18: 0 | AL18: 0
A19: 1.7378 | B19: 0.0017378 | C19: 1.000000696 | D19: 0.001180029554 | E19: 1 | F19: 3.54864881e-06 | G19: 1 | H19: 0 | I19: 1.000617884 | J19: 0.03514444402 | K19: 1.000000024 | L19: 0.0002183783848 | M19: 1 | N19: 7.843167766e-06 | O19: 1 | P19: 1.009825343e-05 | Q19: 4.156565657 | R19: 1.693833288e-05 | S19: 1 | T19: 1.400485495e-05 | U19: 69.74316181 | V19: -2.070167256 | W19: 177.9298327 | Y19: 1000000000 | Z19: 3.01994884 | AB19: 65.66065957 | AC19: -2.001565539 | AE19: 42.47779506 | AF19: -0.06820980968 | AH19: 0 | AI19: 0 | AK19: 0 | AL19: 0
A20: 1.9055 | B20: 0.0019055 | C20: 1.000000837 | D20: 0.001293903846 | E20: 1 | F20: 3.891098116e-06 | G20: 1 | H20: 0 | I20: 1.000742845 | J20: 0.03853272079 | K20: 1.000000029 | L20: 0.0002394521872 | M20: 1 | N20: 8.600043835e-06 | O20: 1 | P20: 1.107274825e-05 | Q20: 4.156565657 | R20: 1.857290442e-05 | S20: 1 | T20: 1.535634198e-05 | U20: 69.74207597 | V20: -2.269757291 | W20: 177.7302427 | Y20: 1000000000 | Z20: 3.63093025 | AB20: 65.65957495 | AC20: -2.194535424 | AE20: 42.47779384 | AF20: -0.07479213963 | AH20: 0 | AI20: 0 | AK20: 0 | AL20: 0
A21: 2.0893 | B21: 0.0020893 | C21: 1.000001006 | D21: 0.001418710575 | E21: 1 | F21: 4.26642419e-06 | G21: 1 | H21: 0 | I21: 1.000892995 | J21: 0.04224526899 | K21: 1.000000034 | L21: 0.0002625491749 | M21: 1 | N21: 9.429583619e-06 | O21: 1 | P21: 1.214079922e-05 | Q21: 4.156565657 | R21: 2.036440263e-05 | S21: 1 | T21: 1.683757822e-05 | U21: 69.74077143 | V21: -2.488450516 | W21: 177.5115495 | Y21: 1000000000 | Z21: 4.36517449 | AB21: 65.65827187 | AC21: -2.405972936 | AE21: 42.47779237 | AF21: -0.08200640244 | AH21: 0 | AI21: 0 | AK21: 0 | AL21: 0
A22: 2.2909 | B22: 0.0022909 | C22: 1.00000121 | D22: 0.001555604085 | E22: 1 | F22: 4.678098491e-06 | G22: 1 | H22: 0 | I22: 1.001073546 | J22: 0.04631601337 | K22: 1.000000041 | L22: 0.0002878829761 | M22: 1 | N22: 1.033945968e-05 | O22: 1 | P22: 1.331228495e-05 | Q22: 4.156565658 | R22: 2.23293974e-05 | S22: 1 | T22: 1.846226389e-05 | U22: 69.73920302 | V22: -2.728245987 | W22: 177.271754 | Y22: 1000000000 | Z22: 5.24822281 | AB22: 65.65670523 | AC22: -2.637810021 | AE22: 42.4777906 | AF22: -0.08991932325 | AH22: 0 | AI22: 0 | AK22: 0 | AL22: 0
A23: 2.5119 | B23: 0.0025119 | C23: 1.000001455 | D23: 0.001705670812 | E23: 1 | F23: 5.129388275e-06 | G23: 1 | H23: 0 | I23: 1.001290524 | J23: 0.05077671693 | K23: 1.00000005 | L23: 0.0003156546526 | M23: 1 | N23: 1.133689326e-05 | O23: 1 | P23: 1.459650293e-05 | Q23: 4.156565658 | R23: 2.448348393e-05 | S23: 1 | T23: 2.024329332e-05 | U23: 69.73731854 | V23: -2.991015642 | W23: 177.0089844 | Y23: 1000000000 | Z23: 6.30964161 | AB23: 65.65482289 | AC23: -2.891855458 | AE23: 42.47778847 | AF23: -0.09859370185 | AH23: 0 | AI23: 0 | AK23: 0 | AL23: 0
A24: 2.7542 | B24: 0.0027542 | C24: 1.000001749 | D24: 0.001870200895 | E24: 1 | F24: 5.62417341e-06 | G24: 1 | H24: 0 | I24: 1.0015513 | J24: 0.05566501386 | K24: 1.00000006 | L24: 0.0003461029652 | M24: 1 | N24: 1.243045958e-05 | O24: 1 | P24: 1.600449396e-05 | Q24: 4.156565658 | R24: 2.684518151e-05 | S24: 1 | T24: 2.219597853e-05 | U24: 69.73505422 | V24: -3.278977576 | W24: 176.7210224 | Y24: 1000000000 | Z24: 7.58561764 | AB24: 65.65256112 | AC24: -3.170252338 | AE24: 42.47778592 | AF24: -0.1081041128 | AH24: 0 | AI24: 0 | AK24: 0 | AL24: 0
A25: 3.02 | B25: 0.00302 | C25: 1.000002103 | D25: 0.002050688175 | E25: 1 | F25: 6.166946372e-06 | G25: 1 | H25: 0 | I25: 1.001864879 | J25: 0.06102434317 | K25: 1.000000072 | L25: 0.0003795043739 | M25: 1 | N25: 1.363008784e-05 | O25: 1 | P25: 1.75490421e-05 | Q25: 4.156565658 | R25: 2.943593354e-05 | S25: 1 | T25: 2.433804922e-05 | U25: 69.73233218 | V25: -3.594692237 | W25: 176.4053078 | Y25: 1000000000 | Z25: 9.1204 | AB25: 65.64984215 | AC25: -3.475474263 | AE25: 42.47778284 | AF25: -0.1185369052 | AH25: 0 | AI25: 0 | AK25: 0 | AL25: 0
A26: 3.3113 | B26: 0.0033113 | C26: 1.000002528 | D26: 0.002248490672 | E26: 1 | F26: 6.761791232e-06 | G26: 1 | H26: 0 | I26: 1.002241569 | J26: 0.06689378975 | K26: 1.000000087 | L26: 0.0004161102057 | M26: 1 | N26: 1.494480459e-05 | O26: 1 | P26: 1.924176924e-05 | Q26: 4.156565659 | R26: 3.227523401e-05 | S26: 1 | T26: 2.668562331e-05 | U26: 69.72906343 | V26: -3.940464088 | W26: 176.0595359 | Y26: 1000000000 | Z26: 10.96470769 | AB26: 65.6465771 | AC26: -3.809746748 | AE26: 42.47777915 | AF26: -0.1299705774 | AH26: 0 | AI26: 0 | AK26: 0 | AL26: 0
A27: 3.6308 | B27: 0.0036308 | C27: 1.000003039 | D27: 0.002465441714 | E27: 1 | F27: 7.414221486e-06 | G27: 1 | H27: 0 | I27: 1.002694396 | J27: 0.0733261239 | K27: 1.000000104 | L27: 0.0004562597521 | M27: 1 | N27: 1.638679567e-05 | O27: 1 | P27: 2.109836492e-05 | Q27: 4.156565659 | R27: 3.538939982e-05 | S27: 1 | T27: 2.926045997e-05 | U27: 69.72513562 | V27: -4.319404487 | W27: 175.6805955 | Y27: 1000000000 | Z27: 13.18270864 | AB27: 65.64265372 | AC27: -4.176074569 | AE27: 42.47777471 | AF27: -0.1425111023 | AH27: 0 | AI27: 0 | AK27: 0 | AL27: 0
A28: 3.9811 | B28: 0.0039811 | C28: 1.000003654 | D28: 0.002703306705 | E28: 1 | F28: 8.129546424e-06 | G28: 1 | H28: 0 | I28: 1.003238508 | J28: 0.08037154067 | K28: 1.000000125 | L28: 0.0005002797382 | M28: 1 | N28: 1.79677956e-05 | O28: 1 | P28: 2.313393758e-05 | Q28: 4.15656566 | R28: 3.880377317e-05 | S28: 1 | T28: 3.20835125e-05 | U28: 69.72041834 | V28: -4.734473981 | W28: 175.265526 | Y28: 1000000000 | Z28: 15.84915721 | AB28: 65.63794179 | AC28: -4.57731564 | AE28: 42.47776937 | AF28: -0.1562605263 | AH28: 0 | AI28: 0 | AK28: 0 | AL28: 0
A29: 4.3652 | B29: 0.0043652 | C29: 1.000004393 | D29: 0.002964122633 | E29: 1 | F29: 8.913892153e-06 | G29: 1 | H29: 0 | I29: 1.003892292 | J29: 0.0880875553 | K29: 1.00000015 | L29: 0.0005485471544 | M29: 1 | N29: 1.970134419e-05 | O29: 1 | P29: 2.536592005e-05 | Q29: 4.15656566 | R29: 4.254759504e-05 | S29: 1 | T29: 3.517895777e-05 | U29: 69.71475362 | V29: -5.189065551 | W29: 174.8109344 | Y29: 1000000000 | Z29: 19.05497104 | AB29: 65.63228349 | AC29: -5.016744519 | AE29: 42.47776295 | AF29: -0.1713365945 | AH29: 0 | AI29: 0 | AK29: 0 | AL29: 0
A30: 4.7863 | B30: 0.0047863 | C30: 1.000005281 | D30: 0.003250062255 | E30: 1 | F30: 9.773793185e-06 | G30: 1 | H30: 0 | I30: 1.00467764 | J30: 0.09653474583 | K30: 1.000000181 | L30: 0.0006014641235 | M30: 1 | N30: 2.160188392e-05 | O30: 1 | P30: 2.781290735e-05 | Q30: 4.156565661 | R30: 4.665205583e-05 | S30: 1 | T30: 3.857258443e-05 | U30: 69.70795383 | V30: -5.686754163 | W30: 174.3132458 | Y30: 1000000000 | Z30: 22.90866769 | AB30: 65.62549141 | AC30: -5.497809859 | AE30: 42.47775523 | AF30: -0.1878648998 | AH30: 0 | AI30: 0 | AK30: 0 | AL30: 0
A31: 5.2481 | B31: 0.0052481 | C31: 1.00000635 | D31: 0.003563637794 | E31: 1 | F31: 1.071680505e-05 | G31: 1 | H31: 0 | I31: 1.005621171 | J31: 0.1057824667 | K31: 1.000000217 | L31: 0.0006594955998 | M31: 1 | N31: 2.36861139e-05 | O31: 1 | P31: 3.049639994e-05 | Q31: 4.156565662 | R31: 5.115321944e-05 | S31: 1 | T31: 4.229421064e-05 | U31: 69.69979144 | V31: -6.231633903 | W31: 173.7683661 | Y31: 1000000000 | Z31: 27.54255361 | AB31: 65.61733831 | AC31: -6.024459697 | AE31: 42.47774595 | AF31: -0.2059906576 | AH31: 0 | AI31: 0 | AK31: 0 | AL31: 0
A32: 5.7544 | B32: 0.0057544 | C32: 1.000007634 | D32: 0.003907429311 | E32: 1 | F32: 1.175068748e-05 | G32: 1 | H32: 0 | I32: 1.006754254 | J32: 0.1159004323 | K32: 1.000000261 | L32: 0.0007231191038 | M32: 1 | N32: 2.597118459e-05 | O32: 1.000000001 | P32: 3.343847941e-05 | Q32: 4.156565663 | R32: 5.608812444e-05 | S32: 1 | T32: 4.637446041e-05 | U32: 69.68999935 | V32: -6.82782272 | W32: 173.1721773 | Y32: 1000000000 | Z32: 33.11311936 | AB32: 65.60755738 | AC32: -6.600661987 | AE32: 42.4777348 | AF32: -0.2258630046 | AH32: 0 | AI32: 0 | AK32: 0 | AL32: 0
A33: 6.3096 | B33: 0.0063096 | C33: 1.000009178 | D33: 0.004284424197 | E33: 1 | F33: 1.288442544e-05 | G33: 1 | H33: 0 | I33: 1.008114963 | J33: 0.1269682126 | K33: 1.000000314 | L33: 0.0007928875532 | M33: 1 | N33: 2.847695438e-05 | O33: 1.000000001 | P33: 3.66647139e-05 | Q33: 4.156565664 | R33: 6.149965764e-05 | S33: 1 | T33: 5.084879317e-05 | U33: 69.67825464 | V33: -7.480022779 | W33: 172.5199772 | Y33: 1000000000 | Z33: 39.81105216 | AB33: 65.59582608 | AC33: -7.230945219 | AE33: 42.47772139 | AF33: -0.2476546225 | AH33: 0 | AI33: 0 | AK33: 0 | AL33: 0
A34: 6.9183 | B34: 0.0069183 | C34: 1.000011035 | D34: 0.004697745537 | E34: 1 | F34: 1.412741228e-05 | G34: 1 | H34: 0 | I34: 1.009748293 | J34: 0.139066571 | K34: 1.000000378 | L34: 0.0008693789982 | M34: 1 | N34: 3.122418433e-05 | O34: 1.000000001 | P34: 4.020183374e-05 | Q34: 4.156565666 | R34: 6.743265521e-05 | S34: 1 | T34: 5.575428011e-05 | U34: 69.66417773 | V34: -8.193011113 | W34: 171.8069889 | Y34: 1000000000 | Z34: 47.86287489 | AB34: 65.5817653 | AC34: -7.919904865 | AE34: 42.47770526 | AF34: -0.2715460367 | AH34: 0 | AI34: 0 | AK34: 0 | AL34: 0
A35: 7.5858 | B35: 0.0075858 | C35: 1.000013267 | D35: 0.005150991583 | E35: 1 | F35: 1.549047079e-05 | G35: 1 | H35: 0 | I35: 1.011708713 | J35: 0.1522865584 | K35: 1.000000454 | L35: 0.0009532594522 | M35: 1.000000001 | N35: 3.423679481e-05 | O35: 1.000000001 | P35: 4.408063691e-05 | Q35: 4.156565668 | R35: 7.393877625e-05 | S35: 1 | T35: 6.113363371e-05 | U35: 69.64731176 | V35: -8.972176948 | W35: 171.0278231 | Y35: 1000000000 | Z35: 57.54436164 | AB35: 65.56491871 | AC35: -8.672720964 | AE35: 42.47768588 | AF35: -0.297745239 | AH35: 0 | AI35: 0 | AK35: 0 | AL35: 0
A36: 8.3176 | B36: 0.0083176 | C36: 1.00001595 | D36: 0.005647896195 | E36: 1 | F36: 1.698483217e-05 | G36: 1 | H36: 0 | I36: 1.014060316 | J36: 0.1667184728 | K36: 1.000000546 | L36: 0.00104522006 | M36: 1.000000001 | N36: 3.75396088e-05 | O36: 1.000000001 | P36: 4.83330836e-05 | Q36: 4.15656567 | R36: 8.107162924e-05 | S36: 1.000000001 | T36: 6.703117822e-05 | U36: 69.62712331 | V36: -9.822872871 | W36: 170.1771271 | Y36: 1000000000 | Z36: 69.18246976 | AB36: 65.54475357 | AC36: -9.494529031 | AE36: 42.47766257 | AF36: -0.3264680599 | AH36: 0 | AI36: 0 | AK36: 0 | AL36: 0
A37: 9.1201 | B37: 0.0091201 | C37: 1.000019176 | D37: 0.006192804091 | E37: 1 | F37: 1.862356543e-05 | G37: 1 | H37: 0 | I37: 1.016880701 | J37: 0.1824642802 | K37: 1.000000657 | L37: 0.001146065063 | M37: 1.000000001 | N37: 4.116151128e-05 | O37: 1.000000001 | P37: 5.299636381e-05 | Q37: 4.156565673 | R37: 8.889359497e-05 | S37: 1.000000001 | T37: 7.349849098e-05 | U37: 69.60297189 | V37: -10.75114927 | W37: 169.2488507 | Y37: 1000000000 | Z37: 83.17622401 | AB37: 65.52063017 | AC37: -10.39112687 | AE37: 42.47763455 | AF37: -0.3579656398 | AH37: 0 | AI37: 0 | AK37: 0 | AL37: 0
A38: 10 | B38: 0.01 | C38: 1.000023054 | D38: 0.006790263351 | E38: 1 | F38: 2.042035222e-05 | G38: 1 | H38: 0 | I38: 1.020261144 | J38: 0.1996239536 | K38: 1.00000079 | L38: 0.001256636399 | M38: 1.000000001 | N38: 4.513274117e-05 | O38: 1.000000002 | P38: 5.810941086e-05 | Q38: 4.156565676 | R38: 9.746997832e-05 | S38: 1.000000001 | T38: 8.058956698e-05 | U38: 69.5741125 | V38: -11.76295207 | W38: 168.2370479 | Y38: 1000000000 | Z38: 100 | AB38: 65.49180448 | AC38: -11.368196 | AE38: 42.47760086 | AF38: -0.3925008743 | AH38: 0 | AI38: 0 | AK38: 0 | AL38: 0
A39: 10.965 | B39: 0.010965 | C39: 1.000027718 | D39: 0.007445500614 | E39: 1 | F39: 2.239091621e-05 | G39: 1 | H39: 0 | I39: 1.024311481 | J39: 0.2183068812 | K39: 1.000000949 | L39: 0.001377901664 | M39: 1.000000001 | N39: 4.948805069e-05 | O39: 1.000000002 | P39: 6.3716969e-05 | Q39: 4.15656568 | R39: 0.0001068758312 | S39: 1.000000001 | T39: 8.83664602e-05 | U39: 69.5396595 | V39: -12.86479915 | W39: 167.1352008 | Y39: 1000000000 | Z39: 120.231225 | AB39: 65.457392 | AC39: -12.43195045 | AE39: 42.47756035 | AF39: -0.4303758822 | AH39: 0 | AI39: 0 | AK39: 0 | AL39: 0
A40: 12.023 | B40: 0.012023 | C40: 1.000033325 | D40: 0.008163877726 | E40: 1 | F40: 2.455138948e-05 | G40: 1 | H40: 0 | I40: 1.029159561 | J40: 0.2386134479 | K40: 1.000001141 | L40: 0.001510853588 | M40: 1.000000001 | N40: 5.426309469e-05 | O40: 1.000000002 | P40: 6.986494465e-05 | Q40: 4.156565685 | R40: 0.0001171881548 | S40: 1.000000001 | T40: 9.68928364e-05 | U40: 69.49859901 | V40: -14.06269904 | W40: 165.937301 | Y40: 1000000000 | Z40: 144.552529 | AB40: 65.41638022 | AC40: -13.58808703 | AE40: 42.47751165 | AF40: -0.4719005983 | AH40: 0 | AI40: 0 | AK40: 0 | AL40: 0
A41: 13.183 | B41: 0.013183 | C41: 1.000040066 | D41: 0.008951502657 | E41: 1 | F41: 2.692015033e-05 | G41: 1 | H41: 0 | I41: 1.034957838 | J41: 0.2606489781 | K41: 1.000001372 | L41: 0.001656623121 | M41: 1.000000002 | N41: 5.949849265e-05 | O41: 1.000000003 | P41: 7.660563628e-05 | Q41: 4.156565691 | R41: 0.0001284946721 | S41: 1.000000001 | T41: 0.0001062412262 | U41: 69.44974356 | V41: -15.362979 | W41: 164.637021 | Y41: 1000000000 | Z41: 173.791489 | AB41: 65.36758332 | AC41: -14.84257789 | AE41: 42.4774531 | AF41: -0.517428086 | AH41: 0 | AI41: 0 | AK41: 0 | AL41: 0
A42: 14.454 | B42: 0.014454 | C42: 1.000048164 | D42: 0.009814482358 | E42: 1 | F42: 2.95155771e-05 | G42: 1 | H42: 0 | I42: 1.04188101 | J42: 0.2844986101 | K42: 1.00000165 | L42: 0.001816341209 | M42: 1.000000002 | N42: 6.523486404e-05 | O42: 1.000000004 | P42: 8.399134236e-05 | Q42: 4.156565697 | R42: 0.0001408831062 | S42: 1.000000002 | T42: 0.0001164841602 | U42: 69.39176633 | V42: -16.77080966 | W42: 163.2291903 | Y42: 1000000000 | Z42: 208.918116 | AB42: 65.30967643 | AC42: -16.20023865 | AE42: 42.47738276 | AF42: -0.5673113506 | AH42: 0 | AI42: 0 | AK42: 0 | AL42: 0
A43: 15.849 | B43: 0.015849 | C43: 1.000057909 | D43: 0.01076163833 | E43: 1.000000001 | F43: 3.236421623e-05 | G43: 1 | H43: 0 | I43: 1.050152101 | J43: 0.3102967143 | K43: 1.000001983 | L43: 0.001991641443 | M43: 1.000000003 | N43: 7.153088141e-05 | O43: 1.000000004 | P43: 9.209760512e-05 | Q43: 4.156565706 | R43: 0.0001544801679 | S43: 1.000000002 | T43: 0.0001277264048 | U43: 69.32300291 | V43: -18.29431248 | W43: 161.7056875 | Y43: 1000000000 | Z43: 251.190801 | AB43: 65.24099767 | AC43: -17.66867792 | AE43: 42.47729812 | AF43: -0.6220603083 | AH43: 0 | AI43: 0 | AK43: 0 | AL43: 0
A44: 17.378 | B44: 0.017378 | C44: 1.000069621 | D44: 0.01179975334 | E44: 1.000000001 | F44: 3.548648808e-05 | G44: 1 | H44: 0 | I44: 1.060007061 | J44: 0.3380898902 | K44: 1.000002384 | L44: 0.002183780411 | M44: 1.000000003 | N44: 7.84316775e-05 | O44: 1.000000005 | P44: 0.000100982534 | Q44: 4.156565716 | R44: 0.0001693833273 | S44: 1.000000002 | T44: 0.0001400485496 | U44: 69.2417736 | V44: -19.93648234 | W44: 160.0635177 | Y44: 1000000000 | Z44: 301.994884 | AB44: 65.15987009 | AC44: -19.25049623 | AE44: 42.47719639 | AF44: -0.6820670313 | AH44: 0 | AI44: 0 | AK44: 0 | AL44: 0
A45: 19.055 | B45: 0.019055 | C45: 1.000083706 | D45: 0.01293832367 | E45: 1.000000001 | F45: 3.891098115e-05 | G45: 1 | H45: 0 | I45: 1.071738844 | J45: 0.36795992 | K45: 1.000002867 | L45: 0.002394517341 | M45: 1.000000004 | N45: 8.600043814e-05 | O45: 1.000000006 | P45: 0.0001107274821 | Q45: 4.156565728 | R45: 0.0001857290422 | S45: 1.000000003 | T45: 0.00015356342 | U45: 69.14605116 | V45: -21.70245991 | W45: 158.2975401 | Y45: 1000000000 | Z45: 363.093025 | AB45: 65.06427001 | AC45: -20.95028219 | AE45: 42.47707406 | AF45: -0.747880442 | AH45: 0 | AI45: =IF(AH45>0,W43,0) -> 0 | AK45: 0 | AL45: 0
A46: 20.893 | B46: 0.020893 | C46: 1.000100632 | D46: 0.01418616355 | E46: 1.000000001 | F46: 4.266424188e-05 | G46: 1 | H46: 0 | I46: 1.085669759 | J46: 0.3999244624 | K46: 1.000003447 | L46: 0.002625485777 | M46: 1.000000004 | N46: 9.429583591e-05 | O46: 1.000000007 | P46: 0.0001214079917 | Q46: 4.156565742 | R46: 0.0002036440236 | S46: 1.000000003 | T46: 0.0001683757825 | U46: 69.03373378 | V46: -23.59367916 | W46: 156.4063208 | Y46: 1000000000 | Z46: 436.517449 | AB46: 64.95209966 | AC46: -22.76895734 | AE46: 42.47692705 | AF46: -0.8200100403 | AH46: 0 | AI46: 0 | AK46: 0 | AL46: 0
A47: 22.909 | B47: 0.022909 | C47: 1.000120988 | D47: 0.01555479877 | E47: 1.000000001 | F47: 4.678098488e-05 | G47: 1 | H47: 0 | I47: 1.102190758 | J47: 0.4340167304 | K47: 1.000004144 | L47: 0.002878821888 | M47: 1.000000005 | N47: 0.0001033945964 | O47: 1.000000009 | P47: 0.0001331228487 | Q47: 4.156565759 | R47: 0.0002232939704 | S47: 1.000000004 | T47: 0.0001846226393 | U47: 68.90238253 | V47: -25.61259514 | W47: 154.3874049 | Y47: 1000000000 | Z47: 524.822281 | AB47: 64.82092522 | AC47: -24.70830665 | AE47: 42.47675026 | AF47: -0.8991220668 | AH47: 0 | AI47: 0 | AK47: 0 | AL47: 0
A48: 25.119 | B48: 0.025119 | C48: 1.000145455 | D48: 0.01705507083 | E48: 1.000000001 | F48: 5.129388271e-05 | G48: 1 | H48: 0 | I48: 1.121726933 | J48: 0.4701892544 | K48: 1.000004982 | L48: 0.003156536147 | M48: 1.000000006 | N48: 0.0001133689321 | O48: 1.000000011 | P48: 0.0001459650283 | Q48: 4.15656578 | R48: 0.0002448348345 | S48: 1.000000005 | T48: 0.0002024329337 | U48: 68.74956962 | V48: -27.75700727 | W48: 152.2429927 | Y48: 1000000000 | Z48: 630.964161 | AB48: 64.66832484 | AC48: -26.76549924 | AE48: 42.47653776 | AF48: -0.985843209 | AH48: 0 | AI48: 0 | AK48: 0 | AL48: 0
A49: 27.542 | B49: 0.027542 | C49: 1.000174868 | D49: 0.01869985077 | E49: 1.000000002 | F49: 5.624173404e-05 | G49: 1 | H49: 0 | I49: 1.144770976 | J49: 0.5083739154 | K49: 1.000005989 | L49: 0.003461015971 | M49: 1.000000008 | N49: 0.0001243045952 | O49: 1.000000013 | P49: 0.0001600449382 | Q49: 4.156565805 | R49: 0.0002684518088 | S49: 1.000000006 | T49: 0.0002219597859 | U49: 68.57269364 | V49: -30.02362905 | W49: 149.976371 | Y49: 1000000000 | Z49: 758.561764 | AB49: 64.49170433 | AC49: -28.93650032 | AE49: 42.47628232 | AF49: -1.080917473 | AH49: 0 | AI49: 0 | AK49: 0 | AL49: 0
A50: 30.2 | B50: 0.0302 | C50: 1.000210245 | D50: 0.02050403661 | E50: 1.000000002 | F50: 6.166946364e-05 | G50: 1 | H50: 0 | I50: 1.171888873 | J50: 0.5484700078 | K50: 1.000007201 | L50: 0.003795025702 | M50: 1.000000009 | N50: 0.0001363008776 | O50: 1.000000015 | P50: 0.0001754904192 | Q50: 4.156565835 | R50: 0.000294359327 | S50: 1.000000007 | T50: 0.0002433804929 | U50: 68.36904047 | V50: -32.40740391 | W50: 147.5925961 | Y50: 1000000000 | Z50: 912.04 | AB50: 64.28835843 | AC50: -31.21538718 | AE50: 42.4759751 | AF50: -1.185206037 | AH50: 0 | AI50: 0 | AK50: 0 | AL50: 0
A51: 33.113 | B51: 0.033113 | C51: 1.000252754 | D51: 0.0224811565 | E51: 1.000000002 | F51: 6.761791222e-05 | G51: 1 | H51: 0 | I51: 1.203667817 | J51: 0.5902635887 | K51: 1.000008657 | L51: 0.004161078281 | M51: 1.000000011 | N51: 0.0001494480448 | O51: 1.000000019 | P51: 0.00019241769 | Q51: 4.156565871 | R51: 0.0003227523291 | S51: 1.000000008 | T51: 0.000266856234 | U51: 68.13627954 | V51: -34.89672151 | W51: 145.1032785 | Y51: 1000000000 | Z51: 1096.470769 | AB51: 64.0559667 | AC51: -33.58976299 | AE51: 42.47560594 | AF51: -1.299490903 | AH51: 0 | AI51: 0 | AK51: 0 | AL51: 0
A52: 36.308 | B52: 0.036308 | C52: 1.000303875 | D52: 0.02464947357 | E52: 1.000000003 | F52: 7.414221472e-05 | G52: 1 | H52: 0 | I52: 1.240808288 | J52: 0.6335579113 | K52: 1.000010409 | L52: 0.004562566178 | M52: 1.000000013 | N52: 0.0001638679553 | O52: 1.000000022 | P52: 0.0002109836461 | Q52: 4.156565915 | R52: 0.0003538939838 | S52: 1.00000001 | T52: 0.000292604601 | U52: 67.87189001 | V52: -37.48118353 | W52: 142.5188165 | Y52: 1000000000 | Z52: 1318.270864 | AB52: 63.79202115 | AC52: -36.04816759 | AE52: 42.47516202 | AF52: -1.424827777 | AH52: 0 | AI52: 0 | AK52: 0 | AL52: 0
A53: 39.811 | B53: 0.039811 | C53: 1.000365328 | D53: 0.02702655061 | E53: 1.000000003 | F53: 8.129546406e-05 | G53: 1 | H53: 0 | I53: 1.284036768 | J53: 0.6780555598 | K53: 1.000012514 | L53: 0.005002756064 | M53: 1.000000016 | N53: 0.0001796779541 | O53: 1.000000027 | P53: 0.0002313393717 | Q53: 4.156565967 | R53: 0.0003880377127 | S53: 1.000000012 | T53: 0.0003208351267 | U53: 67.57391912 | V53: -40.14458993 | W53: 139.8554101 | Y53: 1000000000 | Z53: 1584.915721 | AB53: 63.49458393 | AC53: -38.57337988 | AE53: 42.47462841 | AF53: -1.562231898 | AH53: 0 | AI53: 0 | AK53: 0 | AL53: 0
A54: 43.652 | B54: 0.043652 | C54: 1.000439207 | D54: 0.02963263669 | E54: 1.000000004 | F54: 8.91389213e-05 | G54: 1 | H54: 0 | I54: 1.334156424 | J54: 0.7234335119 | K54: 1.000015045 | L54: 0.005485417075 | M54: 1.000000019 | N54: 0.0001970134393 | O54: 1.000000032 | P54: 0.0002536591951 | Q54: 4.15656603 | R54: 0.0004254759253 | S54: 1.000000014 | T54: 0.0003517895799 | U54: 67.24071369 | V54: -42.869402 | W54: 137.130598 | Y54: 1000000000 | Z54: 1905.497104 | AB54: 63.16202005 | AC54: -41.14668383 | AE54: 42.47398695 | AF54: -1.712873794 | AH54: 0 | AI54: 0 | AK54: 0 | AL54: 0
A55: 47.863 | B55: 0.047863 | C55: 1.00052801 | D55: 0.03248930075 | E55: 1.000000005 | F55: 9.773793154e-05 | G55: 1 | H55: 0 | I55: 1.392018667 | J55: 0.7693238876 | K55: 1.000018088 | L55: 0.006014569433 | M55: 1.000000023 | N55: 0.0002160188358 | O55: 1.000000039 | P55: 0.0002781290664 | Q55: 4.156566105 | R55: 0.0004665205252 | S55: 1.000000017 | T55: 0.0003857258473 | U55: 66.87120286 | V55: -45.63557375 | W55: 134.3644262 | Y55: 1000000000 | Z55: 2290.866769 | AB55: 62.7932803 | AC55: -43.74677941 | AE55: 42.47321598 | AF55: -1.878000307 | AH55: 0 | AI55: 0 | AK55: 0 | AL55: 0
A56: 52.481 | B56: 0.052481 | C56: 1.00063478 | D56: 0.0356214546 | E56: 1.000000006 | F56: 0.0001071680501 | G56: 1 | H56: 0 | I56: 1.458558845 | J56: 0.8153573932 | K56: 1.000021746 | L56: 0.006594861345 | M56: 1.000000028 | N56: 0.0002368611347 | O56: 1.000000047 | P56: 0.00030496399 | Q56: 4.156566196 | R56: 0.0005115321507 | S56: 1.000000021 | T56: 0.0004229421102 | U56: 66.46472968 | V56: -48.42313791 | W56: 131.5768621 | Y56: 1000000000 | Z56: 2754.255361 | AB56: 62.38773411 | AC56: -46.3522509 | AE56: 42.4722891 | AF56: -2.059051532 | AH56: 0 | AI56: 0 | AK56: 0 | AL56: 0
A57: 57.544 | B57: 0.057544 | C57: 1.000763117 | D57: 0.03905462365 | E57: 1.000000007 | F57: 0.0001175068743 | G57: 1 | H57: 0 | I57: 1.534735408 | J57: 0.8611333976 | K57: 1.000026145 | L57: 0.007231066262 | M57: 1.000000034 | N57: 0.0002597118401 | O57: 1.000000056 | P57: 0.0003343847818 | Q57: 4.156566305 | R57: 0.0005608811869 | S57: 1.000000025 | T57: 0.0004637446092 | U57: 66.02146256 | V57: -51.21036051 | W57: 128.7896395 | Y57: 1000000000 | Z57: 3311.311936 | AB57: 61.94558111 | AC57: -48.93988015 | AE57: 42.47117513 | AF57: -2.257503069 | AH57: 0 | AI57: 0 | AK57: 0 | AL57: 0
A58: 63.096 | B58: 0.063096 | C58: 1.000917405 | D58: 0.0428183171 | E58: 1.000000008 | F58: 0.0001288442537 | G58: 1 | H58: 0 | I58: 1.62159734 | J58: 0.9062832384 | K58: 1.000031433 | L58: 0.007928711045 | M58: 1.000000041 | N58: 0.0002847695362 | O58: 1.000000067 | P58: 0.0003666471228 | Q58: 4.156566436 | R58: 0.0006149965005 | S58: 1.00000003 | T58: 0.0005084879384 | U58: 65.54197902 | V58: -53.97752929 | W58: 126.0224707 | Y58: 1000000000 | Z58: 3981.105216 | AB58: 61.46743678 | AC58: -51.48823907 | AE58: 42.4698361 | AF58: -2.47506084 | AH58: 0 | AI58: 0 | AK58: 0 | AL58: 0
A59: 69.183 | B59: 0.069183 | C59: 1.001102849 | D59: 0.04694328799 | E59: 1.00000001 | F59: 0.0001412741219 | G59: 1 | H59: 0 | I59: 1.720221381 | J59: 0.9504456575 | K59: 1.00003779 | L59: 0.008693573151 | M59: 1.000000049 | N59: 0.0003122418333 | O59: 1.000000081 | P59: 0.000402018316 | Q59: 4.156566594 | R59: 0.0006743264521 | S59: 1.000000036 | T59: 0.00055754281 | U59: 65.02759843 | V59: -56.70541481 | W59: 123.2945852 | Y59: 1000000000 | Z59: 4786.287489 | AB59: 60.95466556 | AC59: -53.97630998 | AE59: 42.46822694 | AF59: -2.71350272 | AH59: 0 | AI59: 0 | AK59: 0 | AL59: 0
A60: 75.858 | B60: 0.075858 | C60: 1.00132578 | D60: 0.05146488599 | E60: 1.000000012 | F60: 0.0001549047067 | G60: 1 | H60: 0 | I60: 1.831789285 | J60: 0.9933163198 | K60: 1.000045434 | L60: 0.009532308682 | M60: 1.000000059 | N60: 0.0003423679348 | O60: 1.000000097 | P60: 0.0004408063409 | Q60: 4.156566784 | R60: 0.0007393876307 | S60: 1.000000043 | T60: 0.0006113363488 | U60: 64.47990697 | V60: -59.37826791 | W60: 120.6217321 | Y60: 1000000000 | Z60: 5754.436164 | AB60: 60.40890841 | AC60: -56.38628809 | AE60: 42.46629288 | AF60: -2.97487237 | AH60: 0 | AI60: 0 | AK60: 0 | AL60: 0
A61: 83.176 | B61: 0.083176 | C61: 1.001593701 | D61: 0.05641962169 | E61: 1.000000014 | F61: 0.00016984832 | G61: 1 | H61: 0 | I61: 1.957506671 | J61: 1.034618489 | K61: 1.000054623 | L61: 0.01045182381 | M61: 1.00000007 | N61: 0.0003753960706 | O61: 1.000000117 | P61: 0.0004833307987 | Q61: 4.156567012 | R61: 0.0008107161187 | S61: 1.000000052 | T61: 0.0006703117976 | U61: 63.90110785 | V61: -61.98197456 | W61: 118.0180254 | Y61: 1000000000 | Z61: 6918.246976 | AB61: 59.83243338 | AC61: -58.70193611 | AE61: 42.4639691 | AF61: -3.261280653 | AH61: 0 | AI61: 0 | AK61: 0 | AL61: 0
A62: 91.201 | B62: 0.091201 | C62: 1.001915755 | D62: 0.06184984485 | E62: 1.000000017 | F62: 0.0001862356522 | G62: 1 | H62: 0 | I62: 2.098722455 | J62: 1.074149292 | K62: 1.000065671 | L62: 0.01146015392 | M62: 1.000000085 | N62: 0.0004116150898 | O62: 1.00000014 | P62: 0.000529963589 | Q62: 4.156567286 | R62: 0.0008889357207 | S62: 1.000000062 | T62: 0.0007349849301 | U62: 63.29337565 | V62: -64.50693011 | W62: 115.4930699 | Y62: 1000000000 | Z62: 8317.622401 | AB62: 59.22749405 | AC62: -60.91118643 | AE62: 42.4611766 | AF62: -3.575176095 | AH62: 0 | AI62: 0 | AK62: 0 | AL62: 0
A63: 100 | B63: 0.1 | C63: 1.002302803 | D63: 0.06779959902 | E63: 1.000000021 | F63: 0.0002042035194 | G63: 1 | H63: 0 | I63: 2.256829688 | J63: 1.111743208 | K63: 1.000078954 | L63: 0.0125657092 | M63: 1.000000102 | N63: 0.0004513273814 | O63: 1.000000169 | P63: 0.0005810940439 | Q63: 4.156567615 | R63: 0.0009746994813 | S63: 1.000000075 | T63: 0.0008058956965 | U63: 62.65926002 | V63: -66.94574807 | W63: 113.0542519 | Y63: 1000000000 | Z63: 10000 | AB63: 58.59673372 | AC63: -63.00409084 | AE63: 42.45782174 | AF63: -3.919105304 | AH63: 0 | AI63: 0 | AK63: 0 | AL63: 0
A64: 109.65 | B64: 0.10965 | C64: 1.002768045 | D64: 0.07431924858 | E64: 1.000000025 | F64: 0.0002239091584 | G64: 1 | H64: 0 | I64: 2.433392894 | J64: 1.147301718 | K64: 1.000094926 | L64: 0.01377815343 | M64: 1.000000122 | N64: 0.0004948804669 | O64: 1.000000203 | P64: 0.0006371696046 | Q64: 4.156568011 | R64: 0.001068757914 | S64: 1.00000009 | T64: 0.0008836646372 | U64: 62.00109813 | V64: -69.29517955 | W64: 110.7048205 | Y64: 1000000000 | Z64: 12023.1225 | AB64: 57.94260328 | AC64: -64.97447087 | AE64: 42.45379082 | AF64: -4.295980489 | AH64: 0 | AI64: 0 | AK64: 0 | AL64: 0
A65: 120.23 | B65: 0.12023 | C65: 1.003327058 | D65: 0.08145992972 | E65: 1.00000003 | F65: 0.0002455138899 | G65: 1 | H65: 0 | I65: 2.630007625 | J65: 1.180754572 | K65: 1.000114128 | L65: 0.01510739793 | M65: 1.000000147 | N65: 0.0005426308942 | O65: 1.000000244 | P65: 0.0006986493339 | Q65: 4.156568488 | R65: 0.001171881023 | S65: 1.000000108 | T65: 0.0009689284104 | U65: 61.32152771 | V65: -71.55362695 | W65: 108.4463731 | Y65: 1000000000 | Z65: 14455.2529 | AB65: 57.26787439 | AC65: -66.81775399 | AE65: 42.44894994 | AF65: -4.708758776 | AH65: 0 | AI65: 0 | AK65: 0 | AL65: 0
A66: 131.83 | B66: 0.13183 | C66: 1.003998689 | D66: 0.08927944868 | E66: 1.000000036 | F66: 0.0002692014969 | G66: 1 | H66: 0 | I66: 2.84846848 | J66: 1.212087167 | K66: 1.000137211 | L66: 0.01656473113 | M66: 1.000000177 | N66: 0.000594984857 | O66: 1.000000293 | P66: 0.0007660562144 | Q66: 4.15656906 | R66: 0.00128494603 | S66: 1.00000013 | T66: 0.001062412323 | U66: 60.62282639 | V66: -73.72299351 | W66: 106.2770065 | Y66: 1000000000 | Z66: 17379.1489 | AB66: 56.57498639 | AC66: -68.53248007 | AE66: 42.44313738 | AF66: -5.160783245 | AH66: 0 | AI66: 0 | AK66: 0 | AL66: 0
A67: 144.54 | B67: 0.14454 | C67: 1.004804969 | D67: 0.09783463006 | E67: 1.000000044 | F67: 0.0002951557625 | G67: 1 | H67: 0 | I67: 3.090566932 | J67: 1.241301333 | K67: 1.000164942 | L67: 0.01816143503 | M67: 1.000000213 | N67: 0.0006523485488 | O67: 1.000000353 | P67: 0.0008399132281 | Q67: 4.156569748 | R67: 0.00140883015 | S67: 1.000000156 | T67: 0.001164841682 | U67: 59.90755855 | V67: -75.80606807 | W67: 104.1939319 | Y67: 1000000000 | Z67: 20891.8116 | AB67: 55.8666922 | AC67: -70.1181308 | AE67: 42.43616465 | AF67: -5.655340732 | AH67: 0 | AI67: 0 | AK67: 0 | AL67: 0
A68: 158.49 | B68: 0.15849 | C68: 1.005774418 | D68: 0.1072079081 | E68: 1.000000052 | F68: 0.0003236421511 | G68: 1 | H68: 0 | I68: 3.358860436 | J68: 1.268492845 | K68: 1.000198313 | L68: 0.01991380801 | M68: 1.000000256 | N68: 0.0007153086933 | O68: 1.000000424 | P68: 0.0009209757934 | Q68: 4.156570576 | R68: 0.001544800477 | S68: 1.000000188 | T68: 0.001277264154 | U68: 59.17639435 | V68: -77.81223515 | W68: 102.1877648 | Y68: 1000000000 | Z68: 25119.0801 | AB68: 55.14390553 | AC68: -71.57929344 | AE68: 42.42778823 | AF68: -6.197199189 | AH68: 0 | AI68: 0 | AK68: 0 | AL68: 0
A69: 173.78 | B69: 0.17378 | C69: 1.006938285 | D69: 0.117459822 | E69: 1.000000063 | F69: 0.0003548648661 | G69: 1 | H69: 0 | I69: 3.65533814 | J69: 1.293691053 | K69: 1.000238417 | L69: 0.0218343684 | M69: 1.000000308 | N69: 0.0007843166157 | O69: 1.00000051 | P69: 0.001009825 | Q69: 4.156571571 | R69: 0.001693831688 | S69: 1.000000226 | T69: 0.001400485636 | U69: 58.43198324 | V69: -79.74601073 | W69: 100.2539893 | Y69: 1000000000 | Z69: 30199.4884 | AB69: 54.40954136 | AC69: -72.91695831 | AE69: 42.41774262 | AF69: -6.789861725 | AH69: 0 | AI69: 0 | AK69: 0 | AL69: 0
A70: 190.55 | B70: 0.19055 | C70: 1.008336199 | D70: 0.1286755443 | E70: 1.000000076 | F70: 0.000389109792 | G70: 1 | H70: 0 | I70: 3.98276475 | J70: 1.316998565 | K70: 1.000286646 | L70: 0.02394064423 | M70: 1.00000037 | N70: 0.0008600041715 | O70: 1.000000613 | P70: 0.001107274373 | Q70: 4.156572768 | R70: 0.001857288333 | S70: 1.000000271 | T70: 0.001535634385 | U70: 57.67520758 | V70: -81.6172655 | W70: 98.3827345 | Y70: 1000000000 | Z70: 36309.3025 | AB70: 53.66481768 | AC70: -74.13603623 | AE70: 42.40569224 | AF70: -7.438256642 | AH70: 0 | AI70: 0 | AK70: 0 | AL70: 0
A71: 208.93 | B71: 0.20893 | C71: 1.010013576 | D71: 0.1409306511 | E71: 1.000000091 | F71: 0.0004266423932 | G71: 1 | H71: 0 | I71: 4.343717589 | J71: 1.3384951 | K71: 1.000344601 | L71: 0.0262488879 | M71: 1.000000445 | N71: 0.0009429580824 | O71: 1.000000737 | P71: 0.001214079326 | Q71: 4.156574206 | R71: 0.002036437482 | S71: 1.000000326 | T71: 0.001683758069 | U71: 56.9077323 | V71: -83.43407383 | W71: 96.56592617 | Y71: 1000000000 | Z71: 43651.7449 | AB71: 52.91178174 | AC71: -75.24019724 | AE71: 42.39125484 | AF71: -8.146758944 | AH71: 0 | AI71: 0 | AK71: 0 | AL71: 0
A72: 229.09 | B72: 0.22909 | C72: 1.012027213 | D72: 0.1543236367 | E72: 1.000000109 | F72: 0.000467809815 | G72: 1 | H72: 0 | I72: 4.741565852 | J72: 1.358299938 | K72: 1.000414297 | L72: 0.02878034944 | M72: 1.000000535 | N72: 0.0010339456 | O72: 1.000000886 | P72: 0.001331227709 | Q72: 4.156575935 | R72: 0.002232936074 | S72: 1.000000392 | T72: 0.001846226714 | U72: 56.12983024 | V72: -85.20783663 | W72: 94.79216337 | Y72: 1000000000 | Z72: 52482.2281 | AB72: 52.151182 | AC72: -76.235102 | AE72: 42.37395484 | AF72: -8.921070543 | AH72: 0 | AI72: 0 | AK72: 0 | AL72: 0
A73: 251.19 | B73: 0.25119 | C73: 1.014442303 | D73: 0.1689414191 | E73: 1.000000132 | F73: 0.0005129387826 | G73: 1 | H73: 0 | I73: 5.179491416 | J73: 1.376507135 | K73: 1.000498065 | L73: 0.03155498885 | M73: 1.000000643 | N73: 0.001133688841 | O73: 1.000001065 | P73: 0.001459649256 | Q73: 4.156578014 | R73: 0.00244834356 | S73: 1.000000472 | T73: 0.00202432976 | U73: 55.34254345 | V73: -86.94791196 | W73: 93.05208804 | Y73: 1000000000 | Z73: 63096.4161 | AB73: 51.3846017 | AC73: -77.12503732 | AE73: 42.35325113 | AF73: -9.766226633 | AH73: 0 | AI73: 0 | AK73: 0 | AL73: 0
A74: 275.42 | B74: 0.27542 | C74: 1.017337995 | D74: 0.1848845088 | E74: 1.000000158 | F74: 0.0005624172817 | G74: 1 | H74: 0 | I74: 5.661277136 | J74: 1.393226041 | K74: 1.000598757 | L74: 0.03459648825 | M74: 1.000000773 | N74: 0.001243045318 | O74: 1.000001281 | P74: 0.001600448029 | Q74: 4.156580513 | R74: 0.002684511781 | S74: 1.000000567 | T74: 0.002219598417 | U74: 54.54610827 | V74: -88.66512447 | W74: 91.33487553 | Y74: 1000000000 | Z74: 75856.1764 | AB74: 50.61292874 | AC74: -77.91496065 | AE74: 42.32849227 | AF74: -10.68805155 | AH74: 0 | AI74: 0 | AK74: 0 | AL74: 0
A75: 302 | B75: 0.302 | C75: 1.020810138 | D75: 0.2022649139 | E75: 1.00000019 | F75: 0.000616694559 | G75: 1 | H75: 0 | I75: 6.191312713 | J75: 1.408569052 | K75: 1.000719859 | L75: 0.03793223575 | M75: 1.000000929 | N75: 0.00136300794 | O75: 1.00000154 | P75: 0.001754902409 | Q75: 4.156583519 | R75: 0.002943584956 | S75: 1.000000682 | T75: 0.002433805666 | U75: 53.74019265 | V75: -90.37094475 | W75: 89.62905525 | Y75: 1000000000 | Z75: 91204 | AB75: 49.83661207 | AC75: -78.60979953 | AE75: 42.29889735 | AF75: -11.69303872 | AH75: 0 | AI75: 0 | AK75: 0 | AL75: 0
A76: 331.13 | B76: 0.33113 | C76: 1.024966962 | D76: 0.2211711384 | E76: 1.000000229 | F76: 0.0006761790202 | G76: 1 | H76: 0 | I76: 6.773597371 | J76: 1.422622679 | K76: 1.000865364 | L76: 0.04158703171 | M76: 1.000001117 | N76: 0.001494479347 | O76: 1.000001851 | P76: 0.001924174549 | Q76: 4.156587131 | R76: 0.003227512331 | S76: 1.000000819 | T76: 0.002668563311 | U76: 52.92541755 | V76: -92.07414514 | W76: 87.92585486 | Y76: 1000000000 | Z76: 109647.0769 | AB76: 49.05714052 | AC76: -79.21314138 | AE76: 42.26359864 | AF76: -12.786328 | AH76: 0 | AI76: 0 | AK76: 0 | AL76: 0
A77: 363.08 | B77: 0.36308 | C77: =SQRT(1+(A77/pole1)^2) -> 1.029943821 | D77: =ATAN(A77/pole1) -> 0.2417239541 | E77: =SQRT(1+(A77/Zero1)^2) -> 1.000000275 | F77: =ATAN(A77/Zero1) -> 0.0007414220127 | G77: =IF(VIN_nom>Vout, 1, SQRT(1+(A77/z_RHP)^2)) -> 1 | H77: =IF(VIN_nom>Vout, 0, -ATAN(A77/z_RHP)) -> 0 | I77: =SQRT(1+(A77/Pole2)^2) -> 7.413536323 | J77: =ATAN(A77/Pole2) -> 1.435495502 | K77: =SQRT(1+(A77/Zero2)^2) -> 1.001040324 | L77: =ATAN(A77/Zero2) -> 0.04559435754 | M77: =SQRT(1+(A77/pole4)^2) -> 1.000001343 | N77: =ATAN(A77/pole4) -> 0.001638678101 | O77: =IF(VOUT_setting=1,1,SQRT(1+(A77*zterm1)^2)) -> 1.000002226 | P77: =IF(VOUT_setting=1,0,ATAN(((A77*zterm1)))) -> 0.002109833361 | Q77: 4.156591475 | R77: =IF(VOUT_setting=1,0,ATAN(A77*$Q$4/(1+Afbr-$Q$5*(A77)^2))) -> 0.003538925389 | S77: =SQRT((1-(Z77/pterm2))^2+(A77/pterm1)^2) -> 1.000000985 | T77: =IF((ATAN((A77/pterm1)/(1-A77^2/pterm2))>0),ATAN((A77/pterm1)/(1-A77^2/pterm2)),PI()+ATAN((A77/pterm1)/(1-A77^2/pterm2))) -> 0.00292604729 | U77: =20*LOG10(((E77*K77*G77*O77)/(C77*I77*S77*M77*Q77))*Adc) -> 52.10073273 | V77: =((F77+L77+H77+P77)-(D77+J77+T77+N77+R77))*radconv -> -93.78617207 | W77: =IF(V77>0,V77,V77+180) -> 86.21382793 | Y77: =IF(U77<0,A77,1000000000) -> 1000000000 | Z77: =A77^2 -> 131827.0864 | AB77: =20*LOG10((K77/(I77*M77))*AEA) -> 48.27453596 | AC77: =(L77-(J77+N77))*radconv -> -79.72935893 | AE77: =20*LOG10((E77*G77/(C77*S77))*Acs*Am) -> 42.22152421 | AF77: =(F77+H77-(D77+T77))*radconv -> -13.9749322 | AH77: =SUM((U78<0)*(U77>0))*A77 -> 0 | AI77: =IF(AH77>0,W75,0) -> 0 | AK77: 0 | AL77: 0
A78: 398.11 | B78: =A78/1000 -> 0.39811 | C78: 1.035895278 | D78: 0.2640206251 | E78: 1.00000033 | F78: 0.0008129544633 | G78: 1 | H78: 0 | I78: 8.116344131 | J78: 1.447274275 | K78: 1.001250617 | L78: 0.04998630391 | M78: 1.000001614 | N78: 0.001796777626 | O78: 1.000002676 | P78: 0.002313389632 | Q78: 4.156596697 | R78: 0.003880358079 | S78: 1.000001184 | T78: 0.003208352954 | U78: 51.26579962 | V78: -95.51594579 | W78: 84.48405421 | Y78: 1000000000 | Z78: 158491.5721 | AB78: 47.48965744 | AC78: -80.16165135 | AE78: 42.17147662 | AF78: -15.26451376 | AH78: 0 | AI78: 0 | AK78: =SUM((V79<-183)*(V78>-183))*A78 -> 0 | AL78: =IF(AK78>0,U78,0) -> 0
A79: 436.52 | B79: 0.43652 | C79: 1.04300563 | D79: 0.2881628495 | E79: 1.000000397 | F79: 0.0008913889792 | G79: 1 | H79: 0 | I79: 8.88804458 | J79: 1.458046905 | K79: 1.00150339 | L79: 0.05479980004 | M79: 1.000001941 | N79: 0.00197013187 | O79: 1.000003217 | P79: 0.002536586565 | Q79: =IF(VOUT_setting=1,1,SQRT((1+Afbr-$Q$5*(A79)^2)^2+(A79*$Q$4)^2)) -> 4.156602976 | R79: 0.004254734143 | S79: 1.000001424 | T79: 0.003517898023 | U79: 50.41964799 | V79: -97.27246267 | W79: 82.72753733 | Y79: 1000000000 | Z79: 190549.7104 | AB79: 46.70293171 | AC79: -80.51301707 | AE79: 42.11205914 | AF79: -16.66100299 | AH79: 0 | AI79: 0 | AK79: 0 | AL79: 0
A80: 478.63 | B80: 0.47863 | C80: 1.05148932 | D80: 0.3142385649 | E80: 1.000000478 | F80: 0.0009773790073 | G80: 1 | H80: 0 | I80: 9.735070458 | J80: 1.467893423 | K80: 1.001807163 | L80: 0.06007404823 | M80: 1.000002333 | N80: 0.002160185032 | O80: 1.000003868 | P80: 0.002781283564 | Q80: 4.156610523 | R80: 0.004665172152 | S80: 1.000001712 | T80: 0.003857261404 | U80: 49.56124507 | V80: -99.0633656 | W80: 80.9366344 | Y80: 1000000000 | Z80: 229086.6769 | AB80: 45.91490498 | AC80: -80.78587808 | AE80: 42.04169307 | AF80: -18.16954866 | AH80: 0 | AI80: 0 | AK80: 0 | AL80: 0
A81: 524.81 | B81: 0.52481 | C81: 1.061600781 | D81: 0.3423341618 | E81: 1.000000574 | F81: 0.001071680095 | G81: 1 | H81: 0 | I81: 10.66486711 | J81: 1.476892563 | K81: 1.002172313 | L81: 0.06585420579 | M81: 1.000002805 | N81: 0.002368606961 | O81: 1.00000465 | P81: 0.003049630541 | Q81: 4.156619599 | R81: 0.005115277872 | S81: 1.000002058 | T81: 0.004229424967 | U81: 48.68893774 | V81: -100.8958349 | W81: 79.10416514 | Y81: 1000000000 | Z81: 275425.5361 | AB81: 45.12573925 | AC81: -80.98225385 | AE81: 41.95856363 | AF81: -19.79522813 | AH81: 0 | AI81: 0 | AK81: 0 | AL81: 0
A82: 575.44 | B82: 0.57544 | C82: 1.0736301 | D82: 0.3725024863 | E82: 1.00000069 | F82: 0.001175068208 | G82: 1 | H82: 0 | I82: 11.68508781 | J82: 1.48511236 | K82: 1.002611098 | L82: 0.07218627692 | M82: 1.000003373 | N82: 0.00259711262 | O82: 1.000005591 | P82: 0.00334383548 | Q82: 4.156630509 | R82: 0.005608754348 | S82: 1.000002475 | T82: 0.004637451187 | U82: 47.80131809 | V82: -102.7744756 | W82: 77.2255244 | Y82: 1000000000 | Z82: 331131.1936 | AB82: 44.33600582 | AC82: -81.10350503 | AE82: 41.86069203 | AF82: -21.54120028 | AH82: 0 | AI82: 0 | AK82: 0 | AL82: 0
A83: 630.96 | B83: 0.63096 | C83: 1.087917806 | D83: 0.4047850059 | E83: 1.00000083 | F83: 0.001288441831 | G83: 1 | H83: 0 | I83: 12.80460047 | J83: 1.49261979 | K83: 1.00313843 | L83: 0.07912324072 | M83: 1.000004055 | N83: 0.002847687741 | O83: 1.000006721 | P83: 0.003666454963 | Q83: 4.156643626 | R83: 0.006149889177 | S83: 1.000002975 | T83: 0.0050848861 | U83: 46.89634949 | V83: -104.7028302 | W83: 75.29716979 | Y83: 1000000000 | Z83: 398110.5216 | AB83: 43.54588608 | AC83: -81.1505472 | AE83: 41.74586077 | AF83: -23.40999271 | AH83: 0 | AI83: 0 | AK83: 0 | AL83: 0
A84: 691.83 | B84: 0.69183 | C84: 1.10484903 | D84: 0.4391790465 | E84: 1.000000998 | F84: 0.001412740288 | G84: 1 | H84: 0 | I84: 14.03268186 | J84: 1.499473658 | K84: 1.003771987 | L84: 0.08671987822 | M84: 1.000004875 | N84: 0.003122408287 | O84: 1.000008081 | P84: 0.004020161719 | Q84: 4.156659396 | R84: 0.006743164562 | S84: 1.000003577 | T84: 0.005575436953 | U84: 45.97217151 | V84: -106.6813573 | W84: 73.31864267 | Y84: 1000000000 | Z84: 478628.7489 | AB84: 42.75587008 | AC84: -81.12372997 | AE84: 41.61171994 | AF84: -25.40161079 | AH84: 0 | AI84: 0 | AK84: 0 | AL84: 0
A85: 758.58 | B85: 0.75858 | C85: 1.124869697 | D85: 0.4756574421 | E85: 1.0000012 | F85: 0.00154904584 | G85: 1 | H85: 0 | I85: 15.38002596 | J85: 1.505731031 | K85: 1.004533246 | L85: 0.09503879456 | M85: 1.000005861 | N85: 0.003423666105 | O85: 1.000009715 | P85: 0.004408035143 | Q85: 4.156678356 | R85: 0.007393744534 | S85: 1.000004301 | T85: 0.006113375158 | U85: 45.02640448 | V85: -108.7086224 | W85: 71.29137761 | Y85: 1000000000 | Z85: 575443.6164 | AB85: 41.96611859 | AC85: -81.02287308 | AE85: 41.45572982 | AF85: -27.51468076 | AH85: 0 | AI85: 0 | AK85: 0 | AL85: 0
A86: 831.76 | B86: 0.83176 | C86: 1.148474683 | D86: 0.5141316072 | E86: 1.000001442 | F86: 0.001698481583 | G86: 1 | H86: 0 | I86: 16.85773521 | J86: 1.511441532 | K86: 1.005447591 | L86: 0.1041438903 | M86: 1.000007046 | N86: 0.003753943248 | O86: 1.00001168 | P86: 0.004833270727 | Q86: 4.156701149 | R86: 0.008106987482 | S86: 1.00000517 | T86: 0.006703133361 | U86: 44.05703328 | V86: -110.7791874 | W86: 69.22081257 | Y86: 1000000000 | Z86: 691824.6976 | AB86: 41.17716757 | AC86: -80.84730061 | AE86: 41.27534021 | AF86: -29.74431666 | AH86: 0 | AI86: 0 | AK86: 0 | AL86: 0
A87: 912.01 | B87: 0.91201 | C87: 1.176230433 | D87: 0.5544814967 | E87: 1.000001734 | F87: 0.00186235439 | G87: 1 | H87: 0 | I87: 18.47873357 | J87: 1.516653615 | K87: 1.006545907 | L87: 0.1141087013 | M87: 1.000008471 | N87: 0.004116127884 | O87: 1.000014043 | P87: 0.005299586771 | Q87: 4.156728555 | R87: 0.008889128218 | S87: 1.000006216 | T87: 0.007349869581 | U87: 43.06158137 | V87: -112.8852676 | W87: 67.11473235 | Y87: 1000000000 | Z87: 831762.2401 | AB87: 40.38917866 | AC87: -80.595741 | AE87: 41.06791394 | AF87: -32.08386107 | AH87: 0 | AI87: 0 | AK87: 0 | AL87: 0
A88: 1000 | B88: 1 | C88: 1.208755946 | D88: 0.5965177002 | E88: 1.000002085 | F88: 0.002042032384 | G88: 1 | H88: 0 | I88: 20.25655509 | J88: 1.521409517 | K88: 1.007864756 | L88: 0.1250084362 | M88: 1.000010185 | N88: 0.004513243476 | O88: 1.000016883 | P88: 0.005810875688 | Q88: 4.156761503 | R88: 0.009746692949 | S88: 1.000007474 | T88: 0.0080589837 | U88: 42.03809592 | V88: -115.0146767 | W88: 64.98532335 | Y88: 1000000000 | Z88: 1000000 | AB88: 39.6026695 | AC88: -80.26647835 | AE88: 40.83098183 | AF88: -34.52269258 | AH88: 0 | AI88: 0 | AK88: 0 | AL88: 0
A89: 1096.5 | B89: 1.0965 | C89: 1.246745877 | D89: 0.6400128655 | E89: 1.000002507 | F89: 0.00223908788 | G89: 1 | H89: 0 | I89: 22.20675793 | J89: 1.525749757 | K89: 1.00944844 | L89: 0.1369280192 | M89: 1.000012245 | N89: 0.004948764673 | O89: 1.000020299 | P89: 0.006371610683 | Q89: 4.156801124 | R89: 0.01068718118 | S89: 1.000008986 | T89: 0.008836681618 | U89: 40.98447536 | V89: -117.1524818 | W89: 62.84751821 | Y89: 1000000000 | Z89: 1202312.25 | AB89: 38.81789787 | AC89: -79.85716747 | AE89: 40.56218602 | AF89: -37.04805035 | AH89: 0 | AI89: 0 | AK89: 0 | AL89: 0
A90: 1202.3 | B90: 1.2023 | C90: 1.290937105 | D90: 0.6846647982 | E90: 1.000003014 | F90: 0.002455134015 | G90: 1 | H90: 0 | I90: 24.34530778 | J90: 1.52970909 | K90: 1.01134901 | L90: 0.1499513662 | M90: 1.000014722 | N90: 0.005426256216 | O90: 1.000024405 | P90: 0.006986380806 | Q90: 4.156848755 | R90: 0.01171828562 | S90: 1.000010804 | T90: 0.009689330567 | U90: 39.89957176 | V90: -119.2792065 | W90: 60.72079351 | Y90: 1000000000 | Z90: 1445525.29 | AB90: 38.03561239 | AC90: -79.36519602 | AE90: 40.25963177 | AF90: -39.64289229 | AH90: 0 | AI90: =IF(AH90>0,W90,0) -> 0 | AK90: 0 | AL90: 0
A91: 1318.3 | B91: 1.3183 | C91: 1.342138892 | D91: 0.7301424937 | E91: 1.000003623 | F91: 0.002692008531 | G91: 1 | H91: 0 | I91: 26.69039655 | J91: 1.533320896 | K91: 1.013629149 | L91: 0.1641714562 | M91: 1.0000177 | N91: 0.005949779064 | O91: 1.000029342 | P91: 0.007660413797 | Q91: 4.156906016 | R91: 0.01284876873 | S91: 1.000012989 | T91: 0.01062418448 | U91: 38.78237349 | V91: -121.3732162 | W91: 58.62678382 | Y91: 1000000000 | Z91: 1737914.89 | AB91: 37.25635213 | AC91: -78.78738175 | AE91: 39.92177054 | AF91: -42.28856359 | AH91: 0 | AI91: 0 | AK91: 0 | AL91: 0
A92: 1445.4 | B92: 1.4454 | C92: 1.401178967 | D92: 0.7760517588 | E92: 1.000004356 | F92: 0.00295154914 | G92: 1 | H92: 0 | I92: 29.26021866 | J92: 1.536613576 | K92: 1.016361661 | L92: 0.1796755164 | M92: 1.000021278 | N92: 0.006523393878 | O92: 1.000035272 | P92: 0.008398936757 | Q92: 4.156974805 | R92: 0.01408739002 | S92: 1.000015615 | T92: 0.01164849755 | U92: 37.63324363 | V92: -123.4093002 | W92: 56.59069979 | Y92: 1000000000 | Z92: 2089181.16 | AB92: 36.4812539 | AC92: -78.12058689 | AE92: 39.54783113 | AF92: -44.96278896 | AH92: 0 | AI92: 0 | AK92: 0 | AL92: 0
A93: 1584.9 | B93: 1.5849 | C93: 1.469087478 | D93: 0.8220858563 | E93: 1.000005237 | F93: 0.003236410324 | G93: 1 | H93: 0 | I93: 32.08105894 | J93: 1.539620236 | K93: 1.019640359 | L93: 0.1965919767 | M93: 1.000025583 | N93: 0.007152966157 | O93: 1.000042409 | P93: 0.009209500162 | Q93: 4.157057588 | R93: 0.01544680312 | S93: 1.000018774 | T93: 0.01277274797 | U93: 36.45054682 | V93: -125.3654989 | W93: 54.63450107 | Y93: 1000000000 | Z93: 2511908.01 | AB93: 35.70976881 | AC93: -77.35968588 | AE93: 39.13673039 | AF93: -47.64844192 | AH93: 0 | AI93: 0 | AK93: 0 | AL93: 0
A94: 1737.8 | B94: 1.7378 | C94: 1.546761468 | D94: 0.8677926759 | E94: 1.000006296 | F94: 0.003548633914 | G94: 1 | H94: 0 | I94: 35.17313878 | J94: 1.542361709 | K94: 1.023566862 | L94: 0.2150030306 | M94: 1.000030757 | N94: 0.007843006947 | O94: 1.000050986 | P94: 0.0100979102 | Q94: 4.157157076 | R94: 0.01693673286 | S94: 1.000022572 | T94: 0.01400499666 | U94: 35.23696635 | V94: -127.2132204 | W94: 52.78677955 | Y94: 1000000000 | Z94: 3019948.84 | AB94: 34.94385925 | AC94: -76.50142144 | AE94: 38.68919285 | AF94: -50.31996333 | AH94: 0 | AI94: 0 | AK94: 0 | AL94: 0
A95: 1905.5 | B95: 1.9055 | C95: 1.635294784 | D95: 0.9128280499 | E95: 1.00000757 | F95: 0.003891078479 | G95: 1 | H95: 0 | I95: 38.56477026 | J95: 1.544863018 | K95: 1.028269105 | L95: 0.2350269434 | M95: 1.00003698 | N95: 0.008599831823 | O95: 1.000061301 | P95: 0.01107229576 | Q95: 4.157276718 | R95: 0.01857079513 | S95: 1.000027139 | T95: 0.0153565288 | U95: 33.99348812 | V95: -128.9285621 | W95: 51.0714379 | Y95: 1000000000 | Z95: 3630930.25 | AB95: 34.18402416 | AC95: -75.54081308 | AE95: 38.20571011 | AF95: -52.95811665 | AH95: 0 | AI95: 0 | AK95: 0 | AL95: 0
A96: 2089.3 | B96: 2.0893 | C96: 1.735725323 | D96: 0.956812766 | E96: 1.000009101 | F96: 0.004266398304 | G96: 1 | H96: 0 | I96: 42.28224508 | J96: 1.547143532 | K96: 1.033891712 | L96: 0.2567543404 | M96: 1.000044458 | N96: 0.00942930415 | O96: 1.000073697 | P96: 0.01214020276 | Q96: 4.157420494 | R96: 0.0203616223 | S96: 1.000032628 | T96: 0.01683782447 | U96: 32.72351663 | V96: -130.4867897 | W96: 49.51321031 | Y96: 1000000000 | Z96: 4365174.49 | AB96: 33.43197872 | AC96: -74.47411405 | AE96: 37.68797677 | AF96: -55.541623 | AH96: 0 | AI96: 0 | AK96: 0 | AL96: 0
A97: 2290.9 | B97: 2.2909 | C97: 1.849299319 | D97: 0.9994734044 | E97: 1.000010942 | F97: 0.004678064366 | G97: 1 | H97: 0 | I97: 46.35994686 | J97: 1.54922431 | K97: 1.040613575 | L97: 0.2803035314 | M97: 1.000053451 | N97: 0.01033909126 | O97: 1.000088605 | P97: 0.01331149865 | Q97: 4.157593401 | R97: 0.02232573226 | S97: 1.00003923 | T97: 0.01846258851 | U97: 31.42923206 | V97: -131.868072 | W97: 48.13192801 | Y97: 1000000000 | Z97: 5248222.81 | AB97: 32.68849147 | AC97: -73.29619151 | AE97: 37.13741122 | AF97: -58.05540293 | AH97: 0 | AI97: 0 | AK97: 0 | AL97: 0
A98: 2511.9 | B98: 2.5119 | C98: 1.977199677 | D98: 1.04052687 | E98: 1.000013155 | F98: 0.00512934329 | G98: 1 | H98: 0 | I98: 50.83023838 | J98: 1.551121729 | K98: 1.048636194 | L98: 0.3057562807 | M98: 1.000064261 | N98: 0.01133640761 | O98: 1.000106523 | P98: 0.01459546643 | Q98: 4.157801225 | R98: 0.02447865275 | S98: 1.000047166 | T98: 0.02024372122 | U98: 30.11506629 | V98: -133.0537656 | W98: 46.94623437 | Y98: 1000000000 | Z98: 6309641.61 | AB98: 31.95552037 | AC98: -72.00371251 | AE98: 36.55649509 | AF98: -60.48378826 | AH98: 0 | AI98: 0 | AK98: 0 | AL98: 0
A99: 2754.2 | B99: 2.7542 | C99: 2.120768621 | D99: 1.079774586 | E99: 1.000015816 | F99: 0.005624114111 | G99: 1 | H99: 0 | I99: 55.73155193 | J99: 1.552852207 | K99: 1.058200015 | L99: 0.3331988762 | M99: 1.000077255 | N99: 0.0124298194 | O99: 1.000128064 | P99: 0.01600312768 | Q99: 4.158051045 | R99: 0.02683881354 | S99: 1.000056707 | T99: 0.02219654255 | U99: 28.7849823 | V99: -134.0300605 | W99: 45.96993946 | Y99: 1000000000 | Z99: 7585617.64 | AB99: 31.2346861 | AC99: -70.59316458 | AE99: 35.94758017 | AF99: -62.81605689 | AH99: 0 | AI99: 0 | AK99: 0 | AL99: 0
A100: 3020 | B100: 3.02 | C100: 2.281520059 | D100: 1.117085119 | E100: 1.000019015 | F100: 0.006166868195 | G100: 1 | H100: 0 | I100: 61.10838986 | J100: 1.554431231 | K100: 1.069590381 | L100: 0.3627138664 | M100: 1.000092885 | N100: 0.01362924387 | O100: 1.000153973 | P100: 0.01754724091 | Q100: 4.158351516 | R100: 0.02942753898 | S100: 1.000068184 | T100: 0.02433879275 | U100: 27.44275241 | V100: -134.7874019 | W100: 45.2125981 | Y100: 1000000000 | Z100: 9120400 | AB100: 30.52755078 | AC100: -69.06127361 | AE100: 35.31288823 | AF100: -65.04543736 | AH100: 0 | AI100: 0 | AK100: 0 | AL100: 0
A101: 3311.3 | B101: 3.3113 | C101: 2.460838748 | D101: 1.152323522 | E101: 1.000022861 | F101: 0.006761688181 | G101: 1 | H101: 0 | I101: 67.00120995 | J101: 1.555870669 | K101: 1.083119441 | L101: 0.3943169022 | M101: 1.000111667 | N101: 0.01494369212 | O101: 1.000185106 | P101: 0.01923939504 | Q101: 4.158712555 | R101: 0.03226416963 | S101: 1.000081978 | T101: 0.02668660333 | U101: 26.09438301 | V101: -135.3194918 | W101: 44.68050824 | Y101: 1000000000 | Z101: 10964707.69 | AB101: 29.83692881 | AC101: -67.40833908 | AE101: 34.65562452 | AF101: -67.16488807 | AH101: 0 | AI101: 0 | AK101: 0 | AL101: 0
A102: 3630.8 | B102: 3.6308 | C102: 2.660531428 | D102: 1.185466545 | E102: 1.000027485 | F102: 0.007414085635 | G102: 1 | H102: 0 | I102: 73.46463149 | J102: 1.557183914 | K102: 1.099169227 | L102: 0.4280473549 | M102: 1.000134255 | N102: 0.01638532915 | O102: 1.000222546 | P102: 0.02109523517 | Q102: 4.159146707 | R102: 0.03537481558 | S102: 1.000098569 | T102: 0.0292617518 | U102: 24.74364761 | V102: -135.6257382 | W102: 44.37426177 | Y102: 1000000000 | Z102: 13182708.64 | AB102: 29.16458367 | AC102: -65.63356962 | AE102: 33.97781585 | AF102: -69.17400893 | AH102: 0 | AI102: 0 | AK102: 0 | AL102: 0
A103: 3981.1 | B103: 3.9811 | C103: 2.882343274 | D103: 1.216489917 | E103: 1.000033044 | F103: 0.008129367339 | G103: 1 | H103: 0 | I103: 80.55125204 | J103: 1.558381552 | K103: 1.118159138 | L103: 0.4638714079 | M103: 1.000161408 | N103: 0.01796586239 | O103: 1.000267554 | P103: 0.02312981198 | Q103: 4.159668578 | R103: 0.03878455019 | S103: 1.000118518 | T103: 0.03208521526 | U103: 23.39594299 | V103: -135.7094376 | W103: 44.29056241 | Y103: 1000000000 | Z103: 15849157.21 | AB103: 28.51324916 | AC103: -63.74018003 | AE103: 33.28214471 | AF103: -71.07230713 | AH103: 0 | AI103: 0 | AK103: 0 | AL103: 0
A104: 4365.2 | B104: 4.3652 | C104: 3.128270201 | D104: 1.245419903 | E104: 1.000039728 | F104: 0.008913656073 | G104: 1 | H104: 0 | I104: 88.32176202 | J104: 1.559473847 | K104: 1.140571804 | L104: 0.5017271405 | M104: 1.000194053 | N104: 0.0196987958 | O104: 1.000321663 | P104: 0.02536048176 | Q104: 4.160295925 | R104: 0.04252225862 | S104: 1.000142509 | T104: 0.03518120212 | U104: 22.05596975 | V104: -135.5787012 | W104: 44.42129883 | Y104: 1000000000 | Z104: 19054971.04 | AB104: 27.88543735 | AC104: -61.73308001 | AE104: 32.57082329 | AF104: -72.86232377 | AH104: 0 | AI104: 0 | AK104: 0 | AL104: 0
A105: 4786.3 | B105: 4.7863 | C105: 3.400438067 | D105: 1.272303769 | E105: 1.000047762 | F105: 0.009773481983 | G105: 1 | H105: 0 | I105: 96.84089881 | J105: 1.560469928 | K105: 1.166944377 | L105: 0.5414954196 | M105: 1.000233293 | N105: 0.02159852475 | O105: 1.000386704 | P105: 0.02780573905 | Q105: 4.161049932 | R105: 0.04661866416 | S105: 1.000171355 | T105: 0.03857554246 | U105: 20.72855542 | V105: -135.2462172 | W105: 44.75378285 | Y105: 1000000000 | Z105: 22908667.69 | AB105: 27.28382533 | AC105: -59.62044313 | AE105: 31.84603033 | AF105: -74.54787282 | AH105: 0 | AI105: 0 | AK105: 0 | AL105: 0
A106: 5248.1 | B106: 5.2481 | C106: 3.701300021 | D106: 1.297221185 | E106: 1.000057423 | F106: 0.0107163948 | G106: 1 | H106: 0 | I106: 106.1835159 | J106: 1.56137853 | K106: 1.197887546 | L106: 0.5830216407 | M106: 1.000280477 | N106: 0.02368168584 | O106: 1.000464907 | P106: 0.03048695103 | Q106: 4.161956408 | R106: 0.05110921148 | S106: 1.000206052 | T106: 0.04229810929 | U106: 19.41767894 | V106: -134.7289479 | W106: 45.27105215 | Y106: 1000000000 | Z106: 27542553.61 | AB106: 26.71076769 | AC106: -57.41258133 | AE106: 31.10942451 | AF106: -76.13479804 | AH106: 0 | AI106: 0 | AK106: 0 | AL106: 0
A107: 5370.3 | B107: 5.3703 | C107: 3.781258906 | D107: 1.303150115 | E107: 1.000060129 | F107: 0.01096590218 | G107: 1 | H107: 0 | I107: 108.6557416 | J107: 1.561592818 | K107: 1.206409944 | L107: 0.593647848 | M107: 1.000293688 | N107: 0.02423289144 | O107: 1.000486804 | P107: 0.03119637276 | Q107: 4.162210202 | R107: 0.05229715181 | S107: 1.00021577 | T107: 0.04328319228 | U107: 19.09318687 | V107: -134.5732357 | W107: 45.42676429 | Y107: 1000000000 | Z107: 28840122.09 | AB107: 26.57231856 | AC107: -56.84760403 | AE107: 30.92372111 | AF107: -76.51664609 | AH107: 0 | AI107: 0 | AK107: 0 | AL107: 0
A108: 5432.85 | B108: 5.43285 | C108: 3.822236928 | D108: 1.306088896 | E108: 1.000061537 | F108: 0.01109361595 | G108: 1 | H108: 0 | I108: 109.9211913 | J108: 1.561698774 | K108: 1.210824415 | L108: 0.5990288505 | M108: 1.000300569 | N108: 0.02451502905 | O108: 1.000498207 | P108: 0.03155948938 | Q108: 4.162342364 | R108: 0.05290516157 | S108: 1.000220831 | T108: 0.04378742755 | U108: 18.93044513 | V108: -134.4911473 | W108: 45.50885267 | Y108: 1000000000 | Z108: 29515859.12 | AB108: 26.50340912 | AC108: -56.56153147 | AE108: 30.83006561 | AF108: -76.70659893 | AH108: 0 | AI108: 0 | AK108: 0 | AL108: 0
A109: 5495.4 | B109: 5.4954 | C109: 3.863247261 | D109: 1.308965308 | E109: 1.000062962 | F109: 0.01122132935 | G109: 1 | H109: 0 | I109: 111.1866422 | J109: 1.561802319 | K109: 1.215273691 | L109: 0.6043706057 | M109: 1.000307528 | N109: 0.02479716276 | O109: 1.000509743 | P109: 0.03192259766 | Q109: 4.162476053 | R109: 0.05351313265 | S109: 1.000225952 | T109: 0.04429166625 | U109: 18.76991052 | V109: -134.4075942 | W109: 45.59240575 | Y109: 1000000000 | Z109: 30199421.16 | AB109: 26.43578345 | AC109: -56.2775692 | AE109: 30.7373355 | AF109: -76.89297851 | AH109: 0 | AI109: 0 | AK109: 0 | AL109: 0
A110: 5559.4 | B110: 5.5594 | C110: 3.905240653 | D110: 1.311845846 | E110: 1.000064437 | F110: 0.01135200295 | G110: 1 | H110: 0 | I110: 112.4814292 | J110: 1.561905853 | K110: 1.219861733 | L110: 0.6097956996 | M110: 1.000314732 | N110: 0.02508583265 | O110: 1.000521682 | P110: 0.03229411461 | Q110: 4.16261442 | R110: 0.05413515691 | S110: 1.000231251 | T110: 0.04480759752 | U110: 18.60788977 | V110: -134.3207002 | W110: 45.67929982 | Y110: 1000000000 | Z110: 30906928.36 | AB110: 26.36788692 | AC110: -55.98920583 | AE110: 30.64339636 | AF110: -77.0800948 | AH110: 0 | AI110: 0 | AK110: 0 | AL110: 0
A111: 5623.4 | B111: 5.6234 | C111: 3.947265759 | D111: 1.314665071 | E111: 1.00006593 | F111: 0.01148267617 | G111: 1 | H111: 0 | I111: 113.7762175 | J111: 1.562007031 | K111: 1.224485409 | L111: 0.6151799806 | M111: 1.000322019 | N111: 0.02537449836 | O111: 1.000533759 | P111: 0.03266562264 | Q111: 4.162754385 | R111: 0.05475713974 | S111: 1.000236613 | T111: 0.04532353247 | U111: 18.4480812 | V111: -134.2324947 | W111: 45.76750534 | Y111: 1000000000 | Z111: 31622627.56 | AB111: 26.30127047 | AC111: -55.70304562 | AE111: 30.55039145 | AF111: -77.26369834 | AH111: 0 | AI111: 0 | AK111: 0 | AL111: 0
A112: 5688.9 | B112: 5.6889 | C112: 3.99030762 | D112: 1.317488861 | E112: 1.000067474 | F112: 0.01161641164 | G112: 1 | H112: 0 | I112: 115.1013535 | J112: 1.562108222 | K112: 1.229253928 | L112: 0.6206483533 | M112: 1.000329563 | N112: 0.0256699253 | O112: 1.000546262 | P112: 0.03304582855 | Q112: 4.162899284 | R112: 0.05539365691 | S112: 1.000242164 | T112: 0.04585156349 | U112: 18.28676793 | V112: -134.1409728 | W112: 45.85902716 | Y112: 1000000000 | Z112: 32363583.21 | AB112: 26.23438598 | AC112: -55.41245552 | AE112: 30.45615646 | AF112: -77.44808108 | AH112: 0 | AI112: 0 | AK112: 0 | AL112: 0
A113: 5754.4 | B113: 5.7544 | C113: 4.03338062 | D113: 1.320252361 | E113: 1.000069037 | F113: 0.01175014669 | G113: 1 | H113: 0 | I113: 116.4264906 | J113: 1.562207111 | K113: 1.234058921 | L113: 0.6260743034 | M113: 1.000337194 | N113: 0.02596534775 | O113: 1.00055891 | P113: 0.0334260249 | Q113: 4.163045855 | R113: 0.0560301297 | S113: 1.000247779 | T113: 0.04637959844 | U113: 18.12767215 | V113: -134.0482933 | W113: 45.95170666 | Y113: 1000000000 | Z113: 33113119.36 | AB113: 26.16877801 | AC113: -55.12416382 | AE113: 30.36286467 | AF113: -77.62900972 | AH113: 0 | AI113: 0 | AK113: 0 | AL113: 0
A114: 5821.4 | B114: 5.8214 | C114: 4.077471213 | D114: 1.32301872 | E114: 1.000070654 | F114: 0.01188694394 | G114: 1 | H114: 0 | I114: 117.7819756 | J114: 1.562305961 | K114: 1.239011246 | L114: 0.6315808043 | M114: 1.000345091 | N114: 0.02626753091 | O114: 1.000571997 | P114: 0.03381491804 | Q114: 4.163197514 | R114: 0.05668113176 | S114: 1.00025359 | T114: 0.04691972992 | U114: 17.96717693 | V114: -133.9523994 | W114: 46.04760059 | Y114: 1000000000 | Z114: 33888697.96 | AB114: 26.10295594 | AC114: -54.83164211 | AE114: 30.26839433 | AF114: -77.81061976 | AH114: 0 | AI114: 0 | AK114: 0 | AL114: 0
A115: 5888.4 | B115: 5.8884 | C115: 4.121592342 | D115: 1.325725873 | E115: 1.00007229 | F115: 0.01202374075 | G115: 1 | H115: 0 | I115: 119.1374617 | J115: 1.562402563 | K115: 1.244000839 | L115: 0.6370432975 | M115: 1.000353079 | N115: 0.02656970927 | O115: 1.000585235 | P115: 0.03420380094 | Q115: 4.163350923 | R115: 0.05733208631 | S115: 1.000259469 | T115: 0.04745986561 | U115: 17.80890131 | V115: -133.8555036 | W115: 46.14449638 | Y115: 1000000000 | Z115: 34673254.56 | AB115: 26.03840492 | AC115: -54.5415127 | AE115: 30.17487487 | AF115: -77.98883778 | AH115: 0 | AI115: 0 | AK115: 0 | AL115: 0
A116: 5957 | B116: 5.957 | C116: 4.166797735 | D116: 1.328438252 | E116: 1.000073984 | F116: 0.01216380387 | G116: 1 | H116: 0 | I116: 120.5253187 | J116: 1.56249922 | K116: 1.249147735 | L116: 0.6425908539 | M116: 1.000361352 | N116: 0.0268790988 | O116: 1.000598947 | P116: 0.03460195988 | Q116: 4.163509808 | R116: 0.05799853626 | S116: 1.000265558 | T116: 0.04801290447 | U116: 17.64909489 | V116: -133.7553584 | W116: 46.24464158 | Y116: 1000000000 | Z116: 35485849 | AB116: 25.97359681 | AC116: -54.24692588 | AE116: 30.08008901 | AF116: -78.16790745 | AH116: 0 | AI116: 0 | AK116: 0 | AL116: 0
A117: 6025.6 | B117: 6.0256 | C117: 4.212033125 | D117: 1.331092392 | E117: 1.000075697 | F117: 0.01230386652 | G117: 1 | H117: 0 | I117: 121.9131769 | J117: 1.562593676 | K117: 1.254332759 | L117: 0.6480927147 | M117: 1.000369721 | N117: 0.02718848319 | O117: 1.000612817 | P117: 0.03500010784 | Q117: 4.163670528 | R117: 0.05866493526 | S117: 1.000271718 | T117: 0.04856594785 | U117: 17.49151355 | V117: -133.6543661 | W117: 46.34563393 | Y117: 1000000000 | Z117: 36307855.36 | AB117: 25.91005614 | AC117: -53.95483084 | AE117: 29.98626323 | AF117: -78.34364049 | AH117: 0 | AI117: 0 | AK117: 0 | AL117: 0
A118: 6095.8 | B118: 6.0958 | C118: 4.258353625 | D118: 1.333750039 | E118: 1.000077471 | F118: 0.01244719544 | G118: 1 | H118: 0 | I118: 123.333406 | J118: 1.562688135 | K118: 1.259677695 | L118: 0.6536758356 | M118: 1.000378384 | N118: 0.02750507815 | O118: 1.000627174 | P118: 0.03540753056 | Q118: 4.163836895 | R118: 0.05934682375 | S118: 1.000278095 | T118: 0.04913189494 | U118: 17.332509 | V118: -133.5502404 | W118: 46.44975959 | Y118: 1000000000 | Z118: 37158777.64 | AB118: 25.84631288 | AC118: -53.65849322 | AE118: 29.89122435 | AF118: -78.52012673 | AH118: 0 | AI118: 0 | AK118: 0 | AL118: 0
A119: 6166 | B119: 6.166 | C119: 4.304703555 | D119: 1.336350474 | E119: 1.000079266 | F119: 0.01259052385 | G119: 1 | H119: 0 | I119: 124.7536362 | J119: 1.562780443 | K119: 1.265061565 | L119: 0.6592116063 | M119: 1.000387147 | N119: 0.02782166759 | O119: 1.000641698 | P119: 0.03581494152 | Q119: 4.164005181 | R119: 0.06002865766 | S119: 1.000284546 | T119: 0.04969784686 | U119: 17.17573167 | V119: -133.4454239 | W119: 46.55457605 | Y119: 1000000000 | Z119: 38019556 | AB119: 25.78383147 | AC119: -53.36474501 | AE119: 29.79715341 | AF119: -78.69333519 | AH119: 0 | AI119: 0 | AK119: 0 | AL119: 0
A120: 6237.8 | B120: 6.2378 | C120: 4.352139357 | D120: 1.338952863 | E120: 1.000081123 | F120: 0.01273711847 | G120: 1 | H120: 0 | I120: 126.2062373 | J120: 1.562872705 | K120: 1.270607902 | L120: 0.6648248432 | M120: 1.000396214 | N120: 0.02814546698 | O120: 1.000656725 | P120: 0.0362316259 | Q120: 4.16417929 | R120: 0.06072597484 | S120: 1.000291221 | T120: 0.05027670304 | U120: 17.01763318 | V120: -133.3375995 | W120: 46.66240051 | Y120: 1000000000 | Z120: 38910148.84 | AB120: 25.72119844 | AC120: -53.06696882 | AE120: 29.70192069 | AF120: -78.86720785 | AH120: 0 | AI120: 0 | AK120: 0 | AL120: 0
A121: 6309.6 | B121: 6.3096 | C121: 4.399603998 | D121: 1.341499117 | E121: 1.000083001 | F121: 0.01288371254 | G121: 1 | H121: 0 | I121: 127.6588396 | J121: 1.562962868 | K121: 1.276193926 | L121: 0.6703891149 | M121: 1.000405386 | N121: 0.02846926046 | O121: 1.000671925 | P121: 0.03664829768 | Q121: 4.164355407 | R121: 0.06142323361 | S121: 1.000297974 | T121: 0.05085556439 | U121: 16.86176088 | V121: -133.2292414 | W121: 46.77075864 | Y121: 1000000000 | Z121: 39811052.16 | AB121: 25.65981976 | AC121: -52.7718775 | AE121: 29.60766247 | AF121: -79.03786459 | AH121: 0 | AI121: 0 | AK121: 0 | AL121: 0
A122: 6383.05 | B122: 6.38305 | C122: 4.448188278 | D122: 1.344047642 | E122: 1.000084944 | F122: 0.01303367484 | G122: 1 | H122: 0 | I122: 129.1448244 | J122: 1.563053005 | K122: 1.281948842 | L122: 0.6760309008 | M122: 1.000414877 | N122: 0.0288004887 | O122: 1.000687654 | P122: 0.03707453163 | Q122: 4.164537649 | R122: 0.06213645461 | S122: 1.000304963 | T122: 0.0514477337 | U122: 16.70455778 | V122: -133.1179327 | W122: 46.88206731 | Y122: 1000000000 | Z122: 40743327.3 | AB122: 25.59829551 | AC122: -52.47276939 | AE122: 29.5122272 | AF122: -79.20922088 | AH122: 0 | AI122: 0 | AK122: 0 | AL122: 0
A123: 6456.5 | B123: 6.4565 | C123: 4.496800825 | D123: 1.346541081 | E123: 1.00008691 | F123: 0.01318363655 | G123: 1 | H123: 0 | I123: 130.6308102 | J123: 1.56314109 | K123: 1.287744198 | L123: 0.6816220828 | M123: 1.000424478 | N123: 0.02913171062 | O123: 1.000703565 | P123: 0.03750075209 | Q123: 4.164721992 | R123: 0.06284961309 | S123: 1.000312033 | T123: 0.05203990854 | U123: 16.54957979 | V123: -133.0062469 | W123: 46.99375309 | Y123: 1000000000 | Z123: 41686392.25 | AB123: 25.53801801 | AC123: -52.17644281 | AE123: 29.41777307 | AF123: -79.37742135 | AH123: 0 | AI123: 0 | AK123: 0 | AL123: 0
A124: 6531.7 | B124: 6.5317 | C124: 4.546599939 | D124: 1.349038671 | E124: 1.000088947 | F124: 0.0133371706 | G124: 1 | H124: 0 | I124: 132.1522018 | J124: 1.563229222 | K124: 1.29371896 | L124: 0.6872943997 | M124: 1.000434422 | N124: 0.02947081752 | O124: 1.000720044 | P124: 0.03793711344 | Q124: 4.164912903 | R124: 0.06357969758 | S124: 1.000319356 | T124: 0.0526461982 | U124: 16.3931618 | V124: -132.8915975 | W124: 47.10840246 | Y124: 1000000000 | Z124: 42663104.89 | AB124: 25.47756285 | AC124: -51.87592198 | AE124: 29.32206537 | AF124: -79.54646372 | AH124: 0 | AI124: 0 | AK124: 0 | AL124: 0
A125: 6606.9 | B125: 6.6069 | C125: 4.5964268 | D125: 1.351482127 | E125: 1.000091006 | F125: 0.01349070402 | G125: 1 | H125: 0 | I125: 133.6735943 | J125: 1.563315348 | K125: 1.299734964 | L125: 0.6929143858 | M125: 1.00044448 | N125: 0.02980991764 | O125: 1.000736713 | P125: 0.03837346034 | Q125: 4.165106017 | R125: 0.06430971503 | S125: 1.000326764 | T125: 0.0532524938 | U125: 16.23897059 | V125: -132.7767269 | W125: 47.22327315 | Y125: 1000000000 | Z125: 43651127.61 | AB125: 25.41834825 | AC125: -51.57828414 | AE125: 29.22734681 | AF125: -79.71240478 | AH125: 0 | AI125: 0 | AK125: 0 | AL125: 0
A126: 6683.85 | B126: 6.68385 | C126: 4.647440987 | D126: 1.353928192 | E126: 1.000093139 | F126: 0.0136478097 | G126: 1 | H126: 0 | I126: 135.2303926 | J126: 1.563401472 | K126: 1.305933066 | L126: 0.6986113714 | M126: 1.000454892 | N126: 0.03015690195 | O126: 1.000753968 | P126: 0.03881994646 | Q126: 4.165305903 | R126: 0.06505665073 | S126: 1.000334433 | T126: 0.0538729049 | U126: 16.08344301 | V126: -132.6590381 | W126: 47.34096191 | Y126: 1000000000 | Z126: 44673850.82 | AB126: 25.35900652 | AC126: -51.27668619 | AE126: 29.13142802 | AF126: -79.87909947 | AH126: 0 | AI126: 0 | AK126: 0 | AL126: 0
A127: 6760.8 | B127: 6.7608 | C127: 4.698482378 | D127: 1.356321127 | E127: 1.000095295 | F127: 0.01380491471 | G127: 1 | H127: 0 | I127: 136.7871919 | J127: 1.563485636 | K127: 1.312173153 | L127: 0.7042543542 | M127: 1.000465424 | N127: 0.030503879 | O127: 1.000771421 | P127: 0.03926641709 | Q127: 4.165508094 | R127: 0.06580351463 | S127: 1.000342191 | T127: 0.05449332237 | U127: 15.93014052 | V127: -132.5412837 | W127: 47.4587163 | Y127: 1000000000 | Z127: 45708416.64 | AB127: 25.30089717 | AC127: -50.97806964 | AE127: 29.03650502 | AF127: -80.04275037 | AH127: 0 | AI127: 0 | AK127: 0 | AL127: 0
A128: 6839.55 | B128: 6.83955 | C128: 4.750744968 | D128: 1.358716786 | E128: 1.000097528 | F128: 0.01396569398 | G128: 1 | H128: 0 | I128: 138.3804085 | J128: 1.563569807 | K128: 1.318602052 | L128: 0.709973852 | M128: 1.000476327 | N128: 0.03085896486 | O128: 1.00078949 | P128: 0.03972331526 | Q128: 4.165717401 | R128: 0.06656777383 | S128: 1.000350224 | T128: 0.05512825919 | U128: 15.7755021 | V128: -132.4207871 | W128: 47.57921292 | Y128: 1000000000 | Z128: 46779444.2 | AB128: 25.24267101 | AC128: -50.67553416 | AE128: 28.94037237 | AF128: -80.20717874 | AH128: 0 | AI128: 0 | AK128: 0 | AL128: 0
A129: 6918.3 | B129: 6.9183 | C129: 4.803034231 | D129: 1.361060296 | E129: 1.000099787 | F129: 0.01412647252 | G129: 1 | H129: 0 | I129: 139.9736261 | J129: 1.563652063 | K129: 1.325073667 | L129: 0.7156376659 | M129: 1.000487356 | N129: 0.03121404294 | O129: 1.000807767 | P129: 0.04018019684 | Q129: 4.16592912 | R129: 0.06733195612 | S129: 1.00035835 | T129: 0.05576320284 | U129: 15.62308672 | V129: -132.3003798 | W129: 47.69962025 | Y129: 1000000000 | Z129: 47862874.89 | AB129: 25.18566868 | AC129: -50.3760789 | AE129: 28.84524214 | AF129: -80.36861964 | AH129: 0 | AI129: 0 | AK129: 0 | AL129: 0
A130: 6998.9 | B130: 6.9989 | C130: 4.856578597 | D130: 1.363406591 | E130: 1.000102125 | F130: 0.01429102734 | G130: 1 | H130: 0 | I130: 141.6042726 | J130: 1.563734334 | K130: 1.331740896 | L130: 0.7213773439 | M130: 1.000498775 | N130: 0.03157745438 | O130: 1.000826691 | P130: 0.04064779413 | Q130: 4.166148313 | R130: 0.06811401005 | S130: 1.000366764 | T130: 0.05641306978 | U130: 15.46933866 | V130: -132.1773123 | W130: 47.82268765 | Y130: 1000000000 | Z130: 48984601.21 | AB130: 25.12856093 | AC130: -50.07275531 | AE130: 28.7488946 | AF130: -80.53085878 | AH130: 0 | AI130: 0 | AK130: 0 | AL130: 0
A131: 7079.5 | B131: 7.0795 | C131: 4.910149115 | D131: 1.365701702 | E131: 1.000104491 | F131: 0.01445558138 | G131: 1 | H131: 0 | I131: 143.2349201 | J131: 1.563814732 | K131: 1.338451561 | L131: 0.727059653 | M131: 1.000510326 | N131: 0.03194085748 | O131: 1.000845833 | P131: 0.04111537363 | Q131: 4.166370032 | R131: 0.06889598157 | S131: 1.000375276 | T131: 0.05706294402 | U131: 15.31781109 | V131: -132.0544882 | W131: 47.94551176 | Y131: 1000000000 | Z131: 50119320.25 | AB131: 25.07266804 | AC131: -49.77261092 | AE131: 28.65355604 | AF131: -80.69016573 | AH131: 0 | AI131: 0 | AK131: 0 | AL131: 0
A132: 7161.95 | B132: 7.16195 | C132: 4.964975407 | D132: 1.367998234 | E132: 1.000106939 | F132: 0.01462391159 | G132: 1 | H132: 0 | I132: 144.9029965 | J132: 1.563895103 | K132: 1.345360518 | L132: 0.7328135433 | M132: 1.000522279 | N132: 0.03231259299 | O132: 1.000865641 | P132: 0.04159366681 | Q132: 4.166599454 | R132: 0.0696958153 | S132: 1.000384085 | T132: 0.05772774239 | U132: 15.16504858 | V132: -131.9291685 | W132: 48.07083154 | Y132: 1000000000 | Z132: 51293527.8 | AB132: 25.01671554 | AC132: -49.46884109 | AE132: 28.55705241 | AF132: -80.85019287 | AH132: 0 | AI132: 0 | AK132: 0 | AL132: 0
A133: 7244.4 | B133: 7.2444 | C133: 5.019827312 | D133: 1.370244589 | E133: 1.000109415 | F133: 0.01479224097 | G133: 1 | H133: 0 | I133: 146.5710738 | J133: 1.563973645 | K133: 1.35231356 | L133: 0.7385084523 | M133: 1.00053437 | N133: 0.03268431956 | O133: 1.000885677 | P133: 0.04207194094 | Q133: 4.166831521 | R133: 0.07049556082 | S133: 1.000392997 | T133: 0.05839254858 | U133: 15.01450078 | V133: -131.8042443 | W133: 48.19575566 | Y133: 1000000000 | Z133: 52481331.36 | AB133: 24.961967 | AC133: -49.16834531 | AE133: 28.46156302 | AF133: -81.00734557 | AH133: 0 | AI133: 0 | AK133: 0 | AL133: 0
A134: 7328.75 | B134: 7.32875 | C134: 5.07596888 | D134: 1.372492458 | E134: 1.000111978 | F134: 0.01496444852 | G134: 1 | H134: 0 | I134: 148.2775916 | J134: 1.564052168 | K134: 1.359471745 | L134: 0.7442741222 | M134: 1.000546883 | N134: 0.03306460294 | O134: 1.000906413 | P134: 0.04256121663 | Q134: 4.16707167 | R134: 0.07131364355 | S134: 1.000402221 | T134: 0.05907268294 | U134: 14.8627208 | V134: -131.6769182 | W134: 48.3230818 | Y134: 1000000000 | Z134: 53710576.56 | AB134: 24.90716895 | AC134: -48.86428444 | AE134: 28.36490172 | AF134: -81.16524104 | AH134: 0 | AI134: 0 | AK134: 0 | AL134: 0
A135: 7413.1 | B135: 7.4131 | C135: 5.132135534 | D135: 1.374691137 | E135: 1.00011457 | F135: 0.01513665517 | G135: 1 | H135: 0 | I135: 149.9841104 | J135: 1.564128904 | K135: 1.366674649 | L135: 0.7499792053 | M135: 1.000559541 | N135: 0.03344487677 | O135: 1.000927388 | P135: 0.04305047192 | Q135: 4.167314585 | R135: 0.07213163184 | S135: 1.000411552 | T135: 0.05975282567 | U135: 14.71314928 | V135: -131.5501383 | W135: 48.44986166 | Y135: 1000000000 | Z135: 54954051.61 | AB135: 24.85356357 | AC135: -48.56359199 | AE135: 28.26925989 | AF135: -81.32031862 | AH135: 0 | AI135: 0 | AK135: 0 | AL135: 0
A136: 7499.45 | B136: 7.49945 | C136: 5.189659077 | D136: 1.376892638 | E136: 1.000117255 | F136: 0.01531294405 | G136: 1 | H136: 0 | I136: 151.7310928 | J136: 1.564205672 | K136: 1.374093927 | L136: 0.7557574119 | M136: 1.000572648 | N136: 0.03383415713 | O136: 1.000949108 | P136: 0.04355130645 | Q136: 4.167566125 | R136: 0.07296891629 | S136: 1.000421216 | T136: 0.06044910387 | U136: 14.56226383 | V136: -131.4209812 | W136: 48.57901881 | Y136: 1000000000 | Z136: 56241750.3 | AB136: 24.79988873 | AC136: -48.25922773 | AE136: 28.17238506 | AF136: -81.47624857 | AH136: 0 | AI136: 0 | AK136: 0 | AL136: 0
A137: 7585.8 | B137: 7.5858 | C137: 5.247207221 | D137: 1.379045861 | E137: 1.00011997 | F137: 0.01548923197 | G137: 1 | H137: 0 | I137: 153.4780761 | J137: 1.564280692 | K137: 1.381558589 | L137: 0.7614733675 | M137: 1.000585907 | N137: 0.03422342724 | O137: 1.00097108 | P137: 0.04405211912 | Q137: 4.167820562 | R137: 0.07380609951 | S137: 1.000430993 | T137: 0.06114539104 | U137: 14.4135826 | V137: -131.2925199 | W137: 48.70748014 | Y137: 1000000000 | Z137: 57544361.64 | AB137: 24.74739615 | AC137: -47.95832946 | AE137: 28.07653603 | AF137: -81.6294129 | AH137: 0 | AI137: 0 | AK137: 0 | AL137: 0
A138: 7674.15 | B138: 7.67415 | C138: 5.306112896 | D138: 1.381200604 | E138: 1.000122781 | F138: 0.01566960199 | G138: 1 | H138: 0 | I138: 155.2655232 | J138: 1.564355702 | K138: 1.389242353 | L138: 0.7672579433 | M138: 1.000599631 | N138: 0.03462170271 | O138: 1.00099382 | P138: 0.0445645085 | Q138: 4.168083891 | R138: 0.07466256723 | S138: 1.000441114 | T138: 0.06185781472 | U138: 14.26368364 | V138: -131.1618617 | W138: 48.8381383 | Y138: 1000000000 | Z138: 58892578.22 | AB138: 24.69487749 | AC138: -47.65401496 | AE138: 27.97950716 | AF138: -81.78335501 | AH138: 0 | AI138: 0 | AK138: 0 | AL138: 0
A139: 7762.5 | B139: 7.7625 | C139: 5.365042666 | D139: 1.383308021 | E139: 1.000125624 | F139: 0.015849971 | G139: 1 | H139: 0 | I139: 157.052971 | J139: 1.564429005 | K139: 1.396972092 | L139: 0.7729786942 | M139: 1.000613513 | N139: 0.03501996719 | O139: 1.001016823 | P139: 0.04507687446 | Q139: 4.168350252 | R139: 0.07551892655 | S139: 1.000451352 | T139: 0.062570248 | U139: 14.11598139 | V139: -131.0320462 | W139: 48.96795385 | Y139: 1000000000 | Z139: 60256406.25 | AB139: 24.64352878 | AC139: -47.35325889 | AE139: 27.88350908 | AF139: -81.93458615 | AH139: 0 | AI139: 0 | AK139: 0 | AL139: 0
A140: 7852.9 | B140: 7.8529 | C140: 5.425363915 | D140: 1.38541694 | E140: 1.000128567 | F140: 0.01603452407 | G140: 1 | H140: 0 | I140: 158.8818942 | J140: 1.564502302 | K140: 1.404927979 | L140: 0.7787668329 | M140: 1.000627881 | N140: 0.03542746116 | O140: 1.001040632 | P140: 0.04560110443 | Q140: 4.168625931 | R140: 0.07639504266 | S140: 1.000461951 | T140: 0.06329922207 | U140: 13.96707006 | V140: -130.9001443 | W140: 49.0998557 | Y140: 1000000000 | Z140: 61668038.41 | AB140: 24.59216563 | AC140: -47.04917024 | AE140: 27.78632873 | AF140: -82.08661136 | AH140: 0 | AI140: 0 | AK140: 0 | AL140: 0
A141: 7943.3 | B141: 7.9433 | C141: =SQRT(1+(A141/pole1)^2) -> 5.485708762 | D141: =ATAN(A141/pole1) -> 1.387479471 | E141: =SQRT(1+(A141/Zero1)^2) -> 1.000131544 | F141: =ATAN(A141/Zero1) -> 0.01621907605 | G141: =IF(VIN_nom>Vout, 1, SQRT(1+(A141/z_RHP)^2)) -> 1 | H141: =IF(VIN_nom>Vout, 0, -ATAN(A141/z_RHP)) -> 0 | I141: =SQRT(1+(A141/Pole2)^2) -> 160.7108183 | J141: =ATAN(A141/Pole2) -> 1.56457393 | K141: =SQRT(1+(A141/Zero2)^2) -> 1.412930404 | L141: =ATAN(A141/Zero2) -> 0.7844895968 | M141: =SQRT(1+(A141/pole4)^2) -> 1.000642415 | N141: =ATAN(A141/pole4) -> 0.03583494337 | O141: =IF(VOUT_setting=1,1,SQRT(1+(A141*zterm1)^2)) -> 1.001064716 | P141: =IF(VOUT_setting=1,0,ATAN(((A141*zterm1)))) -> 0.04612530931 | Q141: 4.168904784 | R141: =IF(VOUT_setting=1,0,ATAN(A141*$Q$4/(1+Afbr-$Q$5*(A141)^2))) -> 0.07727104272 | S141: =SQRT((1-(Z141/pterm2))^2+(A141/pterm1)^2) -> 1.000472674 | T141: =IF((ATAN((A141/pterm1)/(1-A141^2/pterm2))>0),ATAN((A141/pterm1)/(1-A141^2/pterm2)),PI()+ATAN((A141/pterm1)/(1-A141^2/pterm2))) -> 0.06402820644 | U141: =20*LOG10(((E141*K141*G141*O141)/(C141*I141*S141*M141*Q141))*Adc) -> 13.82034728 | V141: =((F141+L141+H141+P141)-(D141+J141+T141+N141+R141))*radconv -> -130.7692294 | W141: =IF(V141>0,V141,V141+180) -> 49.23077055 | Y141: =IF(U141<0,A141,1000000000) -> 1000000000 | Z141: =A141^2 -> 63096014.89 | AB141: =20*LOG10((K141/(I141*M141))*AEA) -> 24.54195958 | AC141: =(L141-(J141+N141))*radconv -> -46.74873103 | AE141: =20*LOG10((E141*G141/(C141*S141))*Acs*Am) -> 27.69018405 | AF141: =(F141+H141-(D141+T141))*radconv -> -82.23597934 | AH141: =SUM((U142<0)*(U141>0))*A141 -> 0 | AI141: 0 | AK141: 0 | AL141: 0
A142: 8035.8 | B142: =A142/1000 -> 8.0358 | C142: 5.547479049 | D142: 1.389543458 | E142: 1.000134625 | F142: 0.01640791404 | G142: 1 | H142: 0 | I142: 162.5822292 | J142: 1.564645554 | K142: 1.421166078 | L142: 0.7902783951 | M142: 1.000657459 | N142: 0.0362518791 | O142: 1.001089644 | P142: 0.04666166526 | Q142: 4.169193399 | R142: 0.07816727083 | S142: 1.000483773 | T142: 0.06477413596 | U142: 13.67242561 | V142: -130.636344 | W142: 49.36365596 | Y142: 1000000000 | Z142: 64574081.64 | AB142: 24.49175101 | AC142: -46.44504974 | AE142: 27.59285597 | AF142: -82.38615607 | AH142: 0 | AI142: 0 | AK142: =SUM((V143<-183)*(V142>-183))*A142 -> 0 | AL142: =IF(AK142>0,U142,0) -> 0
A143: 8128.3 | B143: 8.1283 | C143: 5.609272449 | D143: 1.391561978 | E143: 1.000137742 | F143: 0.01659675086 | G143: 1 | H143: 0 | I143: 164.4536409 | J143: 1.564715548 | K143: 1.429448826 | L143: 0.7960002985 | M143: 1.000672677 | N143: 0.03666880222 | O143: 1.00111486 | P143: 0.04719799435 | Q143: =IF(VOUT_setting=1,1,SQRT((1+Afbr-$Q$5*(A143)^2)^2+(A143*$Q$4)^2)) -> 4.169485334 | R143: 0.07906337467 | S143: 1.000495003 | T143: 0.06552007652 | U143: 13.52668362 | V143: -130.5045874 | W143: 49.49541262 | Y143: 1000000000 | Z143: 66069260.89 | AB143: 24.44268612 | AC143: -46.14510712 | AE143: 27.49656827 | AF143: -82.53372845 | AH143: 0 | AI143: 0 | AK143: 0 | AL143: 0
A144: 8222.95 | B144: 8.22295 | C144: 5.672525263 | D144: 1.393581884 | E144: 1.000140968 | F144: 0.01678997564 | G144: 1 | H144: 0 | I144: 166.3685512 | J144: 1.564785539 | K144: 1.437971971 | L144: 0.8017867708 | M144: 1.000688429 | N144: 0.03709540278 | O144: 1.00114096 | P144: 0.04774676133 | Q144: 4.169787493 | R144: 0.07998017676 | S144: 1.000506628 | T144: 0.0662833667 | U144: 13.37975427 | V144: -130.3709808 | W144: 49.62901915 | Y144: 1000000000 | Z144: 67616906.7 | AB144: 24.39363074 | AC144: -45.84201928 | AE144: 27.39909728 | AF144: -82.6821229 | AH144: 0 | AI144: 0 | AK144: 0 | AL144: 0
A145: 8270.275 | B145: 8.270275 | C145: 5.704160205 | D145: 1.394575037 | E145: 1.000142595 | F145: 0.01688658756 | G145: 1 | H145: 0 | I145: 167.3260066 | J145: 1.564819934 | K145: 1.442251439 | L145: 0.804654312 | M145: 1.000696373 | N145: 0.037308698 | O145: 1.001154124 | P145: 0.04802113405 | Q145: 4.169939875 | R145: 0.080438528 | S145: 1.000512492 | T145: 0.06666501621 | U145: 13.30710678 | V145: -130.3046505 | W145: 49.6953495 | Y145: 1000000000 | Z145: 68397448.58 | AB145: 24.36952875 | AC145: -45.69191285 | AE145: 27.35075499 | AF145: -82.75535779 | AH145: 0 | AI145: 0 | AK145: 0 | AL145: 0
A146: 8317.6 | B146: 8.3176 | C146: 5.735800711 | D146: 1.395557233 | E146: 1.000144232 | F146: 0.01698319916 | G146: 1 | H146: 0 | I146: 168.2834622 | J146: 1.564853937 | K146: 1.446542696 | L146: 0.8075048632 | M146: 1.000704363 | N146: 0.03752198983 | O146: 1.001167362 | P146: 0.04829549954 | Q146: 4.170093127 | R146: 0.08089684578 | S146: 1.000518389 | T146: 0.06704666869 | U146: 13.23499498 | V146: -130.2386419 | W146: 49.76135806 | Y146: 1000000000 | Z146: 69182469.76 | AB146: 24.34570507 | AC146: -45.54275727 | AE146: 27.30267123 | AF146: -82.82796512 | AH146: 0 | AI146: 0 | AK146: 0 | AL146: 0
A147: 8366.05 | B147: 8.36605 | C147: 5.768199037 | D147: 1.396551614 | E147: 1.000145917 | F147: 0.01708210707 | G147: 1 | H147: 0 | I147: 169.2636785 | J147: 1.56488835 | K147: 1.450948067 | L147: 0.8104056855 | M147: 1.00071259 | N147: 0.03774034845 | O147: 1.001180993 | P147: 0.04857637964 | Q147: 4.170250922 | R147: 0.08136602374 | S147: 1.000524462 | T147: 0.06743739682 | U147: 13.1617169 | V147: -130.1714024 | W147: 49.8285976 | Y147: 1000000000 | Z147: 69990792.6 | AB147: 24.32159917 | AC147: -45.39103515 | AE147: 27.25370946 | AF147: -82.90165903 | AH147: 0 | AI147: 0 | AK147: 0 | AL147: 0
A148: 8414.5 | B148: 8.4145 | C148: 5.800603003 | D148: 1.397534886 | E148: 1.000147612 | F148: 0.01718101464 | G148: 1 | H148: 0 | I148: 170.2438949 | J148: 1.564922367 | K148: =SQRT(1+(A148/Zero2)^2) -> 1.455365574 | L148: =ATAN(A148/Zero2) -> 0.8132889221 | M148: 1.000720864 | N148: 0.03795870347 | O148: 1.001194704 | P148: 0.04885725208 | Q148: 4.170409627 | R148: 0.08183516624 | S148: 1.00053057 | T148: 0.06782812811 | U148: 13.08898621 | V148: -130.1045096 | W148: 49.89549035 | Y148: 1000000000 | Z148: 70803810.25 | AB148: 24.2977765 | AC148: -45.2402977 | AE148: 27.20501304 | AF148: -82.97471664 | AH148: 0 | AI148: 0 | AK148: 0 | AL148: 0
A149: 8462.95 | B149: 8.46295 | C149: 5.833012515 | D149: 1.398507233 | E149: 1.000149316 | F149: 0.01727992188 | G149: 1 | H149: 0 | I149: 171.2241115 | J149: 1.564955995 | K149: 1.459795106 | L149: 0.8161546849 | M149: 1.000729187 | N149: 0.03817705487 | O149: 1.001208493 | P149: 0.0491381168 | Q149: 4.170569242 | R149: 0.08230427308 | S149: 1.000536715 | T149: 0.06821886256 | U149: 13.01679595 | V149: -130.0379682 | W149: 49.96203184 | Y149: 1000000000 | Z149: 71621522.7 | AB149: 24.27423288 | AC149: -45.09053891 | AE149: 27.1565792 | AF149: -83.04714846 | AH149: 0 | AI149: 0 | AK149: 0 | AL149: 0
A150: 8511.4 | B150: 8.5114 | C150: 5.865427481 | D150: 1.399468833 | E150: 1.000151031 | F150: 0.01737882878 | G150: 1 | H150: 0 | I150: 172.2043284 | J150: 1.564989239 | K150: 1.464236554 | L150: 0.8190030856 | M150: 1.000737557 | N150: 0.03839540262 | O150: 1.001222361 | P150: 0.04941897376 | Q150: 4.170729768 | R150: 0.08277334406 | S150: 1.000542895 | T150: 0.06860960019 | U150: 12.9451393 | V150: -129.9717822 | W150: 50.02821783 | Y150: 1000000000 | Z150: 72443929.96 | AB150: 24.25096423 | AC150: -44.94175275 | AE150: 27.10840521 | AF150: -83.11896477 | AH150: 0 | AI150: 0 | AK150: 0 | AL150: 0
A151: 8560.95 | B151: 8.56095 | C151: 5.898583938 | D151: 1.400441333 | E151: 1.000152794 | F151: 0.01747998089 | G151: 1 | H151: 0 | I151: 173.2068001 | J151: 1.565022849 | K151: 1.468791052 | L151: 0.8218983142 | M151: 1.000746166 | N151: 0.03861870392 | O151: 1.001236626 | P151: 0.04970619918 | Q151: 4.17089488 | R151: 0.08325302744 | S151: 1.000549252 | T151: 0.06900921237 | U151: 12.87240069 | V151: -129.9044654 | W151: 50.0955346 | Y151: 1000000000 | Z151: 73289864.9 | AB151: 24.22744747 | AC151: -44.79058831 | AE151: 27.05940346 | AF151: -83.19178541 | AH151: 0 | AI151: 0 | AK151: 0 | AL151: 0
A152: 8610.5 | B152: 8.6105 | C152: 5.931745911 | D152: 1.40140296 | E152: 1.000154568 | F152: 0.01758113264 | G152: 1 | H152: 0 | I152: 174.209272 | J152: 1.565056073 | K152: 1.473357786 | L152: 0.8247756191 | M152: 1.000754825 | N152: 0.03884200136 | O152: 1.001250974 | P152: 0.04999341639 | Q152: 4.171060943 | R152: 0.0837326729 | S152: 1.000555646 | T152: 0.06940882792 | U152: 12.8002061 | V152: -129.8375288 | W152: 50.16247125 | Y152: 1000000000 | Z152: 74140710.25 | AB152: 24.20420985 | AC152: -44.64042844 | AE152: 27.01066784 | AF152: -83.26398331 | AH152: 0 | AI152: 0 | AK152: 0 | AL152: 0
A153: 8660.05 | B153: 8.66005 | C153: 5.964913308 | D153: 1.402353894 | E153: 1.000156352 | F153: 0.01768228403 | G153: 1 | H153: 0 | I153: 175.211744 | J153: 1.565088916 | K153: 1.477936642 | L153: 0.8276351189 | M153: 1.000763534 | N153: 0.03906529492 | O153: 1.001265404 | P153: 0.05028062534 | Q153: 4.171227958 | R153: 0.0842122802 | S153: 1.000562078 | T153: 0.06980844686 | U153: 12.72854858 | V153: -129.7709761 | W153: 50.22902392 | Y153: 1000000000 | Z153: 74996466 | AB153: 24.18124721 | AC153: -44.49126672 | AE153: 26.96219556 | AF153: -83.33556874 | AH153: 0 | AI153: 0 | AK153: 0 | AL153: 0
A154: 8709.6 | B154: 8.7096 | C154: 5.99808604 | D154: 1.40329431 | E154: 1.000158146 | F154: 0.01778343506 | G154: 1 | H154: 0 | I154: 176.2142163 | J154: 1.565121385 | K154: 1.482527509 | L154: 0.8304769321 | M154: 1.000772293 | N154: 0.03928858459 | O154: 1.001279916 | P154: 0.050567826 | Q154: 4.171395925 | R154: 0.08469184916 | S154: 1.000568547 | T154: 0.0702080692 | U154: 12.65742129 | V154: -129.704811 | W154: 50.29518898 | Y154: 1000000000 | Z154: 75857132.16 | AB154: 24.15855547 | AC154: -44.34309674 | AE154: 26.91398389 | AF154: -83.40655177 | AH154: 0 | AI154: =IF(AH154>0,W154,0) -> 0 | AK154: 0 | AL154: 0
A155: 8760.325 | B155: 8.760325 | C155: 6.032050844 | D155: 1.404246312 | E155: 1.000159993 | F155: 0.01788698435 | G155: 1 | H155: 0 | I155: 177.2404608 | J155: 1.565154244 | K155: 1.487239565 | L155: 0.8333679371 | M155: 1.000781312 | N155: 0.03951716516 | O155: 1.001294858 | P155: 0.05086182851 | Q155: 4.17156886 | R155: 0.08518275037 | S155: 1.000575208 | T155: 0.0706171715 | U155: 12.58514956 | V155: -129.6374821 | W155: 50.36251793 | Y155: 1000000000 | Z155: 76743294.11 | AB155: 24.13560204 | AC155: -44.19243374 | AE155: 26.86489606 | AF155: -83.47860435 | AH155: 0 | AI155: 0 | AK155: 0 | AL155: 0
A156: 8811.05 | B156: 8.81105 | C156: 6.066021053 | D156: 1.405187652 | E156: 1.000161851 | F156: 0.01799053326 | G156: 1 | H156: 0 | I156: 178.2667055 | J156: 1.565186725 | K156: 1.491963972 | L156: 0.8362406568 | M156: 1.000790382 | N156: 0.0397457416 | O156: 1.001309887 | P156: 0.05115582222 | Q156: 4.171742793 | R156: 0.08567361094 | S156: 1.000581908 | T156: 0.07102627741 | U156: 12.51341939 | V156: -129.5705664 | W156: 50.4294336 | Y156: 1000000000 | Z156: 77634602.1 | AB156: 24.11292406 | AC156: -44.0427965 | AE156: 26.81607564 | AF156: -83.55004629 | AH156: 0 | AI156: 0 | AK156: 0 | AL156: 0
A157: 8861.775 | B157: 8.861775 | C157: 6.099996578 | D157: 1.406118507 | E157: 1.00016372 | F157: 0.01809408178 | G157: 1 | H157: 0 | I157: 179.2929504 | J157: 1.565218834 | K157: 1.496700614 | L157: 0.8390952172 | M157: 1.000799505 | N157: 0.03997431388 | O157: 1.001325003 | P157: 0.05144980709 | Q157: 4.171917722 | R157: 0.08616443063 | S157: 1.000588647 | T157: 0.07143538695 | U157: 12.4422238 | V157: -129.5040673 | W157: 50.49593273 | Y157: 1000000000 | Z157: 78531056.15 | AB157: 24.0905174 | AC157: -43.89417816 | AE157: 26.7675198 | AF157: -83.62088769 | AH157: 0 | AI157: 0 | AK157: 0 | AL157: 0
A158: 8912.5 | B158: 8.9125 | C158: 6.13397733 | D158: 1.407039049 | E158: 1.0001656 | F158: 0.01819762992 | G158: 1 | H158: 0 | I158: 180.3191954 | J158: 1.565250577 | K158: =SQRT(1+(A158/Zero2)^2) -> 1.501449375 | L158: =ATAN(A158/Zero2) -> 0.8419317438 | M158: 1.00080868 | N158: 0.04020288199 | O158: 1.001340205 | P158: 0.05174378305 | Q158: 4.172093649 | R158: 0.08665520922 | S158: 1.000595426 | T158: 0.07184450013 | U158: 12.37155593 | V158: -129.4379877 | W158: 50.56201227 | Y158: 1000000000 | Z158: 79432656.25 | AB158: 24.06837796 | AC158: -43.7465719 | AE158: 26.71922577 | AF158: -83.69113846 | AH158: 0 | AI158: 0 | AK158: 0 | AL158: 0
A159: 8964.4 | B159: 8.9644 | C159: 6.168750537 | D159: 1.407970417 | E159: 1.000167534 | F159: 0.01830357625 | G159: 1 | H159: 0 | I159: 181.3692127 | J159: 1.565282684 | K159: 1.506320561 | L159: 0.8448154415 | M159: 1.000818122 | N159: 0.04043674032 | O159: 1.001355848 | P159: 0.05204455944 | Q159: 4.172274681 | R159: 0.08715731347 | S159: 1.000602402 | T159: 0.07226309387 | U159: 12.29979029 | V159: -129.3708148 | W159: 50.62918522 | Y159: 1000000000 | Z159: 80360467.36 | AB159: 24.04599809 | AC159: -43.59658688 | AE159: 26.67008119 | AF159: -83.76241529 | AH159: 0 | AI159: 0 | AK159: 0 | AL159: 0
A160: 9016.3 | B160: 9.0163 | C160: 6.203529034 | D160: 1.408891343 | E160: 1.000169479 | F160: 0.01840952217 | G160: 1 | H160: 0 | I160: 182.4192302 | J160: 1.565314421 | K160: 1.511204192 | L160: 0.8476805248 | M160: 1.000827619 | N160: 0.04067059423 | O160: 1.001371582 | P160: 0.05234532641 | Q160: 4.172456758 | R160: 0.08765937421 | S160: 1.000609419 | T160: 0.07268169147 | U160: 12.22856295 | V160: -129.3040869 | W160: 50.69591308 | Y160: 1000000000 | Z160: 81293665.69 | AB160: 24.02388956 | AC160: -43.44764694 | AE160: 26.62120494 | AF160: -83.83309408 | AH160: 0 | AI160: 0 | AK160: 0 | AL160: 0
A161: 9068.2 | B161: 9.0682 | C161: 6.238312734 | D161: 1.409802 | E161: 1.000171436 | F161: 0.01851546767 | G161: 1 | H161: 0 | I161: 183.4692479 | J161: 1.565345795 | K161: 1.516100148 | L161: 0.850527127 | M161: 1.00083717 | N161: 0.04090444369 | O161: 1.001387407 | P161: 0.0526460839 | Q161: 4.172639877 | R161: 0.08816139118 | S161: 1.000616477 | T161: 0.07310029296 | U161: 12.15786695 | V161: -129.2378068 | W161: 50.7621932 | Y161: 1000000000 | Z161: 82232251.24 | AB161: 24.00204824 | AC161: -43.29974484 | AE161: 26.5725942 | AF161: -83.90318474 | AH161: 0 | AI161: 0 | AK161: 0 | AL161: 0
A162: 9120.1 | B162: 9.1201 | C162: 6.27310155 | D162: 1.410702557 | E162: 1.000173404 | F162: 0.01862141277 | G162: 1 | H162: 0 | I162: 184.5192657 | J162: 1.565376812 | K162: 1.52100831 | L162: 0.8533553804 | M162: 1.000846776 | N162: 0.04113828867 | O162: 1.001403323 | P162: 0.05294683185 | Q162: 4.172824039 | R162: 0.08866336415 | S162: 1.000623576 | T162: 0.07351889835 | U162: 12.08769543 | V162: -129.1719769 | W162: 50.82802314 | Y162: 1000000000 | Z162: 83176224.01 | AB162: 23.98047006 | AC162: -43.15287332 | AE162: 26.52424616 | AF162: -83.97269698 | AH162: 0 | AI162: 0 | AK162: 0 | AL162: 0
A163: 9173.2 | B163: 9.1732 | C163: 6.308699938 | D163: 1.411613656 | E163: 1.000175428 | F163: 0.01872980702 | G163: 1 | H163: 0 | I163: 185.5935616 | J163: 1.565408183 | K163: 1.526042465 | L163: 0.8562301747 | M163: 1.000856661 | N163: 0.04137753581 | O163: 1.0014197 | P163: 0.05325452359 | Q163: 4.173013538 | R163: 0.08917689764 | S163: 1.000630882 | T163: 0.07394718655 | U163: 12.01643723 | V163: -129.1050931 | W163: 50.89490688 | Y163: 1000000000 | Z163: 84147598.24 | AB163: 23.95866115 | AC163: -43.003665 | AE163: 26.47504926 | AF163: -84.04322769 | AH163: 0 | AI163: 0 | AK163: 0 | AL163: 0
A164: 9226.3 | B164: 9.2263 | C164: 6.344303504 | D164: 1.41251453 | E164: 1.000177465 | F164: 0.01883820084 | G164: 1 | H164: 0 | I164: 186.6678577 | J164: 1.565439192 | K164: 1.53108915 | L164: 0.8590860411 | M164: 1.000866603 | N164: 0.04161677821 | O164: 1.001436172 | P164: 0.05356220524 | Q164: 4.173204129 | R164: 0.08969038454 | S164: 1.00063823 | T164: 0.07437547888 | U164: 11.94571388 | V164: -129.0386852 | W164: 50.96131478 | Y164: 1000000000 | Z164: 85124611.69 | AB164: 23.93711932 | AC164: -42.85552022 | AE164: 26.42612157 | AF164: -84.1131728 | AH164: 0 | AI164: 0 | AK164: 0 | AL164: 0
A165: 9279.4 | B165: 9.2794 | C165: 6.379912162 | D165: 1.413405349 | E165: 1.000179514 | F165: 0.01894659421 | G165: 1 | H165: 0 | I165: 187.742154 | J165: 1.565469847 | K165: 1.536148239 | L165: 0.8619231196 | M165: 1.000876603 | N165: 0.04185601585 | O165: 1.001452738 | P165: 0.05386987674 | Q165: 4.173395811 | R165: 0.0902038246 | S165: 1.000645622 | T165: 0.07480377538 | U165: 11.87551842 | V165: -128.9727552 | W165: 51.0272448 | Y165: 1000000000 | Z165: 86107264.36 | AB165: 23.91584046 | AC165: -42.70843129 | AE165: 26.37746022 | AF165: -84.18254204 | AH165: 0 | AI165: 0 | AK165: 0 | AL165: 0
A166: 9332.5 | B166: 9.3325 | C166: 6.415525827 | D166: 1.414286278 | E166: 1.000181574 | F166: 0.01905498714 | G166: 1 | H166: 0 | I166: 188.8164504 | J166: 1.565500153 | K166: 1.541219612 | L166: 0.8647415499 | M166: 1.00088666 | N166: 0.04209524869 | O166: 1.0014694 | P166: 0.05417753804 | Q166: 4.173588585 | R166: 0.09071721756 | S166: 1.000653056 | T166: 0.07523207605 | U166: 11.80584398 | V166: -128.9073049 | W166: 51.09269509 | Y166: 1000000000 | Z166: 87095556.25 | AB166: 23.89482051 | AC166: -42.56239057 | AE166: 26.32906242 | AF166: -84.25134492 | AH166: 0 | AI166: 0 | AK166: 0 | AL166: 0
A167: 9386.85 | B167: 9.38685 | C167: 6.451982952 | D167: 1.415177872 | E167: 1.000183695 | F167: 0.01916593122 | G167: 1 | H167: 0 | I167: 189.9160365 | J167: 1.565530818 | K167: 1.546422962 | L167: 0.8676071606 | M167: 1.000897012 | N167: 0.0423401082 | O167: 1.001486552 | P167: 0.05449243119 | Q167: 4.173787026 | R167: 0.091242647 | S167: 1.000660711 | T167: 0.0756704635 | U167: 11.7350619 | V167: -128.8408124 | W167: 51.15918756 | Y167: 1000000000 | Z167: 88112952.92 | AB167: 23.87356975 | AC167: -42.41398952 | AE167: 26.27979533 | AF167: -84.32119065 | AH167: 0 | AI167: 0 | AK167: 0 | AL167: 0
A168: 9441.2 | B168: 9.4412 | C168: 6.488445149 | D168: 1.416059447 | E168: 1.000185828 | F168: 0.01927687484 | G168: 1 | H168: 0 | I168: 191.0156228 | J168: 1.565561129 | K168: 1.551638925 | L168: 0.8704535286 | M168: 1.000907425 | N168: 0.04258496262 | O168: 1.001503803 | P168: 0.05480731353 | Q168: 4.17398661 | R168: 0.09176802653 | S168: 1.00066841 | T168: 0.07610885537 | U168: 11.6648115 | V168: -128.7748259 | W168: 51.22517409 | Y168: 1000000000 | Z168: 89136257.44 | AB168: 23.8525819 | AC168: -42.26667049 | AE168: 26.23079849 | AF168: -84.39046256 | AH168: 0 | AI168: 0 | AK168: 0 | AL168: 0
A169: 9495.55 | B169: 9.49555 | C169: 6.524912333 | D169: 1.416931168 | E169: 1.000187973 | F169: 0.01938781798 | G169: 1 | H169: 0 | I169: 192.1152092 | J169: 1.565591093 | K169: 1.556867375 | L169: 0.8732808014 | M169: 1.000917898 | N169: 0.04282981194 | O169: 1.001521153 | P169: 0.05512218499 | Q169: 4.174187336 | R169: 0.09229335588 | S169: 1.000676154 | T169: 0.0765472517 | U169: 11.5950858 | V169: -128.7093468 | W169: 51.29065325 | Y169: 1000000000 | Z169: 90165469.8 | AB169: 23.83185287 | AC169: -42.12042535 | AE169: 26.18206904 | AF169: -84.45917018 | AH169: 0 | AI169: 0 | AK169: 0 | AL169: 0
A170: 9549.9 | B170: 9.5499 | C170: 6.561384419 | D170: 1.417793199 | E170: 1.000190131 | F170: 0.01949876064 | G170: 1 | H170: 0 | I170: 193.2147958 | J170: 1.565620717 | K170: 1.562108187 | L170: 0.8760891256 | M170: 1.000928431 | N170: 0.04307465612 | O170: 1.001538603 | P170: 0.05543704551 | Q170: 4.174389206 | R170: 0.09281863478 | S170: 1.000683943 | T170: 0.07698565251 | U170: 11.52587794 | V170: -128.6443762 | W170: 51.35562377 | Y170: 1000000000 | Z170: 91200590.01 | AB170: 23.81137863 | AC170: -41.97524605 | AE170: 26.13360413 | AF170: -84.52732288 | AH170: 0 | AI170: 0 | AK170: 0 | AL170: 0
A171: 9605.525 | B171: 9.605525 | C171: 6.598717099 | D171: 1.418665584 | E171: 1.000192352 | F171: 0.01961230542 | G171: 1 | H171: 0 | I171: 194.3401778 | J171: 1.565650688 | K171: 1.567484613 | L171: 0.8789438625 | M171: 1.000939273 | N171: 0.04332523876 | O171: 1.001556565 | P171: 0.05575928097 | Q171: 4.174596993 | R171: 0.09335618369 | S171: 1.000691962 | T171: 0.07743434247 | U171: 11.45557569 | V171: -128.5784094 | W171: 51.42159065 | Y171: 1000000000 | Z171: 92266110.53 | AB171: 23.7906838 | AC171: -41.82775622 | AE171: 26.08427328 | AF171: -84.59650928 | AH171: 0 | AI171: 0 | AK171: 0 | AL171: 0
A172: 9661.15 | B172: 9.66115 | C172: 6.636054744 | D172: 1.419528153 | E172: 1.000194586 | F172: 0.01972584969 | G172: 1 | H172: 0 | I172: 195.46556 | J172: 1.565680314 | K172: 1.572873727 | L172: 0.88177906 | M172: 1.000950178 | N172: 0.04357581596 | O172: 1.001574631 | P172: 0.05608150484 | Q172: 4.174805977 | R172: 0.09389367916 | S172: 1.000700028 | T172: 0.07788303716 | U172: 11.38580169 | V172: -128.5129774 | W172: 51.48702261 | Y172: 1000000000 | Z172: 93337819.32 | AB172: 23.77024755 | AC172: -41.68136583 | AE172: 26.03521366 | AF172: -84.66513355 | AH172: 0 | AI172: 0 | AK172: 0 | AL172: 0
A173: 9716.775 | B173: 9.716775 | C173: 6.673397271 | D173: 1.420381069 | E173: 1.000196833 | F173: 0.01983939345 | G173: 1 | H173: 0 | I173: 196.5909424 | J173: 1.565709601 | K173: 1.578275397 | L173: 0.8845948731 | M173: 1.000961145 | N173: 0.04382638768 | O173: 1.001592801 | P173: 0.05640371705 | Q173: 4.175016157 | R173: 0.09443112088 | S173: 1.000708141 | T173: 0.07833173664 | U173: 11.31654895 | V173: -128.4480812 | W173: 51.55191885 | Y173: 1000000000 | Z173: 94415716.4 | AB173: 23.75006582 | AC173: -41.53606634 | AE173: 25.98642237 | AF173: -84.73320507 | AH173: 0 | AI173: 0 | AK173: 0 | AL173: 0
A174: 9772.4 | B174: 9.7724 | C174: 6.710744599 | D174: 1.421224493 | E174: 1.000199093 | F174: 0.0199529367 | G174: 1 | H174: 0 | I174: 197.716325 | J174: 1.565738554 | K174: 1.583689496 | L174: 0.8873914556 | M174: 1.000972176 | N174: 0.0440769539 | O174: 1.001611075 | P174: 0.05672591754 | Q174: 4.175227533 | R174: 0.09496850857 | S174: 1.000716301 | T174: 0.07878044091 | U174: 11.24781063 | V174: -128.3837213 | W174: 51.61627869 | Y174: 1000000000 | Z174: 95499801.76 | AB174: 23.7301346 | AC174: -41.39184926 | AE174: 25.93789654 | AF174: -84.80073299 | AH174: 0 | AI174: 0 | AK174: 0 | AL174: 0
A175: 9829.3 | B175: 9.8293 | C175: 6.748952861 | D175: 1.42207759 | E175: 1.000201418 | F175: 0.02006908198 | G175: 1 | H175: 0 | I175: 198.867503 | J175: 1.565767832 | K175: 1.589240419 | L175: 0.8902324022 | M175: 1.000983524 | N175: 0.0443332577 | O175: 1.001629875 | P175: 0.05705549109 | Q175: 4.175444991 | R175: 0.09551815768 | S175: 1.000724697 | T175: 0.07923943509 | U175: 11.17802193 | V175: -128.3184418 | W175: 51.68155824 | Y175: 1000000000 | Z175: 96615138.49 | AB175: 23.71000161 | AC175: -41.24543764 | AE175: 25.88853017 | AF175: -84.86925565 | AH175: 0 | AI175: 0 | AK175: 0 | AL175: 0
A176: 9886.2 | B176: 9.8862 | C176: 6.787165981 | D176: 1.422921082 | E176: 1.000203756 | F176: 0.02018522672 | G176: 1 | H176: 0 | I176: 200.0186812 | J176: 1.565796773 | K176: 1.59480408 | L176: 0.8930535495 | M176: 1.000994938 | N176: 0.04458955568 | O176: 1.001648784 | P176: 0.05738505224 | Q176: 4.175663701 | R176: 0.09606774961 | S176: 1.000733143 | T176: 0.07969843434 | U176: 11.10875736 | V176: -128.2537244 | W176: 51.74627563 | Y176: 1000000000 | Z176: 97736950.44 | AB176: 23.69012252 | AC176: -41.1001408 | AE176: 25.83943567 | AF176: -84.93722827 | AH176: 0 | AI176: 0 | AK176: 0 | AL176: 0
A177: 9943.1 | B177: 9.9431 | C177: 6.825383875 | D177: 1.423755128 | E177: 1.000206108 | F177: 0.02030137092 | G177: 1 | H177: 0 | I177: 201.1698595 | J177: 1.565825383 | K177: 1.600380346 | L177: 0.8958550594 | M177: 1.001006418 | N177: 0.04484584779 | O177: 1.001667802 | P177: 0.05771460092 | Q177: 4.175883661 | R177: 0.09661728405 | S177: 1.000741638 | T177: 0.08015743871 | U177: 11.04000993 | V177: -128.1895694 | W177: 51.81043063 | Y177: 1000000000 | Z177: 98865237.61 | AB177: 23.67049326 | AC177: -40.95594978 | AE177: 25.79061012 | AF177: -85.00466003 | AH177: 0 | AI177: 0 | AK177: 0 | AL177: 0
A178: 10000 | B178: 10 | C178: 6.863606464 | D178: 1.424579885 | E178: 1.000208474 | F178: 0.02041751457 | G178: 1 | H178: 0 | I178: 202.321038 | J178: 1.565853667 | K178: 1.605969085 | L178: 0.8986370925 | M178: 1.001017964 | N178: 0.045102134 | O178: 1.001686929 | P178: 0.05804413704 | Q178: 4.176104872 | R178: 0.09716676067 | S178: 1.000750183 | T178: 0.08061644821 | U178: 10.97177281 | V178: -128.1259768 | W178: 51.87402316 | Y178: 1000000000 | Z178: 100000000 | AB178: 23.65110987 | AC178: -40.81285571 | AE178: 25.74205065 | AF178: -85.07155991 | AH178: 0 | AI178: 0 | AK178: 0 | AL178: 0
A179: 10058.25 | B179: 10.05825 | C179: 6.902740698 | D179: 1.425414748 | E179: 1.000210909 | F179: 0.02053641325 | G179: 1 | H179: 0 | I179: 203.4995293 | J179: 1.565882291 | K179: 1.611703206 | L179: 0.9014651232 | M179: 1.001029852 | N179: 0.04536449468 | O179: 1.001706622 | P179: 0.05838147861 | Q179: 4.176332626 | R179: 0.09772921386 | S179: 1.000758981 | T179: 0.08108635344 | U179: 10.90243831 | V179: -128.0614581 | W179: 51.93854192 | Y179: 1000000000 | Z179: 101168393.1 | AB179: 23.63151721 | AC179: -40.66749367 | AE179: 25.69261173 | AF179: -85.13950525 | AH179: 0 | AI179: 0 | AK179: 0 | AL179: 0
A180: 10116.5 | B180: 10.1165 | C180: 6.941879689 | D180: 1.426240198 | E180: 1.000213359 | F180: 0.02065531135 | G180: 1 | H180: 0 | I180: 204.6780208 | J180: 1.565910585 | K180: 1.617450126 | L180: 0.9042730798 | M180: 1.001041808 | N180: 0.04562684911 | O180: 1.001726429 | P180: 0.05871880687 | Q180: 4.176561691 | R180: 0.09829160578 | S180: 1.000767832 | T180: 0.08155626412 | U180: 10.83362448 | V180: -127.9975285 | W180: 52.00247153 | Y180: 1000000000 | Z180: 102343572.2 | AB180: 23.61217404 | AC180: -40.52326254 | AE180: 25.64344573 | AF180: -85.20691157 | AH180: 0 | AI180: 0 | AK180: 0 | AL180: 0
A181: 10174.75 | B181: 10.17475 | C181: 6.981023357 | D181: 1.427056391 | E181: 1.000215823 | F181: 0.02077420887 | G181: 1 | H181: 0 | I181: 205.8565125 | J181: 1.565938555 | K181: 1.623209709 | L181: 0.9070611316 | M181: 1.001053834 | N181: 0.04588919726 | O181: 1.00174635 | P181: 0.05905612176 | Q181: 4.176792066 | R181: 0.0988539361 | S181: 1.000776734 | T181: 0.08202618027 | U181: 10.76532437 | V181: -127.9341877 | W181: 52.06581235 | Y181: 1000000000 | Z181: 103525537.6 | AB181: 23.59307632 | AC181: -40.38015296 | AE181: 25.59454969 | AF181: -85.2737879 | AH181: 0 | AI181: 0 | AK181: 0 | AL181: 0
A182: 10233 | B182: 10.233 | C182: 7.020171623 | D182: 1.427863482 | E182: 1.000218301 | F182: 0.0208931058 | G182: 1 | H182: 0 | I182: 207.0350043 | J182: 1.565966207 | K182: 1.62898182 | L182: 0.9098294464 | M182: 1.001065928 | N182: 0.04615153908 | O182: 1.001766386 | P182: 0.05939342319 | Q182: 4.177023751 | R182: 0.09941620447 | S182: 1.000785689 | T182: 0.08249610193 | U182: 10.69753113 | V182: -127.8714351 | W182: 52.1285649 | Y182: 1000000000 | Z182: 104714289 | AB182: 23.57422012 | AC182: -40.23815562 | AE182: 25.54592072 | AF182: -85.34014303 | AH182: 0 | AI182: 0 | AK182: 0 | AL182: 0
A183: 10292.5 | B183: 10.2925 | C183: 7.06016465 | D183: 1.428678651 | E183: 1.000220846 | F183: 0.02101455356 | G183: 1 | H183: 0 | I183: 208.2387858 | J183: 1.565994129 | K183: 1.634890592 | L183: 0.9126369639 | M183: 1.001078353 | N183: 0.04641950399 | O183: 1.001786968 | P183: 0.05973794889 | Q183: 4.177261759 | R183: 0.09999047437 | S183: 1.000794889 | T183: 0.08297611346 | U183: 10.62879942 | V183: -127.8079426 | W183: 52.19205741 | Y183: 1000000000 | Z183: 105935556.2 | AB183: 23.5552046 | AC183: -40.09424979 | AE183: 25.49652098 | AF183: -85.40739298 | AH183: 0 | AI183: 0 | AK183: 0 | AL183: 0
A184: 10352 | B184: 10.352 | C184: 7.100162315 | D184: 1.429484637 | E184: 1.000223407 | F184: 0.0211360007 | G184: 1 | H184: 0 | I184: 209.4425675 | J184: 1.56602173 | K184: 1.640812158 | L184: 0.9154242389 | M184: 1.00109085 | N184: 0.04668746224 | O184: 1.00180767 | P184: 0.06008246038 | Q184: 4.177501134 | R184: 0.1005646789 | S184: 1.000804143 | T184: 0.0834561308 | U184: 10.56058253 | V184: -127.7450624 | W184: 52.25493764 | Y184: 1000000000 | Z184: 107163904 | AB184: 23.53643298 | AC184: -39.95148499 | AE184: 25.44739394 | AF184: -85.4741171 | AH184: 0 | AI184: 0 | AK184: 0 | AL184: 0
A185: 10411.5 | B185: 10.4115 | C185: 7.140164541 | D185: 1.430281592 | E185: 1.000225982 | F185: 0.02125744721 | G185: 1 | H185: 0 | I185: 210.6463493 | J185: 1.566049016 | K185: 1.64674638 | L185: 0.9181914469 | M185: 1.001103419 | N185: 0.04695541377 | O185: 1.00182849 | P185: 0.0604269576 | Q185: 4.177741875 | R185: 0.1011388177 | S185: 1.000813452 | T185: 0.08393615397 | U185: 10.49287354 | V185: -127.6827934 | W185: 52.31720655 | Y185: 1000000000 | Z185: 108399332.2 | AB185: 23.51790129 | AC185: -39.8098515 | AE185: 25.39853666 | AF185: -85.54032419 | AH185: 0 | AI185: 0 | AK185: 0 | AL185: 0
A186: 10471 | B186: 10.471 | C186: 7.180171251 | D186: 1.431069666 | E186: 1.000228572 | F186: 0.02137889309 | G186: 1 | H186: 0 | I186: 211.8501313 | J186: 1.566075991 | K186: 1.65269312 | L186: 0.9209387618 | M186: 1.00111606 | N186: 0.04722335856 | O186: 1.00184943 | P186: 0.06077144045 | Q186: 4.177983982 | R186: 0.1017128905 | S186: 1.000822815 | T186: 0.08441618302 | U186: 10.42566567 | V186: -127.6211348 | W186: 52.37886523 | Y186: 1000000000 | Z186: 109641841 | AB186: 23.49960564 | AC186: -39.66933964 | AE186: 25.34994625 | AF186: -85.60602283 | AH186: 0 | AI186: 0 | AK186: 0 | AL186: 0
A187: 10532 | B187: 10.532 | C187: 7.221191111 | D187: 1.431868543 | E187: 1.000231243 | F187: 0.02150339999 | G187: 1 | H187: 0 | I187: 213.0842609 | J187: 1.56610333 | K187: 1.658802635 | L187: 0.9237348659 | M187: 1.001129094 | N187: 0.04749805121 | O187: 1.001871021 | P187: 0.06112459276 | Q187: 4.17823361 | R187: 0.1023013667 | S187: 1.00083247 | T187: 0.08490831978 | U187: 10.35727673 | V187: -127.5585539 | W187: 52.4414461 | Y187: 1000000000 | Z187: 110923024 | AB187: 23.4810898 | AC187: -39.52643982 | AE187: 25.30040492 | AF187: -85.67285871 | AH187: 0 | AI187: 0 | AK187: 0 | AL187: 0
A188: 10593 | B188: 10.593 | C188: 7.262215528 | D188: 1.432658394 | E188: 1.000233929 | F188: 0.02162790621 | G188: 1 | H188: 0 | I188: 214.3183907 | J188: 1.566130355 | K188: 1.664925023 | L188: 0.9265104274 | M188: 1.001142203 | N188: 0.04777273668 | O188: 1.001892736 | P188: 0.0614777298 | Q188: 4.178484672 | R188: 0.1028897726 | S188: 1.000842182 | T188: 0.08540046277 | U188: 10.28940044 | V188: -127.4966117 | W188: 52.50338828 | Y188: 1000000000 | Z188: 112211649 | AB188: 23.46281401 | AC188: -39.38469856 | AE188: 25.25113806 | AF188: -85.73917788 | AH188: 0 | AI188: 0 | AK188: 0 | AL188: 0
A189: 10654 | B189: 10.654 | C189: 7.303244424 | D189: 1.433439371 | E189: 1.00023663 | F189: 0.02175241177 | G189: 1 | H189: 0 | I189: 215.5525206 | J189: 1.56615707 | K189: 1.671060143 | L189: 0.9292656296 | M189: 1.001155388 | N189: 0.04804741495 | O189: 1.001914577 | P189: 0.06183085149 | Q189: 4.17873717 | R189: 0.103478108 | S189: 1.000851951 | T189: 0.08589261204 | U189: 10.22202986 | V189: -127.4353067 | W189: 52.56469332 | Y189: 1000000000 | Z189: 113507716 | AB189: 23.4447743 | AC189: -39.24410565 | AE189: 25.20214269 | AF189: -85.804989 | AH189: 0 | AI189: 0 | AK189: 0 | AL189: 0
A190: 10715 | B190: 10.715 | C190: 7.344277725 | D190: 1.434211621 | E190: 1.000239347 | F190: 0.02187691665 | G190: 1 | H190: 0 | I190: 216.7866506 | J190: 1.56618348 | K190: 1.677207855 | L190: 0.9320006545 | M190: 1.001168649 | N190: 0.04832208596 | O190: 1.001936542 | P190: 0.06218395774 | Q190: 4.178991102 | R190: 0.1040663723 | S190: 1.000861777 | T190: 0.08638476762 | U190: 10.15515818 | V190: -127.3746371 | W190: 52.62536289 | Y190: 1000000000 | Z190: 114811225 | AB190: 23.42696679 | AC190: -39.10465099 | AE190: 25.1534159 | AF190: -85.87030053 | AH190: 0 | AI190: 0 | AK190: 0 | AL190: 0
A191: 10777.5 | B191: 10.7775 | C191: 7.386324533 | D191: 1.434993962 | E191: 1.000242147 | F191: 0.02200448242 | G191: 1 | H191: 0 | I191: 218.0511283 | J191: 1.56621023 | K191: 1.683519658 | L191: 0.9347821948 | M191: 1.001182314 | N191: 0.0486035036 | O191: 1.001959178 | P191: 0.06254573083 | Q191: 4.179252765 | R191: 0.1046690281 | S191: 1.000871904 | T191: 0.08688903198 | U191: 10.08715258 | V191: -127.3131329 | W191: 52.68686708 | Y191: 1000000000 | Z191: 116154506.2 | AB191: 23.40895826 | AC191: -38.96293717 | AE191: 25.10376645 | AF191: -85.93670858 | AH191: 0 | AI191: 0 | AK191: 0 | AL191: 0
A192: 10840 | B192: 10.84 | C192: 7.428375811 | D192: 1.435767445 | E192: 1.000244964 | F192: 0.02213204748 | G192: 1 | H192: 0 | I192: 219.3156061 | J192: 1.566236672 | K192: 1.689844388 | L192: 0.9375429349 | M192: 1.001196058 | N192: 0.04888491354 | O192: 1.001981944 | P192: 0.06290748752 | Q192: 4.179515934 | R192: 0.1052716086 | S192: 1.000882091 | T192: 0.08739330303 | U192: 10.01965665 | V192: -127.2522919 | W192: 52.74770805 | Y192: 1000000000 | Z192: 117505600 | AB192: 23.3911855 | AC192: -38.82239701 | AE192: 25.05439286 | AF192: -86.00260959 | AH192: 0 | AI192: 0 | AK192: 0 | AL192: 0
A193: 10902.5 | B193: 10.9025 | C193: 7.470431484 | D193: 1.436532221 | E193: 1.000247796 | F193: 0.02225961181 | G193: 1 | H193: 0 | I193: 220.5800841 | J193: 1.56626281 | K193: 1.696181901 | L193: 0.9402830657 | M193: 1.001209882 | N193: 0.04916631573 | O193: 1.002004841 | P193: 0.06326922773 | Q193: 4.179780608 | R193: 0.1058741133 | S193: 1.000892338 | T193: 0.08789758082 | U193: 9.952663456 | V193: -127.1921121 | W193: 52.80788793 | Y193: 1000000000 | Z193: 118864506.2 | AB193: 23.37364456 | AC193: -38.68301986 | AE193: 25.00529214 | AF193: -86.06801207 | AH193: 0 | AI193: 0 | AK193: 0 | AL193: 0
A194: 10965 | B194: 10.965 | C194: 7.512491476 | D194: 1.437288433 | E194: 1.000250645 | F194: 0.02238717542 | G194: 1 | H194: 0 | I194: 221.8445622 | J194: 1.566288651 | K194: 1.702532055 | L194: 0.9430027763 | M194: 1.001223785 | N194: 0.04944771013 | O194: 1.00202787 | P194: 0.06363095136 | Q194: 4.180046787 | R194: 0.1064765417 | S194: 1.000902645 | T194: 0.08840186538 | U194: 9.886166187 | V194: -127.1325911 | W194: 52.86740895 | Y194: 1000000000 | Z194: 120231225 | AB194: 23.35633161 | AC194: -38.54479519 | AE194: 24.95646133 | AF194: -86.13292436 | AH194: 0 | AI194: 0 | AK194: 0 | AL194: 0
A195: 11028.75 | B195: 11.02875 | C195: 7.555397045 | D195: 1.438051095 | E195: 1.000253568 | F195: 0.02251728955 | G195: 1 | H195: 0 | I195: 223.13433 | J195: 1.566314706 | K195: 1.709022089 | L195: 0.9457560388 | M195: 1.001238047 | N195: 0.04973472435 | O195: 1.002051494 | P195: 0.06399989228 | Q195: 4.180319839 | R195: 0.1070909398 | S195: 1.00091322 | T195: 0.08891624265 | U195: 9.818842945 | V195: -127.0725559 | W195: 52.92744405 | Y195: 1000000000 | Z195: 121633326.6 | AB195: 23.33890334 | AC195: -38.40498244 | AE195: 24.90692895 | AF195: -86.19863835 | AH195: 0 | AI195: 0 | AK195: 0 | AL195: 0
A196: 11092.5 | B196: 11.0925 | C196: 7.598306958 | D196: 1.438805144 | E196: 1.000256507 | F196: 0.02264740292 | G196: 1 | H196: 0 | I196: 224.424098 | J196: 1.566340463 | K196: 1.715524979 | L196: 0.9484884488 | M196: 1.001252392 | N196: 0.05002173036 | O196: 1.002075255 | P196: 0.06436881576 | Q196: 4.180594456 | R196: 0.1077052577 | S196: 1.000923857 | T196: 0.08943062705 | U196: 9.752021744 | V196: -127.0132013 | W196: 52.98679868 | Y196: 1000000000 | Z196: 123043556.2 | AB196: 23.32170439 | AC196: -38.26634683 | AE196: 24.85767131 | AF196: -86.26385926 | AH196: 0 | AI196: 0 | AK196: 0 | AL196: 0
A197: 11156.25 | B197: 11.15625 | C197: 7.641221143 | D197: 1.439550723 | E197: 1.000259464 | F197: 0.02277751553 | G197: 1 | H197: 0 | I197: 225.7138661 | J197: 1.566365924 | K197: 1.722040581 | L197: 0.951200202 | M197: 1.00126682 | N197: 0.05030872813 | O197: 1.002099152 | P197: 0.06473772169 | Q197: 4.180870638 | R197: 0.1083194951 | S197: 1.000934557 | T197: 0.08994501861 | U197: 9.685695746 | V197: -126.9545245 | W197: 53.04547551 | Y197: 1000000000 | Z197: 124461914.1 | AB197: 23.30473092 | AC197: -38.12887743 | AE197: 24.80868545 | AF197: -86.32859538 | AH197: 0 | AI197: 0 | AK197: 0 | AL197: 0
A198: 11220 | B198: 11.22 | C198: 7.684139529 | D198: 1.440287974 | E198: 1.000262437 | F198: 0.02290762736 | G198: 1 | H198: 0 | I198: 227.0036344 | J198: 1.566391097 | K198: 1.728568751 | L198: 0.9538914923 | M198: 1.00128133 | N198: 0.0505957176 | O198: 1.002123185 | P198: 0.06510660998 | Q198: 4.181148384 | R198: 0.1089336514 | S198: 1.000945319 | T198: 0.09045941738 | U198: 9.619858237 | V198: -126.8965227 | W198: 53.1034773 | Y198: 1000000000 | Z198: 125888400 | AB198: 23.28797915 | AC198: -37.99256341 | AE198: 24.75996841 | AF198: -86.39285478 | AH198: 0 | AI198: 0 | AK198: 0 | AL198: 0
A199: 11285.5 | B199: 11.2855 | C199: 7.728240367 | D199: 1.441036935 | E199: 1.00026551 | F199: 0.02304131008 | G199: 1 | H199: 0 | I199: 228.3288082 | J199: 1.566416664 | K199: 1.735289066 | L199: 0.9566355499 | M199: 1.001296324 | N199: 0.05089057652 | O199: 1.00214802 | P199: 0.06548560613 | Q199: 4.181435383 | R199: 0.109564582 | S199: 1.000956442 | T199: 0.09098794445 | U199: 9.552715281 | V199: -126.8376288 | W199: 53.1623712 | Y199: 1000000000 | Z199: 127362510.2 | AB199: 23.27099455 | AC199: -37.85369956 | AE199: 24.71019099 | AF199: -86.45838996 | AH199: 0 | AI199: 0 | AK199: 0 | AL199: 0
A200: 11351 | B200: 11.351 | C200: 7.772345492 | D200: 1.441777395 | E200: 1.0002686 | F200: 0.02317499198 | G200: 1 | H200: 0 | I200: 229.6539822 | J200: 1.566441936 | K200: 1.742022347 | L200: 0.9593584151 | M200: 1.001311405 | N200: 0.05118542659 | O200: 1.002172999 | P200: 0.06586458345 | Q200: 4.181724033 | R200: 0.1101954261 | S200: 1.00096763 | T200: 0.09151647921 | U200: 9.486074019 | V200: -126.7794413 | W200: 53.22055866 | Y200: 1000000000 | Z200: 128845201 | AB200: 23.25423614 | AC200: -37.71603253 | AE200: 24.66069121 | AF200: -86.52343863 | AH200: 0 | AI200: 0 | AK200: 0 | AL200: 0
A201: 11416.5 | B201: 11.4165 | C201: 7.81645483 | D201: 1.442509499 | E201: 1.000271709 | F201: 0.02330867304 | G201: 1 | H201: 0 | I201: 230.9791563 | J201: 1.566466918 | K201: 1.748768443 | L201: 0.9620602926 | M201: 1.001326574 | N201: 0.05148026775 | O201: 1.002198122 | P201: 0.06624354182 | Q201: 4.182014333 | R201: 0.1108261833 | S201: 1.000978885 | T201: 0.09204502171 | U201: 9.41992756 | V201: -126.7219571 | W201: 53.27804295 | Y201: 1000000000 | Z201: 130336472.2 | AB201: 23.23770008 | AC201: -37.57955087 | AE201: 24.61146604 | AF201: -86.58800898 | AH201: 0 | AI201: 0 | AK201: 0 | AL201: 0
A202: 11482 | B202: 11.482 | C202: 7.86056831 | D202: 1.443233386 | E202: 1.000274835 | F202: 0.02344235328 | G202: 1 | H202: 0 | I202: 232.3043306 | J202: 1.566491615 | K202: 1.755527208 | L202: 0.9647413852 | M202: 1.001341829 | N202: 0.05177509995 | O202: 1.002223389 | P202: 0.06662248113 | Q202: 4.182306284 | R202: 0.111456853 | S202: 1.000990206 | T202: 0.09257357198 | U202: 9.354269137 | V202: -126.6651726 | W202: 53.3348274 | Y202: 1000000000 | Z202: 131836324 | AB202: 23.22138258 | AC202: -37.44424327 | AE202: 24.56251248 | AF202: -86.65210905 | AH202: 0 | AI202: 0 | AK202: 0 | AL202: 0
... 436 more rows

Sheet Variable Management (hidden)
A1: EXCEL Variables Names/Calculations
B2: Input from user =
B3: Output =
B4: Constant
A5: Variable Name | B5: Value | C5: STD Units | E5: Notes | I5: Iteration
A6: Step 1: Operational Specs
A7: VIN_min | B7: ='Design Regulator'!E6 -> 42 | C7: V | D7: Minimum input voltage | I7: 1
A8: VIN_nom | B8: ='Design Regulator'!E7 -> 48 | C8: V | D8: Nominal input voltage | K8: =CHOOSE(SCH_MODE, "Efficiency vs. IOUT (Ch1)", "Efficiency vs. IOUT - 2 Ph", "Efficiency vs. IOUT - 3 Ph", "Efficiency vs. IOUT - 4 Ph") -> Efficiency vs. IOUT (Ch1) | L8: 1 | N8: DITHER Enabled | O8: 1 | T8: Dual Outputs | U8: 1 | W8: FPWM | X8: 1 | Z8: Internal Compensation | AA8: 1 | AC8: =CHOOSE(SCH_MODE, "Bode Plot (Ch1)", "Bode Plot - 2 Ph", "Bode Plot - 3 Ph", "Bode Plot - 4 Ph") -> Bode Plot (Ch1) | AD8: 1
A9: VIN_max | B9: ='Design Regulator'!E8 -> 54 | C9: V | D9: Maximum input voltage | F9: =CHOOSE(GPN_setting,80,80,80,80,65,65,45) -> 80 | G9: IC max voltage | K9: =IF(MODE=1, "Efficiency vs. IOUT (Ch2)", "N/A - Do Not Use") -> Efficiency vs. IOUT (Ch2) | L9: 2 | N9: DITHER Disabled | O9: 2 | T9: Single Output – 2 Phases | U9: 2 | W9: PFM | X9: 2 | Z9: External Compensation | AA9: 2 | AC9: =IF(MODE=1, "Bode Plot (Ch2)", "N/A - Do Not Use") -> Bode Plot (Ch2) | AD9: 2
K10: PLOT_TYPE | L10: 1 | N10: DITHER Yes/No | O10: 2 | P10: 1 = Yes, 2 = No | T10: Single Output – 3 Phases | U10: 3 | W10: FPWM/PFM | X10: 2 | Z10: COMP_TYPE | AA10: 1 | AC10: BODE_PLOT_TYPE | AD10: 1
A11: Vout | B11: ='Design Regulator'!E9 -> 3.3 | C11: V | D11: Output voltage - channel 1 | T11: Single Output – 4 Phases | U11: 4
A12: Iout | B12: ='Design Regulator'!E10 -> 8 | C12: A | D12: Output current - channel 1 | F12: =CHOOSE(GPN_setting,10,8,6,4,10,6,10) -> 8 | G12: IC max current | I12: 1 | T12: Single/Dual Yes/No | U12: 1
I13: 1 | K13: Adjustable | L13: 1 | N13: 3.3V | O13: 1 | T13: MODE (Single/Dual), DUAL = 1, SINGLE = 2 | U13: =IF(U12=1, 1, 2) -> 1 | W13: BIAS connected to ext. power supply | X13: 1 | Z13: UVLO Divider | AA13: 1
A14: Rout | B14: =Vout/Iout -> 0.4125 | C14: W | D14: Load resistance - Channel 1 | K14: 5V | L14: 2 | N14: 5V | O14: 2 | T14: SINGLE OUTPUT (1 = YES) | U14: =IF(U12=1, 2, 1) -> 2 | W14: BIAS connected to VOUT | X14: 2 | Z14: No UVLO Divider | AA14: 2
K15: 3.3V | L15: 3 | N15: Adjustable | O15: 3 | T15: Number of Phases | U15: =SCH_MODE -> 1 | W15: BIAS connected to GND | X15: 3 | Z15: UVLO_TYPE | AA15: 2
A16: Pout | B16: =Vout*Iout -> 26.4 | C16: W | D16: Output power | K16: 12V | L16: 4 | N16: Ch2 Output Setting | O16: =IF(Vout2=3.3, 1, IF(Vout2=5, 2, 3)) -> 3 | W16: Ext_VCC | X16: 3
K17: Output Voltage Setting | L17: =IF(Vout=3.3, 3, IF(Vout=5, 2, IF(Vout=12,4,1))) -> 3 | W17: BIAS pin connection | X17: =IF(AND(VOUT_setting=3,Ext_VCC=1),"Connect BIAS pin to an external bias supply from 5V to 30V", IF(AND(VOUT_setting=3,Ext_VCC=2), "BIAS pin cannot be connected to VOUT. Connect BIAS pin to an external bias supply from 5V to 30V", IF(AND(VOUT_setting=2,Ext_VCC=2),"Connect BIAS pin to VOUT", IF(AND(VOUT_setting=2,Ext_VCC=1),"Connect BIAS pin to an external bias supply from 5V to 30V",IF(AND(VOUT_setting=4,Ext_VCC=2),"Connect BIAS pin to VOUT",IF(AND(VOUT_setting=4,Ext_VCC=1),"Connect BIAS pin to an external bias supply from 10V to 30V",IF(AND(VOUT_setting=1,Ext_VCC=2),"Connect BIAS pin to VOUT. If VOUT < 5V, connect BIAS pin to an external bias supply from 10V to 30V", IF(AND(VOUT_setting=1,Ext_VCC=1),"Connect BIAS pin to an external bias supply from 10V to 30V","")))))))) -> 
A18: Efficiency | B18: 0.9 | D18: Estimate of efficiency
A19: Pin | B19: =Pout/Efficiency -> 29.33333333 | C19: W | D19: Calculate input power assuming finite efficiency
A21: Iin_Vinmin | B21: =Pin/VIN_min -> 0.6984126984 | C21: A | L21: =Vout -> 3.3
A22: Iin_Vinnom | B22: =Pin/VIN_nom -> 0.6111111111 | C22: A | D22: Input currents at min, nom, max Vin | H22: =AND(OSC=1, OR(Fsw/1000>2530, Fsw/1000<1800)) -> FALSE
A23: Iin_Vinmax | B23: =Pin/VIN_max -> 0.5432098765 | C23: A | H23: =AND(OSC=2, OR(Fsw/1000>500, Fsw/1000<300)) -> FALSE
H24: =OR(H22,H23) -> FALSE
A25: OSC setting | B25: =CHOOSE(OSC, 2200, 440) ->  | C25: kHz | L25: SetVout_IntComp_nEN | M25: 1 | O25: LM708A0(-Q1) | P25: 1
A26: Fsw | B26: ='Design Regulator'!E11*1000 -> 400000 | C26: Hz | D26: Nominal switching frequency - determines RT resistor (SYNCIN must be 80-120% of this) | L26: SetVout_IntComp_EN | M26: 2 | O26: LM70880(-Q1) | P26: 2
A27: RT resistor to AGND | B27: =((1000000000/Fsw)-53)/45+0.1 -> 54.47777778 | C27: kΩ | L27: SetVout_ExtComp_nEN | M27: 3 | O27: LM70860(-Q1) | P27: 3
C28: kΩ | I28: 1 | L28: SetVout_ExtComp_EN | M28: 4 | O28: LM70840(-Q1) | P28: 4
A29: Tsw | B29: =1/Fsw -> 2.5e-06 | C29: sec | D29: Switching period | L29: AdjVout_IntComp_nEN | M29: 5 | O29: LM706A0(-Q1) | P29: 5
A30: Vref | B30: 0.8 | C30: V | D30: Reference voltage | L30: AdjVout_IntComp_EN | M30: 6 | O30: LM70660(-Q1) | P30: 6
A31: Rt | B31: ='Standard Value Calculator'!S12/1000 -> 54.9 | C31: kΩ | D31: Frequency set resistor | F31: =IF(OR((Fsw=440000),(Fsw=2200000)),"N/A",Rfadj/1000) -> 0.0549 | L31: AdjVout_ExtComp_nEN | M31: 7 | O31: LM704A0(-Q1) | P31: 7
L32: AdjVout_ExtComp_EN | M32: 8 | O32: GPN setting | P32: 2
A33: Step 2: Buck Inductor | B33: Channel 1 | L33: SetVout_IntComp_nEN_BIAS_GND | M33: 9
A34: Don1 | B34: =Vout/VIN_nom -> 0.06875 | F34: Ideal Duty Cycle at VIN(nom) | L34: SetVout_IntComp_EN_BIAS_GND | M34: 10
A35: Doff1 | B35: =1-34:34 -> 0.93125 | F35: Ideal 1- Duty Cycle at VIN(nom) | L35: SetVout_ExtComp_nEN_BIAS_GND | M35: 11
L36: SetVout_ExtComp_EN_BIAS_GND | M36: 12
A37: D_Vinmin | B37: =Vout/VIN_min -> 0.07857142857 | L37: AdjVout_IntComp_nEN_BIAS_GND | M37: 13
A38: D_Vinnom | B38: =Vout/VIN_nom -> 0.06875 | L38: AdjVout_IntComp_EN_BIAS_GND | M38: 14
A39: D_Vinmax | B39: =Vout/VIN_max -> 0.06111111111 | L39: AdjVout_ExtComp_nEN_BIAS_GND | M39: 15
L40: AdjVout_ExtComp_EN_BIAS_GND | M40: 16
A41: L_Vinnom | B41: =(VIN_nom-Vout)*D1_Vinnom/(Fsw*(Iout/Number_of_Phases)*0.3) -> 3.201171875e-06 | C41: H | F41: Calculated inductance for 35% ripple at VIN(nom) | L41: PRE_schematic setting | M41: =IF(OR(Vout=3.3,Vout=5,Vout=12),CHOOSE(COMP_TYPE,IF(UVLO_TYPE=2,1,2),IF(UVLO_TYPE=2,3,4)),CHOOSE(COMP_TYPE,IF(UVLO_TYPE=2,5,6),IF(UVLO_TYPE=2,7,8))) -> 1
A42: L_slopecomp | B42: =1000*Vout*Rs/24/Fsw -> 1.71875e-06 | C42: H | F42: Calculated inductance based on one times inductor downslope | L42: Schematic_setting | M42: =IF(Ext_VCC=3, PRE_schematic_setting+8, PRE_schematic_setting) -> 9
A44: Lopt | B44: =B42 -> 1.71875e-06 | C44: H | F44: Slope comp
A46: Lo | B46: ='Design Regulator'!E28/1000000 -> 2.2e-06 | C46: H | F46: Chosen inductance
A47: Rdcr | B47: ='Design Regulator'!E29/1000 -> 0.0038 | C47: W | F47: Chosen inductor DCR
A49: Don2 | B49: =(Vout+Iout*(Rdcr+Rs))/(Vin+Iout*Rs) -> 0.0701582015
A50: Doff2 | B50: =1-_Don2 -> 0.9298417985
A52: D_Vinmin_2 | B52: =CHOOSE(MODE, (Vout+Iout*(Rdcr+Rs))/(VIN_min+Iout*Rs), (Vout+Iout/Number_of_Phases*(Rdcr+Rs))/(VIN_min+Iout/Number_of_Phases*Rs)) -> 0.08017126546 | F52: Duty cycles adjusted for DCR/shunt voltage drops
A53: D_Vinnom_2 | B53: =CHOOSE(MODE, (Vout+Iout*(Rdcr+Rs))/(VIN_nom+Iout*Rs), (Vout+Iout/Number_of_Phases*(Rdcr+Rs))/(VIN_nom+Iout/Number_of_Phases*Rs)) -> 0.0701582015 | F53: need to include RDS(on) later
A54: D_Vinmax_2 | B54: =CHOOSE(MODE, (Vout+Iout*(Rdcr+Rs))/(VIN_max+Iout*Rs), (Vout+Iout/Number_of_Phases*(Rdcr+Rs))/(VIN_max+Iout/Number_of_Phases*Rs)) -> 0.06236861584
A56: Iripple_Vinmin | B56: =(VIN_min-Vout)*D1_Vinmin_2/(Fsw*Lf) -> 3.525713606 | C56: A
A57: Iripple_Vinnom | B57: =(VIN_nom-Vout)*D1_Vinnom_2/(Fsw*Lf) -> 3.563717735 | C57: A
A58: Iripple_Vinmax | B58: =(VIN_max-Vout)*D1_Vinmax_2/(Fsw*Lf) -> 3.593282754 | C58: A
A60: Ishunt_rms_Vinmin | B60: =SQRT((Iout/Number_of_Phases)^2+(Iripple_Vinmin^2)/12) -> 8.064483123 | C60: A
A61: Ishunt_rms_Vinnom | B61: =SQRT((Iout/Number_of_Phases)^2+(Iripple_Vinnom^2)/12) -> 8.065875051 | C61: A
A62: Ishunt_rms_Vinmax | B62: =SQRT((Iout/Number_of_Phases)^2+(Iripple_Vinmax^2)/12) -> 8.066968043 | C62: A
A63: Max shunt power loss at full load | B63: =B61^2*Rs -> 0.3252917017 | C63: W | F63: Note this is power loss at full load - not loss near OCP!
A65: Max inductor ripple current | B65: =MAX(B56:B58) -> 3.593282754 | C65: A | F65: Ripple current at Vin(max)
B67: =B56/(Iout/Number_of_Phases) -> 0.4407142008
A68: % ripple current | B68: =B57/(Iout/Number_of_Phases) -> 0.4454647169
B69: =B58/(Iout/Number_of_Phases) -> 0.4491603442
A71: Inductor copper temerature | B71: 100 | C71: °C
A72: DCR at hot | B72: =Rdcr*(1+0.0039*(B71-25)) -> 0.0049115 | C72: W
A75: Step 3: Sense Resistors, Slope Comp, Current Limit
A77: Ilimit_DC | B77: ='Design Regulator'!E17 -> 9 | C77: A | F77: Chosen OCP level - based on output current
A79: Ilimit_inductor_Vinmin | B79: =CHOOSE(MODE, Ilimit_DC+Iripple_Vinmin/2, Ilimit_DC/Number_of_Phases+Iripple_Vinmin/2) -> 10.7628568 | C79: A | F79: Peak inductor current at current limit inception
A80: Ilimit_inductor_Vinnom | B80: =CHOOSE(MODE, Ilimit_DC+Iripple_Vinnom/2, Ilimit_DC/Number_of_Phases+Iripple_Vinnom/2) -> 10.78185887 | C80: A
A81: Ilimit_inductor_Vinmax | B81: =CHOOSE(MODE, Ilimit_DC+Iripple_Vinmax/2, Ilimit_DC/Number_of_Phases+Iripple_Vinmax/2) -> 10.79664138 | C81: A
A84: CS threshold_min | B84: 0.05 | C84: V
A85: CS threshold | B85: 0.056 | C85: V
A86: CS threshold_max | B86: 0.062 | C86: V
A88: Shunt required to get OCP at VIN(min) | B88: =Buck_CS_threshold/B79 -> 0.005203079538 | C88: W
A89: Shunt required to get OCP at VIN(nom) | B89: =Buck_CS_threshold/B80 -> 0.005193909574 | C89: W
A90: Shunt required to get OCP at VIN(max) | B90: =Buck_CS_threshold/B81 -> 0.005186798195 | C90: W
A92: Rs_ideal | B92: =B89 -> 0.005193909574 | C92: W | F92: Ideal Rs for the required OCP -- based on 73mV CL threshold
A93: Rs | B93: ='Design Regulator'!E19/1000 -> 0.005 | C93: W | F93: Selected (starndard value) current limit sense resistor
A95: Current limit - peak | B95: =Buck_CS_threshold/Rs -> 11.2 | C95: A | F95: Peak inductor current limit = min sat current
A97: Iout_OCP_Vinmin | B97: =Number_of_Phases*(Buck_CS_threshold/Rs-Iripple_Vinmin/2) -> 9.437143197 | C97: A | F97: Current limit setpoints (i.e. IOUT) after standard components are selected
A98: Iout_OCP_Vinnom | B98: =Number_of_Phases*(Buck_CS_threshold/Rs-Iripple_Vinnom/2) -> 9.418141132 | C98: A
A99: Iout_OCP_Vinmax | B99: =Number_of_Phases*(Buck_CS_threshold/Rs-Iripple_Vinmax/2) -> 9.403358623 | C99: A
A101: Irms_OCP_Vinmin | B101: =SQRT((Iout_OCP_Vinmin/Number_of_Phases)^2+(Iripple_Vinmin^2)/12) -> 9.491868086 | C101: A
A102: Irms_OCP_Vinnom | B102: =SQRT((Iout_OCP_Vinnom/Number_of_Phases)^2+(Iripple_Vinnom^2)/12) -> 9.474160793 | C102: A
A103: Irms_OCP_Vinmax | B103: =SQRT((Iout_OCP_Vinmax/Number_of_Phases)^2+(Iripple_Vinmax^2)/12) -> 9.460397815 | C103: A
A105: Pshunt_Vinmin | B105: =B101^2*Rs -> 0.4504777988 | C105: W | F105: Max power dissipations in shunt
A106: Pshunt_Vinnom | B106: =B102^2*Rs -> 0.4487986137 | C106: W
A107: Pshunt_Vinmax | B107: =B103^2*Rs -> 0.447495634 | C107: W
A110: Step 4: Output Capacitor
A111: Icoutrms_VINmin | B111: =Iripple_Vinmin/SQRT(12) -> 1.01778585 | C111: A | F111: Output Cap RMS current
A112: Icoutrms_VINnom | B112: =Iripple_Vinnom/SQRT(12) -> 1.028756697 | C112: A
A113: Icoutrms_VINmax | B113: =Iripple_Vinmax/SQRT(12) -> 1.037291383 | C113: A
A114: Max Cout rms current | B114: =MAX(B111:B113) -> 1.037291383 | C114: A
A116: Vripple1 | B116: ='Design Regulator'!E33/1000 -> 0.033 | C116: V | F116: Output voltage ripple spec(pk-pk)
A118: Output Ripple Spec (pk-pk) | B118: =Vo1_ripple*1000 -> 33 | C118: mV | F118: Vout ripple spec at Vin(nom)
A120: Coutmin | B120: =Iripple_Vinnom/(Fsw*8*Vo1_ripple) -> 3.374732704e-05 | C120: F | F120: Minimum output capacitnace | H120: =Vo2_ripple -> 0 | I120: 1
A121: Reported Coutmin | B121: =IF(Cout_min*1000000<2, 2.2,Cout_min*1000000) -> 33.74732704 | C121: uF
A122: Cout | B122: ='Design Regulator'!E36/1000000 -> 0.000325 | C122: F | F122: Chosen output capacitance | I122: 1
A123: Resrmax | B123: =SQRT((Vo1_ripple/Iripple_Vinnom)^2-(1/(Fsw*Cout*8))^2) -> 0.009209935259 | C123: W | F123: Max ESR before ripple exceeds Vripple1 | I123: 1
A124: Cout_min_loadoff | B124: =Lf*((Load_Step/100)*Iout)^2/((Vout+Vo1_ripple)^2-Vout^2)*1000000 -> 160.8121011 | C124: uF | D124: =IF(Load_Step=0, Cout_min*1000000, Cout_min_loadoff) -> 160.8121011
A125: Total COUT with stead-state+load step | B125: =Lf*((Load_Step/100)*Iout)^2/((Vout+Vo1_ripple)^2-Vout^2)*1000000 + (Cout_min*1000000) -> 194.5594281 | C125: uF
A128: Reported Cout ESR max | B128: =IF(OR(CoutEsrMax>0.3, CoutEsrMax<0, (ISERROR(CoutEsrMax))), "N/A", CoutEsrMax*1000) -> 9.209935259 | C128: mΩ
A129: CoutEsr | B129: ='Design Regulator'!E38/1000 -> 0.001 | C129: W | F129: Chosen ESR | I129: 1 | K129: =ISERROR(CoutEsrMax) -> FALSE | L129: =ISERROR(B128) -> FALSE
A130: Vripple | B130: =Iripple_Vinnom*SQRT(Cout_ESR^2+(1/(8*Fsw*Cout))^2) -> 0.004943887717 | C130: Vp-p | L130: =OR(CoutEsrMax>0.3,CoutEsrMax<0) -> FALSE
K131: =OR(TRUE, FALSE, TRUE) -> TRUE
A132: Step 5: Input Capacitor
K133: Two channels operating at full load
A134: Icinrms_VINmin | B134: =SQRT(D1_Vinmin_2*(Iout^2*(1-D1_Vinmin_2)+Iripple_Vinmin^2/12)) -> 2.191495793 | C134: A | D134: =D1_Vinmax -> 0.06111111111 | F134: Calculate input cap rms current with one output unloaded | K134: =SQRT(Iout^2*D1_Vinmin*(1-D1_Vinmin)+Iout2^2*D2_Vinmin*(1-D2_Vinmin)-2*Iout*Iout2*D1_Vinmin*D2_Vinmin) ->  | L134: A | M134: =SQRT(Iout^2*D1_Vinmin*(1-D1_Vinmin)+Iout2^2*D2_Vinmin*(1-D2_Vinmin)-2*Iout*Iout2*(0.5-D2_Vinmin*(1-D1_Vinmin))) ->  | N134: A
A135: Icinrms_VINnom | B135: =SQRT(D1_Vinnom_2*(Iout^2*(1-D1_Vinnom_2)+Iripple_Vinnom^2/12)) -> 2.061396872 | C135: A | D135: =D1_Vinmin -> 0.07857142857 | K135: =SQRT(Iout^2*D1_Vinnom*(1-D1_Vinnom)+Iout2^2*D2_Vinnom*(1-D2_Vinnom)-2*Iout*Iout2*D1_Vinnom*D2_Vinnom) ->  | L135: A
A136: Icinrms_VINmax | B136: =SQRT(D1_Vinmax_2*(Iout^2*(1-D1_Vinmax_2)+Iripple_Vinmax^2/12)) -> 1.951857668 | C136: A | K136: =SQRT(Iout^2*D1_Vinmax*(1-D1_Vinmax)+Iout2^2*D2_Vinmax*(1-D2_Vinmax)-2*Iout*Iout2*D1_Vinmax*D2_Vinmax) ->  | L136: A
A137: Icinrms - multiphase | B137: =Iout*SQRT((D1_Vinmin-F139/Number_of_Phases)*((F139+1)/Number_of_Phases-D1_Vinmin)) -> 2.152549509 | C137: A | K137: =MAX(K134:K136) ->  | L137: A
A138: Max Cin rms current | B138: =MAX(B134:B136) -> 2.191495793 | C138: A | F138: =Number_of_Phases*D1_Vinnom -> 0.06875 | G138: N*D
F139: =FLOOR(Number_of_Phases*D1_Vinnom,1) -> 0 | G139: floor(N*D)
A140: Icinrms - multiphase - max | B140: =Iout/2/Number_of_Phases -> 4 | C140: A
A141: Final result | B141: =IF(D1_Vinmin<0.5, B138, B140) -> 2.191495793 | C141: A | D141: …report this
A143: Vinripple1 | B143: ='Design Regulator'!E43/1000 -> 0.48 | C143: Vp-p | F143: Input voltage ripple spec (pk-pk)
A145: Cinmin_Vinmin | B145: =Iout/Number_of_Phases*D1_Vinmin*(1-D1_Vinmin)/(Vinripple1*Fsw) -> 3.016581633e-06 | C145: F
A146: Cinmin_Vinnom | B146: =Iout/Number_of_Phases*D1_Vinnom*(1-D1_Vinnom)/(Vinripple1*Fsw) -> 2.667643229e-06 | C146: F
A147: Cinmin_Vinmax | B147: =Iout/Number_of_Phases*D1_Vinmax*(1-D1_Vinmax)/(Vinripple1*Fsw) -> 2.3906893e-06 | C147: F | F147: Calculate cap at Vinmax and 50% duty cycle (Vin = 2*Vout)
A149: Cinmin_50%D | B149: =Iout*0.5*(1-0.5)/(Vinripple1*Fsw) -> 1.041666667e-05 | C149: F | F149: Buck 50% typically worst case
A150: Cinmin | B150: =IF(D1_Vinmin<0.5, B145,B149) -> 3.016581633e-06 | C150: F | D150: =(VIN_min+VIN_max)/2 -> 48
A151: Reported Cinmin | B151: =IF(Cinmin*1000000<2.2, 2.2,Cinmin*1000000) -> 3.016581633 | C151: uF | D151: =2*Vout -> 6.6 | F151: …report this
A153: Cin | B153: ='Design Regulator'!E45/1000000 -> 1.5e-05 | C153: F | F153: Input capacitance
A154: CinEsrMax_Vinmax | B154: =-(Iout/Number_of_Phases*D1_Vinmax*(1-D1_Vinmax)/(Cin*Fsw)-Vinripple1)/(Iout/Number_of_Phases+Iripple_Vinmax/2) -> 0.04118737503 | C154: W
A155: CinEsrMax_50%D | B155: =-(Iout/Number_of_Phases*0.5*(1-0.5)/(Cin*Fsw)-Vinripple1)/(Iout/Number_of_Phases+Iripple_Vinmax/2) -> 0.01497111725 | C155: W | F155: Calculate ESR at Vinmax and 50% duty cycle (Vin = 2*Vout)
A156: CinEsrMax | B156: =IF(VIN_max<2*Vout, B154,B155) -> 0.01497111725 | C156: W
A157: Reported Cin ESR max | B157: =IF(OR(CinEsrMax>0.3, CinEsrMax<0), "N/A",CinEsrMax*1000) -> 14.97111725 | C157: mΩ | F157: …report this
A158: RCinEsr | B158: ='Design Regulator'!E47/1000 -> 0.001 | C158: W | F158: Input capacitance series resistance (ESR)
A160: Vinripple2_Vinmin | B160: =Iout/Number_of_Phases*D1_Vinmin_2*(1-D1_Vinmin_2)/(Cin*Fsw)+(Iout/Number_of_Phases +Iripple_Vinmin/2)*RCinEsr -> 0.1080879683 | C160: Vp-p
A161: Vinripple2_Vinnom | B161: =Iout/Number_of_Phases*D1_Vinnom_2*(1-D1_Vinnom_2)/(Cin*Fsw)+(Iout/Number_of_Phases +Iripple_Vinnom/2)*RCinEsr -> 0.09676322988 | C161: Vp-p
A162: Vinripple2_Vinmax | B162: =Iout/Number_of_Phases*D1_Vinmax_2*(1-D1_Vinmax_2)/(Cin*Fsw)+(Iout/Number_of_Phases +Iripple_Vinmax/2)*RCinEsr -> 0.08776833684 | C162: Vp-p
A163: Vinripple2_50%D | B163: =Iout/Number_of_Phases*0.5*(1-0.5)/(Cin*Fsw)+(Iout/Number_of_Phases +Iripple_Vinmax/2)*RCinEsr -> 0.3431299747 | C163: Vp-p | F163: Calculate ripple at Vinmax and 50% duty cycle (Vin = 2*Vout)
A164: Vinripple2 | B164: =IF(D1_Vinmin<0.5, B160,B163) -> 0.1080879683 | C164: Vp-p | F164: …report highest of these
B166: =Iout*D1_Vinmax_2*(1-D1_Vinmax_2)/(Cin*Fsw) -> 0.07797169546 | C166: Vp-p
A168: Step 6a: Soft Start
A169: Tss | B169: ='Design Regulator'!E52/1000 -> 0 | C169: s | D169: Soft-start time
A170: Iss | B170: =Cout*Vout/Tss ->  | C170: A | D170: Load cap current during soft start
A171: Css | B171: =0.000022*Tss/1.2 -> 0 | C171: F
A172: Css_u | B172: ='Standard Value Calculator'!B4 -> 0 | C172: F
A174: Step 6b: Other Components - Dither, Hiccup, DEMB, MODE
A175: Tres | B175: ='Design Regulator'!E55/1000 -> 0.00531 | C175: s | D175: Hiccup time
A176: Cres | B176: =0.00002*Tres/1.2 -> 8.85e-08 | C176: F
A177: Cres_u | B177: ='Standard Value Calculator'!G4 -> 8.2e-08 | C177: F
A179: RPG1/2 | B179: 100 | C179: kΩ
A180: RFB1/2 | C180: W | E180: Tie to VDDA or AGND for 3.3V/5V output, respectively.
A181: R_MODE | C181: W | E181: Tie to VDDA or AGND for Single/Dual operation, respectively.
A182: R_DEMB | C182: W | E182: Tie to VDDA or AGND for FPWM/DEM, respectively.
A184: Enable Hysteresis Current | B184: 1e-05 | C184: A | E184: 10 µA Hysteresis Current
A185: Turn ON Voltage | B185: ='Design Regulator'!E54 -> 5.9
A186: Hysteresis Voltage | B186: 1
A188: Upper FB resistor | B188: =((B185/B186)-1)*B189 -> 100450 | C188: W
A189: Lower FB resister | B189: ='Design Regulator'!E57*1000 -> 20500 | C189: W
A190: Standard upper FB resistor | B190: ='Standard Value Calculator'!S40 -> 100 | C190: kΩ
A191: Standard lower FB resistor | B191: ='Standard Value Calculator'!S41 -> 20.5 | C191: kΩ
A193: Dither Modulation Frequency | B193: ='Design Regulator'!E58*1000 -> 29400 | C193: Hz
A194: Cdither_calculated | B194: =10*10^-6/Fdither/0.12 -> 2.83446712e-09 | C194: F
A195: Cdither_stdvalue | B195: ='Standard Value Calculator'!S21 -> 2.7e-09 | C195: F
A198: Step 7: Compensation
A199: Pi | B199: 3.14159265 | D199: p
A200: CS Amp Gain | B200: 10
A201: Ri | B201: =Rs*CSAmp_gain -> 0.05 | C201: W | F201: Current Sense effective resistance = shunt resistor Rs * CS amp gain
A202: gm | B202: =IF(COMP_TYPE=1,0.00003,0.0012) -> 3e-05 | C202: S | F202: Error Amp Transconductance
A204: Se_ext | B204: =B208/Ri*1000 -> 1818181.818 | C204: A/s | F204: Slope Comp Slope - referred to inductor current
A205: Sn | B205: =(Vin-Vout)/Lf -> 20318181.82 | C205: A/s | F205: On-time Slope
A206: Sf | B206: =Vout/Lf -> 1500000 | C206: A/s | F206: Off-time Slope
A208: Se_int | B208: =Fsw*0.001*(5/22) -> 90.90909091 | C208: mV/μs | F208: Slope Comp Slope - referred to IC
A209: Sn_int | B209: =Sn*Ri/1000 -> 1015.909091 | C209: mV/μs | F209: etc
A210: Sf_int | B210: =Sf*Ri/1000 -> 75 | C210: mV/μs | F210: etc
A212: mc_buck | B212: =1+Se_ext/Sn -> 1.089485459 | F212: mc = 1 + Se/Sn for peak current-mode buck
A213: k_buck | B213: =mc_buck*(1-D1_Vinnom_2) -> 1.013049118 | F213: mc*(1-d)
A215: mc | B215: =1+Se_ext/Sn -> 1.089485459
A216: k | B216: =mc_buck*(1-D1_Vinnom_2) -> 1.013049118
A217: Q | B217: =1/Pi/(k-0.5) -> 0.6204277041 | F217: 1/(Pi*(k-0.5)) | H217: Q = 2/Pi = 0.636 gives ideal one-cycle damping
A219: Error Amp (EA)
A220: GBW | B220: 6 | C220: MHz | F220: EA gain-bandwidth product
A221: Cbw | B221: =gm/(2*Pi*GBW*1000000) -> 7.957747164e-13 | C221: F | F221: EA effective bandwidth limiting capacitance = gm/(2*Pi*GBW)
A222: RoEA | B222: 64000000 | C222: W | F222: EA output resistance
A223: AEA | B223: =gm*RoEA -> 1920 | C223: V/V | F223: EA DC gain = gm*RoEA
A224: Afb | B224: =IF(VOUT_setting=1,Vref/Vout,SQRT((1+(Fcross*zterm1)^2)/((1+Afbr-pterm4*(Fcross)^2)^2+(Fcross*pterm3)^2))) -> 0.2401200383 | C224: V/V | F224: Feedback gain from Vout to FB
A225: Acs | B225: =1/Ri -> 20 | F225: Acs = 1/Ri
A226: Am_buck | B226: =(Ro/Number_of_Phases)/Ri/((1+Ro/Number_of_Phases*(k-0.5)/(Fsw*Lf))) -> 6.650588236
A227: Am | B227: =(Ro*Number_of_Phases)/Ri/((1+Ro*Number_of_Phases*(k-0.5)/(Fsw*Lf))) -> 6.650588236 | F227: Buck modulator gain
A229: Scaling factor to calculate Rcomp - buck | B229: =2*Pi*Ri/gm -> 10471.9755 | F229: 2*Pi*Ri/gm -- scaling factor to calculate Rcomp given desired buck crossover frequency
A230: DC Gain is Adc = AEA*Afb*Am
A232: Ro | B232: =Rout -> 0.4125 | C232: W | F232: Output Resistance
A234: Fp_load_buck | B234: =1/(2*Pi*Ro*Cout)+(k-0.5)/(2*Pi*Fsw*Lf*Cout/Number_of_Phases) -> 1472.674297 | C234: Hz | F234: Buck dominant pole frequency -- note slope comp influence
A235: Fp_dominant | B235: =Fload_u -> 1472.674297 | C235: Hz
B236: =Cbw -> 7.957747164e-13
A237: Fp_EA | B237: =1/(2*Pi*(RoEA+Rcea1_u)*Cc1ea_u) -> 49.42700102 | C237: Hz | F237: Error Amp LF pole -- related to amplifier ouptut resistance and comp cap
A238: Fp_HF | B238: =1/(2*Pi*Rcea1_u*(Cc2ea_u+Cbw)) -> 221568.6381 | C238: Hz | F238: Error Amp HF pole cancels zero related to Output Cap ESR
A239: Fesr | B239: =1/(2*Pi*Cout*Cout_ESR) -> 489707.5178 | C239: Hz | F239: Cout ESR zero frequency
A240: F_mod | B240: =Fsw/2 -> 200000 | C240: Hz | F240: Zero-order sample-and-hold effects of current-mode control modeled as pole at Fsw/2
D241: Internal Comp Crossover
A242: Desired Crossover Frequency | B242: =CHOOSE(COMP_TYPE,Fcross_Ch2,'Design Regulator'!E64*1000) -> 8000 | C242: Hz | D242: =Fsw/50 -> 8000
A243: Rcea1 | B243: =Fcross*Cout/Number_of_Phases*2*Pi*Ri/(gm*Afb) -> 113389.6883 | C243: W | F243: This component will largely determine the crossover frequency | K243: =Fcross/Fp_dominant/(gm*Afb*Am) -> 113389.6883
A244: Cc1ea, Cc3ea | B244: =10/(Rcea1*Fcross*2*Pi) -> 1.754512972e-09 | C244: F | F244: This along with Rcea1 will set a zero at Fcrossover/5 to optimize phase margin
A245: Cc2ea, Cc4ea | B245: =MAX(1/(Rcea1*2*Pi*Fesr)-Cbw, 1/(Rcea1*2*Pi*(Fsw/2))-Cbw) -> 6.222277173e-12 | C245: F | F245: This along with Rcea1 places a pole at the output cap ESR zero
A247: =CHOOSE(COMP_TYPE,"Internal Compensation","External Compensation") -> Internal Compensation
A248: Chosen Compensation Components from the standard value sheet | D248: Internal Values
A249: Rcea1_u | B249: =CHOOSE(COMP_TYPE,D249,'Design Regulator'!D71*1000) -> 400000 | C249: W | D249: 400000 | G249: =1/(Rcea1*2*Pi*(Fsw/2))-Cbw -> 6.222277173e-12
A250: Cc1ea_u | B250: =CHOOSE(COMP_TYPE,Cc3ea_u,'Design Regulator'!D72*0.000000001) -> 5e-11 | C250: F | D250: =50*0.000000000001 -> 5e-11
A251: Cc2ea_u | B251: =CHOOSE(COMP_TYPE,Cc4ea_u,'Design Regulator'!D73*0.000000000001) -> 1e-12 | C251: F | D251: =0.000000000001 -> 1e-12
A253: Resulting Pole/Zero Locations | F253: =Cout -> 0.000325 | G253: =Cout_ESR -> 0.001
... 161 more rows

Sheet Schematic Management (hidden)
N1: 3.3V or 5V fixed (FB1/2)
A2: =IF(MODE=1, CHOOSE(SCH_SETTING, "SCH_SetVout_IntComp_nEN","SCH_SetVout_IntComp_EN","SCH_SetVout_ExtComp_nEN","SCH_SetVout_ExtComp_EN","SCH_AdjVout_IntComp_nEN","SCH_AdjVout_IntComp_EN","SCH_AdjVout_ExtComp_nEN","SCH_AdjVout_ExtComp_EN", "SCH_SetVout_IntComp_nEN_BIAS_GND","SCH_SetVout_IntComp_EN_BIAS_GND","SCH_SetVout_ExtComp_nEN_BIAS_GND","SCH_SetVout_ExtComp_EN_BIAS_GND","SCH_AdjVout_IntComp_nEN_BIAS_GND","SCH_AdjVout_IntComp_EN_BIAS_GND","SCH_AdjVout_ExtComp_nEN_BIAS_GND","SCH_AdjVout_ExtComp_EN_BIAS_GND", "")) -> SCH_SetVout_IntComp_nEN_BIAS_GND | J2: With/without dither (DITH) | N2: With/without VOUT connected to VCCX
J3: FPWM or DEM (DEMB)
J4: Shunt or inductor DCR current sensing

Sheet Efficiency Plot Management (hidden)
A2: =IF(PLOT_TYPE=1, "EFF_Ch1", "EFF_Ch2") -> EFF_Ch1

Sheet Standard Value Calculator (hidden)
A2: Capacitors | B2: Css | C2: Cc1ea | D2: Cc2ea | E2: Cout | F2: Cin | G2: Cres | H2: Cdither | I2: Cc3ea | J2: Cc4ea | K2: Cin_Passive | L2: Cdamp_Pssv | M2: Cinj_AEF | N2: Cdamp_AEF
A3: Inputs | B3: =Css -> 0 | C3: =Cc1ea -> 1.754512972e-09 | D3: =Cc2ea -> 6.222277173e-12 | E3: =Cout -> 0.000325 | F3: =Cin -> 1.5e-05 | G3: =Cres -> 8.85e-08 | H3: =Cdither_init -> 2.83446712e-09 | I3: =Cc3ea -> 0 | J3: =Cc4ea -> 0 | K3: ='Variable Management'!B294*0.000001 ->  | L3: =K3*4 ->  | M3: =Cinj_AEF*0.000001 ->  | N3: ='Variable Management'!B297*0.000001 ->  | Q3: Resistors | R3: inputs | S3: Standard Result
A4: Standard Result | B4: =SUM(B6:B158)/1000000000000 -> 0 | C4: =IF(C3="OPEN","OPEN",SUM(C6:C158)/1000000000000) -> 1.8e-09 | D4: =SUM(D6:D158)/1000000000000 -> 6.8e-12 | E4: =SUM(E6:E158)/1000000000000 -> 0.00033 | F4: =SUM(F6:F158)/1000000000000 -> 1.5e-05 | G4: =SUM(G6:G158)/1000000000000 -> 8.2e-08 | H4: =IF(H3="OPEN","OPEN",SUM(H6:H158)/1000000000000) -> 2.7e-09 | I4: 0 | J4: 0 | Q4: Rt | R4: =Rfadj -> 54.9 | S4: =IF(R4>(INT(0.5+100*POWER(10,IF(96*(LOG(R4)-INT(LOG(R4)))-ROUND(96*(LOG(R4)-INT(LOG(R4))),0)<0,ROUND(96*(LOG(R4)-INT(LOG(R4))),0)-1,ROUND(96*(LOG(R4)-INT(LOG(R4))),0))/96))*POWER(10,INT(LOG(R4))-2)+INT(0.5+100*POWER(10,(IF(96*(LOG(R4)-INT(LOG(R4)))-ROUND(96*(LOG(R4)-INT(LOG(R4))),0)<0,ROUND(96*(LOG(R4)-INT(LOG(R4))),0)-1,ROUND(96*(LOG(R4)-INT(LOG(R4))),0))+1)/96))*POWER(10,INT(LOG(R4))-2))/2,INT(0.5+100*POWER(10,(IF(96*(LOG(R4)-INT(LOG(R4)))-ROUND(96*(LOG(R4)-INT(LOG(R4))),0)<0,ROUND(96*(LOG(R4)-INT(LOG(R4))),0)-1,ROUND(96*(LOG(R4)-INT(LOG(R4))),0))+1)/96))*POWER(10,INT(LOG(R4))-2),INT(0.5+100*POWER(10,IF(96*(LOG(R4)-INT(LOG(R4)))-ROUND(96*(LOG(R4)-INT(LOG(R4))),0)<0,ROUND(96*(LOG(R4)-INT(LOG(R4))),0)-1,ROUND(96*(LOG(R4)-INT(LOG(R4))),0))/96))*POWER(10,INT(LOG(R4))-2)) -> 54.9 | T4: Ω
A5: (pF)
A6: 0.47 | B6: =IF(IF((B$3*10^12-$A7)*(B$3*10^12-$A6)*-1<0,0,1)*IF(ABS(B$3*10^12-$A7)>(B$3*10^12-$A6),$A6,$A7)=B7,0,IF((B$3*10^12-$A7)*(B$3*10^12-$A6)*-1<0,0,1)*IF(ABS(B$3*10^12-$A7)>(B$3*10^12-$A6),$A6,$A7)) -> 0 | C6: 0 | D6: 0 | E6: 0 | F6: 0 | G6: 0 | H6: 0 | I6: 0 | J6: 0
A7: 0.56 | B7: =IF(IF((B$3*10^12-$A8)*(B$3*10^12-$A7)*-1<0,0,1)*IF(ABS(B$3*10^12-$A8)>(B$3*10^12-$A7),$A7,$A8)=B8,0,IF((B$3*10^12-$A8)*(B$3*10^12-$A7)*-1<0,0,1)*IF(ABS(B$3*10^12-$A8)>(B$3*10^12-$A7),$A7,$A8)) -> 0 | C7: =IF(IF((C$3*10^12-$A8)*(C$3*10^12-$A7)*-1<0,0,1)*IF(ABS(C$3*10^12-$A8)>(C$3*10^12-$A7),$A7,$A8)=C8,0,IF((C$3*10^12-$A8)*(C$3*10^12-$A7)*-1<0,0,1)*IF(ABS(C$3*10^12-$A8)>(C$3*10^12-$A7),$A7,$A8)) -> 0 | D7: =IF(IF((D$3*10^12-$A8)*(D$3*10^12-$A7)*-1<0,0,1)*IF(ABS(D$3*10^12-$A8)>(D$3*10^12-$A7),$A7,$A8)=D8,0,IF((D$3*10^12-$A8)*(D$3*10^12-$A7)*-1<0,0,1)*IF(ABS(D$3*10^12-$A8)>(D$3*10^12-$A7),$A7,$A8)) -> 0 | E7: =IF(IF((E$3*10^12-$A8)*(E$3*10^12-$A7)*-1<0,0,1)*IF(ABS(E$3*10^12-$A8)>(E$3*10^12-$A7),$A7,$A8)=E8,0,IF((E$3*10^12-$A8)*(E$3*10^12-$A7)*-1<0,0,1)*IF(ABS(E$3*10^12-$A8)>(E$3*10^12-$A7),$A7,$A8)) -> 0 | F7: =IF(IF((F$3*10^12-$A8)*(F$3*10^12-$A7)*-1<0,0,1)*IF(ABS(F$3*10^12-$A8)>(F$3*10^12-$A7),$A7,$A8)=F8,0,IF((F$3*10^12-$A8)*(F$3*10^12-$A7)*-1<0,0,1)*IF(ABS(F$3*10^12-$A8)>(F$3*10^12-$A7),$A7,$A8)) -> 0 | G7: =IF(IF((G$3*10^12-$A8)*(G$3*10^12-$A7)*-1<0,0,1)*IF(ABS(G$3*10^12-$A8)>(G$3*10^12-$A7),$A7,$A8)=G8,0,IF((G$3*10^12-$A8)*(G$3*10^12-$A7)*-1<0,0,1)*IF(ABS(G$3*10^12-$A8)>(G$3*10^12-$A7),$A7,$A8)) -> 0 | H7: 0 | I7: 0 | J7: 0 | K7: =IF(IF((K$3*10^12-$A8)*(K$3*10^12-$A7)*-1<0,0,1)*IF(ABS(K$3*10^12-$A8)>(K$3*10^12-$A7),$A7,$A8)=K8,0,IF((K$3*10^12-$A8)*(K$3*10^12-$A7)*-1<0,0,1)*IF(ABS(K$3*10^12-$A8)>(K$3*10^12-$A7),$A7,$A8)) ->  | Q7: Rc1ea | R7: =Rcea1 -> 113389.6883 | S7: =IF(R7>(INT(0.5+100*POWER(10,IF(96*(LOG(R7)-INT(LOG(R7)))-ROUND(96*(LOG(R7)-INT(LOG(R7))),0)<0,ROUND(96*(LOG(R7)-INT(LOG(R7))),0)-1,ROUND(96*(LOG(R7)-INT(LOG(R7))),0))/96))*POWER(10,INT(LOG(R7))-2)+INT(0.5+100*POWER(10,(IF(96*(LOG(R7)-INT(LOG(R7)))-ROUND(96*(LOG(R7)-INT(LOG(R7))),0)<0,ROUND(96*(LOG(R7)-INT(LOG(R7))),0)-1,ROUND(96*(LOG(R7)-INT(LOG(R7))),0))+1)/96))*POWER(10,INT(LOG(R7))-2))/2,INT(0.5+100*POWER(10,(IF(96*(LOG(R7)-INT(LOG(R7)))-ROUND(96*(LOG(R7)-INT(LOG(R7))),0)<0,ROUND(96*(LOG(R7)-INT(LOG(R7))),0)-1,ROUND(96*(LOG(R7)-INT(LOG(R7))),0))+1)/96))*POWER(10,INT(LOG(R7))-2),INT(0.5+100*POWER(10,IF(96*(LOG(R7)-INT(LOG(R7)))-ROUND(96*(LOG(R7)-INT(LOG(R7))),0)<0,ROUND(96*(LOG(R7)-INT(LOG(R7))),0)-1,ROUND(96*(LOG(R7)-INT(LOG(R7))),0))/96))*POWER(10,INT(LOG(R7))-2)) -> 113000 | T7: Ω
A8: 0.68 | B8: 0 | C8: 0 | D8: 0 | E8: 0 | F8: 0 | G8: 0 | H8: 0 | I8: 0 | J8: 0 | Q8: Rc1ea | R8: =Rcea2 -> 0 | S8: =IF(R8>(INT(0.5+100*POWER(10,IF(96*(LOG(R8)-INT(LOG(R8)))-ROUND(96*(LOG(R8)-INT(LOG(R8))),0)<0,ROUND(96*(LOG(R8)-INT(LOG(R8))),0)-1,ROUND(96*(LOG(R8)-INT(LOG(R8))),0))/96))*POWER(10,INT(LOG(R8))-2)+INT(0.5+100*POWER(10,(IF(96*(LOG(R8)-INT(LOG(R8)))-ROUND(96*(LOG(R8)-INT(LOG(R8))),0)<0,ROUND(96*(LOG(R8)-INT(LOG(R8))),0)-1,ROUND(96*(LOG(R8)-INT(LOG(R8))),0))+1)/96))*POWER(10,INT(LOG(R8))-2))/2,INT(0.5+100*POWER(10,(IF(96*(LOG(R8)-INT(LOG(R8)))-ROUND(96*(LOG(R8)-INT(LOG(R8))),0)<0,ROUND(96*(LOG(R8)-INT(LOG(R8))),0)-1,ROUND(96*(LOG(R8)-INT(LOG(R8))),0))+1)/96))*POWER(10,INT(LOG(R8))-2),INT(0.5+100*POWER(10,IF(96*(LOG(R8)-INT(LOG(R8)))-ROUND(96*(LOG(R8)-INT(LOG(R8))),0)<0,ROUND(96*(LOG(R8)-INT(LOG(R8))),0)-1,ROUND(96*(LOG(R8)-INT(LOG(R8))),0))/96))*POWER(10,INT(LOG(R8))-2)) ->  | T8: Ω
A9: 0.82 | B9: 0 | C9: 0 | D9: 0 | E9: 0 | F9: 0 | G9: 0 | H9: 0 | I9: 0 | J9: 0
A10: 1 | B10: 0 | C10: 0 | D10: 0 | E10: 0 | F10: 0 | G10: 0 | H10: 0 | I10: 0 | J10: 0 | Q10: Rfb1 | R10: =Rfb1_ -> 2500000 | S10: =IF(R10>(INT(0.5+100*POWER(10,IF(96*(LOG(R10)-INT(LOG(R10)))-ROUND(96*(LOG(R10)-INT(LOG(R10))),0)<0,ROUND(96*(LOG(R10)-INT(LOG(R10))),0)-1,ROUND(96*(LOG(R10)-INT(LOG(R10))),0))/96))*POWER(10,INT(LOG(R10))-2)+INT(0.5+100*POWER(10,(IF(96*(LOG(R10)-INT(LOG(R10)))-ROUND(96*(LOG(R10)-INT(LOG(R10))),0)<0,ROUND(96*(LOG(R10)-INT(LOG(R10))),0)-1,ROUND(96*(LOG(R10)-INT(LOG(R10))),0))+1)/96))*POWER(10,INT(LOG(R10))-2))/2,INT(0.5+100*POWER(10,(IF(96*(LOG(R10)-INT(LOG(R10)))-ROUND(96*(LOG(R10)-INT(LOG(R10))),0)<0,ROUND(96*(LOG(R10)-INT(LOG(R10))),0)-1,ROUND(96*(LOG(R10)-INT(LOG(R10))),0))+1)/96))*POWER(10,INT(LOG(R10))-2),INT(0.5+100*POWER(10,IF(96*(LOG(R10)-INT(LOG(R10)))-ROUND(96*(LOG(R10)-INT(LOG(R10))),0)<0,ROUND(96*(LOG(R10)-INT(LOG(R10))),0)-1,ROUND(96*(LOG(R10)-INT(LOG(R10))),0))/96))*POWER(10,INT(LOG(R10))-2)) -> 2490000 | T10: Ω
A11: 1.2 | B11: 0 | C11: 0 | D11: 0 | E11: 0 | F11: 0 | G11: 0 | H11: 0 | I11: 0 | J11: 0 | M11: =IF(IF((M$3*10^12-$A12)*(M$3*10^12-$A11)*-1<0,0,1)*IF(ABS(M$3*10^12-$A12)>(M$3*10^12-$A11),$A11,$A12)=M12,0,IF((M$3*10^12-$A12)*(M$3*10^12-$A11)*-1<0,0,1)*IF(ABS(M$3*10^12-$A12)>(M$3*10^12-$A11),$A11,$A12)) ->  | Q11: Rfb2 | R11: =Rfb2_ -> 800000 | S11: =IF(R11="OPEN","OPEN",IF(R11>(INT(0.5+100*POWER(10,IF(96*(LOG(R11)-INT(LOG(R11)))-ROUND(96*(LOG(R11)-INT(LOG(R11))),0)<0,ROUND(96*(LOG(R11)-INT(LOG(R11))),0)-1,ROUND(96*(LOG(R11)-INT(LOG(R11))),0))/96))*POWER(10,INT(LOG(R11))-2)+INT(0.5+100*POWER(10,(IF(96*(LOG(R11)-INT(LOG(R11)))-ROUND(96*(LOG(R11)-INT(LOG(R11))),0)<0,ROUND(96*(LOG(R11)-INT(LOG(R11))),0)-1,ROUND(96*(LOG(R11)-INT(LOG(R11))),0))+1)/96))*POWER(10,INT(LOG(R11))-2))/2,INT(0.5+100*POWER(10,(IF(96*(LOG(R11)-INT(LOG(R11)))-ROUND(96*(LOG(R11)-INT(LOG(R11))),0)<0,ROUND(96*(LOG(R11)-INT(LOG(R11))),0)-1,ROUND(96*(LOG(R11)-INT(LOG(R11))),0))+1)/96))*POWER(10,INT(LOG(R11))-2),INT(0.5+100*POWER(10,IF(96*(LOG(R11)-INT(LOG(R11)))-ROUND(96*(LOG(R11)-INT(LOG(R11))),0)<0,ROUND(96*(LOG(R11)-INT(LOG(R11))),0)-1,ROUND(96*(LOG(R11)-INT(LOG(R11))),0))/96))*POWER(10,INT(LOG(R11))-2))) -> 806000 | T11: Ω
A12: 1.5 | B12: 0 | C12: 0 | D12: 0 | E12: 0 | F12: 0 | G12: 0 | H12: 0 | I12: 0 | J12: 0 | Q12: Rt1 | R12: ='Variable Management'!B27*1000 -> 54477.77778 | S12: =IF(R12>(INT(0.5+100*POWER(10,IF(96*(LOG(R12)-INT(LOG(R12)))-ROUND(96*(LOG(R12)-INT(LOG(R12))),0)<0,ROUND(96*(LOG(R12)-INT(LOG(R12))),0)-1,ROUND(96*(LOG(R12)-INT(LOG(R12))),0))/96))*POWER(10,INT(LOG(R12))-2)+INT(0.5+100*POWER(10,(IF(96*(LOG(R12)-INT(LOG(R12)))-ROUND(96*(LOG(R12)-INT(LOG(R12))),0)<0,ROUND(96*(LOG(R12)-INT(LOG(R12))),0)-1,ROUND(96*(LOG(R12)-INT(LOG(R12))),0))+1)/96))*POWER(10,INT(LOG(R12))-2))/2,INT(0.5+100*POWER(10,(IF(96*(LOG(R12)-INT(LOG(R12)))-ROUND(96*(LOG(R12)-INT(LOG(R12))),0)<0,ROUND(96*(LOG(R12)-INT(LOG(R12))),0)-1,ROUND(96*(LOG(R12)-INT(LOG(R12))),0))+1)/96))*POWER(10,INT(LOG(R12))-2),INT(0.5+100*POWER(10,IF(96*(LOG(R12)-INT(LOG(R12)))-ROUND(96*(LOG(R12)-INT(LOG(R12))),0)<0,ROUND(96*(LOG(R12)-INT(LOG(R12))),0)-1,ROUND(96*(LOG(R12)-INT(LOG(R12))),0))/96))*POWER(10,INT(LOG(R12))-2)) -> 54900 | T12: Ω
A13: 1.8 | B13: 0 | C13: 0 | D13: 0 | E13: 0 | F13: 0 | G13: 0 | H13: 0 | I13: 0 | J13: 0 | Q13: Rd | R13: ='Variable Management'!B28*1000 -> 0 | S13: =IF(R13="OPEN","OPEN",IF(R13>(INT(0.5+100*POWER(10,IF(96*(LOG(R13)-INT(LOG(R13)))-ROUND(96*(LOG(R13)-INT(LOG(R13))),0)<0,ROUND(96*(LOG(R13)-INT(LOG(R13))),0)-1,ROUND(96*(LOG(R13)-INT(LOG(R13))),0))/96))*POWER(10,INT(LOG(R13))-2)+INT(0.5+100*POWER(10,(IF(96*(LOG(R13)-INT(LOG(R13)))-ROUND(96*(LOG(R13)-INT(LOG(R13))),0)<0,ROUND(96*(LOG(R13)-INT(LOG(R13))),0)-1,ROUND(96*(LOG(R13)-INT(LOG(R13))),0))+1)/96))*POWER(10,INT(LOG(R13))-2))/2,INT(0.5+100*POWER(10,(IF(96*(LOG(R13)-INT(LOG(R13)))-ROUND(96*(LOG(R13)-INT(LOG(R13))),0)<0,ROUND(96*(LOG(R13)-INT(LOG(R13))),0)-1,ROUND(96*(LOG(R13)-INT(LOG(R13))),0))+1)/96))*POWER(10,INT(LOG(R13))-2),INT(0.5+100*POWER(10,IF(96*(LOG(R13)-INT(LOG(R13)))-ROUND(96*(LOG(R13)-INT(LOG(R13))),0)<0,ROUND(96*(LOG(R13)-INT(LOG(R13))),0)-1,ROUND(96*(LOG(R13)-INT(LOG(R13))),0))/96))*POWER(10,INT(LOG(R13))-2))) ->  | T13: Ω
A14: 2.2 | B14: =IF(IF((B$3*10^12-$A15)*(B$3*10^12-$A14)*-1<0,0,1)*IF(ABS(B$3*10^12-$A15)>(B$3*10^12-$A14),$A14,$A15)=B15,0,IF((B$3*10^12-$A15)*(B$3*10^12-$A14)*-1<0,0,1)*IF(ABS(B$3*10^12-$A15)>(B$3*10^12-$A14),$A14,$A15)) -> 0 | C14: 0 | D14: 0 | E14: 0 | F14: 0 | G14: 0 | H14: 0 | I14: 0 | J14: 0 | Q14: Rd_AEF | R14: ='Variable Management'!B303 -> 0 | S14: =IF(R14="OPEN","OPEN",IF(R14>(INT(0.5+100*POWER(10,IF(96*(LOG(R14)-INT(LOG(R14)))-ROUND(96*(LOG(R14)-INT(LOG(R14))),0)<0,ROUND(96*(LOG(R14)-INT(LOG(R14))),0)-1,ROUND(96*(LOG(R14)-INT(LOG(R14))),0))/96))*POWER(10,INT(LOG(R14))-2)+INT(0.5+100*POWER(10,(IF(96*(LOG(R14)-INT(LOG(R14)))-ROUND(96*(LOG(R14)-INT(LOG(R14))),0)<0,ROUND(96*(LOG(R14)-INT(LOG(R14))),0)-1,ROUND(96*(LOG(R14)-INT(LOG(R14))),0))+1)/96))*POWER(10,INT(LOG(R14))-2))/2,INT(0.5+100*POWER(10,(IF(96*(LOG(R14)-INT(LOG(R14)))-ROUND(96*(LOG(R14)-INT(LOG(R14))),0)<0,ROUND(96*(LOG(R14)-INT(LOG(R14))),0)-1,ROUND(96*(LOG(R14)-INT(LOG(R14))),0))+1)/96))*POWER(10,INT(LOG(R14))-2),INT(0.5+100*POWER(10,IF(96*(LOG(R14)-INT(LOG(R14)))-ROUND(96*(LOG(R14)-INT(LOG(R14))),0)<0,ROUND(96*(LOG(R14)-INT(LOG(R14))),0)-1,ROUND(96*(LOG(R14)-INT(LOG(R14))),0))/96))*POWER(10,INT(LOG(R14))-2))) ->  | T14: Ω
A15: 2.7 | B15: 0 | C15: 0 | D15: 0 | E15: 0 | F15: 0 | G15: 0 | H15: 0 | I15: 0 | J15: 0 | K15: =IF(IF((K$3*10^12-$A16)*(K$3*10^12-$A15)*-1<0,0,1)*IF(ABS(K$3*10^12-$A16)>(K$3*10^12-$A15),$A15,$A16)=K16,0,IF((K$3*10^12-$A16)*(K$3*10^12-$A15)*-1<0,0,1)*IF(ABS(K$3*10^12-$A16)>(K$3*10^12-$A15),$A15,$A16)) -> 
A16: 3.3 | B16: 0 | C16: 0 | D16: 0 | E16: 0 | F16: 0 | G16: 0 | H16: 0 | I16: 0 | J16: 0 | Q16: Rs | R16: =Rs_ideal*1000 -> 5.193909574 | S16: =IF(R16=0,0,IF(R16>(INT(0.5+100*POWER(10,IF(96*(LOG(R16)-INT(LOG(R16)))-ROUND(96*(LOG(R16)-INT(LOG(R16))),0)<0,ROUND(96*(LOG(R16)-INT(LOG(R16))),0)-1,ROUND(96*(LOG(R16)-INT(LOG(R16))),0))/96))*POWER(10,INT(LOG(R16))-2)+INT(0.5+100*POWER(10,(IF(96*(LOG(R16)-INT(LOG(R16)))-ROUND(96*(LOG(R16)-INT(LOG(R16))),0)<0,ROUND(96*(LOG(R16)-INT(LOG(R16))),0)-1,ROUND(96*(LOG(R16)-INT(LOG(R16))),0))+1)/96))*POWER(10,INT(LOG(R16))-2))/2,INT(0.5+100*POWER(10,(IF(96*(LOG(R16)-INT(LOG(R16)))-ROUND(96*(LOG(R16)-INT(LOG(R16))),0)<0,ROUND(96*(LOG(R16)-INT(LOG(R16))),0)-1,ROUND(96*(LOG(R16)-INT(LOG(R16))),0))+1)/96))*POWER(10,INT(LOG(R16))-2),INT(0.5+100*POWER(10,IF(96*(LOG(R16)-INT(LOG(R16)))-ROUND(96*(LOG(R16)-INT(LOG(R16))),0)<0,ROUND(96*(LOG(R16)-INT(LOG(R16))),0)-1,ROUND(96*(LOG(R16)-INT(LOG(R16))),0))/96))*POWER(10,INT(LOG(R16))-2))) -> 5.23 | T16: mΩ
A17: 3.9 | B17: 0 | C17: 0 | D17: 0 | E17: 0 | F17: 0 | G17: 0 | H17: 0 | I17: 0 | J17: 0 | Q17: Cres | R17: =Cres -> 8.85e-08 | S17: =G4*1000000000000 -> 82000 | T17: pF
A18: 4.7 | B18: 0 | C18: 0 | D18: 0 | E18: 0 | F18: 0 | G18: 0 | H18: 0 | I18: 0 | J18: 0
A19: 5.6 | B19: 0 | C19: 0 | D19: 6.8 | E19: 0 | F19: 0 | G19: 0 | H19: 0 | I19: 0 | J19: 0
A20: 6.8 | B20: 0 | C20: 0 | D20: 0 | E20: 0 | F20: 0 | G20: 0 | H20: 0 | I20: 0 | J20: 0
A21: 8.2 | B21: 0 | C21: 0 | D21: 0 | E21: 0 | F21: 0 | G21: 0 | H21: 0 | I21: 0 | J21: 0 | Q21: Cdither | R21: =Cdither_init -> 2.83446712e-09 | S21: =H4 -> 2.7e-09
A22: 10 | B22: 0 | C22: 0 | D22: 0 | E22: 0 | F22: 0 | G22: 0 | H22: 0 | I22: 0 | J22: 0 | K22: =IF(IF((K$3*10^12-$A23)*(K$3*10^12-$A22)*-1<0,0,1)*IF(ABS(K$3*10^12-$A23)>(K$3*10^12-$A22),$A22,$A23)=K23,0,IF((K$3*10^12-$A23)*(K$3*10^12-$A22)*-1<0,0,1)*IF(ABS(K$3*10^12-$A23)>(K$3*10^12-$A22),$A22,$A23)) -> 
A23: 12 | B23: 0 | C23: 0 | D23: 0 | E23: 0 | F23: 0 | G23: 0 | H23: 0 | I23: 0 | J23: 0 | Q23: Cin_Passive | R23: =K4 ->  | S23: =R23*1000000 ->  | T23: uF
A24: 15 | B24: 0 | C24: 0 | D24: 0 | E24: 0 | F24: 0 | G24: 0 | H24: 0 | I24: 0 | J24: 0 | Q24: Cinj_AEF | R24: =Cinj_AEF ->  | S24: =M4*1000000 ->  | T24: uF
A25: 18 | B25: 0 | C25: 0 | D25: 0 | E25: 0 | F25: 0 | G25: 0 | H25: 0 | I25: 0 | J25: 0 | Q25: Cdamp_AEF | R25: ='Variable Management'!B297 ->  | S25: =N4*1000000 ->  | T25: uF
A26: 22 | B26: 0 | C26: 0 | D26: 0 | E26: 0 | F26: 0 | G26: 0 | H26: 0 | I26: 0 | J26: 0 | Q26: Rdamp_AEF | R26: ='Variable Management'!B298 ->  | S26: =IF(R26="OPEN","OPEN",IF(R26>(INT(0.5+100*POWER(10,IF(96*(LOG(R26)-INT(LOG(R26)))-ROUND(96*(LOG(R26)-INT(LOG(R26))),0)<0,ROUND(96*(LOG(R26)-INT(LOG(R26))),0)-1,ROUND(96*(LOG(R26)-INT(LOG(R26))),0))/96))*POWER(10,INT(LOG(R26))-2)+INT(0.5+100*POWER(10,(IF(96*(LOG(R26)-INT(LOG(R26)))-ROUND(96*(LOG(R26)-INT(LOG(R26))),0)<0,ROUND(96*(LOG(R26)-INT(LOG(R26))),0)-1,ROUND(96*(LOG(R26)-INT(LOG(R26))),0))+1)/96))*POWER(10,INT(LOG(R26))-2))/2,INT(0.5+100*POWER(10,(IF(96*(LOG(R26)-INT(LOG(R26)))-ROUND(96*(LOG(R26)-INT(LOG(R26))),0)<0,ROUND(96*(LOG(R26)-INT(LOG(R26))),0)-1,ROUND(96*(LOG(R26)-INT(LOG(R26))),0))+1)/96))*POWER(10,INT(LOG(R26))-2),INT(0.5+100*POWER(10,IF(96*(LOG(R26)-INT(LOG(R26)))-ROUND(96*(LOG(R26)-INT(LOG(R26))),0)<0,ROUND(96*(LOG(R26)-INT(LOG(R26))),0)-1,ROUND(96*(LOG(R26)-INT(LOG(R26))),0))/96))*POWER(10,INT(LOG(R26))-2))) ->  | T26: Ω
A27: 27 | B27: 0 | C27: 0 | D27: 0 | E27: 0 | F27: 0 | G27: 0 | H27: 0 | I27: 0 | J27: 0 | M27: =IF(IF((M$3*10^12-$A28)*(M$3*10^12-$A27)*-1<0,0,1)*IF(ABS(M$3*10^12-$A28)>(M$3*10^12-$A27),$A27,$A28)=M28,0,IF((M$3*10^12-$A28)*(M$3*10^12-$A27)*-1<0,0,1)*IF(ABS(M$3*10^12-$A28)>(M$3*10^12-$A27),$A27,$A28)) ->  | Q27: Rdamp_Passive | R27: =SQRT(L_infilterStd/K4) ->  | S27: =IF(R27="OPEN","OPEN",IF(R27>(INT(0.5+100*POWER(10,IF(96*(LOG(R27)-INT(LOG(R27)))-ROUND(96*(LOG(R27)-INT(LOG(R27))),0)<0,ROUND(96*(LOG(R27)-INT(LOG(R27))),0)-1,ROUND(96*(LOG(R27)-INT(LOG(R27))),0))/96))*POWER(10,INT(LOG(R27))-2)+INT(0.5+100*POWER(10,(IF(96*(LOG(R27)-INT(LOG(R27)))-ROUND(96*(LOG(R27)-INT(LOG(R27))),0)<0,ROUND(96*(LOG(R27)-INT(LOG(R27))),0)-1,ROUND(96*(LOG(R27)-INT(LOG(R27))),0))+1)/96))*POWER(10,INT(LOG(R27))-2))/2,INT(0.5+100*POWER(10,(IF(96*(LOG(R27)-INT(LOG(R27)))-ROUND(96*(LOG(R27)-INT(LOG(R27))),0)<0,ROUND(96*(LOG(R27)-INT(LOG(R27))),0)-1,ROUND(96*(LOG(R27)-INT(LOG(R27))),0))+1)/96))*POWER(10,INT(LOG(R27))-2),INT(0.5+100*POWER(10,IF(96*(LOG(R27)-INT(LOG(R27)))-ROUND(96*(LOG(R27)-INT(LOG(R27))),0)<0,ROUND(96*(LOG(R27)-INT(LOG(R27))),0)-1,ROUND(96*(LOG(R27)-INT(LOG(R27))),0))/96))*POWER(10,INT(LOG(R27))-2))) ->  | T27: Ω
A28: 33 | B28: 0 | C28: 0 | D28: 0 | E28: 0 | F28: 0 | G28: 0 | H28: 0 | I28: 0 | J28: 0 | Q28: Cdamp_Passive | R28: =L4 ->  | S28: =R28*1000000 ->  | T28: uF
A29: 39 | B29: 0 | C29: 0 | D29: 0 | E29: 0 | F29: 0 | G29: 0 | H29: 0 | I29: 0 | J29: 0
A30: 47 | B30: 0 | C30: 0 | D30: 0 | E30: 0 | F30: 0 | G30: 0 | H30: 0 | I30: 0 | J30: 0
A31: 56 | B31: 0 | C31: 0 | D31: 0 | E31: 0 | F31: 0 | G31: 0 | H31: 0 | I31: 0 | J31: 0
A32: 68 | B32: 0 | C32: 0 | D32: 0 | E32: 0 | F32: 0 | G32: 0 | H32: 0 | I32: 0 | J32: 0 | Q32: Rc1 | R32: =S7/1000&" kΩ" -> 113 kΩ | S32: =S7/1000 -> 113 | T32: kΩ
A33: 82 | B33: 0 | C33: 0 | D33: 0 | E33: 0 | F33: 0 | G33: 0 | H33: 0 | I33: 0 | J33: 0 | Q33: Cc1 | R33: =C4*1000000000&" nF" -> 1.8 nF | S33: =C4*1000000000 -> 1.8 | T33: nF
A34: =A22*10 -> 100 | B34: 0 | C34: 0 | D34: 0 | E34: 0 | F34: 0 | G34: 0 | H34: 0 | I34: 0 | J34: 0 | Q34: Cc2 | R34: =D4*1000000000000&" pF" -> 6.8 pF | S34: =D4*1000000000000 -> 6.8 | T34: pF
A35: =A23*10 -> 120 | B35: 0 | C35: 0 | D35: 0 | E35: 0 | F35: 0 | G35: 0 | H35: 0 | I35: 0 | J35: 0
A36: 150 | B36: 0 | C36: 0 | D36: 0 | E36: 0 | F36: 0 | G36: 0 | H36: 0 | I36: 0 | J36: 0 | Q36: Rc2 | R36: =S8/1000&" kΩ" ->  | S36: =S8/1000 ->  | T36: kΩ
A37: 180 | B37: 0 | C37: 0 | D37: 0 | E37: 0 | F37: 0 | G37: 0 | H37: 0 | I37: 0 | J37: 0 | Q37: Cc3 | R37: =I4*1000000000&" nF" -> 0 nF | S37: =I4*1000000000 -> 0 | T37: nF
A38: 220 | B38: 0 | C38: 0 | D38: 0 | E38: 0 | F38: 0 | G38: 0 | H38: 0 | I38: 0 | J38: 0 | Q38: Cc4 | R38: =J4*1000000000000&" pF" -> 0 pF | S38: =J4*1000000000000 -> 0 | T38: pF
A39: 270 | B39: 0 | C39: =IF(IF((C$3*10^12-$A40)*(C$3*10^12-$A39)*-1<0,0,1)*IF(ABS(C$3*10^12-$A40)>(C$3*10^12-$A39),$A39,$A40)=C40,0,IF((C$3*10^12-$A40)*(C$3*10^12-$A39)*-1<0,0,1)*IF(ABS(C$3*10^12-$A40)>(C$3*10^12-$A39),$A39,$A40)) -> 0 | D39: 0 | E39: 0 | F39: 0 | G39: 0 | H39: 0 | I39: 0 | J39: 0
A40: 330 | B40: 0 | C40: 0 | D40: 0 | E40: 0 | F40: 0 | G40: 0 | H40: 0 | I40: 0 | J40: 0 | Q40: Rent | R40: ='Variable Management'!B188/1000 -> 100.45 | S40: =IF(R40>(INT(0.5+100*POWER(10,IF(96*(LOG(R40)-INT(LOG(R40)))-ROUND(96*(LOG(R40)-INT(LOG(R40))),0)<0,ROUND(96*(LOG(R40)-INT(LOG(R40))),0)-1,ROUND(96*(LOG(R40)-INT(LOG(R40))),0))/96))*POWER(10,INT(LOG(R40))-2)+INT(0.5+100*POWER(10,(IF(96*(LOG(R40)-INT(LOG(R40)))-ROUND(96*(LOG(R40)-INT(LOG(R40))),0)<0,ROUND(96*(LOG(R40)-INT(LOG(R40))),0)-1,ROUND(96*(LOG(R40)-INT(LOG(R40))),0))+1)/96))*POWER(10,INT(LOG(R40))-2))/2,INT(0.5+100*POWER(10,(IF(96*(LOG(R40)-INT(LOG(R40)))-ROUND(96*(LOG(R40)-INT(LOG(R40))),0)<0,ROUND(96*(LOG(R40)-INT(LOG(R40))),0)-1,ROUND(96*(LOG(R40)-INT(LOG(R40))),0))+1)/96))*POWER(10,INT(LOG(R40))-2),INT(0.5+100*POWER(10,IF(96*(LOG(R40)-INT(LOG(R40)))-ROUND(96*(LOG(R40)-INT(LOG(R40))),0)<0,ROUND(96*(LOG(R40)-INT(LOG(R40))),0)-1,ROUND(96*(LOG(R40)-INT(LOG(R40))),0))/96))*POWER(10,INT(LOG(R40))-2)) -> 100 | T40: kΩ
